Workbook

Sheet Summary
D4: Need Hourly Data for Analysis
D5: Importance of Presentation with different time periods
E6: Use of SUMIF, AVERAGEIF, EOMONTH, LOOKUP
E7: Monthly versus Hourly and Annual Analysis
E8: Hourly Analysis with NA Trick
D9: Understand market prices
E10: Natural Gas sensitivity even if there is no gas production in NL
E11: Changes in Negative prices
E12: Prices in Pre-COVID, Invasion, Post Covid
E13: Understand prices and solar power in NL with flex graph
E14: Use INDEX and Dropdown boxes in the Flex Graph
E15: Make a pre-COVID and Post-COVID Graph for Ilustration
D16: Simulate historic performance with PPA

Sheet Data Analysis
AH1: =Forms!Y18 -> NL Prices in Euro/MWH | AJ1: Annual Average | AL1: =Forms!Y18 -> NL Prices in Euro/MWH | AM1: Negative Hours | AP1: 90 | AS1: =AH5 -> NL Prices in Euro/MWH | AW1: Monthly Average | BT1: =Forms!D4 -> 2020-01-01T22:59:59.992 | BV1: First Flex Graph | BY1: =Forms!H11 -> 2023-01-01T22:59:59.992
E2: Hours | K2: SYS | L2: SE1 | M2: SE2 | N2: SE3 | O2: SE4 | P2: FI | Q2: Oslo | R2: Kr.sand | S2: Bergen | T2: Molde | U2: Tr.heim | V2: Tromsø | W2: EE | X2: DK1 | Y2: DK2 | Z2: LV | AA2: LT | AB2: AT | AC2: BE | AD2: DE-LU | AE2: FR | AH2: =Forms!Y4 -> 9 | AO2: 0.85 | AP2: 1.02 | BH2: 100 | BT2: =Forms!F4 -> 2020-01-31T22:59:59.992 | BV2: x-scale | BW2: First y | BX2: Second y | BY2: =Forms!K11 -> 2023-01-31T22:59:59.992 | BZ2: x-scale | CA2: First y | CB2: Second y | CH2: Annual Prices | CP2: Monthly Analysis
G3: FALSE | AP3: 1.15 | DE3: Graph of Realised Prices
K4: Data from NORDPOOL Through 2024 -----------------------------------------------------------------------------------------------------------------------------------------------------------------------------------------------------------------------------------------------> | AH4: Block for Analysis from Hourly Prices --------------------------------------------------------------------------------------------------> | AP4: 0.1 | BW4: =Forms!$O$4 -> 1 | BX4: =Forms!$S$4 -> 12
X5: Denmark Other - Euro/MWH | Y5: Denmark - Copenhagen - Euro/MWH | Z5: Latvian Prices - Euro/MWH | AA5: Lithuania Prices - Euro/MWH | AB5: Austrian Prices Euro/MWH | AC5: Belgium Prices - Euro/MWH | AD5: German Prices in Euro/MWH | AE5: French Prices in Euro/MWH | AF5: NL Prices in Euro/MWH | AH5: =INDEX(X5:AF5,AH2) -> NL Prices in Euro/MWH | AI5: Negative Price | AJ5: Consecutive Negative | AK5: Count of Negative | AL5: Count >= 6 | AM5: Year | AN5: Yearly Average Price | AO5: Hourly Price x Factor (Phase 1) | AP5: Price for Phase - Phase 2 | AQ5: PPA Price Applied | AR5: Solar Excess Generation Club | AS5: Wind speed from PVGIS | AT5: Revenues from Wind Generation | AU5: Solar from PVGIS - Generation | AV5: Solar From PVGIS @ merch revenues | AW5: PVGIS Solar at PPA Price | AX5: Hour Counter | AY5: Day Counter | AZ5: Minimum - Prior Day | BA5: Minimum Hour | BB5: Maximum - Prior Day | BC5: Maximum Hour | BD5: Second Minimum - Prior Day | BE5: Second Minimum Hour | BF5: Second Maximum - Prior Day | BG5: Second Maximum Hour | BH5: Battery Capacity - MW | BI5: Price for Battery Charge - Hour | BJ5: Price Battery Discharge Charge - Hour | BK5: Opening Battery Balance - Hour | BL5: Add: Charge of Battery | BM5: Less: Discharge of Battery | BN5: Closing Balance of Battery | BO5: Net Battery Revenues | BP5: Gas Price - USD/MMBTU | BQ5: Market Heat Rate | BW5: =Forms!$H$4 -> NL Prices in Euro/MWH | BX5: =Forms!$I$4 -> Wind speed from PVGIS | CA5: =BW5 -> NL Prices in Euro/MWH | CB5: =BX5 -> Wind speed from PVGIS | CC5: NL Negative Hour | CD5: NL Negative or Zero Hour | CI5: Average | CK5: NL Negative hours | CL5: NL Negative or zero hours | CM5: Germany Negative hours | CN5: Germany Negative or zero hours | CQ5: =AH5 -> NL Prices in Euro/MWH | CR5: Energy PVGIS Solar | CS5: Revenues from Solar | CT5: Realized Price for Solar | CU5: Energy from Wind | CV5: Revenues from Wind | CW5: Price Realized for Wind | CX5: Battery Profits | CY5: Gas Price | DA5: Mkt HR | DB5: France | DC5: Germany | DE5: =CQ5 -> NL Prices in Euro/MWH | DF5: =CT5 -> Realized Price for Solar | DG5: =CW5 -> Price Realized for Wind
D6: 4416 | E6: 2019-07-03T22:59:59.992 | F6: =EOMONTH(E6,0) -> 2019-07-31 | G6: =TEXT(E6,"mmm")&" "&YEAR(E6) -> Jul 2019 | H6: =YEAR(E6) -> 2019 | I6: 00 - 01 | J6: =HOUR(E6) -> 23 | K6: 27.77 | L6: 27.78 | M6: 27.78 | N6: 27.78 | O6: 27.78 | P6: 27.78 | Q6: 27.78 | R6: 27.78 | S6: 27.78 | T6: 27.71 | U6: 27.71 | V6: 27.71 | W6: 27.78 | X6: 27.78 | Y6: 27.78 | Z6: 27.78 | AA6: 27.78 | AB6: 29.93 | AC6: 29.93 | AD6: 29.93 | AE6: 29.93 | AF6: 29.93 | AH6: =INDEX(X6:AF6,$AH$2) -> 29.93 | AI6: =AH6<0 -> FALSE | AR6: =LOOKUP(E6,'Hourly Data Facility'!A:A,'Hourly Data Facility'!F:F) ->  | AS6: =LOOKUP(E6,'Hourly Data PVGIS'!B:B,'Hourly Data PVGIS'!G:G) -> 4 | AT6: =AS6*AH6 -> 119.72 | AU6: =LOOKUP(E6,'Hourly Data PVGIS'!B:B,'Hourly Data PVGIS'!D:D) -> 0 | AV6: =AU6*AH6 -> 0 | AW6: =AQ6*AU6 -> 0 | AX6: 1 | AY6: 1 | BH6: =$BH$2 -> 100 | BI6: =(BA6=AX6)*AZ6 -> 0 | BJ6: =(AX6=BC6)*AH6 -> 0 | BL6: =MIN(BH6*(BI6<>0),BH6-BK6) -> 0 | BN6: =BK6+BL6-BM6 -> 0 | BO6: =BM6*BJ6-BL6*BI6 -> 0 | BP6: =LOOKUP(F6,'Gas and Other'!B:B,'Gas and Other'!J:J) -> 3.620371406 | BQ6: =AH6/BP6 -> 8.26710761 | BR6: 1 | BS6: =G6 -> Jul 2019 | BT6: =AND(E6>=$BT$1,E6<=$BT$2) -> FALSE | BU6: =_xlfn.SEQUENCE(48170) -> 1 | BV6: =IF(BT6,BU6,NA()) ->  | BW6: =IF(BT6,INDEX(AH6:BQ6,$BW$4),NA()) ->  | BX6: =IF(BT6,INDEX(AH6:BQ6,$BX$4),NA()) ->  | BY6: =AND(E6>=$BY$1,E6<=$BY$2) -> FALSE | BZ6: =IF(BY6,BU6,NA()) ->  | CA6: =IF(BY6,INDEX(AH6:BQ6,$BW$4),NA()) ->  | CB6: =IF(BY6,INDEX(AH6:BQ6,$BX$4),NA()) ->  | CC6: =(AH6<0)*1 -> 0 | CD6: =(AH6<=0)*1 -> 0 | CH6: =_xlfn.SEQUENCE(6,,2019) -> 2019 | CI6: =AVERAGEIF(H:H,CH6,AH:AH) -> 38.66343153 | CJ6: =CH6 -> 2019 | CK6: =SUMIF(H:H,CJ6,CC:CC) -> 1 | CL6: =SUMIF(H:H,CJ6,CD:CD) -> 3 | CO6: =_xlfn.SEQUENCE(66) -> 1 | CP6: =F6 -> 2019-07-31 | CQ6: =AVERAGEIF($F:$F,$CP6,AH:AH) -> 40.12403561 | CR6: =SUMIF(F:F,CP6,AU:AU) -> 144701.22 | CS6: =SUMIF(F:F,CP6,AV:AV) -> 5861005.931 | CT6: =CS6/CR6 -> 40.50419154 | CU6: =AVERAGEIF($F:$F,$CP6,AS:AS) -> 3.639406528 | CV6: =AVERAGEIF($F:$F,$CP6,AT:AT) -> 145.1823677 | CW6: =IF(CU6,CV6/CU6) -> 39.89176986 | CX6: =SUMIF($F:$F,$CP6,BO:BO) -> 42002 | CY6: =AVERAGEIF(F:F,CP6,BP:BP) -> 3.620371406 | CZ6: =CP6 -> 2019-07-31 | DA6: =AVERAGEIF(F:F,CP6,BQ:BQ) -> 11.08285066 | DB6: =AVERAGEIF(F:F,CP6,AE:AE) -> 38.27231454 | DC6: =AVERAGEIF(F:F,CP6,AD:AD) -> 40.3238724 | DD6: =CP6 -> 2019-07-31 | DE6: =CQ6 -> 40.12403561 | DF6: =CT6 -> 40.50419154 | DG6: =CW6 -> 39.89176986
D7: 4417 | E7: =E6+1/24 -> 2019-07-03T23:59:59.992 | F7: =EOMONTH(E7,0) -> 2019-07-31 | G7: =TEXT(E7,"mmm")&" "&YEAR(E7) -> Jul 2019 | H7: =YEAR(E7) -> 2019 | I7: 01 - 02 | J7: =HOUR(E7) -> 0 | K7: 27.29 | L7: 27.29 | M7: 27.29 | N7: 27.29 | O7: 27.29 | P7: 27.29 | Q7: 27.29 | R7: 27.29 | S7: 27.29 | T7: 27.29 | U7: 27.29 | V7: 27.29 | W7: 27.29 | X7: 27.29 | Y7: 27.29 | Z7: 27.29 | AA7: 27.29 | AB7: 28.83 | AC7: 28.83 | AD7: 28.83 | AE7: 28.83 | AF7: 28.83 | AH7: =INDEX(X7:AF7,$AH$2) -> 28.83 | AI7: =AH7<0 -> FALSE | AJ7: =AND(AI7,AI6) -> FALSE | AK7: =IF(AI7,AI7*1+AK6,0) -> 0 | AL7: =AK7>=6 -> FALSE | AM7: =H7 -> 2019 | AN7: =AVERAGEIF(H:H,AM7,AH:AH) -> 38.66343153 | AO7: =AH7*$AO$2 -> 24.5055 | AP7: =IF(AN7>$AP$1,AN7*$AP$2,AN7<=$AP$1*$AP$3)*AN7-$AP$4 -> 38.56343153 | AQ7: =AP7 -> 38.56343153 | AR7: =LOOKUP(E7,'Hourly Data Facility'!A:A,'Hourly Data Facility'!F:F) ->  | AS7: =LOOKUP(E7,'Hourly Data PVGIS'!B:B,'Hourly Data PVGIS'!G:G) -> 3.45 | AT7: =AS7*AH7 -> 99.4635 | AU7: =LOOKUP(E7,'Hourly Data PVGIS'!B:B,'Hourly Data PVGIS'!D:D) -> 0 | AV7: =AU7*AH7 -> 0 | AW7: =AQ7*AU7 -> 0 | AX7: =IF(J7,AX6+1,1) -> 1 | AY7: =IF(AX7=1,AY6+1,AY6) -> 2 | BH7: =$BH$2 -> 100 | BI7: =(BA7=AX7)*AZ7 -> 0 | BJ7: =(AX7=BC7)*AH7 -> 0 | BK7: =BN6 -> 0 | BL7: =MIN(BH7*(BI7<>0),BH7-BK7) -> 0 | BM7: =MIN((BJ7<>0)*BH7,BK7) -> 0 | BN7: =BK7+BL7-BM7 -> 0 | BO7: =BM7*BJ7-BL7*BI7 -> 0 | BP7: =LOOKUP(F7,'Gas and Other'!B:B,'Gas and Other'!J:J) -> 3.620371406 | BQ7: 7.96327138 | BR7: 1 | BS7: Jul 2019 | BT7: FALSE | BU7: 2 | BW7: =IF(BT7,INDEX(AH7:BQ7,$BW$4),NA()) ->  | BX7: =IF(BT7,INDEX(AH7:BQ7,$BX$4),NA()) ->  | BY7: =AND(E7>=$BY$1,E7<=$BY$2) -> FALSE | BZ7: =IF(BY7,BU7,NA()) ->  | CA7: =IF(BY7,INDEX(AH7:BQ7,$BW$4),NA()) ->  | CB7: =IF(BY7,INDEX(AH7:BQ7,$BX$4),NA()) ->  | CC7: 0 | CD7: 0 | CH7: 2020 | CI7: 32.24050205 | CJ7: 2020 | CK7: 97 | CL7: 105 | CO7: 2 | CP7: =EOMONTH(CP6,1) -> 2019-08-31 | CQ7: =AVERAGEIF(F:F,CP7,AH:AH) -> 37.41150538 | CR7: =SUMIF(F:F,CP7,AU:AU) -> 164114.38 | CS7: =SUMIF(F:F,CP7,AV:AV) -> 6047498.981 | CT7: =CS7/CR7 -> 36.84929365 | CU7: =AVERAGEIF($F:$F,$CP7,AS:AS) -> 4.47391129 | CV7: =AVERAGEIF($F:$F,$CP7,AT:AT) -> 161.934498 | CW7: =IF(CU7,CV7/CU7) -> 36.19528584 | CX7: =SUMIF($F:$F,$CP7,BO:BO) -> 66083 | CY7: 3.67677516 | CZ7: =CP7 -> 2019-08-31 | DA7: 10.17508652 | DB7: 33.36293011 | DC7: 36.81869624 | DD7: =CP7 -> 2019-08-31 | DE7: =CQ7 -> 37.41150538 | DF7: =CT7 -> 36.84929365 | DG7: =CW7 -> 36.19528584
D8: 4418 | E8: 2019-07-04T00:59:59.992 | F8: 2019-07-31 | G8: Jul 2019 | H8: 2019 | I8: 02 - 03 | J8: 1 | K8: 26.82 | L8: 26.82 | M8: 26.82 | N8: 26.82 | O8: 26.82 | P8: 26.82 | Q8: 26.82 | R8: 26.82 | S8: 26.82 | T8: 26.82 | U8: 26.82 | V8: 26.82 | W8: 26.82 | X8: 26.82 | Y8: 26.82 | Z8: 26.82 | AA8: 26.82 | AB8: 28.06 | AC8: 26.05 | AD8: 28.06 | AE8: 24.89 | AF8: 27.98 | AH8: =INDEX(X8:AF8,$AH$2) -> 27.98 | AI8: FALSE | AJ8: =AND(AI8,AI7) -> FALSE | AK8: =IF(AI8,AI8*1+AK7,0) -> 0 | AL8: =AK8>=6 -> FALSE | AM8: =H8 -> 2019 | AN8: 38.66343153 | AO8: =AH8*$AO$2 -> 23.783 | AP8: =IF(AN8>$AP$1,AN8*$AP$2,AN8<=$AP$1*$AP$3)*AN8-$AP$4 -> 38.56343153 | AQ8: =AP8 -> 38.56343153 | AR8: =LOOKUP(E8,'Hourly Data Facility'!A:A,'Hourly Data Facility'!F:F) ->  | AS8: =LOOKUP(E8,'Hourly Data PVGIS'!B:B,'Hourly Data PVGIS'!G:G) -> 2.83 | AT8: 79.1834 | AU8: =LOOKUP(E8,'Hourly Data PVGIS'!B:B,'Hourly Data PVGIS'!D:D) -> 0 | AV8: 0 | AW8: 0 | AX8: 2 | AY8: =IF(AX8=1,AY7+1,AY7) -> 2 | BH8: 100 | BI8: 0 | BJ8: 0 | BK8: =BN7 -> 0 | BL8: 0 | BM8: =MIN((BJ8<>0)*BH8,BK8) -> 0 | BN8: =BK8+BL8-BM8 -> 0 | BO8: 0 | BP8: =LOOKUP(F8,'Gas and Other'!B:B,'Gas and Other'!J:J) -> 3.620371406 | BQ8: 7.728488839 | BR8: 1 | BS8: Jul 2019 | BT8: FALSE | BU8: 3 | BW8: =IF(BT8,INDEX(AH8:BQ8,$BW$4),NA()) ->  | BX8: =IF(BT8,INDEX(AH8:BQ8,$BX$4),NA()) ->  | BY8: FALSE | CA8: =IF(BY8,INDEX(AH8:BQ8,$BW$4),NA()) ->  | CB8: =IF(BY8,INDEX(AH8:BQ8,$BX$4),NA()) ->  | CC8: 0 | CD8: 0 | CH8: 2021 | CI8: 102.9628002 | CJ8: 2021 | CK8: 70 | CL8: 86 | CO8: 3 | CP8: =EOMONTH(CP7,1) -> 2019-09-30 | CQ8: 36.58068056 | CR8: 112299.88 | CS8: 4046329.073 | CT8: 36.03146391 | CU8: 4.773791667 | CV8: 169.5668753 | CW8: 35.52037607 | CX8: 63839 | CY8: 4.205255685 | CZ8: 2019-09-30 | DA8: 8.698800572 | DB8: 35.55148611 | DC8: 35.76566667 | DD8: 2019-09-30 | DE8: 36.58068056 | DF8: 36.03146391 | DG8: 35.52037607
D9: 4419 | E9: 2019-07-04T01:59:59.992 | F9: 2019-07-31 | G9: Jul 2019 | H9: 2019 | I9: 03 - 04 | J9: 2 | K9: 26.98 | L9: 26.98 | M9: 26.98 | N9: 26.98 | O9: 26.98 | P9: 26.98 | Q9: 26.98 | R9: 26.98 | S9: 26.98 | T9: 26.98 | U9: 26.98 | V9: 26.98 | W9: 26.98 | X9: 26.98 | Y9: 26.98 | Z9: 26.98 | AA9: 26.98 | AB9: 29.06 | AC9: 23.78 | AD9: 29.06 | AE9: 20.71 | AF9: 28.89 | AH9: =INDEX(X9:AF9,$AH$2) -> 28.89 | AI9: FALSE | AJ9: FALSE | AK9: 0 | AL9: FALSE | AM9: 2019 | AN9: 38.66343153 | AO9: 24.5565 | AP9: 38.56343153 | AQ9: 38.56343153 | AR9: =LOOKUP(E9,'Hourly Data Facility'!A:A,'Hourly Data Facility'!F:F) ->  | AS9: =LOOKUP(E9,'Hourly Data PVGIS'!B:B,'Hourly Data PVGIS'!G:G) -> 2.28 | AT9: 65.8692 | AU9: =LOOKUP(E9,'Hourly Data PVGIS'!B:B,'Hourly Data PVGIS'!D:D) -> 0 | AV9: 0 | AW9: 0 | AX9: 3 | AY9: =IF(AX9=1,AY8+1,AY8) -> 2 | BH9: 100 | BI9: 0 | BJ9: 0 | BK9: 0 | BL9: 0 | BM9: 0 | BN9: 0 | BO9: 0 | BP9: =LOOKUP(F9,'Gas and Other'!B:B,'Gas and Other'!J:J) -> 3.620371406 | BQ9: 7.979844265 | BR9: 1 | BS9: Jul 2019 | BT9: FALSE | BU9: 4 | BW9: =IF(BT9,INDEX(AH9:BQ9,$BW$4),NA()) ->  | BX9: =IF(BT9,INDEX(AH9:BQ9,$BX$4),NA()) ->  | BY9: FALSE | CA9: =IF(BY9,INDEX(AH9:BQ9,$BW$4),NA()) ->  | CB9: =IF(BY9,INDEX(AH9:BQ9,$BX$4),NA()) ->  | CC9: 0 | CD9: 0 | CH9: 2022 | CI9: 241.9244018 | CJ9: 2022 | CK9: 85 | CL9: 110 | CO9: 4 | CP9: 2019-10-31 | CQ9: 37.9569086 | CR9: 75066.86 | CS9: 3075659.267 | CT9: 40.97226482 | CU9: 5.143104839 | CV9: 186.9172993 | CW9: 36.34328002 | CX9: 66769 | CY9: 5.057217858 | CZ9: 2019-10-31 | DA9: 7.505492085 | DB9: 38.61657258 | DC9: 36.94754032 | DD9: 2019-10-31 | DE9: 37.9569086 | DF9: 40.97226482 | DG9: 36.34328002
D10: 4420 | E10: 2019-07-04T02:59:59.992 | F10: 2019-07-31 | G10: Jul 2019 | H10: 2019 | I10: 04 - 05 | J10: 3 | K10: 27.11 | L10: 27.11 | M10: 27.11 | N10: 27.11 | O10: 27.11 | P10: 27.11 | Q10: 27.11 | R10: 27.11 | S10: 27.11 | T10: 27.11 | U10: 27.11 | V10: 27.11 | W10: 27.11 | X10: 27.11 | Y10: 27.11 | Z10: 27.11 | AA10: 27.11 | AB10: 29.73 | AC10: 20.9 | AD10: 29.73 | AE10: 15.76 | AF10: 29.42 | AH10: =INDEX(X10:AF10,$AH$2) -> 29.42 | AI10: FALSE | AJ10: FALSE | AK10: 0 | AL10: FALSE | AM10: 2019 | AN10: 38.66343153 | AO10: 25.007 | AP10: 38.56343153 | AQ10: 38.56343153 | AR10: =LOOKUP(E10,'Hourly Data Facility'!A:A,'Hourly Data Facility'!F:F) ->  | AS10: =LOOKUP(E10,'Hourly Data PVGIS'!B:B,'Hourly Data PVGIS'!G:G) -> 2.07 | AT10: 60.8994 | AU10: =LOOKUP(E10,'Hourly Data PVGIS'!B:B,'Hourly Data PVGIS'!D:D) -> 0 | AV10: 0 | AW10: 0 | AX10: 4 | AY10: 2 | BH10: 100 | BI10: 0 | BJ10: 0 | BK10: 0 | BL10: 0 | BM10: 0 | BN10: 0 | BO10: 0 | BP10: =LOOKUP(F10,'Gas and Other'!B:B,'Gas and Other'!J:J) -> 3.620371406 | BQ10: 8.126238086 | BR10: 1 | BS10: Jul 2019 | BT10: FALSE | BU10: 5 | BW10: =IF(BT10,INDEX(AH10:BQ10,$BW$4),NA()) ->  | BX10: =IF(BT10,INDEX(AH10:BQ10,$BX$4),NA()) ->  | BY10: FALSE | CA10: =IF(BY10,INDEX(AH10:BQ10,$BW$4),NA()) ->  | CB10: =IF(BY10,INDEX(AH10:BQ10,$BX$4),NA()) ->  | CC10: 0 | CD10: 0 | CH10: 2023 | CI10: 95.82792442 | CJ10: 2023 | CK10: 316 | CL10: 373 | CO10: 5 | CP10: 2019-11-30 | CQ10: 42.71355556 | CR10: 53033.41 | CS10: 2489718.593 | CT10: 46.94622867 | CU10: 4.523430556 | CV10: 190.1642603 | CW10: 42.03983192 | CX10: 72634 | CY10: 5.150004217 | CZ10: 2019-11-30 | DA10: 8.293887491 | DB10: 45.94568056 | DC10: 41.00483333 | DD10: 2019-11-30 | DE10: 42.71355556 | DF10: 46.94622867 | DG10: 42.03983192
D11: 4421 | E11: 2019-07-04T03:59:59.992 | F11: 2019-07-31 | G11: Jul 2019 | H11: 2019 | I11: 05 - 06 | J11: 4 | K11: 28.01 | L11: 28.07 | M11: 28.07 | N11: 28.07 | O11: 28.07 | P11: 28.07 | Q11: 28.07 | R11: 28.07 | S11: 28.07 | T11: 27.76 | U11: 27.76 | V11: 27.76 | W11: 28.07 | X11: 28.07 | Y11: 28.07 | Z11: 28.07 | AA11: 28.07 | AB11: 30.74 | AC11: 24.02 | AD11: 30.74 | AE11: 19.99 | AF11: 30.71 | AH11: =INDEX(X11:AF11,$AH$2) -> 30.71 | AI11: FALSE | AJ11: FALSE | AK11: 0 | AL11: FALSE | AM11: 2019 | AN11: 38.66343153 | AO11: 26.1035 | AP11: 38.56343153 | AQ11: 38.56343153 | AR11: =LOOKUP(E11,'Hourly Data Facility'!A:A,'Hourly Data Facility'!F:F) ->  | AS11: =LOOKUP(E11,'Hourly Data PVGIS'!B:B,'Hourly Data PVGIS'!G:G) -> 2.14 | AT11: 65.7194 | AU11: =LOOKUP(E11,'Hourly Data PVGIS'!B:B,'Hourly Data PVGIS'!D:D) -> 0 | AV11: 0 | AW11: 0 | AX11: 5 | AY11: 2 | BH11: 100 | BI11: 0 | BJ11: 0 | BK11: 0 | BL11: 0 | BM11: 0 | BN11: 0 | BO11: 0 | BP11: =LOOKUP(F11,'Gas and Other'!B:B,'Gas and Other'!J:J) -> 3.620371406 | BQ11: 8.482555119 | BR11: 1 | BS11: Jul 2019 | BT11: FALSE | BU11: 6 | BW11: =IF(BT11,INDEX(AH11:BQ11,$BW$4),NA()) ->  | BX11: =IF(BT11,INDEX(AH11:BQ11,$BX$4),NA()) ->  | BY11: FALSE | CA11: =IF(BY11,INDEX(AH11:BQ11,$BW$4),NA()) ->  | CB11: =IF(BY11,INDEX(AH11:BQ11,$BX$4),NA()) ->  | CC11: 0 | CD11: 0 | CH11: 2024 | CI11: 74.50919635 | CJ11: 2024 | CK11: 489 | CL11: 578 | CO11: 6 | CP11: 2019-12-31 | CQ11: 37.3991129 | CR11: 44857.98 | CS11: 1970763.457 | CT11: 43.9333973 | CU11: 5.624610215 | CV11: 203.4673859 | CW11: 36.17448643 | CX11: 58403 | CY11: 4.620472212 | CZ11: 2019-12-31 | DA11: 8.094218769 | DB11: 36.46623656 | DC11: 31.97061828 | DD11: 2019-12-31 | DE11: 37.3991129 | DF11: 43.9333973 | DG11: 36.17448643
D12: 4422 | E12: 2019-07-04T04:59:59.992 | F12: 2019-07-31 | G12: Jul 2019 | H12: 2019 | I12: 06 - 07 | J12: 5 | K12: 29.16 | L12: 28.47 | M12: 28.47 | N12: 28.47 | O12: 28.47 | P12: 51.96 | Q12: 28.47 | R12: 28.47 | S12: 28.47 | T12: 28.47 | U12: 28.47 | V12: 28.47 | W12: 51.96 | X12: 28.47 | Y12: 28.47 | Z12: 51.96 | AA12: 51.96 | AB12: 36.99 | AC12: 30.91 | AD12: 36.99 | AE12: 27.47 | AF12: 36.7 | AH12: =INDEX(X12:AF12,$AH$2) -> 36.7 | AI12: FALSE | AJ12: FALSE | AK12: 0 | AL12: FALSE | AM12: 2019 | AN12: 38.66343153 | AO12: 31.195 | AP12: 38.56343153 | AQ12: 38.56343153 | AR12: =LOOKUP(E12,'Hourly Data Facility'!A:A,'Hourly Data Facility'!F:F) ->  | AS12: =LOOKUP(E12,'Hourly Data PVGIS'!B:B,'Hourly Data PVGIS'!G:G) -> 2.28 | AT12: 83.676 | AU12: =LOOKUP(E12,'Hourly Data PVGIS'!B:B,'Hourly Data PVGIS'!D:D) -> 0 | AV12: 0 | AW12: 0 | AX12: 6 | AY12: 2 | BH12: 100 | BI12: 0 | BJ12: 0 | BK12: 0 | BL12: 0 | BM12: 0 | BN12: 0 | BO12: 0 | BP12: =LOOKUP(F12,'Gas and Other'!B:B,'Gas and Other'!J:J) -> 3.620371406 | BQ12: 10.1370815 | BR12: 1 | BS12: Jul 2019 | BT12: FALSE | BU12: 7 | BW12: =IF(BT12,INDEX(AH12:BQ12,$BW$4),NA()) ->  | BX12: =IF(BT12,INDEX(AH12:BQ12,$BX$4),NA()) ->  | BY12: FALSE | CA12: =IF(BY12,INDEX(AH12:BQ12,$BW$4),NA()) ->  | CB12: =IF(BY12,INDEX(AH12:BQ12,$BX$4),NA()) ->  | CC12: 0 | CD12: 0 | CO12: 7 | CP12: 2020-01-31 | CQ12: 37.07186828 | CR12: 41375.75 | CS12: 1645439.791 | CT12: 39.76821668 | CU12: 5.430040323 | CV12: 190.0614421 | CW12: 35.00184728 | CX12: 59465 | CY12: 3.633384347 | CZ12: 2020-01-31 | DA12: 10.20312324 | DB12: 37.96986559 | DC12: 34.97870968 | DD12: 2020-01-31 | DE12: 37.07186828 | DF12: 39.76821668 | DG12: 35.00184728
D13: 4423 | E13: 2019-07-04T05:59:59.992 | F13: 2019-07-31 | G13: Jul 2019 | H13: 2019 | I13: 07 - 08 | J13: 6 | K13: 30.9 | L13: 29.62 | M13: 29.62 | N13: 29.62 | O13: 29.62 | P13: 56.78 | Q13: 29.62 | R13: 29.62 | S13: 29.62 | T13: 29.08 | U13: 29.08 | V13: 29.08 | W13: 56.78 | X13: 29.62 | Y13: 29.62 | Z13: 56.78 | AA13: 56.78 | AB13: 44.31 | AC13: 38.94 | AD13: 44.31 | AE13: 35.51 | AF13: 44.31 | AH13: =INDEX(X13:AF13,$AH$2) -> 44.31 | AI13: FALSE | AJ13: FALSE | AK13: 0 | AL13: FALSE | AM13: 2019 | AN13: 38.66343153 | AO13: 37.6635 | AP13: 38.56343153 | AQ13: 38.56343153 | AR13: =LOOKUP(E13,'Hourly Data Facility'!A:A,'Hourly Data Facility'!F:F) ->  | AS13: =LOOKUP(E13,'Hourly Data PVGIS'!B:B,'Hourly Data PVGIS'!G:G) -> 2.34 | AT13: 103.6854 | AU13: =LOOKUP(E13,'Hourly Data PVGIS'!B:B,'Hourly Data PVGIS'!D:D) -> 20.93 | AV13: 927.4083 | AW13: 807.1326219 | AX13: 7 | AY13: 2 | BH13: 100 | BI13: 0 | BJ13: 0 | BK13: 0 | BL13: 0 | BM13: 0 | BN13: 0 | BO13: 0 | BP13: =LOOKUP(F13,'Gas and Other'!B:B,'Gas and Other'!J:J) -> 3.620371406 | BQ13: 12.23907578 | BR13: 1 | BS13: Jul 2019 | BT13: FALSE | BU13: 8 | BW13: =IF(BT13,INDEX(AH13:BQ13,$BW$4),NA()) ->  | BX13: =IF(BT13,INDEX(AH13:BQ13,$BX$4),NA()) ->  | BY13: FALSE | CA13: =IF(BY13,INDEX(AH13:BQ13,$BW$4),NA()) ->  | CB13: =IF(BY13,INDEX(AH13:BQ13,$BX$4),NA()) ->  | CC13: 0 | CD13: 0 | CO13: 8 | CP13: 2020-02-29 | CQ13: 29.55011494 | CR13: 60281.08 | CS13: 1897756.054 | CT13: 31.4817859 | CU13: 7.700344828 | CV13: 217.1500727 | CW13: 28.20004527 | CX13: 53596 | CY13: 2.907773641 | CZ13: 2020-02-29 | DA13: 10.16245368 | DB13: 26.24928161 | DC13: 21.91183908 | DD13: 2020-02-29 | DE13: 29.55011494 | DF13: 31.4817859 | DG13: 28.20004527
D14: 4424 | E14: 2019-07-04T06:59:59.992 | F14: 2019-07-31 | G14: Jul 2019 | H14: 2019 | I14: 08 - 09 | J14: 7 | K14: 31.86 | L14: 30.83 | M14: 30.83 | N14: 30.83 | O14: 30.83 | P14: 60.29 | Q14: 30.83 | R14: 30.83 | S14: 30.83 | T14: 29.18 | U14: 29.18 | V14: 29.18 | W14: 60.29 | X14: 30.83 | Y14: 30.83 | Z14: 60.29 | AA14: 60.29 | AB14: 39.72 | AC14: 39.72 | AD14: 39.72 | AE14: 39.72 | AF14: 39.72 | AH14: =INDEX(X14:AF14,$AH$2) -> 39.72 | AI14: FALSE | AJ14: FALSE | AK14: 0 | AL14: FALSE | AM14: 2019 | AN14: 38.66343153 | AO14: 33.762 | AP14: 38.56343153 | AQ14: 38.56343153 | AR14: =LOOKUP(E14,'Hourly Data Facility'!A:A,'Hourly Data Facility'!F:F) ->  | AS14: =LOOKUP(E14,'Hourly Data PVGIS'!B:B,'Hourly Data PVGIS'!G:G) -> 2 | AT14: 79.44 | AU14: =LOOKUP(E14,'Hourly Data PVGIS'!B:B,'Hourly Data PVGIS'!D:D) -> 53.94 | AV14: 2142.4968 | AW14: 2080.111497 | AX14: 8 | AY14: 2 | BH14: 100 | BI14: 0 | BJ14: 0 | BK14: 0 | BL14: 0 | BM14: 0 | BN14: 0 | BO14: 0 | BP14: =LOOKUP(F14,'Gas and Other'!B:B,'Gas and Other'!J:J) -> 3.620371406 | BQ14: 10.97125006 | BR14: 1 | BS14: Jul 2019 | BT14: FALSE | BU14: 9 | BW14: =IF(BT14,INDEX(AH14:BQ14,$BW$4),NA()) ->  | BX14: =IF(BT14,INDEX(AH14:BQ14,$BX$4),NA()) ->  | BY14: FALSE | CA14: =IF(BY14,INDEX(AH14:BQ14,$BW$4),NA()) ->  | CB14: =IF(BY14,INDEX(AH14:BQ14,$BX$4),NA()) ->  | CC14: 0 | CD14: 0 | CO14: 9 | CP14: 2020-03-31 | CQ14: 24.74553763 | CR14: 133274.66 | CS14: 2532758.97 | CT14: 19.00405501 | CU14: 5.630524194 | CV14: 130.4291712 | CW14: 23.1646587 | CX14: 69663 | CY14: 2.718868382 | CZ14: 2020-03-31 | DA14: 9.101410646 | DB14: 23.83430108 | DC14: 22.51931452 | DD14: 2020-03-31 | DE14: 24.74553763 | DF14: 19.00405501 | DG14: 23.1646587
D15: 4425 | E15: 2019-07-04T07:59:59.992 | F15: 2019-07-31 | G15: Jul 2019 | H15: 2019 | I15: 09 - 10 | J15: 8 | K15: 31.9 | L15: 30.91 | M15: 30.91 | N15: 30.91 | O15: 30.91 | P15: 60.38 | Q15: 30.91 | R15: 30.91 | S15: 30.91 | T15: 29.43 | U15: 29.43 | V15: 29.43 | W15: 60.38 | X15: 30.91 | Y15: 30.91 | Z15: 60.38 | AA15: 60.38 | AB15: 34.77 | AC15: 34.77 | AD15: 34.77 | AE15: 34.77 | AF15: 34.77 | AH15: =INDEX(X15:AF15,$AH$2) -> 34.77 | AI15: FALSE | AJ15: FALSE | AK15: 0 | AL15: FALSE | AM15: 2019 | AN15: 38.66343153 | AO15: 29.5545 | AP15: 38.56343153 | AQ15: 38.56343153 | AR15: =LOOKUP(E15,'Hourly Data Facility'!A:A,'Hourly Data Facility'!F:F) ->  | AS15: =LOOKUP(E15,'Hourly Data PVGIS'!B:B,'Hourly Data PVGIS'!G:G) -> 2.21 | AT15: 76.8417 | AU15: =LOOKUP(E15,'Hourly Data PVGIS'!B:B,'Hourly Data PVGIS'!D:D) -> 164.98 | AV15: 5736.3546 | AW15: 6362.194934 | AX15: 9 | AY15: 2 | BH15: 100 | BI15: 0 | BJ15: 0 | BK15: 0 | BL15: 0 | BM15: 0 | BN15: 0 | BO15: 0 | BP15: =LOOKUP(F15,'Gas and Other'!B:B,'Gas and Other'!J:J) -> 3.620371406 | BQ15: 9.603987024 | BR15: 1 | BS15: Jul 2019 | BT15: FALSE | BU15: 10 | BW15: =IF(BT15,INDEX(AH15:BQ15,$BW$4),NA()) ->  | BX15: =IF(BT15,INDEX(AH15:BQ15,$BX$4),NA()) ->  | BY15: FALSE | CA15: =IF(BY15,INDEX(AH15:BQ15,$BW$4),NA()) ->  | CB15: =IF(BY15,INDEX(AH15:BQ15,$BX$4),NA()) ->  | CC15: 0 | CD15: 0 | CO15: 10 | CP15: 2020-04-30 | CQ15: 18.96579167 | CR15: 187962.19 | CS15: 2458613.729 | CT15: 13.08036328 | CU15: 3.940541667 | CV15: 67.25501444 | CW15: 17.06745421 | CX15: 70671 | CY15: 2.120318667 | CZ15: 2020-04-30 | DA15: 8.944783612 | DB15: 13.40611111 | DC15: 17.04919444 | DD15: 2020-04-30 | DE15: 18.96579167 | DF15: 13.08036328 | DG15: 17.06745421
D16: 4426 | E16: 2019-07-04T08:59:59.992 | F16: 2019-07-31 | G16: Jul 2019 | H16: 2019 | I16: 10 - 11 | J16: 9 | K16: 31.63 | L16: 30.69 | M16: 30.69 | N16: 30.69 | O16: 30.69 | P16: 60.86 | Q16: 30.69 | R16: 30.69 | S16: 30.69 | T16: 29.22 | U16: 29.22 | V16: 29.22 | W16: 60.86 | X16: 30.69 | Y16: 30.69 | Z16: 60.86 | AA16: 60.86 | AB16: 31.88 | AC16: 31.88 | AD16: 31.88 | AE16: 31.88 | AF16: 31.88 | AH16: =INDEX(X16:AF16,$AH$2) -> 31.88 | AI16: FALSE | AJ16: FALSE | AK16: 0 | AL16: FALSE | AM16: 2019 | AN16: 38.66343153 | AO16: 27.098 | AP16: 38.56343153 | AQ16: 38.56343153 | AR16: =LOOKUP(E16,'Hourly Data Facility'!A:A,'Hourly Data Facility'!F:F) ->  | AS16: =LOOKUP(E16,'Hourly Data PVGIS'!B:B,'Hourly Data PVGIS'!G:G) -> 1.66 | AT16: 52.9208 | AU16: =LOOKUP(E16,'Hourly Data PVGIS'!B:B,'Hourly Data PVGIS'!D:D) -> 386 | AV16: 12305.68 | AW16: 14885.48457 | AX16: 10 | AY16: 2 | BH16: 100 | BI16: 0 | BJ16: 0 | BK16: 0 | BL16: 0 | BM16: 0 | BN16: 0 | BO16: 0 | BP16: =LOOKUP(F16,'Gas and Other'!B:B,'Gas and Other'!J:J) -> 3.620371406 | BQ16: 8.805726382 | BR16: 1 | BS16: Jul 2019 | BT16: FALSE | BU16: 11 | BW16: =IF(BT16,INDEX(AH16:BQ16,$BW$4),NA()) ->  | BX16: =IF(BT16,INDEX(AH16:BQ16,$BX$4),NA()) ->  | BY16: FALSE | CA16: =IF(BY16,INDEX(AH16:BQ16,$BW$4),NA()) ->  | CB16: =IF(BY16,INDEX(AH16:BQ16,$BX$4),NA()) ->  | CC16: 0 | CD16: 0 | CO16: 11 | CP16: 2020-05-31 | CQ16: 17.66655914 | CR16: 210881.49 | CS16: 3204648.815 | CT16: 15.19644429 | CU16: 4.212069892 | CV16: 68.27847433 | CW16: 16.210195 | CX16: 36426 | CY16: 1.575164978 | CZ16: 2020-05-31 | DA16: 11.21568813 | DB16: 14.8744086 | DC16: 17.60487903 | DD16: 2020-05-31 | DE16: 17.66655914 | DF16: 15.19644429 | DG16: 16.210195
D17: 4427 | E17: 2019-07-04T09:59:59.992 | F17: 2019-07-31 | G17: Jul 2019 | H17: 2019 | I17: 11 - 12 | J17: 10 | K17: 31.07 | L17: 29.9 | M17: 29.9 | N17: 29.9 | O17: 29.9 | P17: 59.42 | Q17: 29.9 | R17: 29.9 | S17: 29.9 | T17: 28.94 | U17: 28.94 | V17: 28.94 | W17: 59.42 | X17: 29.9 | Y17: 29.9 | Z17: 59.42 | AA17: 59.42 | AB17: 30.89 | AC17: 30.89 | AD17: 30.89 | AE17: 30.89 | AF17: 30.89 | AH17: =INDEX(X17:AF17,$AH$2) -> 30.89 | AI17: FALSE | AJ17: FALSE | AK17: 0 | AL17: FALSE | AM17: 2019 | AN17: 38.66343153 | AO17: 26.2565 | AP17: 38.56343153 | AQ17: 38.56343153 | AR17: =LOOKUP(E17,'Hourly Data Facility'!A:A,'Hourly Data Facility'!F:F) ->  | AS17: =LOOKUP(E17,'Hourly Data PVGIS'!B:B,'Hourly Data PVGIS'!G:G) -> 1.59 | AT17: 49.1151 | AU17: =LOOKUP(E17,'Hourly Data PVGIS'!B:B,'Hourly Data PVGIS'!D:D) -> 606.3 | AV17: 18728.607 | AW17: 23381.00854 | AX17: 11 | AY17: 2 | BH17: 100 | BI17: 0 | BJ17: 0 | BK17: 0 | BL17: 0 | BM17: 0 | BN17: 0 | BO17: 0 | BP17: =LOOKUP(F17,'Gas and Other'!B:B,'Gas and Other'!J:J) -> 3.620371406 | BQ17: 8.532273775 | BR17: 1 | BS17: Jul 2019 | BT17: FALSE | BU17: 12 | BW17: =IF(BT17,INDEX(AH17:BQ17,$BW$4),NA()) ->  | BX17: =IF(BT17,INDEX(AH17:BQ17,$BX$4),NA()) ->  | BY17: FALSE | CA17: =IF(BY17,INDEX(AH17:BQ17,$BW$4),NA()) ->  | CB17: =IF(BY17,INDEX(AH17:BQ17,$BX$4),NA()) ->  | CC17: 0 | CD17: 0 | CO17: 12 | CP17: 2020-06-30 | CQ17: 26.25641667 | CR17: 161088.58 | CS17: 4145057.18 | CT17: 25.73153963 | CU17: 4.131902778 | CV17: 101.2962315 | CW17: 24.5156377 | CX17: 46910 | CY17: 1.752171112 | CZ17: 2020-06-30 | DA17: 14.98507565 | DB17: 25.84883333 | DC17: 26.22916667 | DD17: 2020-06-30 | DE17: 26.25641667 | DF17: 25.73153963 | DG17: 24.5156377
D18: 4428 | E18: 2019-07-04T10:59:59.992 | F18: 2019-07-31 | G18: Jul 2019 | H18: 2019 | I18: 12 - 13 | J18: 11 | K18: 29.93 | L18: 29.01 | M18: 29.01 | N18: 29.01 | O18: 29.01 | P18: 58.41 | Q18: 29.01 | R18: 29.01 | S18: 29.01 | T18: 28.82 | U18: 28.82 | V18: 28.82 | W18: 58.41 | X18: 29.01 | Y18: 29.01 | Z18: 58.41 | AA18: 58.41 | AB18: 29.74 | AC18: 29.79 | AD18: 29.73 | AE18: 29.77 | AF18: 29.97 | AH18: =INDEX(X18:AF18,$AH$2) -> 29.97 | AI18: FALSE | AJ18: FALSE | AK18: 0 | AL18: FALSE | AM18: 2019 | AN18: 38.66343153 | AO18: 25.4745 | AP18: 38.56343153 | AQ18: 38.56343153 | AR18: =LOOKUP(E18,'Hourly Data Facility'!A:A,'Hourly Data Facility'!F:F) ->  | AS18: =LOOKUP(E18,'Hourly Data PVGIS'!B:B,'Hourly Data PVGIS'!G:G) -> 1.17 | AT18: 35.0649 | AU18: =LOOKUP(E18,'Hourly Data PVGIS'!B:B,'Hourly Data PVGIS'!D:D) -> 790.45 | AV18: 23689.7865 | AW18: 30482.46445 | AX18: 12 | AY18: 2 | BH18: 100 | BI18: 0 | BJ18: 0 | BK18: 0 | BL18: 0 | BM18: 0 | BN18: 0 | BO18: 0 | BP18: =LOOKUP(F18,'Gas and Other'!B:B,'Gas and Other'!J:J) -> 3.620371406 | BQ18: 8.278156201 | BR18: 1 | BS18: Jul 2019 | BT18: FALSE | BU18: 13 | BW18: =IF(BT18,INDEX(AH18:BQ18,$BW$4),NA()) ->  | BX18: =IF(BT18,INDEX(AH18:BQ18,$BX$4),NA()) ->  | BY18: FALSE | CA18: =IF(BY18,INDEX(AH18:BQ18,$BW$4),NA()) ->  | CB18: =IF(BY18,INDEX(AH18:BQ18,$BX$4),NA()) ->  | CC18: 0 | CD18: 0 | CO18: 13 | CP18: 2020-07-31 | CQ18: 29.35045699 | CR18: 158656.22 | CS18: 4091773.196 | CT18: 25.79018456 | CU18: 4.374422043 | CV18: 116.0562339 | CW18: 26.53064399 | CX18: 67407 | CY18: 1.801035496 | CZ18: 2020-07-31 | DA18: 16.29643449 | DB18: 33.41922043 | DC18: 30.07494624 | DD18: 2020-07-31 | DE18: 29.35045699 | DF18: 25.79018456 | DG18: 26.53064399
D19: 4429 | E19: 2019-07-04T11:59:59.992 | F19: 2019-07-31 | G19: Jul 2019 | H19: 2019 | I19: 13 - 14 | J19: 12 | K19: 29.86 | L19: 28.94 | M19: 28.94 | N19: 28.94 | O19: 28.94 | P19: 56.66 | Q19: 28.94 | R19: 28.94 | S19: 28.94 | T19: 28.78 | U19: 28.78 | V19: 28.78 | W19: 56.66 | X19: 28.94 | Y19: 28.94 | Z19: 56.66 | AA19: 56.66 | AB19: 29.65 | AC19: 29.65 | AD19: 29.65 | AE19: 29.65 | AF19: 29.65 | AH19: =INDEX(X19:AF19,$AH$2) -> 29.65 | AI19: FALSE | AJ19: FALSE | AK19: 0 | AL19: FALSE | AM19: 2019 | AN19: 38.66343153 | AO19: 25.2025 | AP19: 38.56343153 | AQ19: 38.56343153 | AR19: =LOOKUP(E19,'Hourly Data Facility'!A:A,'Hourly Data Facility'!F:F) ->  | AS19: =LOOKUP(E19,'Hourly Data PVGIS'!B:B,'Hourly Data PVGIS'!G:G) -> 0.9 | AT19: 26.685 | AU19: =LOOKUP(E19,'Hourly Data PVGIS'!B:B,'Hourly Data PVGIS'!D:D) -> 937.5 | AV19: 27796.875 | AW19: 36153.21706 | AX19: 13 | AY19: 2 | BH19: 100 | BI19: 0 | BJ19: 0 | BK19: 0 | BL19: 0 | BM19: 0 | BN19: 0 | BO19: 0 | BP19: =LOOKUP(F19,'Gas and Other'!B:B,'Gas and Other'!J:J) -> 3.620371406 | BQ19: 8.189767479 | BR19: 1 | BS19: Jul 2019 | BT19: FALSE | BU19: 14 | BW19: =IF(BT19,INDEX(AH19:BQ19,$BW$4),NA()) ->  | BX19: =IF(BT19,INDEX(AH19:BQ19,$BX$4),NA()) ->  | BY19: FALSE | CA19: =IF(BY19,INDEX(AH19:BQ19,$BW$4),NA()) ->  | CB19: =IF(BY19,INDEX(AH19:BQ19,$BX$4),NA()) ->  | CC19: 0 | CD19: 0 | CO19: 14 | CP19: 2020-08-31 | CQ19: 34.06581989 | CR19: 156275.87 | CS19: 4983245.463 | CT19: 31.88749142 | CU19: 3.969717742 | CV19: 129.7664255 | CW19: 32.68908118 | CX19: 74732 | CY19: 2.861896677 | CZ19: 2020-08-31 | DA19: 11.90323193 | DB19: 36.76349462 | DC19: 34.8897043 | DD19: 2020-08-31 | DE19: 34.06581989 | DF19: 31.88749142 | DG19: 32.68908118
D20: 4430 | E20: 2019-07-04T12:59:59.992 | F20: 2019-07-31 | G20: Jul 2019 | H20: 2019 | I20: 14 - 15 | J20: 13 | K20: 29.63 | L20: 28.82 | M20: 28.82 | N20: 28.82 | O20: 28.82 | P20: 55.25 | Q20: 28.82 | R20: 28.82 | S20: 28.82 | T20: 28.71 | U20: 28.71 | V20: 28.71 | W20: 55.25 | X20: 28.82 | Y20: 28.82 | Z20: 55.25 | AA20: 55.25 | AB20: 29.53 | AC20: 29.53 | AD20: 29.53 | AE20: 29.53 | AF20: 29.53 | AH20: =INDEX(X20:AF20,$AH$2) -> 29.53 | AI20: FALSE | AJ20: FALSE | AK20: 0 | AL20: FALSE | AM20: 2019 | AN20: 38.66343153 | AO20: 25.1005 | AP20: 38.56343153 | AQ20: 38.56343153 | AR20: =LOOKUP(E20,'Hourly Data Facility'!A:A,'Hourly Data Facility'!F:F) ->  | AS20: =LOOKUP(E20,'Hourly Data PVGIS'!B:B,'Hourly Data PVGIS'!G:G) -> 0.76 | AT20: 22.4428 | AU20: =LOOKUP(E20,'Hourly Data PVGIS'!B:B,'Hourly Data PVGIS'!D:D) -> 994.1 | AV20: 29355.773 | AW20: 38335.90728 | AX20: 14 | AY20: 2 | BH20: 100 | BI20: 0 | BJ20: 0 | BK20: 0 | BL20: 0 | BM20: 0 | BN20: 0 | BO20: 0 | BP20: =LOOKUP(F20,'Gas and Other'!B:B,'Gas and Other'!J:J) -> 3.620371406 | BQ20: 8.156621709 | BR20: 1 | BS20: Jul 2019 | BT20: FALSE | BU20: 15 | BW20: =IF(BT20,INDEX(AH20:BQ20,$BW$4),NA()) ->  | BX20: =IF(BT20,INDEX(AH20:BQ20,$BX$4),NA()) ->  | BY20: FALSE | CA20: =IF(BY20,INDEX(AH20:BQ20,$BW$4),NA()) ->  | CB20: =IF(BY20,INDEX(AH20:BQ20,$BX$4),NA()) ->  | CC20: 0 | CD20: 0 | CO20: 15 | CP20: 2020-09-30 | CQ20: 42.602625 | CR20: 128128.47 | CS20: 5262342.615 | CT20: 41.07083004 | CU20: 4.053736111 | CV20: 158.6799596 | CW20: 39.14412661 | CX20: 100724 | CY20: 3.952139463 | CZ20: 2020-09-30 | DA20: 10.77963604 | DB20: 47.190375 | DC20: 43.67809722 | DD20: 2020-09-30 | DE20: 42.602625 | DF20: 41.07083004 | DG20: 39.14412661
D21: 4431 | E21: 2019-07-04T13:59:59.992 | F21: 2019-07-31 | G21: Jul 2019 | H21: 2019 | I21: 15 - 16 | J21: 14 | K21: 29.68 | L21: 28.9 | M21: 28.9 | N21: 28.9 | O21: 28.9 | P21: 56.2 | Q21: 28.9 | R21: 28.9 | S21: 28.9 | T21: 28.57 | U21: 28.57 | V21: 28.57 | W21: 56.2 | X21: 28.9 | Y21: 28.9 | Z21: 56.2 | AA21: 56.2 | AB21: 29.65 | AC21: 29.66 | AD21: 29.64 | AE21: 29.66 | AF21: 29.85 | AH21: =INDEX(X21:AF21,$AH$2) -> 29.85 | AI21: FALSE | AJ21: FALSE | AK21: 0 | AL21: FALSE | AM21: 2019 | AN21: 38.66343153 | AO21: 25.3725 | AP21: 38.56343153 | AQ21: 38.56343153 | AR21: =LOOKUP(E21,'Hourly Data Facility'!A:A,'Hourly Data Facility'!F:F) ->  | AS21: =LOOKUP(E21,'Hourly Data PVGIS'!B:B,'Hourly Data PVGIS'!G:G) -> 1.03 | AT21: 30.7455 | AU21: =LOOKUP(E21,'Hourly Data PVGIS'!B:B,'Hourly Data PVGIS'!D:D) -> 1017.11 | AV21: 30360.7335 | AW21: 39223.25184 | AX21: 15 | AY21: 2 | BH21: 100 | BI21: 0 | BJ21: 0 | BK21: 0 | BL21: 0 | BM21: 0 | BN21: 0 | BO21: 0 | BP21: =LOOKUP(F21,'Gas and Other'!B:B,'Gas and Other'!J:J) -> 3.620371406 | BQ21: 8.24501043 | BR21: 1 | BS21: Jul 2019 | BT21: FALSE | BU21: 16 | BW21: =IF(BT21,INDEX(AH21:BQ21,$BW$4),NA()) ->  | BX21: =IF(BT21,INDEX(AH21:BQ21,$BX$4),NA()) ->  | BY21: FALSE | CA21: =IF(BY21,INDEX(AH21:BQ21,$BW$4),NA()) ->  | CB21: =IF(BY21,INDEX(AH21:BQ21,$BX$4),NA()) ->  | CC21: 0 | CD21: 0 | CO21: 16 | CP21: 2020-10-31 | CQ21: 37.11396505 | CR21: 67164.6 | CS21: 2586062.622 | CT21: 38.50335776 | CU21: 5.514301075 | CV21: 198.4885996 | CW21: 35.99524162 | CX21: 76234 | CY21: 4.889590408 | CZ21: 2020-10-31 | DA21: 7.590403685 | DB21: 37.87383065 | DC21: 33.95590054 | DD21: 2020-10-31 | DE21: 37.11396505 | DF21: 38.50335776 | DG21: 35.99524162
D22: 4432 | E22: 2019-07-04T14:59:59.992 | F22: 2019-07-31 | G22: Jul 2019 | H22: 2019 | I22: 16 - 17 | J22: 15 | K22: 29.41 | L22: 28.85 | M22: 28.85 | N22: 28.85 | O22: 28.85 | P22: 49.99 | Q22: 28.85 | R22: 28.85 | S22: 28.85 | T22: 28.64 | U22: 28.64 | V22: 28.64 | W22: 49.99 | X22: 28.85 | Y22: 28.85 | Z22: 49.99 | AA22: 49.99 | AB22: 29.8 | AC22: 29.8 | AD22: 29.8 | AE22: 29.8 | AF22: 29.8 | AH22: =INDEX(X22:AF22,$AH$2) -> 29.8 | AI22: FALSE | AJ22: FALSE | AK22: 0 | AL22: FALSE | AM22: 2019 | AN22: 38.66343153 | AO22: 25.33 | AP22: 38.56343153 | AQ22: 38.56343153 | AR22: =LOOKUP(E22,'Hourly Data Facility'!A:A,'Hourly Data Facility'!F:F) ->  | AS22: =LOOKUP(E22,'Hourly Data PVGIS'!B:B,'Hourly Data PVGIS'!G:G) -> 1.79 | AT22: 53.342 | AU22: =LOOKUP(E22,'Hourly Data PVGIS'!B:B,'Hourly Data PVGIS'!D:D) -> 947.57 | AV22: 28237.586 | AW22: 36541.55082 | AX22: 16 | AY22: 2 | BH22: 100 | BI22: 0 | BJ22: 0 | BK22: 0 | BL22: 0 | BM22: 0 | BN22: 0 | BO22: 0 | BP22: =LOOKUP(F22,'Gas and Other'!B:B,'Gas and Other'!J:J) -> 3.620371406 | BQ22: 8.231199692 | BR22: 1 | BS22: Jul 2019 | BT22: FALSE | BU22: 17 | BW22: =IF(BT22,INDEX(AH22:BQ22,$BW$4),NA()) ->  | BX22: =IF(BT22,INDEX(AH22:BQ22,$BX$4),NA()) ->  | BY22: FALSE | CA22: =IF(BY22,INDEX(AH22:BQ22,$BW$4),NA()) ->  | CB22: =IF(BY22,INDEX(AH22:BQ22,$BX$4),NA()) ->  | CC22: 0 | CD22: 0 | CO22: 17 | CP22: 2020-11-30 | CQ22: 41.05136111 | CR22: 55490.21 | CS22: 2362943.047 | CT22: 42.58306189 | CU22: 4.813805556 | CV22: 184.9755544 | CW22: 38.42605446 | CX22: 85179 | CY22: 4.835839005 | CZ22: 2020-11-30 | DA22: 8.488984242 | DB22: 40.14140278 | DC22: 38.79651389 | DD22: 2020-11-30 | DE22: 41.05136111 | DF22: 42.58306189 | DG22: 38.42605446
D23: 4433 | E23: 2019-07-04T15:59:59.992 | F23: 2019-07-31 | G23: Jul 2019 | H23: 2019 | I23: 17 - 18 | J23: 16 | K23: 29.98 | L23: 29.33 | M23: 29.33 | N23: 29.33 | O23: 29.33 | P23: 50.87 | Q23: 29.33 | R23: 29.33 | S23: 29.33 | T23: 28.57 | U23: 28.57 | V23: 28.57 | W23: 50.87 | X23: 29.33 | Y23: 29.33 | Z23: 50.87 | AA23: 50.87 | AB23: 32.98 | AC23: 32.98 | AD23: 32.98 | AE23: 32.98 | AF23: 32.98 | AH23: =INDEX(X23:AF23,$AH$2) -> 32.98 | AI23: FALSE | AJ23: FALSE | AK23: 0 | AL23: FALSE | AM23: 2019 | AN23: 38.66343153 | AO23: 28.033 | AP23: 38.56343153 | AQ23: 38.56343153 | AR23: =LOOKUP(E23,'Hourly Data Facility'!A:A,'Hourly Data Facility'!F:F) ->  | AS23: =LOOKUP(E23,'Hourly Data PVGIS'!B:B,'Hourly Data PVGIS'!G:G) -> 2.62 | AT23: 86.4076 | AU23: =LOOKUP(E23,'Hourly Data PVGIS'!B:B,'Hourly Data PVGIS'!D:D) -> 745.46 | AV23: 24585.2708 | AW23: 28747.49567 | AX23: 17 | AY23: 2 | BH23: 100 | BI23: 0 | BJ23: 0 | BK23: 0 | BL23: 0 | BM23: 0 | BN23: 0 | BO23: 0 | BP23: =LOOKUP(F23,'Gas and Other'!B:B,'Gas and Other'!J:J) -> 3.620371406 | BQ23: 9.109562613 | BR23: 1 | BS23: Jul 2019 | BT23: FALSE | BU23: 18 | BW23: =IF(BT23,INDEX(AH23:BQ23,$BW$4),NA()) ->  | BX23: =IF(BT23,INDEX(AH23:BQ23,$BX$4),NA()) ->  | BY23: FALSE | CA23: =IF(BY23,INDEX(AH23:BQ23,$BW$4),NA()) ->  | CB23: =IF(BY23,INDEX(AH23:BQ23,$BX$4),NA()) ->  | CC23: 0 | CD23: 0 | CO23: 18 | CP23: 2020-12-31 | CQ23: 48.28125 | CR23: 33114.99 | CS23: 1852684.881 | CT23: 55.94701619 | CU23: 4.750564516 | CV23: 216.9833474 | CW23: 45.67527642 | CX23: 80504 | CY23: 5.856106296 | CZ23: 2020-12-31 | DA23: 8.244599322 | DB23: 48.42262097 | DC23: 43.54505376 | DD23: 2020-12-31 | DE23: 48.28125 | DF23: 55.94701619 | DG23: 45.67527642
D24: 4434 | E24: 2019-07-04T16:59:59.992 | F24: 2019-07-31 | G24: Jul 2019 | H24: 2019 | I24: 18 - 19 | J24: 17 | K24: 29.73 | L24: 29.15 | M24: 29.15 | N24: 29.15 | O24: 29.15 | P24: 50.88 | Q24: 29.15 | R24: 29.15 | S24: 29.15 | T24: 28.45 | U24: 28.45 | V24: 28.45 | W24: 50.88 | X24: 29.15 | Y24: 29.15 | Z24: 50.88 | AA24: 50.88 | AB24: 36.92 | AC24: 36.92 | AD24: 36.92 | AE24: 36.92 | AF24: 36.92 | AH24: =INDEX(X24:AF24,$AH$2) -> 36.92 | AI24: FALSE | AJ24: FALSE | AK24: 0 | AL24: FALSE | AM24: 2019 | AN24: 38.66343153 | AO24: 31.382 | AP24: 38.56343153 | AQ24: 38.56343153 | AR24: =LOOKUP(E24,'Hourly Data Facility'!A:A,'Hourly Data Facility'!F:F) ->  | AS24: =LOOKUP(E24,'Hourly Data PVGIS'!B:B,'Hourly Data PVGIS'!G:G) -> 3.24 | AT24: 119.6208 | AU24: =LOOKUP(E24,'Hourly Data PVGIS'!B:B,'Hourly Data PVGIS'!D:D) -> 614.18 | AV24: 22675.5256 | AW24: 23684.88838 | AX24: 18 | AY24: 2 | BH24: 100 | BI24: 0 | BJ24: 0 | BK24: 0 | BL24: 0 | BM24: 0 | BN24: 0 | BO24: 0 | BP24: =LOOKUP(F24,'Gas and Other'!B:B,'Gas and Other'!J:J) -> 3.620371406 | BQ24: 10.19784875 | BR24: 1 | BS24: Jul 2019 | BT24: FALSE | BU24: 19 | BW24: =IF(BT24,INDEX(AH24:BQ24,$BW$4),NA()) ->  | BX24: =IF(BT24,INDEX(AH24:BQ24,$BX$4),NA()) ->  | BY24: FALSE | CA24: =IF(BY24,INDEX(AH24:BQ24,$BW$4),NA()) ->  | CB24: =IF(BY24,INDEX(AH24:BQ24,$BX$4),NA()) ->  | CC24: 0 | CD24: 0 | CO24: 19 | CP24: 2021-01-31 | CQ24: 53.62115591 | CR24: 50313.05 | CS24: 2929165.867 | CT24: 58.21880937 | CU24: 4.784516129 | CV24: 246.7427883 | CW24: 51.57110597 | CX24: 84714 | CY24: 7.268301749 | CZ24: 2021-01-31 | DA24: 7.377398155 | DB24: 59.46697581 | DC24: 52.79319892 | DD24: 2021-01-31 | DE24: 53.62115591 | DF24: 58.21880937 | DG24: 51.57110597
D25: 4435 | E25: 2019-07-04T17:59:59.992 | F25: 2019-07-31 | G25: Jul 2019 | H25: 2019 | I25: 19 - 20 | J25: 18 | K25: 29.7 | L25: 29.02 | M25: 29.02 | N25: 29.02 | O25: 29.02 | P25: 54.9 | Q25: 29.02 | R25: 29.02 | S25: 29.02 | T25: 28.37 | U25: 28.37 | V25: 28.37 | W25: 54.9 | X25: 29.02 | Y25: 29.02 | Z25: 54.9 | AA25: 54.9 | AB25: 43.58 | AC25: 43.58 | AD25: 43.58 | AE25: 43.58 | AF25: 43.58 | AH25: =INDEX(X25:AF25,$AH$2) -> 43.58 | AI25: FALSE | AJ25: FALSE | AK25: 0 | AL25: FALSE | AM25: 2019 | AN25: 38.66343153 | AO25: 37.043 | AP25: 38.56343153 | AQ25: 38.56343153 | AR25: =LOOKUP(E25,'Hourly Data Facility'!A:A,'Hourly Data Facility'!F:F) ->  | AS25: =LOOKUP(E25,'Hourly Data PVGIS'!B:B,'Hourly Data PVGIS'!G:G) -> 3.59 | AT25: 156.4522 | AU25: =LOOKUP(E25,'Hourly Data PVGIS'!B:B,'Hourly Data PVGIS'!D:D) -> 400.08 | AV25: 17435.4864 | AW25: 15428.45769 | AX25: 19 | AY25: 2 | BH25: 100 | BI25: 0 | BJ25: 0 | BK25: 0 | BL25: 0 | BM25: 0 | BN25: 0 | BO25: 0 | BP25: =LOOKUP(F25,'Gas and Other'!B:B,'Gas and Other'!J:J) -> 3.620371406 | BQ25: 12.03743901 | BR25: 1 | BS25: Jul 2019 | BT25: FALSE | BU25: 20 | BW25: =IF(BT25,INDEX(AH25:BQ25,$BW$4),NA()) ->  | BX25: =IF(BT25,INDEX(AH25:BQ25,$BX$4),NA()) ->  | BY25: FALSE | CA25: =IF(BY25,INDEX(AH25:BQ25,$BW$4),NA()) ->  | CB25: =IF(BY25,INDEX(AH25:BQ25,$BX$4),NA()) ->  | CC25: 0 | CD25: 0 | CO25: 20 | CP25: 2021-02-28 | CQ25: 49.23474702 | CR25: 81321.4 | CS25: 3841543.025 | CT25: 47.23901734 | CU25: 4.791964286 | CV25: 226.3676327 | CW25: 47.23900665 | CX25: 69546 | CY25: 6.158507167 | CZ25: 2021-02-28 | DA25: 7.994591172 | DB25: 49.01364583 | DC25: 48.70690476 | DD25: 2021-02-28 | DE25: 49.23474702 | DF25: 47.23901734 | DG25: 47.23900665
D26: 4436 | E26: 2019-07-04T18:59:59.992 | F26: 2019-07-31 | G26: Jul 2019 | H26: 2019 | I26: 20 - 21 | J26: 19 | K26: 29.6 | L26: 28.91 | M26: 28.91 | N26: 28.91 | O26: 28.91 | P26: 53.7 | Q26: 28.91 | R26: 28.91 | S26: 28.91 | T26: 28.32 | U26: 28.32 | V26: 28.32 | W26: 53.7 | X26: 28.91 | Y26: 28.91 | Z26: 53.7 | AA26: 53.7 | AB26: 44.98 | AC26: 40.9 | AD26: 44.98 | AE26: 38.23 | AF26: 44.98 | AH26: =INDEX(X26:AF26,$AH$2) -> 44.98 | AI26: FALSE | AJ26: FALSE | AK26: 0 | AL26: FALSE | AM26: 2019 | AN26: 38.66343153 | AO26: 38.233 | AP26: 38.56343153 | AQ26: 38.56343153 | AR26: =LOOKUP(E26,'Hourly Data Facility'!A:A,'Hourly Data Facility'!F:F) ->  | AS26: =LOOKUP(E26,'Hourly Data PVGIS'!B:B,'Hourly Data PVGIS'!G:G) -> 3.52 | AT26: 158.3296 | AU26: =LOOKUP(E26,'Hourly Data PVGIS'!B:B,'Hourly Data PVGIS'!D:D) -> 199.21 | AV26: 8960.4658 | AW26: 7682.221195 | AX26: 20 | AY26: 2 | BH26: 100 | BI26: 0 | BJ26: 0 | BK26: 0 | BL26: 0 | BM26: 0 | BN26: 0 | BO26: 0 | BP26: =LOOKUP(F26,'Gas and Other'!B:B,'Gas and Other'!J:J) -> 3.620371406 | BQ26: 12.42413967 | BR26: 1 | BS26: Jul 2019 | BT26: FALSE | BU26: 21 | BW26: =IF(BT26,INDEX(AH26:BQ26,$BW$4),NA()) ->  | BX26: =IF(BT26,INDEX(AH26:BQ26,$BX$4),NA()) ->  | BY26: FALSE | CA26: =IF(BY26,INDEX(AH26:BQ26,$BW$4),NA()) ->  | CB26: =IF(BY26,INDEX(AH26:BQ26,$BX$4),NA()) ->  | CC26: 0 | CD26: 0 | CO26: 21 | CP26: 2021-03-31 | CQ26: 48.89051075 | CR26: 121249.33 | CS26: 4982056.831 | CT26: 41.08935555 | CU26: 4.698467742 | CV26: 208.1623868 | CW26: 44.30431329 | CX26: 109245 | CY26: 6.127069579 | CZ26: 2021-03-31 | DA26: 7.979428032 | DB26: 50.22795699 | DC26: 47.18168011 | DD26: 2021-03-31 | DE26: 48.89051075 | DF26: 41.08935555 | DG26: 44.30431329
D27: 4437 | E27: 2019-07-04T19:59:59.992 | F27: 2019-07-31 | G27: Jul 2019 | H27: 2019 | I27: 21 - 22 | J27: 20 | K27: 28.95 | L27: 28.43 | M27: 28.43 | N27: 28.43 | O27: 28.43 | P27: 42.01 | Q27: 28.43 | R27: 28.43 | S27: 28.43 | T27: 28.21 | U27: 28.21 | V27: 28.21 | W27: 42.01 | X27: 28.43 | Y27: 28.43 | Z27: 42.01 | AA27: 42.01 | AB27: 39.9 | AC27: 37.72 | AD27: 39.9 | AE27: 36.27 | AF27: 39.9 | AH27: =INDEX(X27:AF27,$AH$2) -> 39.9 | AI27: FALSE | AJ27: FALSE | AK27: 0 | AL27: FALSE | AM27: 2019 | AN27: 38.66343153 | AO27: 33.915 | AP27: 38.56343153 | AQ27: 38.56343153 | AR27: =LOOKUP(E27,'Hourly Data Facility'!A:A,'Hourly Data Facility'!F:F) ->  | AS27: =LOOKUP(E27,'Hourly Data PVGIS'!B:B,'Hourly Data PVGIS'!G:G) -> 2.83 | AT27: 112.917 | AU27: =LOOKUP(E27,'Hourly Data PVGIS'!B:B,'Hourly Data PVGIS'!D:D) -> 47.5 | AV27: 1895.25 | AW27: 1831.762998 | AX27: 21 | AY27: 2 | BH27: 100 | BI27: 0 | BJ27: 0 | BK27: 0 | BL27: 0 | BM27: 0 | BN27: 0 | BO27: 0 | BP27: =LOOKUP(F27,'Gas and Other'!B:B,'Gas and Other'!J:J) -> 3.620371406 | BQ27: 11.02096872 | BR27: 1 | BS27: Jul 2019 | BT27: FALSE | BU27: 22 | BW27: =IF(BT27,INDEX(AH27:BQ27,$BW$4),NA()) ->  | BX27: =IF(BT27,INDEX(AH27:BQ27,$BX$4),NA()) ->  | BY27: FALSE | CA27: =IF(BY27,INDEX(AH27:BQ27,$BW$4),NA()) ->  | CB27: =IF(BY27,INDEX(AH27:BQ27,$BX$4),NA()) ->  | CC27: 0 | CD27: 0 | CO27: 22 | CP27: 2021-04-30 | CQ27: 53.86905556 | CR27: 158920.35 | CS27: 7326582.707 | CT27: 46.10223113 | CU27: 4.458652778 | CV27: 224.4130438 | CW27: 50.33202964 | CX27: 99381 | CY27: 7.146816288 | CZ27: 2021-04-30 | DA27: 7.537489895 | DB27: 63.14798611 | DC27: 53.65715278 | DD27: 2021-04-30 | DE27: 53.86905556 | DF27: 46.10223113 | DG27: 50.33202964
D28: 4438 | E28: 2019-07-04T20:59:59.992 | F28: 2019-07-31 | G28: Jul 2019 | H28: 2019 | I28: 22 - 23 | J28: 21 | K28: 28.48 | L28: 28.37 | M28: 28.37 | N28: 28.37 | O28: 28.37 | P28: 32.6 | Q28: 28.37 | R28: 28.37 | S28: 28.37 | T28: 28.14 | U28: 28.14 | V28: 28.14 | W28: 32.6 | X28: 28.37 | Y28: 28.37 | Z28: 32.6 | AA28: 28.37 | AB28: 39.06 | AC28: 39.06 | AD28: 39.06 | AE28: 39.06 | AF28: 39.06 | AH28: =INDEX(X28:AF28,$AH$2) -> 39.06 | AI28: FALSE | AJ28: FALSE | AK28: 0 | AL28: FALSE | AM28: 2019 | AN28: 38.66343153 | AO28: 33.201 | AP28: 38.56343153 | AQ28: 38.56343153 | AR28: =LOOKUP(E28,'Hourly Data Facility'!A:A,'Hourly Data Facility'!F:F) ->  | AS28: =LOOKUP(E28,'Hourly Data PVGIS'!B:B,'Hourly Data PVGIS'!G:G) -> 1.86 | AT28: 72.6516 | AU28: =LOOKUP(E28,'Hourly Data PVGIS'!B:B,'Hourly Data PVGIS'!D:D) -> 28.98 | AV28: 1131.9588 | AW28: 1117.568246 | AX28: 22 | AY28: 2 | BH28: 100 | BI28: 0 | BJ28: 0 | BK28: 0 | BL28: 0 | BM28: 0 | BN28: 0 | BO28: 0 | BP28: =LOOKUP(F28,'Gas and Other'!B:B,'Gas and Other'!J:J) -> 3.620371406 | BQ28: 10.78894832 | BR28: 1 | BS28: Jul 2019 | BT28: FALSE | BU28: 23 | BW28: =IF(BT28,INDEX(AH28:BQ28,$BW$4),NA()) ->  | BX28: =IF(BT28,INDEX(AH28:BQ28,$BX$4),NA()) ->  | BY28: FALSE | CA28: =IF(BY28,INDEX(AH28:BQ28,$BW$4),NA()) ->  | CB28: =IF(BY28,INDEX(AH28:BQ28,$BX$4),NA()) ->  | CC28: 0 | CD28: 0 | CO28: 23 | CP28: 2021-05-31 | CQ28: 56.11655914 | CR28: 154969.09 | CS28: 7471742.685 | CT28: 48.2144064 | CU28: 4.381048387 | CV28: 214.9116554 | CW28: 49.05484633 | CX28: 117598 | CY28: 8.908756924 | CZ28: 2021-05-31 | DA28: 6.299033593 | DB28: 55.25981183 | DC28: 53.33150538 | DD28: 2021-05-31 | DE28: 56.11655914 | DF28: 48.2144064 | DG28: 49.05484633
D29: 4439 | E29: 2019-07-04T21:59:59.992 | F29: 2019-07-31 | G29: Jul 2019 | H29: 2019 | I29: 23 - 00 | J29: 22 | K29: 27.28 | L29: 27.26 | M29: 27.26 | N29: 27.26 | O29: 27.26 | P29: 27.26 | Q29: 27.26 | R29: 27.26 | S29: 27.26 | T29: 27.26 | U29: 27.26 | V29: 27.26 | W29: 27.26 | X29: 27.26 | Y29: 27.26 | Z29: 27.26 | AA29: 27.26 | AB29: 34.9 | AC29: 34.9 | AD29: 34.9 | AE29: 34.9 | AF29: 34.9 | AH29: =INDEX(X29:AF29,$AH$2) -> 34.9 | AI29: FALSE | AJ29: FALSE | AK29: 0 | AL29: FALSE | AM29: 2019 | AN29: 38.66343153 | AO29: 29.665 | AP29: 38.56343153 | AQ29: 38.56343153 | AR29: =LOOKUP(E29,'Hourly Data Facility'!A:A,'Hourly Data Facility'!F:F) ->  | AS29: =LOOKUP(E29,'Hourly Data PVGIS'!B:B,'Hourly Data PVGIS'!G:G) -> 1.38 | AT29: 48.162 | AU29: =LOOKUP(E29,'Hourly Data PVGIS'!B:B,'Hourly Data PVGIS'!D:D) -> 0 | AV29: 0 | AW29: 0 | AX29: 23 | AY29: 2 | BH29: 100 | BI29: 0 | BJ29: 0 | BK29: 0 | BL29: 0 | BM29: 0 | BN29: 0 | BO29: 0 | BP29: =LOOKUP(F29,'Gas and Other'!B:B,'Gas and Other'!J:J) -> 3.620371406 | BQ29: 9.639894942 | BR29: 1 | BS29: Jul 2019 | BT29: FALSE | BU29: 24 | BW29: =IF(BT29,INDEX(AH29:BQ29,$BW$4),NA()) ->  | BX29: =IF(BT29,INDEX(AH29:BQ29,$BX$4),NA()) ->  | BY29: FALSE | CA29: =IF(BY29,INDEX(AH29:BQ29,$BW$4),NA()) ->  | CB29: =IF(BY29,INDEX(AH29:BQ29,$BX$4),NA()) ->  | CC29: 0 | CD29: 0 | CO29: 24 | CP29: 2021-06-30 | CQ29: 76.50940278 | CR29: 167140.85 | CS29: 11376642.99 | CT29: 68.06620277 | CU29: 3.370694444 | CV29: 258.5406771 | CW29: 76.70249598 | CX29: 98782 | CY29: 10.30105101 | CZ29: 2021-06-30 | DA29: 7.427339476 | DB29: 73.56091667 | DC29: 74.13072222 | DD29: 2021-06-30 | DE29: 76.50940278 | DF29: 68.06620277 | DG29: 76.70249598
D30: 4440 | E30: 2019-07-04T22:59:59.992 | F30: 2019-07-31 | G30: Jul 2019 | H30: 2019 | I30: 00 - 01 | J30: 23 | K30: 26.19 | L30: 26.19 | M30: 26.19 | N30: 26.19 | O30: 26.19 | P30: 26.19 | Q30: 26.19 | R30: 26.19 | S30: 26.19 | T30: 26.19 | U30: 26.19 | V30: 26.19 | W30: 26.19 | X30: 26.19 | Y30: 26.19 | Z30: 26.19 | AA30: 26.19 | AB30: 29.8 | AC30: 29.8 | AD30: 29.8 | AE30: 29.8 | AF30: 29.8 | AH30: =INDEX(X30:AF30,$AH$2) -> 29.8 | AI30: FALSE | AJ30: FALSE | AK30: 0 | AL30: FALSE | AM30: 2019 | AN30: 38.66343153 | AO30: 25.33 | AP30: 38.56343153 | AQ30: 38.56343153 | AR30: =LOOKUP(E30,'Hourly Data Facility'!A:A,'Hourly Data Facility'!F:F) ->  | AS30: =LOOKUP(E30,'Hourly Data PVGIS'!B:B,'Hourly Data PVGIS'!G:G) -> 2 | AT30: 59.6 | AU30: =LOOKUP(E30,'Hourly Data PVGIS'!B:B,'Hourly Data PVGIS'!D:D) -> 0 | AV30: 0 | AW30: 0 | AX30: 24 | AY30: 2 | BH30: 100 | BI30: 0 | BJ30: 0 | BK30: 0 | BL30: 0 | BM30: 0 | BN30: 0 | BO30: 0 | BP30: =LOOKUP(F30,'Gas and Other'!B:B,'Gas and Other'!J:J) -> 3.620371406 | BQ30: 8.231199692 | BR30: 1 | BS30: Jul 2019 | BT30: FALSE | BU30: 25 | BW30: =IF(BT30,INDEX(AH30:BQ30,$BW$4),NA()) ->  | BX30: =IF(BT30,INDEX(AH30:BQ30,$BX$4),NA()) ->  | BY30: FALSE | CA30: =IF(BY30,INDEX(AH30:BQ30,$BW$4),NA()) ->  | CB30: =IF(BY30,INDEX(AH30:BQ30,$BX$4),NA()) ->  | CC30: 0 | CD30: 0 | CO30: 25 | CP30: 2021-07-31 | CQ30: 82.5828629 | CR30: 143658.58 | CS30: 10691828.31 | CT30: 74.42526792 | CU30: 3.901814516 | CV30: 310.3395094 | CW30: 79.53722765 | CX30: 86299 | CY30: 12.50994243 | CZ30: 2021-07-31 | DA30: 6.601378332 | DB30: 78.30715054 | DC30: 81.29489247 | DD30: 2021-07-31 | DE30: 82.5828629 | DF30: 74.42526792 | DG30: 79.53722765
D31: 4441 | E31: 2019-07-04T23:59:59.992 | F31: 2019-07-31 | G31: Jul 2019 | H31: 2019 | I31: 01 - 02 | J31: 0 | K31: 25.83 | L31: 25.84 | M31: 25.84 | N31: 25.84 | O31: 25.84 | P31: 25.84 | Q31: 25.84 | R31: 25.84 | S31: 25.84 | T31: 25.84 | U31: 25.84 | V31: 25.84 | W31: 25.84 | X31: 25.84 | Y31: 25.84 | Z31: 25.84 | AA31: 25.84 | AB31: 29 | AC31: 29 | AD31: 29 | AE31: 29 | AF31: 29 | AH31: =INDEX(X31:AF31,$AH$2) -> 29 | AI31: FALSE | AJ31: FALSE | AK31: 0 | AL31: FALSE | AM31: 2019 | AN31: 38.66343153 | AO31: 24.65 | AP31: 38.56343153 | AQ31: 38.56343153 | AR31: =LOOKUP(E31,'Hourly Data Facility'!A:A,'Hourly Data Facility'!F:F) ->  | AS31: =LOOKUP(E31,'Hourly Data PVGIS'!B:B,'Hourly Data PVGIS'!G:G) -> 2.69 | AT31: 78.01 | AU31: =LOOKUP(E31,'Hourly Data PVGIS'!B:B,'Hourly Data PVGIS'!D:D) -> 0 | AV31: 0 | AW31: 0 | AX31: 1 | AY31: 3 | AZ31: =IF(AX31=1,SMALL(AH7:AH30,1),AZ30) -> 27.98 | BA31: =IF(AX31=1,_xlfn.XLOOKUP(AZ31,AH7:AH30,AX7:AX30,0,0),BA30) -> 2 | BB31: =IF(AX31=1,LARGE(AH7:AH30,1),BB30) -> 44.98 | BC31: =IF(AX31=1,_xlfn.XLOOKUP(BB31,AH7:AH30,AX7:AX30),BC30) -> 20 | BD31: =IF(AX31=1,SMALL(AH7:AH30,2),BD30) -> 28.83 | BE31: =IF(AX31=1,_xlfn.XLOOKUP(BD31,AH7:AH30,AX7:AX30,0,0),BE30) -> 1 | BF31: =IF(AX31=1,LARGE(AH7:AH30,2),BF30) -> 44.31 | BG31: =IF(AX31=1,_xlfn.XLOOKUP(BF31,AH7:AH30,AX7:AX30,0,0),BG30) -> 7 | BH31: 100 | BI31: 0 | BJ31: 0 | BK31: 0 | BL31: 0 | BM31: 0 | BN31: 0 | BO31: 0 | BP31: =LOOKUP(F31,'Gas and Other'!B:B,'Gas and Other'!J:J) -> 3.620371406 | BQ31: 8.010227889 | BR31: 1 | BS31: Jul 2019 | BT31: FALSE | BU31: 26 | BW31: =IF(BT31,INDEX(AH31:BQ31,$BW$4),NA()) ->  | BX31: =IF(BT31,INDEX(AH31:BQ31,$BX$4),NA()) ->  | BY31: FALSE | CA31: =IF(BY31,INDEX(AH31:BQ31,$BW$4),NA()) ->  | CB31: =IF(BY31,INDEX(AH31:BQ31,$BX$4),NA()) ->  | CC31: 0 | CD31: 0 | CO31: 26 | CP31: 2021-08-31 | CQ31: 86.66303763 | CR31: 143088.32 | CS31: 11822597.22 | CT31: 82.62447433 | CU31: 4.490416667 | CV31: 372.1007383 | CW31: 82.86552584 | CX31: 136422 | CY31: 15.42647594 | CZ31: 2021-08-31 | DA31: 5.61781174 | DB31: 77.40415323 | DC31: 82.81185484 | DD31: 2021-08-31 | DE31: 86.66303763 | DF31: 82.62447433 | DG31: 82.86552584
D32: 4442 | E32: 2019-07-05T00:59:59.992 | F32: 2019-07-31 | G32: Jul 2019 | H32: 2019 | I32: 02 - 03 | J32: 1 | K32: 25.45 | L32: 25.46 | M32: 25.46 | N32: 25.46 | O32: 25.46 | P32: 25.46 | Q32: 25.46 | R32: 25.46 | S32: 25.46 | T32: 25.46 | U32: 25.46 | V32: 25.46 | W32: 25.46 | X32: 25.46 | Y32: 25.46 | Z32: 25.46 | AA32: 25.46 | AB32: 27.8 | AC32: 27.8 | AD32: 27.8 | AE32: 27.8 | AF32: 27.8 | AH32: =INDEX(X32:AF32,$AH$2) -> 27.8 | AI32: FALSE | AJ32: FALSE | AK32: 0 | AL32: FALSE | AM32: 2019 | AN32: 38.66343153 | AO32: 23.63 | AP32: 38.56343153 | AQ32: 38.56343153 | AR32: =LOOKUP(E32,'Hourly Data Facility'!A:A,'Hourly Data Facility'!F:F) ->  | AS32: =LOOKUP(E32,'Hourly Data PVGIS'!B:B,'Hourly Data PVGIS'!G:G) -> 3.1 | AT32: 86.18 | AU32: =LOOKUP(E32,'Hourly Data PVGIS'!B:B,'Hourly Data PVGIS'!D:D) -> 0 | AV32: 0 | AW32: 0 | AX32: 2 | AY32: 3 | AZ32: =IF(AX32=1,SMALL(AH8:AH31,1),AZ31) -> 27.98 | BA32: =IF(AX32=1,_xlfn.XLOOKUP(AZ32,AH8:AH31,AX8:AX31,0,0),BA31) -> 2 | BB32: =IF(AX32=1,LARGE(AH8:AH31,1),BB31) -> 44.98 | BC32: =IF(AX32=1,_xlfn.XLOOKUP(BB32,AH8:AH31,AX8:AX31),BC31) -> 20 | BD32: =IF(AX32=1,SMALL(AH8:AH31,2),BD31) -> 28.83 | BE32: =IF(AX32=1,_xlfn.XLOOKUP(BD32,AH8:AH31,AX8:AX31,0,0),BE31) -> 1 | BF32: =IF(AX32=1,LARGE(AH8:AH31,2),BF31) -> 44.31 | BG32: =IF(AX32=1,_xlfn.XLOOKUP(BF32,AH8:AH31,AX8:AX31,0,0),BG31) -> 7 | BH32: 100 | BI32: 27.98 | BJ32: 0 | BK32: 0 | BL32: 100 | BM32: 0 | BN32: 100 | BO32: -2798 | BP32: =LOOKUP(F32,'Gas and Other'!B:B,'Gas and Other'!J:J) -> 3.620371406 | BQ32: 7.678770183 | BR32: 1 | BS32: Jul 2019 | BT32: FALSE | BU32: 27 | BW32: =IF(BT32,INDEX(AH32:BQ32,$BW$4),NA()) ->  | BX32: =IF(BT32,INDEX(AH32:BQ32,$BX$4),NA()) ->  | BY32: FALSE | CA32: =IF(BY32,INDEX(AH32:BQ32,$BW$4),NA()) ->  | CB32: =IF(BY32,INDEX(AH32:BQ32,$BX$4),NA()) ->  | CC32: 0 | CD32: 0 | CO32: 27 | CP32: 2021-09-30 | CQ32: 136.3865694 | CR32: 134434.17 | CS32: 17019629.23 | CT32: 126.6019586 | CU32: 3.555444444 | CV32: 481.6241611 | CW32: 135.4610285 | CX32: 206201 | CY32: 22.84059608 | CZ32: 2021-09-30 | DA32: 5.971235119 | DB32: 135.3044306 | DC32: 128.3357778 | DD32: 2021-09-30 | DE32: 136.3865694 | DF32: 126.6019586 | DG32: 135.4610285
D33: 4443 | E33: 2019-07-05T01:59:59.992 | F33: 2019-07-31 | G33: Jul 2019 | H33: 2019 | I33: 03 - 04 | J33: 2 | K33: 25.52 | L33: 25.52 | M33: 25.52 | N33: 25.52 | O33: 25.52 | P33: 25.52 | Q33: 25.52 | R33: 25.52 | S33: 25.52 | T33: 25.52 | U33: 25.52 | V33: 25.52 | W33: 25.52 | X33: 25.52 | Y33: 25.52 | Z33: 25.52 | AA33: 25.52 | AB33: 27.64 | AC33: 27.64 | AD33: 27.64 | AE33: 27.64 | AF33: 27.64 | AH33: =INDEX(X33:AF33,$AH$2) -> 27.64 | AI33: FALSE | AJ33: FALSE | AK33: 0 | AL33: FALSE | AM33: 2019 | AN33: 38.66343153 | AO33: 23.494 | AP33: 38.56343153 | AQ33: 38.56343153 | AR33: =LOOKUP(E33,'Hourly Data Facility'!A:A,'Hourly Data Facility'!F:F) ->  | AS33: =LOOKUP(E33,'Hourly Data PVGIS'!B:B,'Hourly Data PVGIS'!G:G) -> 3.31 | AT33: 91.4884 | AU33: =LOOKUP(E33,'Hourly Data PVGIS'!B:B,'Hourly Data PVGIS'!D:D) -> 0 | AV33: 0 | AW33: 0 | AX33: 3 | AY33: 3 | AZ33: 27.98 | BA33: 2 | BB33: 44.98 | BC33: 20 | BD33: 28.83 | BE33: 1 | BF33: 44.31 | BG33: 7 | BH33: 100 | BI33: 0 | BJ33: 0 | BK33: 100 | BL33: 0 | BM33: 0 | BN33: 100 | BO33: 0 | BP33: =LOOKUP(F33,'Gas and Other'!B:B,'Gas and Other'!J:J) -> 3.620371406 | BQ33: 7.634575822 | BR33: 1 | BS33: Jul 2019 | BT33: FALSE | BU33: 28 | BW33: =IF(BT33,INDEX(AH33:BQ33,$BW$4),NA()) ->  | BX33: =IF(BT33,INDEX(AH33:BQ33,$BX$4),NA()) ->  | BY33: FALSE | CA33: =IF(BY33,INDEX(AH33:BQ33,$BW$4),NA()) ->  | CB33: =IF(BY33,INDEX(AH33:BQ33,$BX$4),NA()) ->  | CC33: 0 | CD33: 0 | CO33: 28 | CP33: 2021-10-31 | CQ33: 163.8063306 | CR33: 71363.03 | CS33: 11346799.69 | CT33: 159.0010919 | CU33: 5.076586022 | CV33: 778.0848981 | CW33: 153.2693221 | CX33: 318707 | CY33: 31.05246637 | CZ33: 2021-10-31 | DA33: 5.275147188 | DB33: 172.5374597 | DC33: 139.5433871 | DD33: 2021-10-31 | DE33: 163.8063306 | DF33: 159.0010919 | DG33: 153.2693221
D34: 4444 | E34: 2019-07-05T02:59:59.992 | F34: 2019-07-31 | G34: Jul 2019 | H34: 2019 | I34: 04 - 05 | J34: 3 | K34: 25.89 | L34: 25.9 | M34: 25.9 | N34: 25.9 | O34: 25.9 | P34: 25.9 | Q34: 25.9 | R34: 25.9 | S34: 25.9 | T34: 25.9 | U34: 25.9 | V34: 25.9 | W34: 25.9 | X34: 25.9 | Y34: 25.9 | Z34: 25.9 | AA34: 25.9 | AB34: 27.9 | AC34: 27.9 | AD34: 27.9 | AE34: 27.9 | AF34: 27.9 | AH34: =INDEX(X34:AF34,$AH$2) -> 27.9 | AI34: FALSE | AJ34: FALSE | AK34: 0 | AL34: FALSE | AM34: 2019 | AN34: 38.66343153 | AO34: 23.715 | AP34: 38.56343153 | AQ34: 38.56343153 | AR34: =LOOKUP(E34,'Hourly Data Facility'!A:A,'Hourly Data Facility'!F:F) ->  | AS34: =LOOKUP(E34,'Hourly Data PVGIS'!B:B,'Hourly Data PVGIS'!G:G) -> 3.66 | AT34: 102.114 | AU34: =LOOKUP(E34,'Hourly Data PVGIS'!B:B,'Hourly Data PVGIS'!D:D) -> 0 | AV34: 0 | AW34: 0 | AX34: 4 | AY34: 3 | AZ34: 27.98 | BA34: 2 | BB34: 44.98 | BC34: 20 | BD34: 28.83 | BE34: 1 | BF34: 44.31 | BG34: 7 | BH34: 100 | BI34: 0 | BJ34: 0 | BK34: 100 | BL34: 0 | BM34: 0 | BN34: 100 | BO34: 0 | BP34: =LOOKUP(F34,'Gas and Other'!B:B,'Gas and Other'!J:J) -> 3.620371406 | BQ34: 7.706391658 | BR34: 1 | BS34: Jul 2019 | BT34: FALSE | BU34: 29 | BW34: =IF(BT34,INDEX(AH34:BQ34,$BW$4),NA()) ->  | BX34: =IF(BT34,INDEX(AH34:BQ34,$BX$4),NA()) ->  | BY34: FALSE | CA34: =IF(BY34,INDEX(AH34:BQ34,$BW$4),NA()) ->  | CB34: =IF(BY34,INDEX(AH34:BQ34,$BX$4),NA()) ->  | CC34: 0 | CD34: 0 | CO34: 29 | CP34: 2021-11-30 | CQ34: 186.2995694 | CR34: 42610.3 | CS34: 7539229.502 | CT34: 176.9344384 | CU34: 4.158486111 | CV34: 739.445091 | CW34: 177.8159338 | CX34: 285306 | CY34: 27.62343201 | CZ34: 2021-11-30 | DA34: 6.74425862 | DB34: 217.2417083 | DC34: 176.2458472 | DD34: 2021-11-30 | DE34: 186.2995694 | DF34: 176.9344384 | DG34: 177.8159338
D35: 4445 | E35: 2019-07-05T03:59:59.992 | F35: 2019-07-31 | G35: Jul 2019 | H35: 2019 | I35: 05 - 06 | J35: 4 | K35: 26.85 | L35: 26.76 | M35: 26.76 | N35: 26.76 | O35: 26.76 | P35: 26.76 | Q35: 26.76 | R35: 27.51 | S35: 26.76 | T35: 26.76 | U35: 26.76 | V35: 26.76 | W35: 26.76 | X35: 26.76 | Y35: 26.76 | Z35: 26.76 | AA35: 26.76 | AB35: 29.08 | AC35: 29.08 | AD35: 29.08 | AE35: 29.08 | AF35: 29.08 | AH35: =INDEX(X35:AF35,$AH$2) -> 29.08 | AI35: FALSE | AJ35: FALSE | AK35: 0 | AL35: FALSE | AM35: 2019 | AN35: 38.66343153 | AO35: 24.718 | AP35: 38.56343153 | AQ35: 38.56343153 | AR35: =LOOKUP(E35,'Hourly Data Facility'!A:A,'Hourly Data Facility'!F:F) ->  | AS35: =LOOKUP(E35,'Hourly Data PVGIS'!B:B,'Hourly Data PVGIS'!G:G) -> 3.93 | AT35: 114.2844 | AU35: =LOOKUP(E35,'Hourly Data PVGIS'!B:B,'Hourly Data PVGIS'!D:D) -> 0 | AV35: 0 | AW35: 0 | AX35: 5 | AY35: 3 | AZ35: 27.98 | BA35: 2 | BB35: 44.98 | BC35: 20 | BD35: 28.83 | BE35: 1 | BF35: 44.31 | BG35: 7 | BH35: 100 | BI35: 0 | BJ35: 0 | BK35: 100 | BL35: 0 | BM35: 0 | BN35: 100 | BO35: 0 | BP35: =LOOKUP(F35,'Gas and Other'!B:B,'Gas and Other'!J:J) -> 3.620371406 | BQ35: 8.032325069 | BR35: 1 | BS35: Jul 2019 | BT35: FALSE | BU35: 30 | BW35: =IF(BT35,INDEX(AH35:BQ35,$BW$4),NA()) ->  | BX35: =IF(BT35,INDEX(AH35:BQ35,$BX$4),NA()) ->  | BY35: FALSE | CA35: =IF(BY35,INDEX(AH35:BQ35,$BW$4),NA()) ->  | CB35: =IF(BY35,INDEX(AH35:BQ35,$BX$4),NA()) ->  | CC35: 0 | CD35: 0 | CO35: 30 | CP35: 2021-12-31 | CQ35: 237.8030108 | CR35: 31826.08 | CS35: 9118728.38 | CT35: 286.5174844 | CU35: 4.691263441 | CV35: 987.9668423 | CW35: 210.5971781 | CX35: 407505 | CY35: 38.02711984 | CZ35: 2021-12-31 | DA35: 6.253510961 | DB35: 274.5094892 | DC35: 220.9566263 | DD35: 2021-12-31 | DE35: 237.8030108 | DF35: 286.5174844 | DG35: 210.5971781
D36: 4446 | E36: 2019-07-05T04:59:59.992 | F36: 2019-07-31 | G36: Jul 2019 | H36: 2019 | I36: 06 - 07 | J36: 5 | K36: 28.74 | L36: 28.28 | M36: 28.28 | N36: 28.28 | O36: 28.28 | P36: 32.97 | Q36: 28.28 | R36: 29.01 | S36: 28.28 | T36: 28.12 | U36: 28.12 | V36: 28.12 | W36: 32.97 | X36: 34.62 | Y36: 34.62 | Z36: 32.97 | AA36: 32.97 | AB36: 34.62 | AC36: 34.62 | AD36: 34.62 | AE36: 34.62 | AF36: 34.62 | AH36: =INDEX(X36:AF36,$AH$2) -> 34.62 | AI36: FALSE | AJ36: FALSE | AK36: 0 | AL36: FALSE | AM36: 2019 | AN36: 38.66343153 | AO36: 29.427 | AP36: 38.56343153 | AQ36: 38.56343153 | AR36: =LOOKUP(E36,'Hourly Data Facility'!A:A,'Hourly Data Facility'!F:F) ->  | AS36: =LOOKUP(E36,'Hourly Data PVGIS'!B:B,'Hourly Data PVGIS'!G:G) -> 3.86 | AT36: 133.6332 | AU36: =LOOKUP(E36,'Hourly Data PVGIS'!B:B,'Hourly Data PVGIS'!D:D) -> 0 | AV36: 0 | AW36: 0 | AX36: 6 | AY36: 3 | AZ36: 27.98 | BA36: 2 | BB36: 44.98 | BC36: 20 | BD36: 28.83 | BE36: 1 | BF36: 44.31 | BG36: 7 | BH36: 100 | BI36: 0 | BJ36: 0 | BK36: 100 | BL36: 0 | BM36: 0 | BN36: 100 | BO36: 0 | BP36: =LOOKUP(F36,'Gas and Other'!B:B,'Gas and Other'!J:J) -> 3.620371406 | BQ36: 9.56255481 | BR36: 1 | BS36: Jul 2019 | BT36: FALSE | BU36: 31 | BW36: =IF(BT36,INDEX(AH36:BQ36,$BW$4),NA()) ->  | BX36: =IF(BT36,INDEX(AH36:BQ36,$BX$4),NA()) ->  | BY36: FALSE | CA36: =IF(BY36,INDEX(AH36:BQ36,$BW$4),NA()) ->  | CB36: =IF(BY36,INDEX(AH36:BQ36,$BX$4),NA()) ->  | CC36: 0 | CD36: 0 | CO36: 31 | CP36: 2022-01-31 | CQ36: 189.235578 | CR36: 33013.26 | CS36: 6572008.694 | CT36: 199.0717879 | CU36: 4.886572581 | CV36: 854.6330091 | CW36: 174.8941605 | CX36: 276193 | CY36: 28.26067332 | CZ36: 2022-01-31 | DA36: 6.696074642 | DB36: 211.5832796 | DC36: 167.8745565 | DD36: 2022-01-31 | DE36: 189.235578 | DF36: 199.0717879 | DG36: 174.8941605
D37: 4447 | E37: 2019-07-05T05:59:59.992 | F37: 2019-07-31 | G37: Jul 2019 | H37: 2019 | I37: 07 - 08 | J37: 6 | K37: 31.01 | L37: 29.88 | M37: 29.88 | N37: 29.88 | O37: 29.88 | P37: 45.72 | Q37: 29.88 | R37: 29.88 | S37: 29.88 | T37: 28.62 | U37: 28.62 | V37: 28.62 | W37: 45.72 | X37: 42.89 | Y37: 42.89 | Z37: 45.72 | AA37: 45.72 | AB37: 42.89 | AC37: 40.65 | AD37: 42.89 | AE37: 39.27 | AF37: 42.89 | AH37: =INDEX(X37:AF37,$AH$2) -> 42.89 | AI37: FALSE | AJ37: FALSE | AK37: 0 | AL37: FALSE | AM37: 2019 | AN37: 38.66343153 | AO37: 36.4565 | AP37: 38.56343153 | AQ37: 38.56343153 | AR37: =LOOKUP(E37,'Hourly Data Facility'!A:A,'Hourly Data Facility'!F:F) ->  | AS37: =LOOKUP(E37,'Hourly Data PVGIS'!B:B,'Hourly Data PVGIS'!G:G) -> 3.45 | AT37: 147.9705 | AU37: =LOOKUP(E37,'Hourly Data PVGIS'!B:B,'Hourly Data PVGIS'!D:D) -> 20.13 | AV37: 863.3757 | AW37: 776.2818767 | AX37: 7 | AY37: 3 | AZ37: 27.98 | BA37: 2 | BB37: 44.98 | BC37: 20 | BD37: 28.83 | BE37: 1 | BF37: 44.31 | BG37: 7 | BH37: 100 | BI37: 0 | BJ37: 0 | BK37: 100 | BL37: 0 | BM37: 0 | BN37: 100 | BO37: 0 | BP37: =LOOKUP(F37,'Gas and Other'!B:B,'Gas and Other'!J:J) -> 3.620371406 | BQ37: 11.84685083 | BR37: 1 | BS37: Jul 2019 | BT37: FALSE | BU37: 32 | BW37: =IF(BT37,INDEX(AH37:BQ37,$BW$4),NA()) ->  | BX37: =IF(BT37,INDEX(AH37:BQ37,$BX$4),NA()) ->  | BY37: FALSE | CA37: =IF(BY37,INDEX(AH37:BQ37,$BW$4),NA()) ->  | CB37: =IF(BY37,INDEX(AH37:BQ37,$BX$4),NA()) ->  | CC37: 0 | CD37: 0 | CO37: 32 | CP37: 2022-02-28 | CQ37: 168.291875 | CR37: 78753.02 | CS37: 11760806.99 | CT37: 149.3378539 | CU37: 7.27360119 | CV37: 1156.590019 | CW37: 159.0120202 | CX37: 294987 | CY37: 27.22971591 | CZ37: 2022-02-28 | DA37: 6.180449167 | DB37: 185.6259524 | DC37: 128.7774107 | DD37: 2022-02-28 | DE37: 168.291875 | DF37: 149.3378539 | DG37: 159.0120202
D38: 4448 | E38: 2019-07-05T06:59:59.992 | F38: 2019-07-31 | G38: Jul 2019 | H38: 2019 | I38: 08 - 09 | J38: 7 | K38: 31.41 | L38: 30.79 | M38: 30.79 | N38: 30.79 | O38: 30.79 | P38: 47.68 | Q38: 30.79 | R38: 30.79 | S38: 30.79 | T38: 29 | U38: 29 | V38: 29 | W38: 47.68 | X38: 45.92 | Y38: 45.92 | Z38: 47.68 | AA38: 47.68 | AB38: 45.92 | AC38: 44.28 | AD38: 45.92 | AE38: 43.27 | AF38: 45.92 | AH38: =INDEX(X38:AF38,$AH$2) -> 45.92 | AI38: FALSE | AJ38: FALSE | AK38: 0 | AL38: FALSE | AM38: 2019 | AN38: 38.66343153 | AO38: 39.032 | AP38: 38.56343153 | AQ38: 38.56343153 | AR38: =LOOKUP(E38,'Hourly Data Facility'!A:A,'Hourly Data Facility'!F:F) ->  | AS38: =LOOKUP(E38,'Hourly Data PVGIS'!B:B,'Hourly Data PVGIS'!G:G) -> 3.31 | AT38: 151.9952 | AU38: =LOOKUP(E38,'Hourly Data PVGIS'!B:B,'Hourly Data PVGIS'!D:D) -> 37.03 | AV38: 1700.4176 | AW38: 1428.00387 | AX38: 8 | AY38: 3 | AZ38: 27.98 | BA38: 2 | BB38: 44.98 | BC38: 20 | BD38: 28.83 | BE38: 1 | BF38: 44.31 | BG38: 7 | BH38: 100 | BI38: 0 | BJ38: 0 | BK38: 100 | BL38: 0 | BM38: 0 | BN38: 100 | BO38: 0 | BP38: =LOOKUP(F38,'Gas and Other'!B:B,'Gas and Other'!J:J) -> 3.620371406 | BQ38: 12.68378154 | BR38: 1 | BS38: Jul 2019 | BT38: FALSE | BU38: 33 | BW38: =IF(BT38,INDEX(AH38:BQ38,$BW$4),NA()) ->  | BX38: =IF(BT38,INDEX(AH38:BQ38,$BX$4),NA()) ->  | BY38: FALSE | CA38: =IF(BY38,INDEX(AH38:BQ38,$BW$4),NA()) ->  | CB38: =IF(BY38,INDEX(AH38:BQ38,$BX$4),NA()) ->  | CC38: 0 | CD38: 0 | CO38: 33 | CP38: 2022-03-31 | CQ38: 261.0312903 | CR38: 180332.57 | CS38: 39542883.62 | CT38: 219.2775472 | CU38: 3.818938172 | CV38: 985.5654358 | CW38: 258.0731584 | CX38: 506101 | CY38: =AVERAGEIF(F:F,CP38,BP:BP) -> 42.3929708 | CZ38: 2022-03-31 | DA38: =AVERAGEIF(F:F,CP38,BQ:BQ) -> 6.157419153 | DB38: =AVERAGEIF(F:F,CP38,AE:AE) -> 295.1747446 | DC38: =AVERAGEIF(F:F,CP38,AD:AD) -> 251.7597849 | DD38: 2022-03-31 | DE38: 261.0312903 | DF38: 219.2775472 | DG38: 258.0731584
D39: 4449 | E39: 2019-07-05T07:59:59.992 | F39: 2019-07-31 | G39: Jul 2019 | H39: 2019 | I39: 09 - 10 | J39: 8 | K39: 31.74 | L39: 31.26 | M39: 31.26 | N39: 31.26 | O39: 31.26 | P39: 49.42 | Q39: 31.26 | R39: 31.26 | S39: 31.26 | T39: 29.41 | U39: 29.41 | V39: 29.41 | W39: 49.42 | X39: 43.4 | Y39: 43.4 | Z39: 49.42 | AA39: 49.42 | AB39: 43.4 | AC39: 43.4 | AD39: 43.4 | AE39: 43.4 | AF39: 43.4 | AH39: =INDEX(X39:AF39,$AH$2) -> 43.4 | AI39: FALSE | AJ39: FALSE | AK39: 0 | AL39: FALSE | AM39: 2019 | AN39: 38.66343153 | AO39: 36.89 | AP39: 38.56343153 | AQ39: 38.56343153 | AR39: =LOOKUP(E39,'Hourly Data Facility'!A:A,'Hourly Data Facility'!F:F) ->  | AS39: =LOOKUP(E39,'Hourly Data PVGIS'!B:B,'Hourly Data PVGIS'!G:G) -> 3.79 | AT39: 164.486 | AU39: =LOOKUP(E39,'Hourly Data PVGIS'!B:B,'Hourly Data PVGIS'!D:D) -> 135.21 | AV39: 5868.114 | AW39: 5214.161577 | AX39: 9 | AY39: 3 | AZ39: 27.98 | BA39: 2 | BB39: 44.98 | BC39: 20 | BD39: 28.83 | BE39: 1 | BF39: 44.31 | BG39: 7 | BH39: 100 | BI39: 0 | BJ39: 0 | BK39: 100 | BL39: 0 | BM39: 0 | BN39: 100 | BO39: 0 | BP39: =LOOKUP(F39,'Gas and Other'!B:B,'Gas and Other'!J:J) -> 3.620371406 | BQ39: 11.98772036 | BR39: 1 | BS39: Jul 2019 | BT39: FALSE | BU39: 34 | BW39: =IF(BT39,INDEX(AH39:BQ39,$BW$4),NA()) ->  | BX39: =IF(BT39,INDEX(AH39:BQ39,$BX$4),NA()) ->  | BY39: FALSE | CA39: =IF(BY39,INDEX(AH39:BQ39,$BW$4),NA()) ->  | CB39: =IF(BY39,INDEX(AH39:BQ39,$BX$4),NA()) ->  | CC39: 0 | CD39: 0 | CO39: 34 | CP39: 2022-04-30 | CQ39: =AVERAGEIF(F:F,CP39,AH:AH) -> 195.3124167 | CR39: 163587.92 | CS39: 23735806.83 | CT39: 145.0951074 | CU39: 4.855555556 | CV39: 923.5905121 | CW39: 190.2131489 | CX39: 323138 | CY39: 32.20418723 | CZ39: 2022-04-30 | DA39: 6.064814345 | DB39: 232.9195 | DC39: 166.0018194 | DD39: 2022-04-30 | DE39: 195.3124167 | DF39: 145.0951074 | DG39: 190.2131489
D40: 4450 | E40: 2019-07-05T08:59:59.992 | F40: 2019-07-31 | G40: Jul 2019 | H40: 2019 | I40: 10 - 11 | J40: 9 | K40: 31.82 | L40: 31.39 | M40: 31.39 | N40: 31.39 | O40: 31.39 | P40: 49.43 | Q40: 31.39 | R40: 31.39 | S40: 31.39 | T40: 29.54 | U40: 29.54 | V40: 29.54 | W40: 49.43 | X40: 38 | Y40: 38 | Z40: 49.43 | AA40: 49.43 | AB40: 38 | AC40: 38 | AD40: 38 | AE40: 38 | AF40: 38 | AH40: =INDEX(X40:AF40,$AH$2) -> 38 | AI40: FALSE | AJ40: FALSE | AK40: 0 | AL40: FALSE | AM40: 2019 | AN40: 38.66343153 | AO40: 32.3 | AP40: 38.56343153 | AQ40: 38.56343153 | AR40: =LOOKUP(E40,'Hourly Data Facility'!A:A,'Hourly Data Facility'!F:F) ->  | AS40: =LOOKUP(E40,'Hourly Data PVGIS'!B:B,'Hourly Data PVGIS'!G:G) -> 3.31 | AT40: 125.78 | AU40: =LOOKUP(E40,'Hourly Data PVGIS'!B:B,'Hourly Data PVGIS'!D:D) -> 174.84 | AV40: 6643.92 | AW40: 6742.430369 | AX40: 10 | AY40: 3 | AZ40: 27.98 | BA40: 2 | BB40: 44.98 | BC40: 20 | BD40: 28.83 | BE40: 1 | BF40: 44.31 | BG40: 7 | BH40: 100 | BI40: 0 | BJ40: 0 | BK40: 100 | BL40: 0 | BM40: 0 | BN40: 100 | BO40: 0 | BP40: =LOOKUP(F40,'Gas and Other'!B:B,'Gas and Other'!J:J) -> 3.620371406 | BQ40: 10.49616068 | BR40: 1 | BS40: Jul 2019 | BT40: FALSE | BU40: 35 | BW40: =IF(BT40,INDEX(AH40:BQ40,$BW$4),NA()) ->  | BX40: =IF(BT40,INDEX(AH40:BQ40,$BX$4),NA()) ->  | BY40: FALSE | CA40: =IF(BY40,INDEX(AH40:BQ40,$BW$4),NA()) ->  | CB40: =IF(BY40,INDEX(AH40:BQ40,$BX$4),NA()) ->  | CC40: 0 | CD40: 0 | CO40: 35 | CP40: 2022-05-31 | CQ40: 181.3977016 | CR40: 184897.63 | CS40: 26204617.49 | CT40: 141.7250047 | CU40: 3.796827957 | CV40: 633.2031487 | CW40: 166.7716198 | CX40: 323112 | CY40: 29.17072267 | CZ40: 2022-05-31 | DA40: 6.218485008 | DB40: 197.4600403 | DC40: 177.5061828 | DD40: 2022-05-31 | DE40: 181.3977016 | DF40: 141.7250047 | DG40: 166.7716198
D41: 4451 | E41: 2019-07-05T09:59:59.992 | F41: 2019-07-31 | G41: Jul 2019 | H41: 2019 | I41: 11 - 12 | J41: 10 | K41: 31.78 | L41: 31.44 | M41: 31.44 | N41: 31.44 | O41: 31.44 | P41: 42.26 | Q41: 31.44 | R41: 31.44 | S41: 31.44 | T41: 29.17 | U41: 29.17 | V41: 29.17 | W41: 42.26 | X41: 36.6 | Y41: 36.6 | Z41: 42.26 | AA41: 42.26 | AB41: 36.6 | AC41: 36.6 | AD41: 36.6 | AE41: 36.6 | AF41: 36.6 | AH41: =INDEX(X41:AF41,$AH$2) -> 36.6 | AI41: FALSE | AJ41: FALSE | AK41: 0 | AL41: FALSE | AM41: 2019 | AN41: 38.66343153 | AO41: 31.11 | AP41: 38.56343153 | AQ41: 38.56343153 | AR41: =LOOKUP(E41,'Hourly Data Facility'!A:A,'Hourly Data Facility'!F:F) ->  | AS41: =LOOKUP(E41,'Hourly Data PVGIS'!B:B,'Hourly Data PVGIS'!G:G) -> 3.1 | AT41: 113.46 | AU41: =LOOKUP(E41,'Hourly Data PVGIS'!B:B,'Hourly Data PVGIS'!D:D) -> 285.87 | AV41: 10462.842 | AW41: 11024.12817 | AX41: 11 | AY41: 3 | AZ41: 27.98 | BA41: 2 | BB41: 44.98 | BC41: 20 | BD41: 28.83 | BE41: 1 | BF41: 44.31 | BG41: 7 | BH41: 100 | BI41: 0 | BJ41: 0 | BK41: 100 | BL41: 0 | BM41: 0 | BN41: 100 | BO41: 0 | BP41: =LOOKUP(F41,'Gas and Other'!B:B,'Gas and Other'!J:J) -> 3.620371406 | BQ41: 10.10946002 | BR41: 1 | BS41: Jul 2019 | BT41: FALSE | BU41: 36 | BW41: =IF(BT41,INDEX(AH41:BQ41,$BW$4),NA()) ->  | BX41: =IF(BT41,INDEX(AH41:BQ41,$BX$4),NA()) ->  | BY41: FALSE | CA41: =IF(BY41,INDEX(AH41:BQ41,$BW$4),NA()) ->  | CB41: =IF(BY41,INDEX(AH41:BQ41,$BX$4),NA()) ->  | CC41: 0 | CD41: 0 | CO41: 36 | CP41: 2022-06-30 | CQ41: 210.7039306 | CR41: 179159.96 | CS41: 32386397.32 | CT41: 180.768054 | CU41: 3.682055556 | CV41: 728.6926244 | CW41: 197.9037561 | CX41: 412004 | CY41: 33.55773104 | CZ41: 2022-06-30 | DA41: 6.278849136 | DB41: 248.7327917 | DC41: 218.1820139 | DD41: 2022-06-30 | DE41: 210.7039306 | DF41: 180.768054 | DG41: 197.9037561
D42: 4452 | E42: 2019-07-05T10:59:59.992 | F42: 2019-07-31 | G42: Jul 2019 | H42: 2019 | I42: 12 - 13 | J42: 11 | K42: 31.58 | L42: 31.25 | M42: 31.25 | N42: 31.25 | O42: 31.25 | P42: 50.19 | Q42: 31.25 | R42: 31.25 | S42: 31.25 | T42: 28.98 | U42: 28.98 | V42: 28.98 | W42: 50.19 | X42: 33.02 | Y42: 33.02 | Z42: 50.19 | AA42: 50.19 | AB42: 33.02 | AC42: 33.02 | AD42: 33.02 | AE42: 33.02 | AF42: 33.02 | AH42: =INDEX(X42:AF42,$AH$2) -> 33.02 | AI42: FALSE | AJ42: FALSE | AK42: 0 | AL42: FALSE | AM42: 2019 | AN42: 38.66343153 | AO42: 28.067 | AP42: 38.56343153 | AQ42: 38.56343153 | AR42: =LOOKUP(E42,'Hourly Data Facility'!A:A,'Hourly Data Facility'!F:F) ->  | AS42: =LOOKUP(E42,'Hourly Data PVGIS'!B:B,'Hourly Data PVGIS'!G:G) -> 3.24 | AT42: 106.9848 | AU42: =LOOKUP(E42,'Hourly Data PVGIS'!B:B,'Hourly Data PVGIS'!D:D) -> 341.68 | AV42: 11282.2736 | AW42: 13176.35329 | AX42: 12 | AY42: 3 | AZ42: 27.98 | BA42: 2 | BB42: 44.98 | BC42: 20 | BD42: 28.83 | BE42: 1 | BF42: 44.31 | BG42: 7 | BH42: 100 | BI42: 0 | BJ42: 0 | BK42: 100 | BL42: 0 | BM42: 0 | BN42: 100 | BO42: 0 | BP42: =LOOKUP(F42,'Gas and Other'!B:B,'Gas and Other'!J:J) -> 3.620371406 | BQ42: 9.120611203 | BR42: 1 | BS42: Jul 2019 | BT42: FALSE | BU42: 37 | BW42: =IF(BT42,INDEX(AH42:BQ42,$BW$4),NA()) ->  | BX42: =IF(BT42,INDEX(AH42:BQ42,$BX$4),NA()) ->  | BY42: FALSE | CA42: =IF(BY42,INDEX(AH42:BQ42,$BW$4),NA()) ->  | CB42: =IF(BY42,INDEX(AH42:BQ42,$BX$4),NA()) ->  | CC42: 0 | CD42: 0 | CO42: 37 | CP42: 2022-07-31 | CQ42: 306.8632392 | CR42: 186019.83 | CS42: 45695011.76 | CT42: 245.6459172 | CU42: 3.622231183 | CV42: 1074.899806 | CW42: 296.7507461 | CX42: 641968 | CY42: 51.33003047 | CZ42: 2022-07-31 | DA42: 5.978239959 | DB42: 400.9499059 | DC42: 315.2624866 | DD42: 2022-07-31 | DE42: 306.8632392 | DF42: 245.6459172 | DG42: 296.7507461
D43: 4453 | E43: 2019-07-05T11:59:59.992 | F43: 2019-07-31 | G43: Jul 2019 | H43: 2019 | I43: 13 - 14 | J43: 12 | K43: 31.04 | L43: 30.05 | M43: 30.05 | N43: 30.05 | O43: 30.05 | P43: 45.78 | Q43: 30.05 | R43: 30.05 | S43: 30.05 | T43: 28.89 | U43: 28.89 | V43: 28.89 | W43: 45.78 | X43: 31.05 | Y43: 31.05 | Z43: 45.78 | AA43: 45.78 | AB43: 31.05 | AC43: 31.05 | AD43: 31.05 | AE43: 31.05 | AF43: 31.05 | AH43: =INDEX(X43:AF43,$AH$2) -> 31.05 | AI43: FALSE | AJ43: FALSE | AK43: 0 | AL43: FALSE | AM43: 2019 | AN43: 38.66343153 | AO43: 26.3925 | AP43: 38.56343153 | AQ43: 38.56343153 | AR43: =LOOKUP(E43,'Hourly Data Facility'!A:A,'Hourly Data Facility'!F:F) ->  | AS43: =LOOKUP(E43,'Hourly Data PVGIS'!B:B,'Hourly Data PVGIS'!G:G) -> 3.72 | AT43: 115.506 | AU43: =LOOKUP(E43,'Hourly Data PVGIS'!B:B,'Hourly Data PVGIS'!D:D) -> 530.1 | AV43: 16459.605 | AW43: 20442.47505 | AX43: 13 | AY43: 3 | AZ43: 27.98 | BA43: 2 | BB43: 44.98 | BC43: 20 | BD43: 28.83 | BE43: 1 | BF43: 44.31 | BG43: 7 | BH43: 100 | BI43: 0 | BJ43: 0 | BK43: 100 | BL43: 0 | BM43: 0 | BN43: 100 | BO43: 0 | BP43: =LOOKUP(F43,'Gas and Other'!B:B,'Gas and Other'!J:J) -> 3.620371406 | BQ43: 8.576468136 | BR43: 1 | BS43: Jul 2019 | BT43: FALSE | BU43: 38 | BW43: =IF(BT43,INDEX(AH43:BQ43,$BW$4),NA()) ->  | BX43: =IF(BT43,INDEX(AH43:BQ43,$BX$4),NA()) ->  | BY43: FALSE | CA43: =IF(BY43,INDEX(AH43:BQ43,$BW$4),NA()) ->  | CB43: =IF(BY43,INDEX(AH43:BQ43,$BX$4),NA()) ->  | CC43: 0 | CD43: 0 | CO43: 38 | CP43: 2022-08-31 | CQ43: 447.2496237 | CR43: 176310.29 | CS43: 65612615.52 | CT43: 372.1428597 | CU43: 3.415255376 | CV43: 1522.113729 | CW43: 445.6807942 | CX43: 807340 | CY43: 70.0436398 | CZ43: 2022-08-31 | DA43: 6.385299578 | DB43: 492.9920161 | DC43: 465.5141667 | DD43: 2022-08-31 | DE43: 447.2496237 | DF43: 372.1428597 | DG43: 445.6807942
D44: 4454 | E44: 2019-07-05T12:59:59.992 | F44: 2019-07-31 | G44: Jul 2019 | H44: 2019 | I44: 14 - 15 | J44: 13 | K44: 30.48 | L44: 29.42 | M44: 29.42 | N44: 29.42 | O44: 29.42 | P44: 45.77 | Q44: 29.42 | R44: 29.42 | S44: 29.42 | T44: 28.95 | U44: 28.95 | V44: 28.95 | W44: 45.77 | X44: 29.68 | Y44: 29.68 | Z44: 45.77 | AA44: 45.77 | AB44: 29.68 | AC44: 29.68 | AD44: 29.68 | AE44: 29.68 | AF44: 29.68 | AH44: =INDEX(X44:AF44,$AH$2) -> 29.68 | AI44: FALSE | AJ44: FALSE | AK44: 0 | AL44: FALSE | AM44: 2019 | AN44: 38.66343153 | AO44: 25.228 | AP44: 38.56343153 | AQ44: 38.56343153 | AR44: =LOOKUP(E44,'Hourly Data Facility'!A:A,'Hourly Data Facility'!F:F) ->  | AS44: =LOOKUP(E44,'Hourly Data PVGIS'!B:B,'Hourly Data PVGIS'!G:G) -> 4.21 | AT44: 124.9528 | AU44: =LOOKUP(E44,'Hourly Data PVGIS'!B:B,'Hourly Data PVGIS'!D:D) -> 907.05 | AV44: 26921.244 | AW44: 34978.96057 | AX44: 14 | AY44: 3 | AZ44: 27.98 | BA44: 2 | BB44: 44.98 | BC44: 20 | BD44: 28.83 | BE44: 1 | BF44: 44.31 | BG44: 7 | BH44: 100 | BI44: 0 | BJ44: 0 | BK44: 100 | BL44: 0 | BM44: 0 | BN44: 100 | BO44: 0 | BP44: =LOOKUP(F44,'Gas and Other'!B:B,'Gas and Other'!J:J) -> 3.620371406 | BQ44: 8.198053922 | BR44: 1 | BS44: Jul 2019 | BT44: FALSE | BU44: 39 | BW44: =IF(BT44,INDEX(AH44:BQ44,$BW$4),NA()) ->  | BX44: =IF(BT44,INDEX(AH44:BQ44,$BX$4),NA()) ->  | BY44: FALSE | CA44: =IF(BY44,INDEX(AH44:BQ44,$BW$4),NA()) ->  | CB44: =IF(BY44,INDEX(AH44:BQ44,$BX$4),NA()) ->  | CC44: 0 | CD44: 0 | CO44: 39 | CP44: 2022-09-30 | CQ44: 340.894375 | CR44: 125265.08 | CS44: 40252710.1 | CT44: 321.3402339 | CU44: 3.778791667 | CV44: 1190.23097 | CW44: 314.976605 | CX44: 756310 | CY44: 59.10262225 | CZ44: 2022-09-30 | DA44: 5.767838414 | DB44: 393.5467083 | DC44: 344.9385556 | DD44: 2022-09-30 | DE44: 340.894375 | DF44: 321.3402339 | DG44: 314.976605
D45: 4455 | E45: 2019-07-05T13:59:59.992 | F45: 2019-07-31 | G45: Jul 2019 | H45: 2019 | I45: 15 - 16 | J45: 14 | K45: 30.17 | L45: 29.2 | M45: 29.2 | N45: 29.2 | O45: 29.2 | P45: 43.95 | Q45: 29.2 | R45: 29.2 | S45: 29.2 | T45: 28.94 | U45: 28.94 | V45: 28.94 | W45: 43.95 | X45: 29.2 | Y45: 29.2 | Z45: 43.95 | AA45: 43.95 | AB45: 29.23 | AC45: 29.23 | AD45: 29.23 | AE45: 29.23 | AF45: 29.23 | AH45: =INDEX(X45:AF45,$AH$2) -> 29.23 | AI45: FALSE | AJ45: FALSE | AK45: 0 | AL45: FALSE | AM45: 2019 | AN45: 38.66343153 | AO45: 24.8455 | AP45: 38.56343153 | AQ45: 38.56343153 | AR45: =LOOKUP(E45,'Hourly Data Facility'!A:A,'Hourly Data Facility'!F:F) ->  | AS45: =LOOKUP(E45,'Hourly Data PVGIS'!B:B,'Hourly Data PVGIS'!G:G) -> 4.41 | AT45: 128.9043 | AU45: =LOOKUP(E45,'Hourly Data PVGIS'!B:B,'Hourly Data PVGIS'!D:D) -> 984.19 | AV45: 28767.8737 | AW45: 37953.74368 | AX45: 15 | AY45: 3 | AZ45: 27.98 | BA45: 2 | BB45: 44.98 | BC45: 20 | BD45: 28.83 | BE45: 1 | BF45: 44.31 | BG45: 7 | BH45: 100 | BI45: 0 | BJ45: 0 | BK45: 100 | BL45: 0 | BM45: 0 | BN45: 100 | BO45: 0 | BP45: =LOOKUP(F45,'Gas and Other'!B:B,'Gas and Other'!J:J) -> 3.620371406 | BQ45: 8.073757282 | BR45: 1 | BS45: Jul 2019 | BT45: FALSE | BU45: 40 | BW45: =IF(BT45,INDEX(AH45:BQ45,$BW$4),NA()) ->  | BX45: =IF(BT45,INDEX(AH45:BQ45,$BX$4),NA()) ->  | BY45: FALSE | CA45: =IF(BY45,INDEX(AH45:BQ45,$BW$4),NA()) ->  | CB45: =IF(BY45,INDEX(AH45:BQ45,$BX$4),NA()) ->  | CC45: 0 | CD45: 0 | CO45: 40 | CP45: 2022-10-31 | CQ45: 155.5099731 | CR45: 90718.38 | CS45: 12397292.31 | CT45: 136.656897 | CU45: 4.521075269 | CV45: 636.857111 | CW45: 140.8640806 | CX45: 372059 | CY45: 39.02204994 | CZ45: 2022-10-31 | DA45: 3.985182054 | DB45: 178.8859543 | DC45: 152.7453495 | DD45: 2022-10-31 | DE45: 155.5099731 | DF45: 136.656897 | DG45: 140.8640806
D46: 4456 | E46: 2019-07-05T14:59:59.992 | F46: 2019-07-31 | G46: Jul 2019 | H46: 2019 | I46: 16 - 17 | J46: 15 | K46: 29.84 | L46: 29.48 | M46: 29.48 | N46: 29.48 | O46: 29.48 | P46: 31.56 | Q46: 29.48 | R46: 29.48 | S46: 29.48 | T46: 29.48 | U46: 29.48 | V46: 29.48 | W46: 31.56 | X46: 29.48 | Y46: 29.48 | Z46: 31.56 | AA46: 31.56 | AB46: 30.4 | AC46: 30.4 | AD46: 30.4 | AE46: 30.4 | AF46: 30.4 | AH46: =INDEX(X46:AF46,$AH$2) -> 30.4 | AI46: FALSE | AJ46: FALSE | AK46: 0 | AL46: FALSE | AM46: 2019 | AN46: 38.66343153 | AO46: 25.84 | AP46: 38.56343153 | AQ46: 38.56343153 | AR46: =LOOKUP(E46,'Hourly Data Facility'!A:A,'Hourly Data Facility'!F:F) ->  | AS46: =LOOKUP(E46,'Hourly Data PVGIS'!B:B,'Hourly Data PVGIS'!G:G) -> 4.48 | AT46: 136.192 | AU46: =LOOKUP(E46,'Hourly Data PVGIS'!B:B,'Hourly Data PVGIS'!D:D) -> 943.27 | AV46: 28675.408 | AW46: 36375.72806 | AX46: 16 | AY46: 3 | AZ46: 27.98 | BA46: 2 | BB46: 44.98 | BC46: 20 | BD46: 28.83 | BE46: 1 | BF46: 44.31 | BG46: 7 | BH46: 100 | BI46: 0 | BJ46: 0 | BK46: 100 | BL46: 0 | BM46: 0 | BN46: 100 | BO46: 0 | BP46: =LOOKUP(F46,'Gas and Other'!B:B,'Gas and Other'!J:J) -> 3.620371406 | BQ46: 8.396928545 | BR46: 1 | BS46: Jul 2019 | BT46: FALSE | BU46: 41 | BW46: =IF(BT46,INDEX(AH46:BQ46,$BW$4),NA()) ->  | BX46: =IF(BT46,INDEX(AH46:BQ46,$BX$4),NA()) ->  | BY46: FALSE | CA46: =IF(BY46,INDEX(AH46:BQ46,$BW$4),NA()) ->  | CB46: =IF(BY46,INDEX(AH46:BQ46,$BX$4),NA()) ->  | CC46: 0 | CD46: 0 | CO46: 41 | CP46: 2022-11-30 | CQ46: 179.4805278 | CR46: 56843.92 | CS46: 10218057.64 | CT46: 179.7563863 | CU46: 5.157625 | CV46: 794.5483832 | CW46: 154.0531511 | CX46: 368874 | CY46: 35.72328224 | CZ46: 2022-11-30 | DA46: 5.024189171 | DB46: 192.1558333 | DC46: 173.928 | DD46: 2022-11-30 | DE46: 179.4805278 | DF46: 179.7563863 | DG46: 154.0531511
D47: 4457 | E47: 2019-07-05T15:59:59.992 | F47: 2019-07-31 | G47: Jul 2019 | H47: 2019 | I47: 17 - 18 | J47: 16 | K47: 30.95 | L47: 30.41 | M47: 30.41 | N47: 30.41 | O47: 30.41 | P47: 34.51 | Q47: 30.41 | R47: 30.41 | S47: 30.41 | T47: 30.41 | U47: 30.41 | V47: 30.41 | W47: 34.51 | X47: 30.41 | Y47: 30.41 | Z47: 34.51 | AA47: 34.51 | AB47: 32.97 | AC47: 32.97 | AD47: 32.97 | AE47: 32.97 | AF47: 32.97 | AH47: =INDEX(X47:AF47,$AH$2) -> 32.97 | AI47: FALSE | AJ47: FALSE | AK47: 0 | AL47: FALSE | AM47: 2019 | AN47: 38.66343153 | AO47: 28.0245 | AP47: 38.56343153 | AQ47: 38.56343153 | AR47: =LOOKUP(E47,'Hourly Data Facility'!A:A,'Hourly Data Facility'!F:F) ->  | AS47: =LOOKUP(E47,'Hourly Data PVGIS'!B:B,'Hourly Data PVGIS'!G:G) -> 4.62 | AT47: 152.3214 | AU47: =LOOKUP(E47,'Hourly Data PVGIS'!B:B,'Hourly Data PVGIS'!D:D) -> 796.86 | AV47: 26272.4742 | AW47: 30729.65605 | AX47: 17 | AY47: 3 | AZ47: 27.98 | BA47: 2 | BB47: 44.98 | BC47: 20 | BD47: 28.83 | BE47: 1 | BF47: 44.31 | BG47: 7 | BH47: 100 | BI47: 0 | BJ47: 0 | BK47: 100 | BL47: 0 | BM47: 0 | BN47: 100 | BO47: 0 | BP47: =LOOKUP(F47,'Gas and Other'!B:B,'Gas and Other'!J:J) -> 3.620371406 | BQ47: 9.106800465 | BR47: 1 | BS47: Jul 2019 | BT47: FALSE | BU47: 42 | BW47: =IF(BT47,INDEX(AH47:BQ47,$BW$4),NA()) ->  | BX47: =IF(BT47,INDEX(AH47:BQ47,$BX$4),NA()) ->  | BY47: FALSE | CA47: =IF(BY47,INDEX(AH47:BQ47,$BW$4),NA()) ->  | CB47: =IF(BY47,INDEX(AH47:BQ47,$BX$4),NA()) ->  | CC47: 0 | CD47: 0 | CO47: 42 | CP47: 2022-12-31 | CQ47: 258.8444011 | CR47: 41821.38 | CS47: 13930169.02 | CT47: 333.0872635 | CU47: 4.656648721 | CV47: 960.1659462 | CW47: 206.1924795 | CX47: 426944 | CY47: 36.04426004 | CZ47: 2022-12-31 | DA47: 7.181293244 | DB47: 270.8581965 | DC47: 251.561965 | DD47: 2022-12-31 | DE47: 258.8444011 | DF47: 333.0872635 | DG47: 206.1924795
D48: 4458 | E48: 2019-07-05T16:59:59.992 | F48: 2019-07-31 | G48: Jul 2019 | H48: 2019 | I48: 18 - 19 | J48: 17 | K48: 31.25 | L48: 30.41 | M48: 30.41 | N48: 30.41 | O48: 30.41 | P48: 45.7 | Q48: 30.41 | R48: 30.41 | S48: 30.41 | T48: 30.41 | U48: 30.41 | V48: 30.41 | W48: 45.7 | X48: 30.41 | Y48: 30.41 | Z48: 45.7 | AA48: 45.7 | AB48: 35.35 | AC48: 35.35 | AD48: 35.35 | AE48: 35.35 | AF48: 35.35 | AH48: =INDEX(X48:AF48,$AH$2) -> 35.35 | AI48: FALSE | AJ48: FALSE | AK48: 0 | AL48: FALSE | AM48: 2019 | AN48: 38.66343153 | AO48: 30.0475 | AP48: 38.56343153 | AQ48: 38.56343153 | AR48: =LOOKUP(E48,'Hourly Data Facility'!A:A,'Hourly Data Facility'!F:F) ->  | AS48: =LOOKUP(E48,'Hourly Data PVGIS'!B:B,'Hourly Data PVGIS'!G:G) -> 4.55 | AT48: 160.8425 | AU48: =LOOKUP(E48,'Hourly Data PVGIS'!B:B,'Hourly Data PVGIS'!D:D) -> 614.02 | AV48: 21705.607 | AW48: 23678.71823 | AX48: 18 | AY48: 3 | AZ48: 27.98 | BA48: 2 | BB48: 44.98 | BC48: 20 | BD48: 28.83 | BE48: 1 | BF48: 44.31 | BG48: 7 | BH48: 100 | BI48: 0 | BJ48: 0 | BK48: 100 | BL48: 0 | BM48: 0 | BN48: 100 | BO48: 0 | BP48: =LOOKUP(F48,'Gas and Other'!B:B,'Gas and Other'!J:J) -> 3.620371406 | BQ48: 9.764191581 | BR48: 1 | BS48: Jul 2019 | BT48: FALSE | BU48: 43 | BW48: =IF(BT48,INDEX(AH48:BQ48,$BW$4),NA()) ->  | BX48: =IF(BT48,INDEX(AH48:BQ48,$BX$4),NA()) ->  | BY48: FALSE | CA48: =IF(BY48,INDEX(AH48:BQ48,$BW$4),NA()) ->  | CB48: =IF(BY48,INDEX(AH48:BQ48,$BX$4),NA()) ->  | CC48: 0 | CD48: 0 | CO48: 43 | CP48: 2023-01-31 | CQ48: 125.9538121 | CR48: 49950.02 | CS48: 6732808.373 | CT48: 134.7909045 | CU48: 5.804 | CV48: 649.5704254 | CW48: 111.9177163 | CX48: 229270 | CY48: 20.18397092 | CZ48: 2023-01-31 | DA48: 6.240289018 | DB48: 132.1043087 | DC48: 117.7784564 | DD48: 2023-01-31 | DE48: 125.9538121 | DF48: 134.7909045 | DG48: 111.9177163
D49: 4459 | E49: 2019-07-05T17:59:59.992 | F49: 2019-07-31 | G49: Jul 2019 | H49: 2019 | I49: 19 - 20 | J49: 18 | K49: 31.19 | L49: 30.47 | M49: 30.47 | N49: 30.47 | O49: 30.47 | P49: 40.26 | Q49: 30.47 | R49: 30.47 | S49: 30.47 | T49: 30.47 | U49: 30.47 | V49: 30.47 | W49: 41.99 | X49: 30.47 | Y49: 30.47 | Z49: 41.99 | AA49: 41.99 | AB49: 40.15 | AC49: 39.02 | AD49: 40.15 | AE49: 38.35 | AF49: 40.15 | AH49: =INDEX(X49:AF49,$AH$2) -> 40.15 | AI49: FALSE | AJ49: FALSE | AK49: 0 | AL49: FALSE | AM49: 2019 | AN49: 38.66343153 | AO49: 34.1275 | AP49: 38.56343153 | AQ49: 38.56343153 | AR49: =LOOKUP(E49,'Hourly Data Facility'!A:A,'Hourly Data Facility'!F:F) ->  | AS49: =LOOKUP(E49,'Hourly Data PVGIS'!B:B,'Hourly Data PVGIS'!G:G) -> 4.21 | AT49: 169.0315 | AU49: =LOOKUP(E49,'Hourly Data PVGIS'!B:B,'Hourly Data PVGIS'!D:D) -> 417.56 | AV49: 16765.034 | AW49: 16102.54647 | AX49: 19 | AY49: 3 | AZ49: 27.98 | BA49: 2 | BB49: 44.98 | BC49: 20 | BD49: 28.83 | BE49: 1 | BF49: 44.31 | BG49: 7 | BH49: 100 | BI49: 0 | BJ49: 0 | BK49: 100 | BL49: 0 | BM49: 0 | BN49: 100 | BO49: 0 | BP49: =LOOKUP(F49,'Gas and Other'!B:B,'Gas and Other'!J:J) -> 3.620371406 | BQ49: 11.0900224 | BR49: 1 | BS49: Jul 2019 | BT49: FALSE | BU49: 44 | BW49: =IF(BT49,INDEX(AH49:BQ49,$BW$4),NA()) ->  | BX49: =IF(BT49,INDEX(AH49:BQ49,$BX$4),NA()) ->  | BY49: FALSE | CA49: =IF(BY49,INDEX(AH49:BQ49,$BW$4),NA()) ->  | CB49: =IF(BY49,INDEX(AH49:BQ49,$BX$4),NA()) ->  | CC49: 0 | CD49: 0 | CO49: 44 | CP49: 2023-02-28 | CQ49: 134.9102679 | CR49: 73951.61 | CS49: 8967893.756 | CT49: 121.2670523 | CU49: 4.340014881 | CV49: 544.7649598 | CW49: 125.5214498 | CX49: 165791 | CY49: 16.53713728 | CZ49: 2023-02-28 | DA49: 8.158018258 | DB49: 148.7757738 | DC49: 128.3909226 | DD49: 2023-02-28 | DE49: 134.9102679 | DF49: 121.2670523 | DG49: 125.5214498
D50: 4460 | E50: 2019-07-05T18:59:59.992 | F50: 2019-07-31 | G50: Jul 2019 | H50: 2019 | I50: 20 - 21 | J50: 19 | K50: 30.15 | L50: 29.97 | M50: 29.97 | N50: 29.97 | O50: 29.97 | P50: 32.62 | Q50: 29.97 | R50: 29.97 | S50: 29.97 | T50: 29.97 | U50: 29.97 | V50: 29.97 | W50: 32.62 | X50: 29.97 | Y50: 29.97 | Z50: 32.62 | AA50: 32.62 | AB50: 44.69 | AC50: 39.59 | AD50: 45.86 | AE50: 35.91 | AF50: 45.86 | AH50: =INDEX(X50:AF50,$AH$2) -> 45.86 | AI50: FALSE | AJ50: FALSE | AK50: 0 | AL50: FALSE | AM50: 2019 | AN50: 38.66343153 | AO50: 38.981 | AP50: 38.56343153 | AQ50: 38.56343153 | AR50: =LOOKUP(E50,'Hourly Data Facility'!A:A,'Hourly Data Facility'!F:F) ->  | AS50: =LOOKUP(E50,'Hourly Data PVGIS'!B:B,'Hourly Data PVGIS'!G:G) -> 3.72 | AT50: 170.5992 | AU50: =LOOKUP(E50,'Hourly Data PVGIS'!B:B,'Hourly Data PVGIS'!D:D) -> 203.36 | AV50: 9326.0896 | AW50: 7842.259436 | AX50: 20 | AY50: 3 | AZ50: 27.98 | BA50: 2 | BB50: 44.98 | BC50: 20 | BD50: 28.83 | BE50: 1 | BF50: 44.31 | BG50: 7 | BH50: 100 | BI50: 0 | BJ50: 45.86 | BK50: 100 | BL50: 0 | BM50: 100 | BN50: 0 | BO50: 4586 | BP50: =LOOKUP(F50,'Gas and Other'!B:B,'Gas and Other'!J:J) -> 3.620371406 | BQ50: 12.66720865 | BR50: 1 | BS50: Jul 2019 | BT50: FALSE | BU50: 45 | BW50: =IF(BT50,INDEX(AH50:BQ50,$BW$4),NA()) ->  | BX50: =IF(BT50,INDEX(AH50:BQ50,$BX$4),NA()) ->  | BY50: FALSE | CA50: =IF(BY50,INDEX(AH50:BQ50,$BW$4),NA()) ->  | CB50: =IF(BY50,INDEX(AH50:BQ50,$BX$4),NA()) ->  | CC50: 0 | CD50: 0 | CO50: 45 | CP50: 2023-03-31 | CQ50: 104.4447581 | CR50: 103399.63 | CS50: 8293225.369 | CT50: 80.20556137 | CU50: 5.205053763 | CV50: 489.0110743 | CW50: 93.94928401 | CX50: 213630 | CY50: 13.81207686 | CZ50: 2023-03-31 | DA50: 7.561843096 | DB50: 111.8090323 | DC50: 102.4011425 | DD50: 2023-03-31 | DE50: 104.4447581 | DF50: 80.20556137 | DG50: 93.94928401
D51: 4461 | E51: 2019-07-05T19:59:59.992 | F51: 2019-07-31 | G51: Jul 2019 | H51: 2019 | I51: 21 - 22 | J51: 20 | K51: 29.9 | L51: 29.59 | M51: 29.59 | N51: 29.59 | O51: 29.59 | P51: 33.07 | Q51: 29.59 | R51: 29.59 | S51: 29.59 | T51: 29.59 | U51: 29.59 | V51: 29.59 | W51: 33.07 | X51: 29.59 | Y51: 29.59 | Z51: 33.07 | AA51: 33.07 | AB51: 44.48 | AC51: 37.71 | AD51: 45.75 | AE51: 32.96 | AF51: 45.75 | AH51: =INDEX(X51:AF51,$AH$2) -> 45.75 | AI51: FALSE | AJ51: FALSE | AK51: 0 | AL51: FALSE | AM51: 2019 | AN51: 38.66343153 | AO51: 38.8875 | AP51: 38.56343153 | AQ51: 38.56343153 | AR51: =LOOKUP(E51,'Hourly Data Facility'!A:A,'Hourly Data Facility'!F:F) ->  | AS51: =LOOKUP(E51,'Hourly Data PVGIS'!B:B,'Hourly Data PVGIS'!G:G) -> 2.97 | AT51: 135.8775 | AU51: =LOOKUP(E51,'Hourly Data PVGIS'!B:B,'Hourly Data PVGIS'!D:D) -> 61.99 | AV51: 2836.0425 | AW51: 2390.547121 | AX51: 21 | AY51: 3 | AZ51: 27.98 | BA51: 2 | BB51: 44.98 | BC51: 20 | BD51: 28.83 | BE51: 1 | BF51: 44.31 | BG51: 7 | BH51: 100 | BI51: 0 | BJ51: 0 | BK51: 0 | BL51: 0 | BM51: 0 | BN51: 0 | BO51: 0 | BP51: =LOOKUP(F51,'Gas and Other'!B:B,'Gas and Other'!J:J) -> 3.620371406 | BQ51: 12.63682503 | BR51: 1 | BS51: Jul 2019 | BT51: FALSE | BU51: 46 | BW51: =IF(BT51,INDEX(AH51:BQ51,$BW$4),NA()) ->  | BX51: =IF(BT51,INDEX(AH51:BQ51,$BX$4),NA()) ->  | BY51: FALSE | CA51: =IF(BY51,INDEX(AH51:BQ51,$BW$4),NA()) ->  | CB51: =IF(BY51,INDEX(AH51:BQ51,$BX$4),NA()) ->  | CC51: 0 | CD51: 0 | CO51: 46 | CP51: 2023-04-30 | CQ51: 98.71122222 | CR51: 146076.34 | CS51: 9558589.716 | CT51: 65.43557783 | CU51: 4.399472222 | CV51: 403.9887439 | CW51: 91.82663817 | CX51: 226805 | CY51: 13.52052962 | CZ51: 2023-04-30 | DA51: 7.30083991 | DB51: 106.4516806 | DC51: 100.8324861 | DD51: 2023-04-30 | DE51: 98.71122222 | DF51: 65.43557783 | DG51: 91.82663817
D52: 4462 | E52: 2019-07-05T20:59:59.992 | F52: 2019-07-31 | G52: Jul 2019 | H52: 2019 | I52: 22 - 23 | J52: 21 | K52: 29.47 | L52: 29.47 | M52: 29.47 | N52: 29.47 | O52: 29.47 | P52: 29.47 | Q52: 29.47 | R52: 29.47 | S52: 29.47 | T52: 29.47 | U52: 29.47 | V52: 29.47 | W52: 29.47 | X52: 29.47 | Y52: 29.47 | Z52: 29.47 | AA52: 29.47 | AB52: 41.76 | AC52: 40.37 | AD52: 42.07 | AE52: 39.37 | AF52: 42.07 | AH52: =INDEX(X52:AF52,$AH$2) -> 42.07 | AI52: FALSE | AJ52: FALSE | AK52: 0 | AL52: FALSE | AM52: 2019 | AN52: 38.66343153 | AO52: 35.7595 | AP52: 38.56343153 | AQ52: 38.56343153 | AR52: =LOOKUP(E52,'Hourly Data Facility'!A:A,'Hourly Data Facility'!F:F) ->  | AS52: =LOOKUP(E52,'Hourly Data PVGIS'!B:B,'Hourly Data PVGIS'!G:G) -> 2 | AT52: 84.14 | AU52: =LOOKUP(E52,'Hourly Data PVGIS'!B:B,'Hourly Data PVGIS'!D:D) -> 23.35 | AV52: 982.3345 | AW52: 900.4561262 | AX52: 22 | AY52: 3 | AZ52: 27.98 | BA52: 2 | BB52: 44.98 | BC52: 20 | BD52: 28.83 | BE52: 1 | BF52: 44.31 | BG52: 7 | BH52: 100 | BI52: 0 | BJ52: 0 | BK52: 0 | BL52: 0 | BM52: 0 | BN52: 0 | BO52: 0 | BP52: =LOOKUP(F52,'Gas and Other'!B:B,'Gas and Other'!J:J) -> 3.620371406 | BQ52: 11.62035473 | BR52: 1 | BS52: Jul 2019 | BT52: FALSE | BU52: 47 | BW52: =IF(BT52,INDEX(AH52:BQ52,$BW$4),NA()) ->  | BX52: =IF(BT52,INDEX(AH52:BQ52,$BX$4),NA()) ->  | BY52: FALSE | CA52: =IF(BY52,INDEX(AH52:BQ52,$BW$4),NA()) ->  | CB52: =IF(BY52,INDEX(AH52:BQ52,$BX$4),NA()) ->  | CC52: 0 | CD52: 0 | CO52: 47 | CP52: 2023-05-31 | CQ52: 77.87716398 | CR52: 184187.77 | CS52: 7108054.45 | CT52: 38.59134866 | CU52: 4.015389785 | CV52: 287.4301085 | CW52: 71.58211876 | CX52: 284674 | CY52: 10.108756 | CZ52: 2023-05-31 | DA52: 7.703931521 | DB52: 77.47758065 | DC52: 81.64637097 | DD52: 2023-05-31 | DE52: 77.87716398 | DF52: 38.59134866 | DG52: 71.58211876
D53: 4463 | E53: 2019-07-05T21:59:59.992 | F53: 2019-07-31 | G53: Jul 2019 | H53: 2019 | I53: 23 - 00 | J53: 22 | K53: 28.56 | L53: 28.56 | M53: 28.56 | N53: 28.56 | O53: 28.56 | P53: 28.56 | Q53: 28.56 | R53: 28.56 | S53: 28.56 | T53: 28.56 | U53: 28.56 | V53: 28.56 | W53: 28.56 | X53: 28.56 | Y53: 28.56 | Z53: 28.56 | AA53: 28.56 | AB53: 37.98 | AC53: 37.61 | AD53: 38.09 | AE53: 37.34 | AF53: 38.09 | AH53: =INDEX(X53:AF53,$AH$2) -> 38.09 | AI53: FALSE | AJ53: FALSE | AK53: 0 | AL53: FALSE | AM53: 2019 | AN53: 38.66343153 | AO53: 32.3765 | AP53: 38.56343153 | AQ53: 38.56343153 | AR53: =LOOKUP(E53,'Hourly Data Facility'!A:A,'Hourly Data Facility'!F:F) ->  | AS53: =LOOKUP(E53,'Hourly Data PVGIS'!B:B,'Hourly Data PVGIS'!G:G) -> 1.45 | AT53: 55.2305 | AU53: =LOOKUP(E53,'Hourly Data PVGIS'!B:B,'Hourly Data PVGIS'!D:D) -> 0 | AV53: 0 | AW53: 0 | AX53: 23 | AY53: 3 | AZ53: 27.98 | BA53: 2 | BB53: 44.98 | BC53: 20 | BD53: 28.83 | BE53: 1 | BF53: 44.31 | BG53: 7 | BH53: 100 | BI53: 0 | BJ53: 0 | BK53: 0 | BL53: 0 | BM53: 0 | BN53: 0 | BO53: 0 | BP53: =LOOKUP(F53,'Gas and Other'!B:B,'Gas and Other'!J:J) -> 3.620371406 | BQ53: 10.52102001 | BR53: 1 | BS53: Jul 2019 | BT53: FALSE | BU53: 48 | BW53: =IF(BT53,INDEX(AH53:BQ53,$BW$4),NA()) ->  | BX53: =IF(BT53,INDEX(AH53:BQ53,$BX$4),NA()) ->  | BY53: FALSE | CA53: =IF(BY53,INDEX(AH53:BQ53,$BW$4),NA()) ->  | CB53: =IF(BY53,INDEX(AH53:BQ53,$BX$4),NA()) ->  | CC53: 0 | CD53: 0 | CO53: 48 | CP53: 2023-06-30 | CQ53: 92.04093056 | CR53: 198277.04 | CS53: 12881109.38 | CT53: 64.96520917 | CU53: 4.037708333 | CV53: 358.9665949 | CW53: 88.90354756 | CX53: 268610 | CY53: 10.35062474 | CZ53: 2023-06-30 | DA53: 8.892306781 | DB53: 91.28059722 | DC53: 94.83972222 | DD53: 2023-06-30 | DE53: 92.04093056 | DF53: 64.96520917 | DG53: 88.90354756
D54: 4464 | E54: 2019-07-05T22:59:59.992 | F54: 2019-07-31 | G54: Jul 2019 | H54: 2019 | I54: 00 - 01 | J54: 23 | K54: 29.42 | L54: 29.5 | M54: 29.5 | N54: 29.5 | O54: 29.5 | P54: 29.5 | Q54: 29.5 | R54: 29.5 | S54: 29.5 | T54: 29.5 | U54: 29.5 | V54: 29.5 | W54: 29.5 | X54: 29.5 | Y54: 29.5 | Z54: 29.5 | AA54: 29.5 | AB54: 37.97 | AC54: 37.97 | AD54: 37.97 | AE54: 37.97 | AF54: 37.97 | AH54: =INDEX(X54:AF54,$AH$2) -> 37.97 | AI54: FALSE | AJ54: FALSE | AK54: 0 | AL54: FALSE | AM54: 2019 | AN54: 38.66343153 | AO54: 32.2745 | AP54: 38.56343153 | AQ54: 38.56343153 | AR54: =LOOKUP(E54,'Hourly Data Facility'!A:A,'Hourly Data Facility'!F:F) ->  | AS54: =LOOKUP(E54,'Hourly Data PVGIS'!B:B,'Hourly Data PVGIS'!G:G) -> 1.17 | AT54: 44.4249 | AU54: =LOOKUP(E54,'Hourly Data PVGIS'!B:B,'Hourly Data PVGIS'!D:D) -> 0 | AV54: 0 | AW54: 0 | AX54: 24 | AY54: 3 | AZ54: 27.98 | BA54: 2 | BB54: 44.98 | BC54: 20 | BD54: 28.83 | BE54: 1 | BF54: 44.31 | BG54: 7 | BH54: 100 | BI54: 0 | BJ54: 0 | BK54: 0 | BL54: 0 | BM54: 0 | BN54: 0 | BO54: 0 | BP54: =LOOKUP(F54,'Gas and Other'!B:B,'Gas and Other'!J:J) -> 3.620371406 | BQ54: 10.48787424 | BR54: 1 | BS54: Jul 2019 | BT54: FALSE | BU54: 49 | BW54: =IF(BT54,INDEX(AH54:BQ54,$BW$4),NA()) ->  | BX54: =IF(BT54,INDEX(AH54:BQ54,$BX$4),NA()) ->  | BY54: FALSE | CA54: =IF(BY54,INDEX(AH54:BQ54,$BW$4),NA()) ->  | CB54: =IF(BY54,INDEX(AH54:BQ54,$BX$4),NA()) ->  | CC54: 0 | CD54: 0 | CO54: 49 | CP54: 2023-07-31 | CQ54: 71.69251344 | CR54: 161658.3 | CS54: 6313311.695 | CT54: 39.05343366 | CU54: 5.116263441 | CV54: 303.5270562 | CW54: 59.32592402 | CX54: 282291 | CY54: 9.54528399 | CZ54: 2023-07-31 | DA54: 7.510778466 | DB54: 77.6165457 | DC54: 77.4827957 | DD54: 2023-07-31 | DE54: 71.69251344 | DF54: 39.05343366 | DG54: 59.32592402
D55: 4465 | E55: 2019-07-05T23:59:59.992 | F55: 2019-07-31 | G55: Jul 2019 | H55: 2019 | I55: 01 - 02 | J55: 0 | K55: 28.47 | L55: 28.54 | M55: 28.54 | N55: 28.54 | O55: 28.54 | P55: 28.54 | Q55: 28.54 | R55: 28.54 | S55: 28.54 | T55: 28.54 | U55: 28.54 | V55: 28.54 | W55: 28.54 | X55: 28.54 | Y55: 28.54 | Z55: 28.54 | AA55: 28.54 | AB55: 34.1 | AC55: 34.1 | AD55: 34.1 | AE55: 34.1 | AF55: 34.1 | AH55: =INDEX(X55:AF55,$AH$2) -> 34.1 | AI55: FALSE | AJ55: FALSE | AK55: 0 | AL55: FALSE | AM55: 2019 | AN55: 38.66343153 | AO55: 28.985 | AP55: 38.56343153 | AQ55: 38.56343153 | AR55: =LOOKUP(E55,'Hourly Data Facility'!A:A,'Hourly Data Facility'!F:F) ->  | AS55: =LOOKUP(E55,'Hourly Data PVGIS'!B:B,'Hourly Data PVGIS'!G:G) -> 0.97 | AT55: 33.077 | AU55: =LOOKUP(E55,'Hourly Data PVGIS'!B:B,'Hourly Data PVGIS'!D:D) -> 0 | AV55: 0 | AW55: 0 | AX55: 1 | AY55: 4 | AZ55: 27.64 | BA55: 3 | BB55: 45.92 | BC55: 8 | BD55: 27.8 | BE55: 2 | BF55: 45.86 | BG55: 20 | BH55: 100 | BI55: 0 | BJ55: 0 | BK55: 0 | BL55: 0 | BM55: 0 | BN55: 0 | BO55: 0 | BP55: =LOOKUP(F55,'Gas and Other'!B:B,'Gas and Other'!J:J) -> 3.620371406 | BQ55: 9.418923138 | BR55: 1 | BS55: Jul 2019 | BT55: FALSE | BU55: 50 | BW55: =IF(BT55,INDEX(AH55:BQ55,$BW$4),NA()) ->  | BX55: =IF(BT55,INDEX(AH55:BQ55,$BX$4),NA()) ->  | BY55: FALSE | CA55: =IF(BY55,INDEX(AH55:BQ55,$BW$4),NA()) ->  | CB55: =IF(BY55,INDEX(AH55:BQ55,$BX$4),NA()) ->  | CC55: 0 | CD55: 0 | CO55: 50 | CP55: 2023-08-31 | CQ55: 91.41880376 | CR55: 163254.73 | CS55: 10829767.01 | CT55: 66.33662014 | CU55: 4.008454301 | CV55: 319.0768641 | CW55: 79.60097338 | CX55: 293895 | CY55: 11.19194456 | CZ55: 2023-08-31 | DA55: 8.168268101 | DB55: 90.96353495 | DC55: 94.41327957 | DD55: 2023-08-31 | DE55: 91.41880376 | DF55: 66.33662014 | DG55: 79.60097338
D56: 4466 | E56: 2019-07-06T00:59:59.992 | F56: 2019-07-31 | G56: Jul 2019 | H56: 2019 | I56: 02 - 03 | J56: 1 | K56: 27.77 | L56: 27.14 | M56: 27.14 | N56: 27.14 | O56: 27.14 | P56: 27.14 | Q56: 28.64 | R56: 28.64 | S56: 28.64 | T56: 27.14 | U56: 27.14 | V56: 27.14 | W56: 27.14 | X56: 28.64 | Y56: 28.64 | Z56: 27.14 | AA56: 27.14 | AB56: 30.99 | AC56: 30.99 | AD56: 30.99 | AE56: 30.99 | AF56: 30.99 | AH56: =INDEX(X56:AF56,$AH$2) -> 30.99 | AI56: FALSE | AJ56: FALSE | AK56: 0 | AL56: FALSE | AM56: 2019 | AN56: 38.66343153 | AO56: 26.3415 | AP56: 38.56343153 | AQ56: 38.56343153 | AR56: =LOOKUP(E56,'Hourly Data Facility'!A:A,'Hourly Data Facility'!F:F) ->  | AS56: =LOOKUP(E56,'Hourly Data PVGIS'!B:B,'Hourly Data PVGIS'!G:G) -> 1.59 | AT56: 49.2741 | AU56: =LOOKUP(E56,'Hourly Data PVGIS'!B:B,'Hourly Data PVGIS'!D:D) -> 0 | AV56: 0 | AW56: 0 | AX56: 2 | AY56: 4 | AZ56: 27.64 | BA56: 3 | BB56: 45.92 | BC56: 8 | BD56: 27.8 | BE56: 2 | BF56: 45.86 | BG56: 20 | BH56: 100 | BI56: 0 | BJ56: 0 | BK56: 0 | BL56: 0 | BM56: 0 | BN56: 0 | BO56: 0 | BP56: =LOOKUP(F56,'Gas and Other'!B:B,'Gas and Other'!J:J) -> 3.620371406 | BQ56: 8.559895251 | BR56: 1 | BS56: Jul 2019 | BT56: FALSE | BU56: 51 | BW56: =IF(BT56,INDEX(AH56:BQ56,$BW$4),NA()) ->  | BX56: =IF(BT56,INDEX(AH56:BQ56,$BX$4),NA()) ->  | BY56: FALSE | CA56: =IF(BY56,INDEX(AH56:BQ56,$BW$4),NA()) ->  | CB56: =IF(BY56,INDEX(AH56:BQ56,$BX$4),NA()) ->  | CC56: 0 | CD56: 0 | CO56: 51 | CP56: 2023-09-30 | CQ56: 98.69522222 | CR56: 131113.7 | CS56: 9601420.555 | CT56: 73.22972775 | CU56: 3.678986111 | CV56: 327.7968504 | CW56: 89.09977926 | CX56: 328477 | CY56: 11.54929515 | CZ56: 2023-09-30 | DA56: 8.545562389 | DB56: 88.70819444 | DC56: 100.7262639 | DD56: 2023-09-30 | DE56: 98.69522222 | DF56: 73.22972775 | DG56: 89.09977926
D57: 4467 | E57: 2019-07-06T01:59:59.992 | F57: 2019-07-31 | G57: Jul 2019 | H57: 2019 | I57: 03 - 04 | J57: 2 | K57: 27.68 | L57: 27.03 | M57: 27.03 | N57: 27.03 | O57: 27.03 | P57: 27.03 | Q57: 28.66 | R57: 28.66 | S57: 28.66 | T57: 27.03 | U57: 27.03 | V57: 27.03 | W57: 27.03 | X57: 28.66 | Y57: 28.66 | Z57: 27.03 | AA57: 27.03 | AB57: 30.52 | AC57: 27.47 | AD57: 30.52 | AE57: 25.64 | AF57: 30.52 | AH57: =INDEX(X57:AF57,$AH$2) -> 30.52 | AI57: FALSE | AJ57: FALSE | AK57: 0 | AL57: FALSE | AM57: 2019 | AN57: 38.66343153 | AO57: 25.942 | AP57: 38.56343153 | AQ57: 38.56343153 | AR57: =LOOKUP(E57,'Hourly Data Facility'!A:A,'Hourly Data Facility'!F:F) ->  | AS57: =LOOKUP(E57,'Hourly Data PVGIS'!B:B,'Hourly Data PVGIS'!G:G) -> 2.07 | AT57: 63.1764 | AU57: =LOOKUP(E57,'Hourly Data PVGIS'!B:B,'Hourly Data PVGIS'!D:D) -> 0 | AV57: 0 | AW57: 0 | AX57: 3 | AY57: 4 | AZ57: 27.64 | BA57: 3 | BB57: 45.92 | BC57: 8 | BD57: 27.8 | BE57: 2 | BF57: 45.86 | BG57: 20 | BH57: 100 | BI57: 27.64 | BJ57: 0 | BK57: 0 | BL57: 100 | BM57: 0 | BN57: 100 | BO57: -2764 | BP57: =LOOKUP(F57,'Gas and Other'!B:B,'Gas and Other'!J:J) -> 3.620371406 | BQ57: 8.430074316 | BR57: 1 | BS57: Jul 2019 | BT57: FALSE | BU57: 52 | BW57: =IF(BT57,INDEX(AH57:BQ57,$BW$4),NA()) ->  | BX57: =IF(BT57,INDEX(AH57:BQ57,$BX$4),NA()) ->  | BY57: FALSE | CA57: =IF(BY57,INDEX(AH57:BQ57,$BW$4),NA()) ->  | CB57: =IF(BY57,INDEX(AH57:BQ57,$BX$4),NA()) ->  | CC57: 0 | CD57: 0 | CO57: 52 | CP57: 2023-10-31 | CQ57: 90.18885753 | CR57: 71301.11 | CS57: 4902330.992 | CT57: 68.75532502 | CU57: 5.080403226 | CV57: 400.5078751 | CW57: 78.83387545 | CX57: 273307 | CY57: 14.56950706 | CZ57: 2023-10-31 | DA57: 6.190247699 | DB57: 84.19553763 | DC57: 87.31630376 | DD57: 2023-10-31 | DE57: 90.18885753 | DF57: 68.75532502 | DG57: 78.83387545
D58: 4468 | E58: 2019-07-06T02:59:59.992 | F58: 2019-07-31 | G58: Jul 2019 | H58: 2019 | I58: 04 - 05 | J58: 3 | K58: 27.49 | L58: 27.48 | M58: 27.48 | N58: 27.48 | O58: 27.48 | P58: 27.48 | Q58: 27.48 | R58: 27.91 | S58: 27.48 | T58: 27.48 | U58: 27.48 | V58: 27.48 | W58: 27.48 | X58: 27.91 | Y58: 27.91 | Z58: 27.48 | AA58: 27.48 | AB58: 30.01 | AC58: 26.67 | AD58: 30.01 | AE58: 24.63 | AF58: 30 | AH58: =INDEX(X58:AF58,$AH$2) -> 30 | AI58: FALSE | AJ58: FALSE | AK58: 0 | AL58: FALSE | AM58: 2019 | AN58: 38.66343153 | AO58: 25.5 | AP58: 38.56343153 | AQ58: 38.56343153 | AR58: =LOOKUP(E58,'Hourly Data Facility'!A:A,'Hourly Data Facility'!F:F) ->  | AS58: =LOOKUP(E58,'Hourly Data PVGIS'!B:B,'Hourly Data PVGIS'!G:G) -> 2.48 | AT58: 74.4 | AU58: =LOOKUP(E58,'Hourly Data PVGIS'!B:B,'Hourly Data PVGIS'!D:D) -> 0 | AV58: 0 | AW58: 0 | AX58: 4 | AY58: 4 | AZ58: 27.64 | BA58: 3 | BB58: 45.92 | BC58: 8 | BD58: 27.8 | BE58: 2 | BF58: 45.86 | BG58: 20 | BH58: 100 | BI58: 0 | BJ58: 0 | BK58: 100 | BL58: 0 | BM58: 0 | BN58: 100 | BO58: 0 | BP58: =LOOKUP(F58,'Gas and Other'!B:B,'Gas and Other'!J:J) -> 3.620371406 | BQ58: 8.286442643 | BR58: 1 | BS58: Jul 2019 | BT58: FALSE | BU58: 53 | BW58: =IF(BT58,INDEX(AH58:BQ58,$BW$4),NA()) ->  | BX58: =IF(BT58,INDEX(AH58:BQ58,$BX$4),NA()) ->  | BY58: FALSE | CA58: =IF(BY58,INDEX(AH58:BQ58,$BW$4),NA()) ->  | CB58: =IF(BY58,INDEX(AH58:BQ58,$BX$4),NA()) ->  | CC58: 0 | CD58: 0 | CO58: 53 | CP58: 2023-11-30 | CQ58: 94.4645 | CR58: 42437.87 | CS58: 4384195.143 | CT58: 103.3085577 | CU58: 5.835027778 | CV58: 495.0390804 | CW58: 84.83919859 | CX58: 175452 | CY58: 14.48505488 | CZ58: 2023-11-30 | DA58: 6.521514817 | DB58: 89.01815278 | DC58: 91.17997222 | DD58: 2023-11-30 | DE58: 94.4645 | DF58: 103.3085577 | DG58: 84.83919859
D59: 4469 | E59: 2019-07-06T03:59:59.992 | F59: 2019-07-31 | G59: Jul 2019 | H59: 2019 | I59: 05 - 06 | J59: 4 | K59: 27.98 | L59: 28.06 | M59: 28.06 | N59: 28.06 | O59: 28.06 | P59: 28.06 | Q59: 28.06 | R59: 28.06 | S59: 28.06 | T59: 28.06 | U59: 28.06 | V59: 28.06 | W59: 28.06 | X59: 28.06 | Y59: 28.06 | Z59: 28.06 | AA59: 28.06 | AB59: 29.24 | AC59: 26.25 | AD59: 29.24 | AE59: 24.45 | AF59: 29.23 | AH59: =INDEX(X59:AF59,$AH$2) -> 29.23 | AI59: FALSE | AJ59: FALSE | AK59: 0 | AL59: FALSE | AM59: 2019 | AN59: 38.66343153 | AO59: 24.8455 | AP59: 38.56343153 | AQ59: 38.56343153 | AR59: =LOOKUP(E59,'Hourly Data Facility'!A:A,'Hourly Data Facility'!F:F) ->  | AS59: =LOOKUP(E59,'Hourly Data PVGIS'!B:B,'Hourly Data PVGIS'!G:G) -> 3.03 | AT59: 88.5669 | AU59: =LOOKUP(E59,'Hourly Data PVGIS'!B:B,'Hourly Data PVGIS'!D:D) -> 0 | AV59: 0 | AW59: 0 | AX59: 5 | AY59: 4 | AZ59: 27.64 | BA59: 3 | BB59: 45.92 | BC59: 8 | BD59: 27.8 | BE59: 2 | BF59: 45.86 | BG59: 20 | BH59: 100 | BI59: 0 | BJ59: 0 | BK59: 100 | BL59: 0 | BM59: 0 | BN59: 100 | BO59: 0 | BP59: =LOOKUP(F59,'Gas and Other'!B:B,'Gas and Other'!J:J) -> 3.620371406 | BQ59: 8.073757282 | BR59: 1 | BS59: Jul 2019 | BT59: FALSE | BU59: 54 | BW59: =IF(BT59,INDEX(AH59:BQ59,$BW$4),NA()) ->  | BX59: =IF(BT59,INDEX(AH59:BQ59,$BX$4),NA()) ->  | BY59: FALSE | CA59: =IF(BY59,INDEX(AH59:BQ59,$BW$4),NA()) ->  | CB59: =IF(BY59,INDEX(AH59:BQ59,$BX$4),NA()) ->  | CC59: 0 | CD59: 0 | CO59: 54 | CP59: 2023-12-31 | CQ59: 73.13890983 | CR59: 26050.82 | CS59: 2374428.677 | CT59: 91.14602448 | CU59: 6.42948856 | CV59: 386.1788723 | CW59: 60.06370004 | CX59: 151494 | CY59: 11.50665791 | CZ59: 2023-12-31 | DA59: 6.356225276 | DB59: 68.41777927 | DC59: 68.46450875 | DD59: 2023-12-31 | DE59: 73.13890983 | DF59: 91.14602448 | DG59: 60.06370004
D60: 4470 | E60: 2019-07-06T04:59:59.992 | F60: 2019-07-31 | G60: Jul 2019 | H60: 2019 | I60: 06 - 07 | J60: 5 | K60: 28.51 | L60: 28.51 | M60: 28.51 | N60: 28.51 | O60: 28.51 | P60: 28.51 | Q60: 28.51 | R60: 28.51 | S60: 28.51 | T60: 28.51 | U60: 28.51 | V60: 28.51 | W60: 28.51 | X60: 28.51 | Y60: 28.51 | Z60: 28.51 | AA60: 28.51 | AB60: 29.21 | AC60: 27.16 | AD60: 29.21 | AE60: 25.94 | AF60: 29.21 | AH60: =INDEX(X60:AF60,$AH$2) -> 29.21 | AI60: FALSE | AJ60: FALSE | AK60: 0 | AL60: FALSE | AM60: 2019 | AN60: 38.66343153 | AO60: 24.8285 | AP60: 38.56343153 | AQ60: 38.56343153 | AR60: =LOOKUP(E60,'Hourly Data Facility'!A:A,'Hourly Data Facility'!F:F) ->  | AS60: =LOOKUP(E60,'Hourly Data PVGIS'!B:B,'Hourly Data PVGIS'!G:G) -> 3.52 | AT60: 102.8192 | AU60: =LOOKUP(E60,'Hourly Data PVGIS'!B:B,'Hourly Data PVGIS'!D:D) -> 0 | AV60: 0 | AW60: 0 | AX60: 6 | AY60: 4 | AZ60: 27.64 | BA60: 3 | BB60: 45.92 | BC60: 8 | BD60: 27.8 | BE60: 2 | BF60: 45.86 | BG60: 20 | BH60: 100 | BI60: 0 | BJ60: 0 | BK60: 100 | BL60: 0 | BM60: 0 | BN60: 100 | BO60: 0 | BP60: =LOOKUP(F60,'Gas and Other'!B:B,'Gas and Other'!J:J) -> 3.620371406 | BQ60: 8.068232987 | BR60: 1 | BS60: Jul 2019 | BT60: FALSE | BU60: 55 | BW60: =IF(BT60,INDEX(AH60:BQ60,$BW$4),NA()) ->  | BX60: =IF(BT60,INDEX(AH60:BQ60,$BX$4),NA()) ->  | BY60: FALSE | CA60: =IF(BY60,INDEX(AH60:BQ60,$BW$4),NA()) ->  | CB60: =IF(BY60,INDEX(AH60:BQ60,$BX$4),NA()) ->  | CC60: 0 | CD60: 0 | CO60: 55 | CP60: 2024-01-31 | CQ60: 78.42813172 | CR60: 12888.88889 | CS60: 856066.2222 | CT60: 66.41893103 | CU60: 0 | CV60: 0 | CW60: FALSE | CX60: 162643 | CY60: 9.559613553 | CZ60: 2024-01-31 | DA60: 8.204111106 | DB60: 76.6631586 | DC60: 76.63426075 | DD60: 2024-01-31 | DE60: 78.42813172 | DF60: 66.41893103
D61: 4471 | E61: 2019-07-06T05:59:59.992 | F61: 2019-07-31 | G61: Jul 2019 | H61: 2019 | I61: 07 - 08 | J61: 6 | K61: 29.03 | L61: 29.03 | M61: 29.03 | N61: 29.03 | O61: 29.03 | P61: 29.03 | Q61: 29.03 | R61: 29.03 | S61: 29.03 | T61: 29.03 | U61: 29.03 | V61: 29.03 | W61: 29.03 | X61: 29.03 | Y61: 29.03 | Z61: 29.03 | AA61: 29.03 | AB61: 29.74 | AC61: 29.74 | AD61: 29.74 | AE61: 29.74 | AF61: 29.74 | AH61: =INDEX(X61:AF61,$AH$2) -> 29.74 | AI61: FALSE | AJ61: FALSE | AK61: 0 | AL61: FALSE | AM61: 2019 | AN61: 38.66343153 | AO61: 25.279 | AP61: 38.56343153 | AQ61: 38.56343153 | AR61: =LOOKUP(E61,'Hourly Data Facility'!A:A,'Hourly Data Facility'!F:F) ->  | AS61: =LOOKUP(E61,'Hourly Data PVGIS'!B:B,'Hourly Data PVGIS'!G:G) -> 3.79 | AT61: 112.7146 | AU61: =LOOKUP(E61,'Hourly Data PVGIS'!B:B,'Hourly Data PVGIS'!D:D) -> 19.32 | AV61: 574.5768 | AW61: 745.0454972 | AX61: 7 | AY61: 4 | AZ61: 27.64 | BA61: 3 | BB61: 45.92 | BC61: 8 | BD61: 27.8 | BE61: 2 | BF61: 45.86 | BG61: 20 | BH61: 100 | BI61: 0 | BJ61: 0 | BK61: 100 | BL61: 0 | BM61: 0 | BN61: 100 | BO61: 0 | BP61: =LOOKUP(F61,'Gas and Other'!B:B,'Gas and Other'!J:J) -> 3.620371406 | BQ61: 8.214626807 | BR61: 1 | BS61: Jul 2019 | BT61: FALSE | BU61: 56 | BW61: =IF(BT61,INDEX(AH61:BQ61,$BW$4),NA()) ->  | BX61: =IF(BT61,INDEX(AH61:BQ61,$BX$4),NA()) ->  | BY61: FALSE | CA61: =IF(BY61,INDEX(AH61:BQ61,$BW$4),NA()) ->  | CB61: =IF(BY61,INDEX(AH61:BQ61,$BX$4),NA()) ->  | CC61: 0 | CD61: 0 | CO61: 56 | CP61: 2024-02-29 | CQ61: 63.91093391 | CR61: 19888.88889 | CS61: 1230586 | CT61: 61.87303911 | CU61: 0 | CV61: 0 | CW61: FALSE | CX61: 112492 | CY61: 8.148380868 | CZ61: 2024-02-29 | DA61: 7.843390601 | DB61: 58.38573276 | DC61: 61.35737069 | DD61: 2024-02-29 | DE61: 63.91093391 | DF61: 61.87303911
D62: 4472 | E62: 2019-07-06T06:59:59.992 | F62: 2019-07-31 | G62: Jul 2019 | H62: 2019 | I62: 08 - 09 | J62: 7 | K62: 30.06 | L62: 30.06 | M62: 30.06 | N62: 30.06 | O62: 30.06 | P62: 30.06 | Q62: 30.06 | R62: 30.06 | S62: 30.06 | T62: 30.06 | U62: 30.06 | V62: 30.06 | W62: 30.06 | X62: 31.05 | Y62: 31.05 | Z62: 30.06 | AA62: 30.06 | AB62: 31.05 | AC62: 31.05 | AD62: 31.05 | AE62: 31.05 | AF62: 31.05 | AH62: =INDEX(X62:AF62,$AH$2) -> 31.05 | AI62: FALSE | AJ62: FALSE | AK62: 0 | AL62: FALSE | AM62: 2019 | AN62: 38.66343153 | AO62: 26.3925 | AP62: 38.56343153 | AQ62: 38.56343153 | AR62: =LOOKUP(E62,'Hourly Data Facility'!A:A,'Hourly Data Facility'!F:F) ->  | AS62: =LOOKUP(E62,'Hourly Data PVGIS'!B:B,'Hourly Data PVGIS'!G:G) -> 3.86 | AT62: 119.853 | AU62: =LOOKUP(E62,'Hourly Data PVGIS'!B:B,'Hourly Data PVGIS'!D:D) -> 57.16 | AV62: 1774.818 | AW62: 2204.285746 | AX62: 8 | AY62: 4 | AZ62: 27.64 | BA62: 3 | BB62: 45.92 | BC62: 8 | BD62: 27.8 | BE62: 2 | BF62: 45.86 | BG62: 20 | BH62: 100 | BI62: 0 | BJ62: 31.05 | BK62: 100 | BL62: 0 | BM62: 100 | BN62: 0 | BO62: 3105 | BP62: =LOOKUP(F62,'Gas and Other'!B:B,'Gas and Other'!J:J) -> 3.620371406 | BQ62: 8.576468136 | BR62: 1 | BS62: Jul 2019 | BT62: FALSE | BU62: 57 | BW62: =IF(BT62,INDEX(AH62:BQ62,$BW$4),NA()) ->  | BX62: =IF(BT62,INDEX(AH62:BQ62,$BX$4),NA()) ->  | BY62: FALSE | CA62: =IF(BY62,INDEX(AH62:BQ62,$BW$4),NA()) ->  | CB62: =IF(BY62,INDEX(AH62:BQ62,$BX$4),NA()) ->  | CC62: 0 | CD62: 0 | CO62: 57 | CP62: 2024-03-31 | CQ62: 63.37655914 | CR62: 64066.66667 | CS62: 2851396.667 | CT62: 44.50671176 | CU62: 0 | CV62: 0 | CW62: FALSE | CX62: 179295 | CY62: 8.553726322 | CZ62: 2024-03-31 | DA62: 7.409233912 | DB62: 53.53591398 | DC62: 64.66461022 | DD62: 2024-03-31 | DE62: 63.37655914 | DF62: 44.50671176
D63: 4473 | E63: 2019-07-06T07:59:59.992 | F63: 2019-07-31 | G63: Jul 2019 | H63: 2019 | I63: 09 - 10 | J63: 8 | K63: 30.25 | L63: 30.25 | M63: 30.25 | N63: 30.25 | O63: 30.25 | P63: 30.25 | Q63: 30.25 | R63: 30.25 | S63: 30.25 | T63: 30.25 | U63: 30.25 | V63: 30.25 | W63: 30.25 | X63: 30.99 | Y63: 30.99 | Z63: 30.25 | AA63: 30.25 | AB63: 31 | AC63: 31 | AD63: 30.99 | AE63: 31 | AF63: 31.25 | AH63: =INDEX(X63:AF63,$AH$2) -> 31.25 | AI63: FALSE | AJ63: FALSE | AK63: 0 | AL63: FALSE | AM63: 2019 | AN63: 38.66343153 | AO63: 26.5625 | AP63: 38.56343153 | AQ63: 38.56343153 | AR63: =LOOKUP(E63,'Hourly Data Facility'!A:A,'Hourly Data Facility'!F:F) ->  | AS63: =LOOKUP(E63,'Hourly Data PVGIS'!B:B,'Hourly Data PVGIS'!G:G) -> 4.07 | AT63: 127.1875 | AU63: =LOOKUP(E63,'Hourly Data PVGIS'!B:B,'Hourly Data PVGIS'!D:D) -> 161.09 | AV63: 5034.0625 | AW63: 6212.183185 | AX63: 9 | AY63: 4 | AZ63: 27.64 | BA63: 3 | BB63: 45.92 | BC63: 8 | BD63: 27.8 | BE63: 2 | BF63: 45.86 | BG63: 20 | BH63: 100 | BI63: 0 | BJ63: 0 | BK63: 0 | BL63: 0 | BM63: 0 | BN63: 0 | BO63: 0 | BP63: =LOOKUP(F63,'Gas and Other'!B:B,'Gas and Other'!J:J) -> 3.620371406 | BQ63: 8.631711087 | BR63: 1 | BS63: Jul 2019 | BT63: FALSE | BU63: 58 | BW63: =IF(BT63,INDEX(AH63:BQ63,$BW$4),NA()) ->  | BX63: =IF(BT63,INDEX(AH63:BQ63,$BX$4),NA()) ->  | BY63: FALSE | CA63: =IF(BY63,INDEX(AH63:BQ63,$BW$4),NA()) ->  | CB63: =IF(BY63,INDEX(AH63:BQ63,$BX$4),NA()) ->  | CC63: 0 | CD63: 0 | CO63: 58 | CP63: 2024-04-30 | CQ63: 58.42329167 | CR63: 92155.55556 | CS63: 3035230.444 | CT63: 32.93594647 | CU63: 0 | CV63: 0 | CW63: FALSE | CX63: 223743 | CY63: 9.085119006 | CZ63: 2024-04-30 | DA63: 6.43065783 | DB63: 28.22995833 | DC63: 62.39272222 | DD63: 2024-04-30 | DE63: 58.42329167 | DF63: 32.93594647
D64: 4474 | E64: 2019-07-06T08:59:59.992 | F64: 2019-07-31 | G64: Jul 2019 | H64: 2019 | I64: 10 - 11 | J64: 9 | K64: 29.7 | L64: 29.7 | M64: 29.7 | N64: 29.7 | O64: 29.7 | P64: 29.7 | Q64: 29.7 | R64: 29.7 | S64: 29.7 | T64: 29.7 | U64: 29.7 | V64: 29.7 | W64: 29.7 | X64: 29.7 | Y64: 29.7 | Z64: 29.7 | AA64: 29.7 | AB64: 29.71 | AC64: 29.71 | AD64: 29.7 | AE64: 29.71 | AF64: 30.68 | AH64: =INDEX(X64:AF64,$AH$2) -> 30.68 | AI64: FALSE | AJ64: FALSE | AK64: 0 | AL64: FALSE | AM64: 2019 | AN64: 38.66343153 | AO64: 26.078 | AP64: 38.56343153 | AQ64: 38.56343153 | AR64: =LOOKUP(E64,'Hourly Data Facility'!A:A,'Hourly Data Facility'!F:F) ->  | AS64: =LOOKUP(E64,'Hourly Data PVGIS'!B:B,'Hourly Data PVGIS'!G:G) -> 4.48 | AT64: 137.4464 | AU64: =LOOKUP(E64,'Hourly Data PVGIS'!B:B,'Hourly Data PVGIS'!D:D) -> 368.06 | AV64: 11292.0808 | AW64: 14193.65661 | AX64: 10 | AY64: 4 | AZ64: 27.64 | BA64: 3 | BB64: 45.92 | BC64: 8 | BD64: 27.8 | BE64: 2 | BF64: 45.86 | BG64: 20 | BH64: 100 | BI64: 0 | BJ64: 0 | BK64: 0 | BL64: 0 | BM64: 0 | BN64: 0 | BO64: 0 | BP64: =LOOKUP(F64,'Gas and Other'!B:B,'Gas and Other'!J:J) -> 3.620371406 | BQ64: 8.474268677 | BR64: 1 | BS64: Jul 2019 | BT64: FALSE | BU64: 59 | BW64: =IF(BT64,INDEX(AH64:BQ64,$BW$4),NA()) ->  | BX64: =IF(BT64,INDEX(AH64:BQ64,$BX$4),NA()) ->  | BY64: FALSE | CA64: =IF(BY64,INDEX(AH64:BQ64,$BW$4),NA()) ->  | CB64: =IF(BY64,INDEX(AH64:BQ64,$BX$4),NA()) ->  | CC64: 0 | CD64: 0 | CO64: 59 | CP64: 2024-05-31 | CQ64: 65.69962366 | CR64: 116888.8889 | CS64: 2541976.444 | CT64: 21.74694677 | CU64: 0 | CV64: 0 | CW64: FALSE | CX64: 359244 | CY64: 10.12306555 | CZ64: 2024-05-31 | DA64: 6.490091698 | DB64: 27.08936828 | DC64: 67.28461022 | DD64: 2024-05-31 | DE64: 65.69962366 | DF64: 21.74694677
D65: 4475 | E65: 2019-07-06T09:59:59.992 | F65: 2019-07-31 | G65: Jul 2019 | H65: 2019 | I65: 11 - 12 | J65: 10 | K65: 28.54 | L65: 28.53 | M65: 28.53 | N65: 28.53 | O65: 28.53 | P65: 28.53 | Q65: 28.53 | R65: 28.53 | S65: 28.53 | T65: 28.53 | U65: 28.53 | V65: 28.53 | W65: 28.53 | X65: 28.53 | Y65: 28.53 | Z65: 28.53 | AA65: 28.53 | AB65: 28.54 | AC65: 28.6 | AD65: 28.53 | AE65: 28.6 | AF65: 29.47 | AH65: =INDEX(X65:AF65,$AH$2) -> 29.47 | AI65: FALSE | AJ65: FALSE | AK65: 0 | AL65: FALSE | AM65: 2019 | AN65: 38.66343153 | AO65: 25.0495 | AP65: 38.56343153 | AQ65: 38.56343153 | AR65: =LOOKUP(E65,'Hourly Data Facility'!A:A,'Hourly Data Facility'!F:F) ->  | AS65: =LOOKUP(E65,'Hourly Data PVGIS'!B:B,'Hourly Data PVGIS'!G:G) -> 4.69 | AT65: 138.2143 | AU65: =LOOKUP(E65,'Hourly Data PVGIS'!B:B,'Hourly Data PVGIS'!D:D) -> 559.83 | AV65: 16498.1901 | AW65: 21588.96587 | AX65: 11 | AY65: 4 | AZ65: 27.64 | BA65: 3 | BB65: 45.92 | BC65: 8 | BD65: 27.8 | BE65: 2 | BF65: 45.86 | BG65: 20 | BH65: 100 | BI65: 0 | BJ65: 0 | BK65: 0 | BL65: 0 | BM65: 0 | BN65: 0 | BO65: 0 | BP65: =LOOKUP(F65,'Gas and Other'!B:B,'Gas and Other'!J:J) -> 3.620371406 | BQ65: 8.140048823 | BR65: 1 | BS65: Jul 2019 | BT65: FALSE | BU65: 60 | BW65: =IF(BT65,INDEX(AH65:BQ65,$BW$4),NA()) ->  | BX65: =IF(BT65,INDEX(AH65:BQ65,$BX$4),NA()) ->  | BY65: FALSE | CA65: =IF(BY65,INDEX(AH65:BQ65,$BW$4),NA()) ->  | CB65: =IF(BY65,INDEX(AH65:BQ65,$BX$4),NA()) ->  | CC65: 0 | CD65: 0 | CO65: 60 | CP65: 2024-06-30 | CQ65: 68.06193056 | CR65: 127044.4444 | CS65: 4661530.222 | CT65: 36.69212174 | CU65: 0 | CV65: 0 | CW65: FALSE | CX65: 261619 | CY65: 10.8689779 | CZ65: 2024-06-30 | DA65: 6.262035969 | DB65: 37.78369444 | DC65: 72.89022222 | DD65: 2024-06-30 | DE65: 68.06193056 | DF65: 36.69212174
D66: 4476 | E66: 2019-07-06T10:59:59.992 | F66: 2019-07-31 | G66: Jul 2019 | H66: 2019 | I66: 12 - 13 | J66: 11 | K66: 27.53 | L66: 27.52 | M66: 27.52 | N66: 27.52 | O66: 27.52 | P66: 27.52 | Q66: 27.52 | R66: 27.52 | S66: 27.52 | T66: 27.52 | U66: 27.52 | V66: 27.52 | W66: 27.52 | X66: 26.86 | Y66: 27.52 | Z66: 27.52 | AA66: 27.52 | AB66: 26.93 | AC66: 27.12 | AD66: 26.86 | AE66: 27.12 | AF66: 28.43 | AH66: =INDEX(X66:AF66,$AH$2) -> 28.43 | AI66: FALSE | AJ66: FALSE | AK66: 0 | AL66: FALSE | AM66: 2019 | AN66: 38.66343153 | AO66: 24.1655 | AP66: 38.56343153 | AQ66: 38.56343153 | AR66: =LOOKUP(E66,'Hourly Data Facility'!A:A,'Hourly Data Facility'!F:F) ->  | AS66: =LOOKUP(E66,'Hourly Data PVGIS'!B:B,'Hourly Data PVGIS'!G:G) -> 4.55 | AT66: 129.3565 | AU66: =LOOKUP(E66,'Hourly Data PVGIS'!B:B,'Hourly Data PVGIS'!D:D) -> 749.55 | AV66: 21309.7065 | AW66: 28905.2201 | AX66: 12 | AY66: 4 | AZ66: 27.64 | BA66: 3 | BB66: 45.92 | BC66: 8 | BD66: 27.8 | BE66: 2 | BF66: 45.86 | BG66: 20 | BH66: 100 | BI66: 0 | BJ66: 0 | BK66: 0 | BL66: 0 | BM66: 0 | BN66: 0 | BO66: 0 | BP66: =LOOKUP(F66,'Gas and Other'!B:B,'Gas and Other'!J:J) -> 3.620371406 | BQ66: 7.852785478 | BR66: 1 | BS66: Jul 2019 | BT66: FALSE | BU66: 61 | BW66: =IF(BT66,INDEX(AH66:BQ66,$BW$4),NA()) ->  | BX66: =IF(BT66,INDEX(AH66:BQ66,$BX$4),NA()) ->  | BY66: FALSE | CA66: =IF(BY66,INDEX(AH66:BQ66,$BW$4),NA()) ->  | CB66: =IF(BY66,INDEX(AH66:BQ66,$BX$4),NA()) ->  | CC66: 0 | CD66: 0 | CO66: 61 | CP66: 2024-07-31 | CQ66: 65.0444086 | CR66: 135244.4444 | CS66: 4040012.667 | CT66: 29.87193066 | CU66: 0 | CV66: 0 | CW66: FALSE | CX66: 341009 | CY66: 10.34681933 | CZ66: 2024-07-31 | DA66: 6.286415809 | DB66: 47.08576613 | DC66: 67.71 | DD66: 2024-07-31 | DE66: 65.0444086 | DF66: 29.87193066
D67: 4477 | E67: 2019-07-06T11:59:59.992 | F67: 2019-07-31 | G67: Jul 2019 | H67: 2019 | I67: 13 - 14 | J67: 12 | K67: 27.18 | L67: 27.17 | M67: 27.17 | N67: 27.17 | O67: 27.17 | P67: 27.17 | Q67: 27.17 | R67: 27.17 | S67: 27.17 | T67: 27.17 | U67: 27.17 | V67: 27.17 | W67: 27.17 | X67: 26.09 | Y67: 27.17 | Z67: 27.17 | AA67: 27.17 | AB67: 26.17 | AC67: 26.4 | AD67: 26.09 | AE67: 26.4 | AF67: 28.07 | AH67: =INDEX(X67:AF67,$AH$2) -> 28.07 | AI67: FALSE | AJ67: FALSE | AK67: 0 | AL67: FALSE | AM67: 2019 | AN67: 38.66343153 | AO67: 23.8595 | AP67: 38.56343153 | AQ67: 38.56343153 | AR67: =LOOKUP(E67,'Hourly Data Facility'!A:A,'Hourly Data Facility'!F:F) ->  | AS67: =LOOKUP(E67,'Hourly Data PVGIS'!B:B,'Hourly Data PVGIS'!G:G) -> 4.69 | AT67: 131.6483 | AU67: =LOOKUP(E67,'Hourly Data PVGIS'!B:B,'Hourly Data PVGIS'!D:D) -> 680.14 | AV67: 19091.5298 | AW67: 26228.53232 | AX67: 13 | AY67: 4 | AZ67: 27.64 | BA67: 3 | BB67: 45.92 | BC67: 8 | BD67: 27.8 | BE67: 2 | BF67: 45.86 | BG67: 20 | BH67: 100 | BI67: 0 | BJ67: 0 | BK67: 0 | BL67: 0 | BM67: 0 | BN67: 0 | BO67: 0 | BP67: =LOOKUP(F67,'Gas and Other'!B:B,'Gas and Other'!J:J) -> 3.620371406 | BQ67: 7.753348167 | BR67: 1 | BS67: Jul 2019 | BT67: FALSE | BU67: 62 | BW67: =IF(BT67,INDEX(AH67:BQ67,$BW$4),NA()) ->  | BX67: =IF(BT67,INDEX(AH67:BQ67,$BX$4),NA()) ->  | BY67: FALSE | CA67: =IF(BY67,INDEX(AH67:BQ67,$BW$4),NA()) ->  | CB67: =IF(BY67,INDEX(AH67:BQ67,$BX$4),NA()) ->  | CC67: 0 | CD67: 0 | CO67: 62 | CP67: 2024-08-31 | CQ67: 77.09561828 | CR67: 121577.7778 | CS67: 4679251.111 | CT67: 38.48771705 | CU67: 0 | CV67: 0 | CW67: FALSE | CX67: 413810 | CY67: 12.3745982 | CZ67: 2024-08-31 | DA67: 6.230151238 | DB67: 54.56229839 | DC67: 82.0349328 | DD67: 2024-08-31 | DE67: 77.09561828 | DF67: 38.48771705
D68: 4478 | E68: 2019-07-06T12:59:59.992 | F68: 2019-07-31 | G68: Jul 2019 | H68: 2019 | I68: 14 - 15 | J68: 13 | K68: 26.78 | L68: 26.81 | M68: 26.81 | N68: 26.81 | O68: 26.81 | P68: 26.81 | Q68: 26.81 | R68: 26.81 | S68: 26.81 | T68: 26.81 | U68: 26.81 | V68: 26.81 | W68: 26.81 | X68: 24.94 | Y68: 26.81 | Z68: 26.81 | AA68: 26.81 | AB68: 26.1 | AC68: 25.52 | AD68: 24.94 | AE68: 25.52 | AF68: 27.7 | AH68: =INDEX(X68:AF68,$AH$2) -> 27.7 | AI68: FALSE | AJ68: FALSE | AK68: 0 | AL68: FALSE | AM68: 2019 | AN68: 38.66343153 | AO68: 23.545 | AP68: 38.56343153 | AQ68: 38.56343153 | AR68: =LOOKUP(E68,'Hourly Data Facility'!A:A,'Hourly Data Facility'!F:F) ->  | AS68: =LOOKUP(E68,'Hourly Data PVGIS'!B:B,'Hourly Data PVGIS'!G:G) -> 4.83 | AT68: 133.791 | AU68: =LOOKUP(E68,'Hourly Data PVGIS'!B:B,'Hourly Data PVGIS'!D:D) -> 669.04 | AV68: 18532.408 | AW68: 25800.47823 | AX68: 14 | AY68: 4 | AZ68: 27.64 | BA68: 3 | BB68: 45.92 | BC68: 8 | BD68: 27.8 | BE68: 2 | BF68: 45.86 | BG68: 20 | BH68: 100 | BI68: 0 | BJ68: 0 | BK68: 0 | BL68: 0 | BM68: 0 | BN68: 0 | BO68: 0 | BP68: =LOOKUP(F68,'Gas and Other'!B:B,'Gas and Other'!J:J) -> 3.620371406 | BQ68: 7.651148707 | BR68: 1 | BS68: Jul 2019 | BT68: FALSE | BU68: 63 | BW68: =IF(BT68,INDEX(AH68:BQ68,$BW$4),NA()) ->  | BX68: =IF(BT68,INDEX(AH68:BQ68,$BX$4),NA()) ->  | BY68: FALSE | CA68: =IF(BY68,INDEX(AH68:BQ68,$BW$4),NA()) ->  | CB68: =IF(BY68,INDEX(AH68:BQ68,$BX$4),NA()) ->  | CC68: 0 | CD68: 0 | CO68: 63 | CP68: 2024-09-30 | CQ68: 77.62361111 | CR68: 57622.22222 | CS68: 2554257.111 | CT68: 44.3276398 | CU68: 0 | CV68: 0 | CW68: FALSE | CX68: 292960 | CY68: 11.78425919 | CZ68: 2024-09-30 | DA68: 6.587059047 | DB68: 51.61158333 | DC68: 78.06488889 | DD68: 2024-09-30 | DE68: 77.62361111 | DF68: 44.3276398
D69: 4479 | E69: 2019-07-06T13:59:59.992 | F69: 2019-07-31 | G69: Jul 2019 | H69: 2019 | I69: 15 - 16 | J69: 14 | K69: 26.54 | L69: 26.29 | M69: 26.29 | N69: 26.29 | O69: 26.29 | P69: 31.76 | Q69: 26.29 | R69: 26.29 | S69: 26.29 | T69: 26.29 | U69: 26.29 | V69: 26.29 | W69: 32.01 | X69: 26.1 | Y69: 26.29 | Z69: 32.01 | AA69: 32.01 | AB69: 26.1 | AC69: 26.01 | AD69: 26.1 | AE69: 26.11 | AF69: 27.16 | AH69: =INDEX(X69:AF69,$AH$2) -> 27.16 | AI69: FALSE | AJ69: FALSE | AK69: 0 | AL69: FALSE | AM69: 2019 | AN69: 38.66343153 | AO69: 23.086 | AP69: 38.56343153 | AQ69: 38.56343153 | AR69: =LOOKUP(E69,'Hourly Data Facility'!A:A,'Hourly Data Facility'!F:F) ->  | AS69: =LOOKUP(E69,'Hourly Data PVGIS'!B:B,'Hourly Data PVGIS'!G:G) -> 5.03 | AT69: 136.6148 | AU69: =LOOKUP(E69,'Hourly Data PVGIS'!B:B,'Hourly Data PVGIS'!D:D) -> 641.43 | AV69: 17421.2388 | AW69: 24735.74189 | AX69: 15 | AY69: 4 | AZ69: 27.64 | BA69: 3 | BB69: 45.92 | BC69: 8 | BD69: 27.8 | BE69: 2 | BF69: 45.86 | BG69: 20 | BH69: 100 | BI69: 0 | BJ69: 0 | BK69: 0 | BL69: 0 | BM69: 0 | BN69: 0 | BO69: 0 | BP69: =LOOKUP(F69,'Gas and Other'!B:B,'Gas and Other'!J:J) -> 3.620371406 | BQ69: 7.50199274 | BR69: 1 | BS69: Jul 2019 | BT69: FALSE | BU69: 64 | BW69: =IF(BT69,INDEX(AH69:BQ69,$BW$4),NA()) ->  | BX69: =IF(BT69,INDEX(AH69:BQ69,$BX$4),NA()) ->  | BY69: FALSE | CA69: =IF(BY69,INDEX(AH69:BQ69,$BW$4),NA()) ->  | CB69: =IF(BY69,INDEX(AH69:BQ69,$BX$4),NA()) ->  | CC69: 0 | CD69: 0 | CO69: 64 | CP69: 2024-10-31 | CQ69: 87.80352151 | CR69: 33377.77778 | CS69: 2386658 | CT69: 71.5044008 | CU69: 0 | CV69: 0 | CW69: FALSE | CX69: 260947 | CY69: 12.92013303 | CZ69: 2024-10-31 | DA69: 6.795868226 | DB69: 62.2509543 | DC69: 86.29299731 | DD69: 2024-10-31 | DE69: 87.80352151 | DF69: 71.5044008
D70: 4480 | E70: 2019-07-06T14:59:59.992 | F70: 2019-07-31 | G70: Jul 2019 | H70: 2019 | I70: 16 - 17 | J70: 15 | K70: 27.79 | L70: 27.64 | M70: 27.64 | N70: 27.64 | O70: 27.64 | P70: 32.1 | Q70: 27.64 | R70: 27.64 | S70: 27.64 | T70: 27.64 | U70: 27.64 | V70: 27.64 | W70: 32.1 | X70: 27.64 | Y70: 27.64 | Z70: 32.1 | AA70: 32.1 | AB70: 27.64 | AC70: 27.63 | AD70: 27.64 | AE70: 27.64 | AF70: 27.7 | AH70: =INDEX(X70:AF70,$AH$2) -> 27.7 | AI70: FALSE | AJ70: FALSE | AK70: 0 | AL70: FALSE | AM70: 2019 | AN70: 38.66343153 | AO70: 23.545 | AP70: 38.56343153 | AQ70: 38.56343153 | AR70: =LOOKUP(E70,'Hourly Data Facility'!A:A,'Hourly Data Facility'!F:F) ->  | AS70: =LOOKUP(E70,'Hourly Data PVGIS'!B:B,'Hourly Data PVGIS'!G:G) -> 5.1 | AT70: 141.27 | AU70: =LOOKUP(E70,'Hourly Data PVGIS'!B:B,'Hourly Data PVGIS'!D:D) -> 279.08 | AV70: 7730.516 | AW70: 10762.28247 | AX70: 16 | AY70: 4 | AZ70: 27.64 | BA70: 3 | BB70: 45.92 | BC70: 8 | BD70: 27.8 | BE70: 2 | BF70: 45.86 | BG70: 20 | BH70: 100 | BI70: 0 | BJ70: 0 | BK70: 0 | BL70: 0 | BM70: 0 | BN70: 0 | BO70: 0 | BP70: =LOOKUP(F70,'Gas and Other'!B:B,'Gas and Other'!J:J) -> 3.620371406 | BQ70: =AH70/BP70 -> 7.651148707 | BR70: 1 | BS70: =G70 -> Jul 2019 | BT70: =AND(E70>=$BT$1,E70<=$BT$2) -> FALSE | BU70: 65 | BV70: =IF(BT70,BU70,NA()) ->  | BW70: =IF(BT70,INDEX(AH70:BQ70,$BW$4),NA()) ->  | BX70: =IF(BT70,INDEX(AH70:BQ70,$BX$4),NA()) ->  | BY70: FALSE | CA70: =IF(BY70,INDEX(AH70:BQ70,$BW$4),NA()) ->  | CB70: =IF(BY70,INDEX(AH70:BQ70,$BX$4),NA()) ->  | CC70: =(AH70<0)*1 -> 0 | CD70: =(AH70<=0)*1 -> 0 | CO70: 65 | CP70: 2024-11-30 | CQ70: 118.3345833 | CR70: 11022.22222 | CS70: 1203343.556 | CT70: 109.1743145 | CU70: 0 | CV70: 0 | CW70: FALSE | CX70: 310652 | CY70: 13.92640046 | CZ70: 2024-11-30 | DA70: 8.497140642 | DB70: 100.5509306 | DC70: 113.9568889 | DD70: 2024-11-30 | DE70: 118.3345833 | DF70: 109.1743145
D71: 4481 | E71: =E70+1/24 -> 2019-07-06T15:59:59.992 | F71: =EOMONTH(E71,0) -> 2019-07-31 | G71: =TEXT(E71,"mmm")&" "&YEAR(E71) -> Jul 2019 | H71: =YEAR(E71) -> 2019 | I71: 17 - 18 | J71: =HOUR(E71) -> 16 | K71: 29.13 | L71: 28.99 | M71: 28.99 | N71: 28.99 | O71: 28.99 | P71: 32.98 | Q71: 28.99 | R71: 28.99 | S71: 28.99 | T71: 28.99 | U71: 28.99 | V71: 28.99 | W71: 32.98 | X71: 28.99 | Y71: 28.99 | Z71: 32.98 | AA71: 32.98 | AB71: 29.01 | AC71: 29.06 | AD71: 28.99 | AE71: 29.06 | AF71: 29.95 | AH71: =INDEX(X71:AF71,$AH$2) -> 29.95 | AI71: =AH71<0 -> FALSE | AJ71: FALSE | AK71: 0 | AL71: FALSE | AM71: 2019 | AN71: =AVERAGEIF(H:H,AM71,AH:AH) -> 38.66343153 | AO71: 25.4575 | AP71: 38.56343153 | AQ71: 38.56343153 | AR71: =LOOKUP(E71,'Hourly Data Facility'!A:A,'Hourly Data Facility'!F:F) ->  | AS71: =LOOKUP(E71,'Hourly Data PVGIS'!B:B,'Hourly Data PVGIS'!G:G) -> 4.83 | AT71: =AS71*AH71 -> 144.6585 | AU71: =LOOKUP(E71,'Hourly Data PVGIS'!B:B,'Hourly Data PVGIS'!D:D) -> 119.96 | AV71: =AU71*AH71 -> 3592.802 | AW71: =AQ71*AU71 -> 4626.069246 | AX71: =IF(J71,AX70+1,1) -> 17 | AY71: 4 | AZ71: 27.64 | BA71: 3 | BB71: 45.92 | BC71: 8 | BD71: 27.8 | BE71: 2 | BF71: 45.86 | BG71: 20 | BH71: =$BH$2 -> 100 | BI71: =(BA71=AX71)*AZ71 -> 0 | BJ71: =(AX71=BC71)*AH71 -> 0 | BK71: 0 | BL71: =MIN(BH71*(BI71<>0),BH71-BK71) -> 0 | BM71: 0 | BN71: 0 | BO71: =BM71*BJ71-BL71*BI71 -> 0 | BP71: =LOOKUP(F71,'Gas and Other'!B:B,'Gas and Other'!J:J) -> 3.620371406 | BQ71: 8.272631906 | BR71: 1 | BS71: Jul 2019 | BT71: FALSE | BU71: 66 | BW71: =IF(BT71,INDEX(AH71:BQ71,$BW$4),NA()) ->  | BX71: =IF(BT71,INDEX(AH71:BQ71,$BX$4),NA()) ->  | BY71: =AND(E71>=$BY$1,E71<=$BY$2) -> FALSE | BZ71: =IF(BY71,BU71,NA()) ->  | CA71: =IF(BY71,INDEX(AH71:BQ71,$BW$4),NA()) ->  | CB71: =IF(BY71,INDEX(AH71:BQ71,$BX$4),NA()) ->  | CC71: 0 | CD71: 0 | CO71: 66 | CP71: 2024-12-31 | CQ71: =AVERAGEIF(F:F,CP71,AH:AH) -> 70.3727121 | CR71: =SUMIF(F:F,CP71,AU:AU) -> 2622.222222 | CS71: =SUMIF(F:F,CP71,AV:AV) -> 245118.2222 | CT71: =CS71/CR71 -> 93.47728814 | CU71: =AVERAGEIF($F:$F,$CP71,AS:AS) -> 0 | CV71: 0 | CW71: =IF(CU71,CV71/CU71) -> FALSE | CX71: =SUMIF($F:$F,$CP71,BO:BO) -> 138558 | CY71: 13.856621 | CZ71: =CP71 -> 2024-12-31 | DA71: 5.078634402
D72: 4482 | E72: 2019-07-06T16:59:59.992 | F72: 2019-07-31 | G72: Jul 2019 | H72: 2019 | I72: 18 - 19 | J72: 17 | K72: 30 | L72: 29.75 | M72: 29.75 | N72: 29.75 | O72: 29.75 | P72: 33.8 | Q72: 29.75 | R72: 29.75 | S72: 29.75 | T72: 29.75 | U72: 29.75 | V72: 29.75 | W72: 33.8 | X72: 29.75 | Y72: 29.75 | Z72: 33.8 | AA72: 33.8 | AB72: 30.53 | AC72: 30.54 | AD72: 30.53 | AE72: 30.54 | AF72: 30.73 | AH72: =INDEX(X72:AF72,$AH$2) -> 30.73 | AI72: FALSE | AJ72: =AND(AI72,AI71) -> FALSE | AK72: =IF(AI72,AI72*1+AK71,0) -> 0 | AL72: =AK72>=6 -> FALSE | AM72: =H72 -> 2019 | AN72: 38.66343153 | AO72: =AH72*$AO$2 -> 26.1205 | AP72: =IF(AN72>$AP$1,AN72*$AP$2,AN72<=$AP$1*$AP$3)*AN72-$AP$4 -> 38.56343153 | AQ72: =AP72 -> 38.56343153 | AR72: =LOOKUP(E72,'Hourly Data Facility'!A:A,'Hourly Data Facility'!F:F) ->  | AS72: =LOOKUP(E72,'Hourly Data PVGIS'!B:B,'Hourly Data PVGIS'!G:G) -> 4.41 | AT72: 135.5193 | AU72: =LOOKUP(E72,'Hourly Data PVGIS'!B:B,'Hourly Data PVGIS'!D:D) -> 78.5 | AV72: 2412.305 | AW72: 3027.229375 | AX72: 18 | AY72: =IF(AX72=1,AY71+1,AY71) -> 4 | AZ72: 27.64 | BA72: 3 | BB72: 45.92 | BC72: 8 | BD72: 27.8 | BE72: 2 | BF72: 45.86 | BG72: 20 | BH72: 100 | BI72: 0 | BJ72: 0 | BK72: =BN71 -> 0 | BL72: 0 | BM72: =MIN((BJ72<>0)*BH72,BK72) -> 0 | BN72: =BK72+BL72-BM72 -> 0 | BO72: 0 | BP72: =LOOKUP(F72,'Gas and Other'!B:B,'Gas and Other'!J:J) -> 3.620371406 | BQ72: 8.488079414 | BR72: 1 | BS72: Jul 2019 | BT72: FALSE | BU72: 67 | BW72: =IF(BT72,INDEX(AH72:BQ72,$BW$4),NA()) ->  | BX72: =IF(BT72,INDEX(AH72:BQ72,$BX$4),NA()) ->  | BY72: FALSE | CA72: =IF(BY72,INDEX(AH72:BQ72,$BW$4),NA()) ->  | CB72: =IF(BY72,INDEX(AH72:BQ72,$BX$4),NA()) ->  | CC72: 0 | CD72: 0
D73: 4483 | E73: 2019-07-06T17:59:59.992 | F73: 2019-07-31 | G73: Jul 2019 | H73: 2019 | I73: 19 - 20 | J73: 18 | K73: 30.41 | L73: 30.03 | M73: 30.03 | N73: 30.03 | O73: 30.03 | P73: 34.53 | Q73: 30.03 | R73: 30.03 | S73: 30.03 | T73: 30.03 | U73: 30.03 | V73: 30.03 | W73: 34.53 | X73: 30.03 | Y73: 30.03 | Z73: 34.53 | AA73: 34.53 | AB73: 30.77 | AC73: 31.84 | AD73: 30.77 | AE73: 31.43 | AF73: 34.9 | AH73: =INDEX(X73:AF73,$AH$2) -> 34.9 | AI73: FALSE | AJ73: FALSE | AK73: 0 | AL73: FALSE | AM73: 2019 | AN73: 38.66343153 | AO73: 29.665 | AP73: 38.56343153 | AQ73: 38.56343153 | AR73: =LOOKUP(E73,'Hourly Data Facility'!A:A,'Hourly Data Facility'!F:F) ->  | AS73: =LOOKUP(E73,'Hourly Data PVGIS'!B:B,'Hourly Data PVGIS'!G:G) -> 4.21 | AT73: 146.929 | AU73: =LOOKUP(E73,'Hourly Data PVGIS'!B:B,'Hourly Data PVGIS'!D:D) -> 44.1 | AV73: 1539.09 | AW73: 1700.64733 | AX73: 19 | AY73: 4 | AZ73: 27.64 | BA73: 3 | BB73: 45.92 | BC73: 8 | BD73: 27.8 | BE73: 2 | BF73: 45.86 | BG73: 20 | BH73: 100 | BI73: 0 | BJ73: 0 | BK73: 0 | BL73: 0 | BM73: 0 | BN73: 0 | BO73: 0 | BP73: =LOOKUP(F73,'Gas and Other'!B:B,'Gas and Other'!J:J) -> 3.620371406 | BQ73: 9.639894942 | BR73: 1 | BS73: Jul 2019 | BT73: FALSE | BU73: 68 | BW73: =IF(BT73,INDEX(AH73:BQ73,$BW$4),NA()) ->  | BX73: =IF(BT73,INDEX(AH73:BQ73,$BX$4),NA()) ->  | BY73: FALSE | CA73: =IF(BY73,INDEX(AH73:BQ73,$BW$4),NA()) ->  | CB73: =IF(BY73,INDEX(AH73:BQ73,$BX$4),NA()) ->  | CC73: 0 | CD73: 0 | CQ73: 2024 Total Revenue | CR73: =SUM(CR60:CR71) -> 794400 | CS73: =SUM(CS60:CS71) -> 30285426.67 | CX73: =SUM(CX60:CX71) -> 3056972 | CY73: =CR73/CS73 -> 0.02623043779
D74: 4484 | E74: 2019-07-06T18:59:59.992 | F74: 2019-07-31 | G74: Jul 2019 | H74: 2019 | I74: 20 - 21 | J74: 19 | K74: 29.2 | L74: 29.02 | M74: 29.02 | N74: 29.02 | O74: 29.02 | P74: 32.72 | Q74: 29.02 | R74: 29.02 | S74: 29.02 | T74: 29.02 | U74: 29.02 | V74: 29.02 | W74: 32.72 | X74: 29.02 | Y74: 29.02 | Z74: 32.72 | AA74: 32.72 | AB74: 29.99 | AC74: 30.58 | AD74: 29.73 | AE74: 30.57 | AF74: 39.9 | AH74: =INDEX(X74:AF74,$AH$2) -> 39.9 | AI74: FALSE | AJ74: FALSE | AK74: 0 | AL74: FALSE | AM74: 2019 | AN74: 38.66343153 | AO74: 33.915 | AP74: 38.56343153 | AQ74: 38.56343153 | AR74: =LOOKUP(E74,'Hourly Data Facility'!A:A,'Hourly Data Facility'!F:F) ->  | AS74: =LOOKUP(E74,'Hourly Data PVGIS'!B:B,'Hourly Data PVGIS'!G:G) -> 3.79 | AT74: 151.221 | AU74: =LOOKUP(E74,'Hourly Data PVGIS'!B:B,'Hourly Data PVGIS'!D:D) -> 51.16 | AV74: 2041.284 | AW74: 1972.905157 | AX74: 20 | AY74: 4 | AZ74: 27.64 | BA74: 3 | BB74: 45.92 | BC74: 8 | BD74: 27.8 | BE74: 2 | BF74: 45.86 | BG74: 20 | BH74: 100 | BI74: 0 | BJ74: 0 | BK74: 0 | BL74: 0 | BM74: 0 | BN74: 0 | BO74: 0 | BP74: =LOOKUP(F74,'Gas and Other'!B:B,'Gas and Other'!J:J) -> 3.620371406 | BQ74: 11.02096872 | BR74: 1 | BS74: Jul 2019 | BT74: FALSE | BU74: 69 | BW74: =IF(BT74,INDEX(AH74:BQ74,$BW$4),NA()) ->  | BX74: =IF(BT74,INDEX(AH74:BQ74,$BX$4),NA()) ->  | BY74: FALSE | CA74: =IF(BY74,INDEX(AH74:BQ74,$BW$4),NA()) ->  | CB74: =IF(BY74,INDEX(AH74:BQ74,$BX$4),NA()) ->  | CC74: 0 | CD74: 0 | CQ74: Capacity kWp | CR74: 55 | CX74: 100000
D75: 4485 | E75: 2019-07-06T19:59:59.992 | F75: 2019-07-31 | G75: Jul 2019 | H75: 2019 | I75: 21 - 22 | J75: 20 | K75: 28.98 | L75: 28.79 | M75: 28.79 | N75: 28.79 | O75: 28.79 | P75: 33.33 | Q75: 28.79 | R75: 28.79 | S75: 28.79 | T75: 28.79 | U75: 28.79 | V75: 28.79 | W75: 33.33 | X75: 28.79 | Y75: 28.79 | Z75: 33.33 | AA75: 33.33 | AB75: 29.56 | AC75: 30.13 | AD75: 29.34 | AE75: 30.06 | AF75: 37.4 | AH75: =INDEX(X75:AF75,$AH$2) -> 37.4 | AI75: FALSE | AJ75: FALSE | AK75: 0 | AL75: FALSE | AM75: 2019 | AN75: 38.66343153 | AO75: 31.79 | AP75: 38.56343153 | AQ75: 38.56343153 | AR75: =LOOKUP(E75,'Hourly Data Facility'!A:A,'Hourly Data Facility'!F:F) ->  | AS75: =LOOKUP(E75,'Hourly Data PVGIS'!B:B,'Hourly Data PVGIS'!G:G) -> 3.59 | AT75: 134.266 | AU75: =LOOKUP(E75,'Hourly Data PVGIS'!B:B,'Hourly Data PVGIS'!D:D) -> 29.79 | AV75: 1114.146 | AW75: 1148.804625 | AX75: 21 | AY75: 4 | AZ75: 27.64 | BA75: 3 | BB75: 45.92 | BC75: 8 | BD75: 27.8 | BE75: 2 | BF75: 45.86 | BG75: 20 | BH75: 100 | BI75: 0 | BJ75: 0 | BK75: 0 | BL75: 0 | BM75: 0 | BN75: 0 | BO75: 0 | BP75: =LOOKUP(F75,'Gas and Other'!B:B,'Gas and Other'!J:J) -> 3.620371406 | BQ75: 10.33043183 | BR75: 1 | BS75: Jul 2019 | BT75: FALSE | BU75: 70 | BW75: =IF(BT75,INDEX(AH75:BQ75,$BW$4),NA()) ->  | BX75: =IF(BT75,INDEX(AH75:BQ75,$BX$4),NA()) ->  | BY75: FALSE | CA75: =IF(BY75,INDEX(AH75:BQ75,$BW$4),NA()) ->  | CB75: =IF(BY75,INDEX(AH75:BQ75,$BX$4),NA()) ->  | CC75: 0 | CD75: 0 | CQ75: Revenue/kWp | CR75: =+CR73/CR74 -> 14443.63636 | CX75: =CX73/CX74 -> 30.56972
D76: 4486 | E76: 2019-07-06T20:59:59.992 | F76: 2019-07-31 | G76: Jul 2019 | H76: 2019 | I76: 22 - 23 | J76: 21 | K76: 29.44 | L76: 29.19 | M76: 29.19 | N76: 29.19 | O76: 29.19 | P76: 32.67 | Q76: 29.19 | R76: 29.19 | S76: 29.19 | T76: 29.19 | U76: 29.19 | V76: 29.19 | W76: 32.67 | X76: 29.19 | Y76: 29.19 | Z76: 32.67 | AA76: 32.67 | AB76: 32.12 | AC76: 36.69 | AD76: 32.12 | AE76: 35.12 | AF76: 49.51 | AH76: =INDEX(X76:AF76,$AH$2) -> 49.51 | AI76: FALSE | AJ76: FALSE | AK76: 0 | AL76: FALSE | AM76: 2019 | AN76: 38.66343153 | AO76: 42.0835 | AP76: 38.56343153 | AQ76: 38.56343153 | AR76: =LOOKUP(E76,'Hourly Data Facility'!A:A,'Hourly Data Facility'!F:F) ->  | AS76: =LOOKUP(E76,'Hourly Data PVGIS'!B:B,'Hourly Data PVGIS'!G:G) -> 2.76 | AT76: 136.6476 | AU76: =LOOKUP(E76,'Hourly Data PVGIS'!B:B,'Hourly Data PVGIS'!D:D) -> 4.03 | AV76: 199.5253 | AW76: 155.4106291 | AX76: 22 | AY76: 4 | AZ76: 27.64 | BA76: 3 | BB76: 45.92 | BC76: 8 | BD76: 27.8 | BE76: 2 | BF76: 45.86 | BG76: 20 | BH76: 100 | BI76: 0 | BJ76: 0 | BK76: 0 | BL76: 0 | BM76: 0 | BN76: 0 | BO76: 0 | BP76: =LOOKUP(F76,'Gas and Other'!B:B,'Gas and Other'!J:J) -> 3.620371406 | BQ76: 13.67539251 | BR76: 1 | BS76: Jul 2019 | BT76: FALSE | BU76: 71 | BW76: =IF(BT76,INDEX(AH76:BQ76,$BW$4),NA()) ->  | BX76: =IF(BT76,INDEX(AH76:BQ76,$BX$4),NA()) ->  | BY76: FALSE | CA76: =IF(BY76,INDEX(AH76:BQ76,$BW$4),NA()) ->  | CB76: =IF(BY76,INDEX(AH76:BQ76,$BX$4),NA()) ->  | CC76: 0 | CD76: 0 | CQ76: Capex / kwh | CR76: 1200 | CX76: 100
D77: 4487 | E77: 2019-07-06T21:59:59.992 | F77: 2019-07-31 | G77: Jul 2019 | H77: 2019 | I77: 23 - 00 | J77: 22 | K77: 28.39 | L77: 28.39 | M77: 28.39 | N77: 28.39 | O77: 28.39 | P77: 28.39 | Q77: 28.39 | R77: 28.39 | S77: 28.39 | T77: 28.39 | U77: 28.39 | V77: 28.39 | W77: 28.39 | X77: 28.39 | Y77: 28.39 | Z77: 28.39 | AA77: 28.39 | AB77: 29.09 | AC77: 31.8 | AD77: 29.09 | AE77: 30.79 | AF77: 40 | AH77: =INDEX(X77:AF77,$AH$2) -> 40 | AI77: FALSE | AJ77: FALSE | AK77: 0 | AL77: FALSE | AM77: 2019 | AN77: 38.66343153 | AO77: 34 | AP77: 38.56343153 | AQ77: 38.56343153 | AR77: =LOOKUP(E77,'Hourly Data Facility'!A:A,'Hourly Data Facility'!F:F) ->  | AS77: =LOOKUP(E77,'Hourly Data PVGIS'!B:B,'Hourly Data PVGIS'!G:G) -> 2.9 | AT77: 116 | AU77: =LOOKUP(E77,'Hourly Data PVGIS'!B:B,'Hourly Data PVGIS'!D:D) -> 0 | AV77: 0 | AW77: 0 | AX77: 23 | AY77: 4 | AZ77: 27.64 | BA77: 3 | BB77: 45.92 | BC77: 8 | BD77: 27.8 | BE77: 2 | BF77: 45.86 | BG77: 20 | BH77: 100 | BI77: 0 | BJ77: 0 | BK77: 0 | BL77: 0 | BM77: 0 | BN77: 0 | BO77: 0 | BP77: =LOOKUP(F77,'Gas and Other'!B:B,'Gas and Other'!J:J) -> 3.620371406 | BQ77: 11.04859019 | BR77: 1 | BS77: Jul 2019 | BT77: FALSE | BU77: 72 | BW77: =IF(BT77,INDEX(AH77:BQ77,$BW$4),NA()) ->  | BX77: =IF(BT77,INDEX(AH77:BQ77,$BX$4),NA()) ->  | BY77: FALSE | CA77: =IF(BY77,INDEX(AH77:BQ77,$BW$4),NA()) ->  | CB77: =IF(BY77,INDEX(AH77:BQ77,$BX$4),NA()) ->  | CC77: 0 | CD77: 0 | CQ77: Cap Exp | CR77: =+CR76*CR74 -> 66000 | CX77: =CX76*CX74 -> 10000000
D78: 4488 | E78: 2019-07-06T22:59:59.992 | F78: 2019-07-31 | G78: Jul 2019 | H78: 2019 | I78: 00 - 01 | J78: 23 | K78: 28.21 | L78: 28.21 | M78: 28.21 | N78: 28.21 | O78: 28.21 | P78: 28.21 | Q78: 28.21 | R78: 28.21 | S78: 28.21 | T78: 28.21 | U78: 28.21 | V78: 28.21 | W78: 28.21 | X78: 28.21 | Y78: 28.21 | Z78: 28.21 | AA78: 28.21 | AB78: 29.04 | AC78: 33.09 | AD78: 28.21 | AE78: 31.24 | AF78: 47.34 | AH78: =INDEX(X78:AF78,$AH$2) -> 47.34 | AI78: FALSE | AJ78: FALSE | AK78: 0 | AL78: FALSE | AM78: 2019 | AN78: 38.66343153 | AO78: 40.239 | AP78: 38.56343153 | AQ78: 38.56343153 | AR78: =LOOKUP(E78,'Hourly Data Facility'!A:A,'Hourly Data Facility'!F:F) ->  | AS78: =LOOKUP(E78,'Hourly Data PVGIS'!B:B,'Hourly Data PVGIS'!G:G) -> 3.24 | AT78: 153.3816 | AU78: =LOOKUP(E78,'Hourly Data PVGIS'!B:B,'Hourly Data PVGIS'!D:D) -> 0 | AV78: 0 | AW78: 0 | AX78: 24 | AY78: 4 | AZ78: 27.64 | BA78: 3 | BB78: 45.92 | BC78: 8 | BD78: 27.8 | BE78: 2 | BF78: 45.86 | BG78: 20 | BH78: 100 | BI78: 0 | BJ78: 0 | BK78: 0 | BL78: 0 | BM78: 0 | BN78: 0 | BO78: 0 | BP78: =LOOKUP(F78,'Gas and Other'!B:B,'Gas and Other'!J:J) -> 3.620371406 | BQ78: 13.07600649 | BR78: 1 | BS78: Jul 2019 | BT78: FALSE | BU78: 73 | BW78: =IF(BT78,INDEX(AH78:BQ78,$BW$4),NA()) ->  | BX78: =IF(BT78,INDEX(AH78:BQ78,$BX$4),NA()) ->  | BY78: FALSE | CA78: =IF(BY78,INDEX(AH78:BQ78,$BW$4),NA()) ->  | CB78: =IF(BY78,INDEX(AH78:BQ78,$BX$4),NA()) ->  | CC78: 0 | CD78: 0
D79: 4489 | E79: 2019-07-06T23:59:59.992 | F79: 2019-07-31 | G79: Jul 2019 | H79: 2019 | I79: 01 - 02 | J79: 0 | K79: 26.49 | L79: 25.98 | M79: 25.98 | N79: 25.98 | O79: 25.98 | P79: 25.98 | Q79: 27.1 | R79: 27.1 | S79: 27.1 | T79: 25.98 | U79: 25.98 | V79: 25.98 | W79: 25.98 | X79: 25.98 | Y79: 25.98 | Z79: 25.98 | AA79: 25.98 | AB79: 26 | AC79: 28.87 | AD79: 25.98 | AE79: 27.72 | AF79: 37.42 | AH79: =INDEX(X79:AF79,$AH$2) -> 37.42 | AI79: FALSE | AJ79: FALSE | AK79: 0 | AL79: FALSE | AM79: 2019 | AN79: 38.66343153 | AO79: 31.807 | AP79: 38.56343153 | AQ79: 38.56343153 | AR79: =LOOKUP(E79,'Hourly Data Facility'!A:A,'Hourly Data Facility'!F:F) ->  | AS79: =LOOKUP(E79,'Hourly Data PVGIS'!B:B,'Hourly Data PVGIS'!G:G) -> 3.17 | AT79: 118.6214 | AU79: =LOOKUP(E79,'Hourly Data PVGIS'!B:B,'Hourly Data PVGIS'!D:D) -> 0 | AV79: 0 | AW79: 0 | AX79: 1 | AY79: 5 | AZ79: 27.16 | BA79: 15 | BB79: 49.51 | BC79: 22 | BD79: 27.7 | BE79: 14 | BF79: 47.34 | BG79: 24 | BH79: 100 | BI79: 0 | BJ79: 0 | BK79: 0 | BL79: 0 | BM79: 0 | BN79: 0 | BO79: 0 | BP79: =LOOKUP(F79,'Gas and Other'!B:B,'Gas and Other'!J:J) -> 3.620371406 | BQ79: 10.33595612 | BR79: 1 | BS79: Jul 2019 | BT79: FALSE | BU79: 74 | BW79: =IF(BT79,INDEX(AH79:BQ79,$BW$4),NA()) ->  | BX79: =IF(BT79,INDEX(AH79:BQ79,$BX$4),NA()) ->  | BY79: FALSE | CA79: =IF(BY79,INDEX(AH79:BQ79,$BW$4),NA()) ->  | CB79: =IF(BY79,INDEX(AH79:BQ79,$BX$4),NA()) ->  | CC79: 0 | CD79: 0 | CQ79: Payback | CX79: =CX77/CX73 -> 3.271210858
D80: 4490 | E80: 2019-07-07T00:59:59.992 | F80: 2019-07-31 | G80: Jul 2019 | H80: 2019 | I80: 02 - 03 | J80: 1 | K80: 25.88 | L80: 25.03 | M80: 25.03 | N80: 25.03 | O80: 25.03 | P80: 25.03 | Q80: 27.13 | R80: 27.13 | S80: 27.13 | T80: 25.03 | U80: 25.03 | V80: 25.03 | W80: 25.03 | X80: 25.03 | Y80: 25.03 | Z80: 25.03 | AA80: 25.03 | AB80: 25.22 | AC80: 26.06 | AD80: 25.03 | AE80: 25.67 | AF80: 29 | AH80: =INDEX(X80:AF80,$AH$2) -> 29 | AI80: FALSE | AJ80: FALSE | AK80: 0 | AL80: FALSE | AM80: 2019 | AN80: 38.66343153 | AO80: 24.65 | AP80: 38.56343153 | AQ80: 38.56343153 | AR80: =LOOKUP(E80,'Hourly Data Facility'!A:A,'Hourly Data Facility'!F:F) ->  | AS80: =LOOKUP(E80,'Hourly Data PVGIS'!B:B,'Hourly Data PVGIS'!G:G) -> 2.9 | AT80: 84.1 | AU80: =LOOKUP(E80,'Hourly Data PVGIS'!B:B,'Hourly Data PVGIS'!D:D) -> 0 | AV80: 0 | AW80: 0 | AX80: 2 | AY80: 5 | AZ80: 27.16 | BA80: 15 | BB80: 49.51 | BC80: 22 | BD80: 27.7 | BE80: 14 | BF80: 47.34 | BG80: 24 | BH80: 100 | BI80: 0 | BJ80: 0 | BK80: 0 | BL80: 0 | BM80: 0 | BN80: 0 | BO80: 0 | BP80: =LOOKUP(F80,'Gas and Other'!B:B,'Gas and Other'!J:J) -> 3.620371406 | BQ80: 8.010227889 | BR80: 1 | BS80: Jul 2019 | BT80: FALSE | BU80: 75 | BW80: =IF(BT80,INDEX(AH80:BQ80,$BW$4),NA()) ->  | BX80: =IF(BT80,INDEX(AH80:BQ80,$BX$4),NA()) ->  | BY80: FALSE | CA80: =IF(BY80,INDEX(AH80:BQ80,$BW$4),NA()) ->  | CB80: =IF(BY80,INDEX(AH80:BQ80,$BX$4),NA()) ->  | CC80: 0 | CD80: 0
D81: 4491 | E81: 2019-07-07T01:59:59.992 | F81: 2019-07-31 | G81: Jul 2019 | H81: 2019 | I81: 03 - 04 | J81: 2 | K81: 24.27 | L81: 24.27 | M81: 24.27 | N81: 24.27 | O81: 24.27 | P81: 24.27 | Q81: 24.27 | R81: 24.27 | S81: 24.27 | T81: 24.27 | U81: 24.27 | V81: 24.27 | W81: 24.27 | X81: 24.27 | Y81: 24.27 | Z81: 24.27 | AA81: 24.27 | AB81: 24.27 | AC81: 24.27 | AD81: 24.27 | AE81: 24.27 | AF81: 24.27 | AH81: =INDEX(X81:AF81,$AH$2) -> 24.27 | AI81: FALSE | AJ81: FALSE | AK81: 0 | AL81: FALSE | AM81: 2019 | AN81: 38.66343153 | AO81: 20.6295 | AP81: 38.56343153 | AQ81: 38.56343153 | AR81: =LOOKUP(E81,'Hourly Data Facility'!A:A,'Hourly Data Facility'!F:F) ->  | AS81: =LOOKUP(E81,'Hourly Data PVGIS'!B:B,'Hourly Data PVGIS'!G:G) -> 2.76 | AT81: 66.9852 | AU81: =LOOKUP(E81,'Hourly Data PVGIS'!B:B,'Hourly Data PVGIS'!D:D) -> 0 | AV81: 0 | AW81: 0 | AX81: 3 | AY81: 5 | AZ81: 27.16 | BA81: 15 | BB81: 49.51 | BC81: 22 | BD81: 27.7 | BE81: 14 | BF81: 47.34 | BG81: 24 | BH81: 100 | BI81: 0 | BJ81: 0 | BK81: 0 | BL81: 0 | BM81: 0 | BN81: 0 | BO81: 0 | BP81: =LOOKUP(F81,'Gas and Other'!B:B,'Gas and Other'!J:J) -> 3.620371406 | BQ81: 6.703732098 | BR81: 1 | BS81: Jul 2019 | BT81: FALSE | BU81: 76 | BW81: =IF(BT81,INDEX(AH81:BQ81,$BW$4),NA()) ->  | BX81: =IF(BT81,INDEX(AH81:BQ81,$BX$4),NA()) ->  | BY81: FALSE | CA81: =IF(BY81,INDEX(AH81:BQ81,$BW$4),NA()) ->  | CB81: =IF(BY81,INDEX(AH81:BQ81,$BX$4),NA()) ->  | CC81: 0 | CD81: 0 | CQ81: 2019 Total Revenue | CX81: =SUM(CX6:CX17) -> 706461
D82: 4492 | E82: 2019-07-07T02:59:59.992 | F82: 2019-07-31 | G82: Jul 2019 | H82: 2019 | I82: 04 - 05 | J82: 3 | K82: 23.36 | L82: 23.36 | M82: 23.36 | N82: 23.36 | O82: 23.36 | P82: 23.36 | Q82: 23.36 | R82: 23.36 | S82: 23.36 | T82: 23.36 | U82: 23.36 | V82: 23.36 | W82: 23.36 | X82: 23.36 | Y82: 23.36 | Z82: 23.36 | AA82: 23.36 | AB82: 23.4 | AC82: 23.56 | AD82: 23.36 | AE82: 23.48 | AF82: 24.1 | AH82: =INDEX(X82:AF82,$AH$2) -> 24.1 | AI82: FALSE | AJ82: FALSE | AK82: 0 | AL82: FALSE | AM82: 2019 | AN82: 38.66343153 | AO82: 20.485 | AP82: 38.56343153 | AQ82: 38.56343153 | AR82: =LOOKUP(E82,'Hourly Data Facility'!A:A,'Hourly Data Facility'!F:F) ->  | AS82: =LOOKUP(E82,'Hourly Data PVGIS'!B:B,'Hourly Data PVGIS'!G:G) -> 2.76 | AT82: 66.516 | AU82: =LOOKUP(E82,'Hourly Data PVGIS'!B:B,'Hourly Data PVGIS'!D:D) -> 0 | AV82: 0 | AW82: 0 | AX82: 4 | AY82: 5 | AZ82: 27.16 | BA82: 15 | BB82: 49.51 | BC82: 22 | BD82: 27.7 | BE82: 14 | BF82: 47.34 | BG82: 24 | BH82: 100 | BI82: 0 | BJ82: 0 | BK82: 0 | BL82: 0 | BM82: 0 | BN82: 0 | BO82: 0 | BP82: =LOOKUP(F82,'Gas and Other'!B:B,'Gas and Other'!J:J) -> 3.620371406 | BQ82: 6.65677559 | BR82: 1 | BS82: Jul 2019 | BT82: FALSE | BU82: 77 | BW82: =IF(BT82,INDEX(AH82:BQ82,$BW$4),NA()) ->  | BX82: =IF(BT82,INDEX(AH82:BQ82,$BX$4),NA()) ->  | BY82: FALSE | CA82: =IF(BY82,INDEX(AH82:BQ82,$BW$4),NA()) ->  | CB82: =IF(BY82,INDEX(AH82:BQ82,$BX$4),NA()) ->  | CC82: 0 | CD82: 0 | CQ82: Total Capital Expenditure | CX82: =CX76*CX74 -> 10000000
D83: 4493 | E83: 2019-07-07T03:59:59.992 | F83: 2019-07-31 | G83: Jul 2019 | H83: 2019 | I83: 05 - 06 | J83: 4 | K83: 24.19 | L83: 24.11 | M83: 24.11 | N83: 24.11 | O83: 24.11 | P83: 24.11 | Q83: 24.4 | R83: 24.4 | S83: 24.4 | T83: 24.11 | U83: 24.11 | V83: 24.11 | W83: 24.11 | X83: 23.6 | Y83: 23.6 | Z83: 24.11 | AA83: 24.11 | AB83: 23.69 | AC83: 23.79 | AD83: 23.6 | AE83: 23.6 | AF83: 25.21 | AH83: =INDEX(X83:AF83,$AH$2) -> 25.21 | AI83: FALSE | AJ83: FALSE | AK83: 0 | AL83: FALSE | AM83: 2019 | AN83: 38.66343153 | AO83: 21.4285 | AP83: 38.56343153 | AQ83: 38.56343153 | AR83: =LOOKUP(E83,'Hourly Data Facility'!A:A,'Hourly Data Facility'!F:F) ->  | AS83: =LOOKUP(E83,'Hourly Data PVGIS'!B:B,'Hourly Data PVGIS'!G:G) -> 2.97 | AT83: 74.8737 | AU83: =LOOKUP(E83,'Hourly Data PVGIS'!B:B,'Hourly Data PVGIS'!D:D) -> 0 | AV83: 0 | AW83: 0 | AX83: 5 | AY83: 5 | AZ83: 27.16 | BA83: 15 | BB83: 49.51 | BC83: 22 | BD83: 27.7 | BE83: 14 | BF83: 47.34 | BG83: 24 | BH83: 100 | BI83: 0 | BJ83: 0 | BK83: 0 | BL83: 0 | BM83: 0 | BN83: 0 | BO83: 0 | BP83: =LOOKUP(F83,'Gas and Other'!B:B,'Gas and Other'!J:J) -> 3.620371406 | BQ83: 6.963373968 | BR83: 1 | BS83: Jul 2019 | BT83: FALSE | BU83: 78 | BW83: =IF(BT83,INDEX(AH83:BQ83,$BW$4),NA()) ->  | BX83: =IF(BT83,INDEX(AH83:BQ83,$BX$4),NA()) ->  | BY83: FALSE | CA83: =IF(BY83,INDEX(AH83:BQ83,$BW$4),NA()) ->  | CB83: =IF(BY83,INDEX(AH83:BQ83,$BX$4),NA()) ->  | CC83: 0 | CD83: 0 | CQ83: Payback | CX83: =CX82/CX81 -> 14.15506305
D84: 4494 | E84: 2019-07-07T04:59:59.992 | F84: 2019-07-31 | G84: Jul 2019 | H84: 2019 | I84: 06 - 07 | J84: 5 | K84: 25.13 | L84: 25.09 | M84: 25.09 | N84: 25.09 | O84: 25.09 | P84: 25.09 | Q84: 25.62 | R84: 25.62 | S84: 25.62 | T84: 25.09 | U84: 25.09 | V84: 25.09 | W84: 25.09 | X84: 21.82 | Y84: 21.82 | Z84: 25.09 | AA84: 25.09 | AB84: 22.03 | AC84: 22.18 | AD84: 21.82 | AE84: 21.82 | AF84: 26.46 | AH84: =INDEX(X84:AF84,$AH$2) -> 26.46 | AI84: FALSE | AJ84: FALSE | AK84: 0 | AL84: FALSE | AM84: 2019 | AN84: 38.66343153 | AO84: 22.491 | AP84: 38.56343153 | AQ84: 38.56343153 | AR84: =LOOKUP(E84,'Hourly Data Facility'!A:A,'Hourly Data Facility'!F:F) ->  | AS84: =LOOKUP(E84,'Hourly Data PVGIS'!B:B,'Hourly Data PVGIS'!G:G) -> 3.31 | AT84: 87.5826 | AU84: =LOOKUP(E84,'Hourly Data PVGIS'!B:B,'Hourly Data PVGIS'!D:D) -> 0 | AV84: 0 | AW84: 0 | AX84: 6 | AY84: 5 | AZ84: 27.16 | BA84: 15 | BB84: 49.51 | BC84: 22 | BD84: 27.7 | BE84: 14 | BF84: 47.34 | BG84: 24 | BH84: 100 | BI84: 0 | BJ84: 0 | BK84: 0 | BL84: 0 | BM84: 0 | BN84: 0 | BO84: 0 | BP84: =LOOKUP(F84,'Gas and Other'!B:B,'Gas and Other'!J:J) -> 3.620371406 | BQ84: 7.308642411 | BR84: 1 | BS84: Jul 2019 | BT84: FALSE | BU84: 79 | BW84: =IF(BT84,INDEX(AH84:BQ84,$BW$4),NA()) ->  | BX84: =IF(BT84,INDEX(AH84:BQ84,$BX$4),NA()) ->  | BY84: FALSE | CA84: =IF(BY84,INDEX(AH84:BQ84,$BW$4),NA()) ->  | CB84: =IF(BY84,INDEX(AH84:BQ84,$BX$4),NA()) ->  | CC84: 0 | CD84: 0
D85: 4495 | E85: 2019-07-07T05:59:59.992 | F85: 2019-07-31 | G85: Jul 2019 | H85: 2019 | I85: 07 - 08 | J85: 6 | K85: 25.66 | L85: 25.7 | M85: 25.7 | N85: 25.7 | O85: 25.7 | P85: 25.7 | Q85: 25.85 | R85: 25.85 | S85: 25.85 | T85: 25.7 | U85: 25.7 | V85: 25.7 | W85: 25.7 | X85: 20.78 | Y85: 25.7 | Z85: 25.7 | AA85: 25.7 | AB85: 20.99 | AC85: 21.02 | AD85: 20.78 | AE85: 20.78 | AF85: 26.7 | AH85: =INDEX(X85:AF85,$AH$2) -> 26.7 | AI85: FALSE | AJ85: FALSE | AK85: 0 | AL85: FALSE | AM85: 2019 | AN85: 38.66343153 | AO85: 22.695 | AP85: 38.56343153 | AQ85: 38.56343153 | AR85: =LOOKUP(E85,'Hourly Data Facility'!A:A,'Hourly Data Facility'!F:F) ->  | AS85: =LOOKUP(E85,'Hourly Data PVGIS'!B:B,'Hourly Data PVGIS'!G:G) -> 3.59 | AT85: 95.853 | AU85: =LOOKUP(E85,'Hourly Data PVGIS'!B:B,'Hourly Data PVGIS'!D:D) -> 16.91 | AV85: 451.497 | AW85: 652.1076272 | AX85: 7 | AY85: 5 | AZ85: 27.16 | BA85: 15 | BB85: 49.51 | BC85: 22 | BD85: 27.7 | BE85: 14 | BF85: 47.34 | BG85: 24 | BH85: 100 | BI85: 0 | BJ85: 0 | BK85: 0 | BL85: 0 | BM85: 0 | BN85: 0 | BO85: 0 | BP85: =LOOKUP(F85,'Gas and Other'!B:B,'Gas and Other'!J:J) -> 3.620371406 | BQ85: 7.374933953 | BR85: 1 | BS85: Jul 2019 | BT85: FALSE | BU85: 80 | BW85: =IF(BT85,INDEX(AH85:BQ85,$BW$4),NA()) ->  | BX85: =IF(BT85,INDEX(AH85:BQ85,$BX$4),NA()) ->  | BY85: FALSE | CA85: =IF(BY85,INDEX(AH85:BQ85,$BW$4),NA()) ->  | CB85: =IF(BY85,INDEX(AH85:BQ85,$BX$4),NA()) ->  | CC85: 0 | CD85: 0
D86: 4496 | E86: 2019-07-07T06:59:59.992 | F86: 2019-07-31 | G86: Jul 2019 | H86: 2019 | I86: 08 - 09 | J86: 7 | K86: 26.85 | L86: 26.9 | M86: 26.9 | N86: 26.9 | O86: 26.9 | P86: 26.9 | Q86: 26.9 | R86: 26.9 | S86: 26.9 | T86: 26.9 | U86: 26.9 | V86: 26.9 | W86: 26.9 | X86: 24.11 | Y86: 26.9 | Z86: 26.9 | AA86: 26.9 | AB86: 24.19 | AC86: 24.11 | AD86: 24.11 | AE86: 24.11 | AF86: 27.78 | AH86: =INDEX(X86:AF86,$AH$2) -> 27.78 | AI86: FALSE | AJ86: FALSE | AK86: 0 | AL86: FALSE | AM86: 2019 | AN86: 38.66343153 | AO86: 23.613 | AP86: 38.56343153 | AQ86: 38.56343153 | AR86: =LOOKUP(E86,'Hourly Data Facility'!A:A,'Hourly Data Facility'!F:F) ->  | AS86: =LOOKUP(E86,'Hourly Data PVGIS'!B:B,'Hourly Data PVGIS'!G:G) -> 3.79 | AT86: 105.2862 | AU86: =LOOKUP(E86,'Hourly Data PVGIS'!B:B,'Hourly Data PVGIS'!D:D) -> 61.99 | AV86: 1722.0822 | AW86: 2390.547121 | AX86: 8 | AY86: 5 | AZ86: 27.16 | BA86: 15 | BB86: 49.51 | BC86: 22 | BD86: 27.7 | BE86: 14 | BF86: 47.34 | BG86: 24 | BH86: 100 | BI86: 0 | BJ86: 0 | BK86: 0 | BL86: 0 | BM86: 0 | BN86: 0 | BO86: 0 | BP86: =LOOKUP(F86,'Gas and Other'!B:B,'Gas and Other'!J:J) -> 3.620371406 | BQ86: 7.673245888 | BR86: 1 | BS86: Jul 2019 | BT86: FALSE | BU86: 81 | BW86: =IF(BT86,INDEX(AH86:BQ86,$BW$4),NA()) ->  | BX86: =IF(BT86,INDEX(AH86:BQ86,$BX$4),NA()) ->  | BY86: FALSE | CA86: =IF(BY86,INDEX(AH86:BQ86,$BW$4),NA()) ->  | CB86: =IF(BY86,INDEX(AH86:BQ86,$BX$4),NA()) ->  | CC86: 0 | CD86: 0
D87: 4497 | E87: 2019-07-07T07:59:59.992 | F87: 2019-07-31 | G87: Jul 2019 | H87: 2019 | I87: 09 - 10 | J87: 8 | K87: 27.99 | L87: 28.01 | M87: 28.01 | N87: 28.01 | O87: 28.01 | P87: 28.01 | Q87: 28.01 | R87: 28.01 | S87: 28.01 | T87: 28.01 | U87: 28.01 | V87: 28.01 | W87: 28.01 | X87: 25.76 | Y87: 28.01 | Z87: 28.01 | AA87: 28.01 | AB87: 25.82 | AC87: 25.76 | AD87: 25.76 | AE87: 25.76 | AF87: 28.93 | AH87: =INDEX(X87:AF87,$AH$2) -> 28.93 | AI87: FALSE | AJ87: FALSE | AK87: 0 | AL87: FALSE | AM87: 2019 | AN87: 38.66343153 | AO87: 24.5905 | AP87: 38.56343153 | AQ87: 38.56343153 | AR87: =LOOKUP(E87,'Hourly Data Facility'!A:A,'Hourly Data Facility'!F:F) ->  | AS87: =LOOKUP(E87,'Hourly Data PVGIS'!B:B,'Hourly Data PVGIS'!G:G) -> 4.21 | AT87: 121.7953 | AU87: =LOOKUP(E87,'Hourly Data PVGIS'!B:B,'Hourly Data PVGIS'!D:D) -> 165.67 | AV87: 4792.8331 | AW87: 6388.803702 | AX87: 9 | AY87: 5 | AZ87: 27.16 | BA87: 15 | BB87: 49.51 | BC87: 22 | BD87: 27.7 | BE87: 14 | BF87: 47.34 | BG87: 24 | BH87: 100 | BI87: 0 | BJ87: 0 | BK87: 0 | BL87: 0 | BM87: 0 | BN87: 0 | BO87: 0 | BP87: =LOOKUP(F87,'Gas and Other'!B:B,'Gas and Other'!J:J) -> 3.620371406 | BQ87: 7.990892856 | BR87: 1 | BS87: Jul 2019 | BT87: FALSE | BU87: 82 | BW87: =IF(BT87,INDEX(AH87:BQ87,$BW$4),NA()) ->  | BX87: =IF(BT87,INDEX(AH87:BQ87,$BX$4),NA()) ->  | BY87: FALSE | CA87: =IF(BY87,INDEX(AH87:BQ87,$BW$4),NA()) ->  | CB87: =IF(BY87,INDEX(AH87:BQ87,$BX$4),NA()) ->  | CC87: 0 | CD87: 0
D88: 4498 | E88: 2019-07-07T08:59:59.992 | F88: 2019-07-31 | G88: Jul 2019 | H88: 2019 | I88: 10 - 11 | J88: 9 | K88: 28.54 | L88: 28.59 | M88: 28.59 | N88: 28.59 | O88: 28.59 | P88: 28.59 | Q88: 28.59 | R88: 28.59 | S88: 28.59 | T88: 28.59 | U88: 28.59 | V88: 28.59 | W88: 28.59 | X88: 25.99 | Y88: 28.59 | Z88: 28.59 | AA88: 28.59 | AB88: 26.09 | AC88: 26 | AD88: 25.99 | AE88: 25.99 | AF88: 29.53 | AH88: =INDEX(X88:AF88,$AH$2) -> 29.53 | AI88: FALSE | AJ88: FALSE | AK88: 0 | AL88: FALSE | AM88: 2019 | AN88: 38.66343153 | AO88: 25.1005 | AP88: 38.56343153 | AQ88: 38.56343153 | AR88: =LOOKUP(E88,'Hourly Data Facility'!A:A,'Hourly Data Facility'!F:F) ->  | AS88: =LOOKUP(E88,'Hourly Data PVGIS'!B:B,'Hourly Data PVGIS'!G:G) -> 4.55 | AT88: 134.3615 | AU88: =LOOKUP(E88,'Hourly Data PVGIS'!B:B,'Hourly Data PVGIS'!D:D) -> 362.21 | AV88: 10696.0613 | AW88: 13968.06053 | AX88: 10 | AY88: 5 | AZ88: 27.16 | BA88: 15 | BB88: 49.51 | BC88: 22 | BD88: 27.7 | BE88: 14 | BF88: 47.34 | BG88: 24 | BH88: 100 | BI88: 0 | BJ88: 0 | BK88: 0 | BL88: 0 | BM88: 0 | BN88: 0 | BO88: 0 | BP88: =LOOKUP(F88,'Gas and Other'!B:B,'Gas and Other'!J:J) -> 3.620371406 | BQ88: 8.156621709 | BR88: 1 | BS88: Jul 2019 | BT88: FALSE | BU88: 83 | BW88: =IF(BT88,INDEX(AH88:BQ88,$BW$4),NA()) ->  | BX88: =IF(BT88,INDEX(AH88:BQ88,$BX$4),NA()) ->  | BY88: FALSE | CA88: =IF(BY88,INDEX(AH88:BQ88,$BW$4),NA()) ->  | CB88: =IF(BY88,INDEX(AH88:BQ88,$BX$4),NA()) ->  | CC88: 0 | CD88: 0
D89: 4499 | E89: 2019-07-07T09:59:59.992 | F89: 2019-07-31 | G89: Jul 2019 | H89: 2019 | I89: 11 - 12 | J89: 10 | K89: 28.38 | L89: 28.42 | M89: 28.42 | N89: 28.42 | O89: 28.42 | P89: 28.42 | Q89: 28.42 | R89: 28.42 | S89: 28.42 | T89: 28.42 | U89: 28.42 | V89: 28.42 | W89: 28.42 | X89: 26.4 | Y89: 28.42 | Z89: 28.42 | AA89: 28.42 | AB89: 26.43 | AC89: 27.1 | AD89: 26.4 | AE89: 26.83 | AF89: 29 | AH89: =INDEX(X89:AF89,$AH$2) -> 29 | AI89: FALSE | AJ89: FALSE | AK89: 0 | AL89: FALSE | AM89: 2019 | AN89: 38.66343153 | AO89: 24.65 | AP89: 38.56343153 | AQ89: 38.56343153 | AR89: =LOOKUP(E89,'Hourly Data Facility'!A:A,'Hourly Data Facility'!F:F) ->  | AS89: =LOOKUP(E89,'Hourly Data PVGIS'!B:B,'Hourly Data PVGIS'!G:G) -> 5.03 | AT89: 145.87 | AU89: =LOOKUP(E89,'Hourly Data PVGIS'!B:B,'Hourly Data PVGIS'!D:D) -> 156.12 | AV89: 4527.48 | AW89: 6020.522931 | AX89: 11 | AY89: 5 | AZ89: 27.16 | BA89: 15 | BB89: 49.51 | BC89: 22 | BD89: 27.7 | BE89: 14 | BF89: 47.34 | BG89: 24 | BH89: 100 | BI89: 0 | BJ89: 0 | BK89: 0 | BL89: 0 | BM89: 0 | BN89: 0 | BO89: 0 | BP89: =LOOKUP(F89,'Gas and Other'!B:B,'Gas and Other'!J:J) -> 3.620371406 | BQ89: 8.010227889 | BR89: 1 | BS89: Jul 2019 | BT89: FALSE | BU89: 84 | BW89: =IF(BT89,INDEX(AH89:BQ89,$BW$4),NA()) ->  | BX89: =IF(BT89,INDEX(AH89:BQ89,$BX$4),NA()) ->  | BY89: FALSE | CA89: =IF(BY89,INDEX(AH89:BQ89,$BW$4),NA()) ->  | CB89: =IF(BY89,INDEX(AH89:BQ89,$BX$4),NA()) ->  | CC89: 0 | CD89: 0
D90: 4500 | E90: 2019-07-07T10:59:59.992 | F90: 2019-07-31 | G90: Jul 2019 | H90: 2019 | I90: 12 - 13 | J90: 11 | K90: 27.94 | L90: 27.96 | M90: 27.96 | N90: 27.96 | O90: 27.96 | P90: 27.96 | Q90: 27.96 | R90: 27.96 | S90: 27.96 | T90: 27.96 | U90: 27.96 | V90: 27.96 | W90: 27.96 | X90: 26.3 | Y90: 27.96 | Z90: 27.96 | AA90: 27.96 | AB90: 26.34 | AC90: 26.51 | AD90: 26.3 | AE90: 26.43 | AF90: 27.06 | AH90: =INDEX(X90:AF90,$AH$2) -> 27.06 | AI90: FALSE | AJ90: FALSE | AK90: 0 | AL90: FALSE | AM90: 2019 | AN90: 38.66343153 | AO90: 23.001 | AP90: 38.56343153 | AQ90: 38.56343153 | AR90: =LOOKUP(E90,'Hourly Data Facility'!A:A,'Hourly Data Facility'!F:F) ->  | AS90: =LOOKUP(E90,'Hourly Data PVGIS'!B:B,'Hourly Data PVGIS'!G:G) -> 5.1 | AT90: 138.006 | AU90: =LOOKUP(E90,'Hourly Data PVGIS'!B:B,'Hourly Data PVGIS'!D:D) -> 253.92 | AV90: 6871.0752 | AW90: 9792.026534 | AX90: 12 | AY90: 5 | AZ90: 27.16 | BA90: 15 | BB90: 49.51 | BC90: 22 | BD90: 27.7 | BE90: 14 | BF90: 47.34 | BG90: 24 | BH90: 100 | BI90: 0 | BJ90: 0 | BK90: 0 | BL90: 0 | BM90: 0 | BN90: 0 | BO90: 0 | BP90: =LOOKUP(F90,'Gas and Other'!B:B,'Gas and Other'!J:J) -> 3.620371406 | BQ90: 7.474371264 | BR90: 1 | BS90: Jul 2019 | BT90: FALSE | BU90: 85 | BW90: =IF(BT90,INDEX(AH90:BQ90,$BW$4),NA()) ->  | BX90: =IF(BT90,INDEX(AH90:BQ90,$BX$4),NA()) ->  | BY90: FALSE | CA90: =IF(BY90,INDEX(AH90:BQ90,$BW$4),NA()) ->  | CB90: =IF(BY90,INDEX(AH90:BQ90,$BX$4),NA()) ->  | CC90: 0 | CD90: 0
D91: 4501 | E91: 2019-07-07T11:59:59.992 | F91: 2019-07-31 | G91: Jul 2019 | H91: 2019 | I91: 13 - 14 | J91: 12 | K91: 27.59 | L91: 27.74 | M91: 27.74 | N91: 27.74 | O91: 27.74 | P91: 27.74 | Q91: 27.74 | R91: 27.74 | S91: 27.74 | T91: 27.74 | U91: 27.74 | V91: 27.74 | W91: 27.74 | X91: 20.66 | Y91: 27.74 | Z91: 27.74 | AA91: 27.74 | AB91: 20.95 | AC91: 22.38 | AD91: 20.66 | AE91: 21.73 | AF91: 26.85 | AH91: =INDEX(X91:AF91,$AH$2) -> 26.85 | AI91: FALSE | AJ91: FALSE | AK91: 0 | AL91: FALSE | AM91: 2019 | AN91: 38.66343153 | AO91: 22.8225 | AP91: 38.56343153 | AQ91: 38.56343153 | AR91: =LOOKUP(E91,'Hourly Data Facility'!A:A,'Hourly Data Facility'!F:F) ->  | AS91: =LOOKUP(E91,'Hourly Data PVGIS'!B:B,'Hourly Data PVGIS'!G:G) -> 5.17 | AT91: 138.8145 | AU91: =LOOKUP(E91,'Hourly Data PVGIS'!B:B,'Hourly Data PVGIS'!D:D) -> 690.09 | AV91: 18528.9165 | AW91: 26612.23846 | AX91: 13 | AY91: 5 | AZ91: 27.16 | BA91: 15 | BB91: 49.51 | BC91: 22 | BD91: 27.7 | BE91: 14 | BF91: 47.34 | BG91: 24 | BH91: 100 | BI91: 0 | BJ91: 0 | BK91: 0 | BL91: 0 | BM91: 0 | BN91: 0 | BO91: 0 | BP91: =LOOKUP(F91,'Gas and Other'!B:B,'Gas and Other'!J:J) -> 3.620371406 | BQ91: 7.416366166 | BR91: 1 | BS91: Jul 2019 | BT91: FALSE | BU91: 86 | BW91: =IF(BT91,INDEX(AH91:BQ91,$BW$4),NA()) ->  | BX91: =IF(BT91,INDEX(AH91:BQ91,$BX$4),NA()) ->  | BY91: FALSE | CA91: =IF(BY91,INDEX(AH91:BQ91,$BW$4),NA()) ->  | CB91: =IF(BY91,INDEX(AH91:BQ91,$BX$4),NA()) ->  | CC91: 0 | CD91: 0
D92: 4502 | E92: 2019-07-07T12:59:59.992 | F92: 2019-07-31 | G92: Jul 2019 | H92: 2019 | I92: 14 - 15 | J92: 13 | K92: 26.91 | L92: 27 | M92: 27 | N92: 27 | O92: 27 | P92: 27 | Q92: 27 | R92: 27 | S92: 27 | T92: 27 | U92: 27 | V92: 27 | W92: 27 | X92: 9.39 | Y92: 27 | Z92: 27 | AA92: 27 | AB92: 10.79 | AC92: 16.1 | AD92: 9.39 | AE92: 13.47 | AF92: 25 | AH92: =INDEX(X92:AF92,$AH$2) -> 25 | AI92: FALSE | AJ92: FALSE | AK92: 0 | AL92: FALSE | AM92: 2019 | AN92: 38.66343153 | AO92: 21.25 | AP92: 38.56343153 | AQ92: 38.56343153 | AR92: =LOOKUP(E92,'Hourly Data Facility'!A:A,'Hourly Data Facility'!F:F) ->  | AS92: =LOOKUP(E92,'Hourly Data PVGIS'!B:B,'Hourly Data PVGIS'!G:G) -> 5.1 | AT92: 127.5 | AU92: =LOOKUP(E92,'Hourly Data PVGIS'!B:B,'Hourly Data PVGIS'!D:D) -> 872.77 | AV92: 21819.25 | AW92: 33657.00614 | AX92: 14 | AY92: 5 | AZ92: 27.16 | BA92: 15 | BB92: 49.51 | BC92: 22 | BD92: 27.7 | BE92: 14 | BF92: 47.34 | BG92: 24 | BH92: 100 | BI92: 0 | BJ92: 0 | BK92: 0 | BL92: 0 | BM92: 0 | BN92: 0 | BO92: 0 | BP92: =LOOKUP(F92,'Gas and Other'!B:B,'Gas and Other'!J:J) -> 3.620371406 | BQ92: 6.905368869 | BR92: 1 | BS92: Jul 2019 | BT92: FALSE | BU92: 87 | BW92: =IF(BT92,INDEX(AH92:BQ92,$BW$4),NA()) ->  | BX92: =IF(BT92,INDEX(AH92:BQ92,$BX$4),NA()) ->  | BY92: FALSE | CA92: =IF(BY92,INDEX(AH92:BQ92,$BW$4),NA()) ->  | CB92: =IF(BY92,INDEX(AH92:BQ92,$BX$4),NA()) ->  | CC92: 0 | CD92: 0
D93: 4503 | E93: 2019-07-07T13:59:59.992 | F93: 2019-07-31 | G93: Jul 2019 | H93: 2019 | I93: 15 - 16 | J93: 14 | K93: 26.84 | L93: 26.99 | M93: 26.99 | N93: 26.99 | O93: 26.99 | P93: 26.99 | Q93: 26.99 | R93: 26.99 | S93: 26.99 | T93: 26.99 | U93: 26.99 | V93: 26.99 | W93: 26.99 | X93: 6.77 | Y93: 26.99 | Z93: 26.99 | AA93: 26.99 | AB93: 8.39 | AC93: 14.68 | AD93: 6.77 | AE93: 11.6 | AF93: 26.12 | AH93: =INDEX(X93:AF93,$AH$2) -> 26.12 | AI93: FALSE | AJ93: FALSE | AK93: 0 | AL93: FALSE | AM93: 2019 | AN93: 38.66343153 | AO93: 22.202 | AP93: 38.56343153 | AQ93: 38.56343153 | AR93: =LOOKUP(E93,'Hourly Data Facility'!A:A,'Hourly Data Facility'!F:F) ->  | AS93: =LOOKUP(E93,'Hourly Data PVGIS'!B:B,'Hourly Data PVGIS'!G:G) -> 5.1 | AT93: 133.212 | AU93: =LOOKUP(E93,'Hourly Data PVGIS'!B:B,'Hourly Data PVGIS'!D:D) -> 950.28 | AV93: 24821.3136 | AW93: 36646.05771 | AX93: 15 | AY93: 5 | AZ93: 27.16 | BA93: 15 | BB93: 49.51 | BC93: 22 | BD93: 27.7 | BE93: 14 | BF93: 47.34 | BG93: 24 | BH93: 100 | BI93: 27.16 | BJ93: 0 | BK93: 0 | BL93: 100 | BM93: 0 | BN93: 100 | BO93: -2716 | BP93: =LOOKUP(F93,'Gas and Other'!B:B,'Gas and Other'!J:J) -> 3.620371406 | BQ93: 7.214729395 | BR93: 1 | BS93: Jul 2019 | BT93: FALSE | BU93: 88 | BW93: =IF(BT93,INDEX(AH93:BQ93,$BW$4),NA()) ->  | BX93: =IF(BT93,INDEX(AH93:BQ93,$BX$4),NA()) ->  | BY93: FALSE | CA93: =IF(BY93,INDEX(AH93:BQ93,$BW$4),NA()) ->  | CB93: =IF(BY93,INDEX(AH93:BQ93,$BX$4),NA()) ->  | CC93: 0 | CD93: 0
D94: 4504 | E94: 2019-07-07T14:59:59.992 | F94: 2019-07-31 | G94: Jul 2019 | H94: 2019 | I94: 16 - 17 | J94: 15 | K94: 27.33 | L94: 27.48 | M94: 27.48 | N94: 27.48 | O94: 27.48 | P94: 27.48 | Q94: 27.48 | R94: 27.48 | S94: 27.48 | T94: 27.48 | U94: 27.48 | V94: 27.48 | W94: 27.48 | X94: 12.12 | Y94: 27.48 | Z94: 27.48 | AA94: 27.48 | AB94: 12.8 | AC94: 15.96 | AD94: 12.12 | AE94: 14.54 | AF94: 26.6 | AH94: =INDEX(X94:AF94,$AH$2) -> 26.6 | AI94: FALSE | AJ94: FALSE | AK94: 0 | AL94: FALSE | AM94: 2019 | AN94: 38.66343153 | AO94: 22.61 | AP94: 38.56343153 | AQ94: 38.56343153 | AR94: =LOOKUP(E94,'Hourly Data Facility'!A:A,'Hourly Data Facility'!F:F) ->  | AS94: =LOOKUP(E94,'Hourly Data PVGIS'!B:B,'Hourly Data PVGIS'!G:G) -> 5.38 | AT94: 143.108 | AU94: =LOOKUP(E94,'Hourly Data PVGIS'!B:B,'Hourly Data PVGIS'!D:D) -> 867.68 | AV94: 23080.288 | AW94: 33460.71827 | AX94: 16 | AY94: 5 | AZ94: 27.16 | BA94: 15 | BB94: 49.51 | BC94: 22 | BD94: 27.7 | BE94: 14 | BF94: 47.34 | BG94: 24 | BH94: 100 | BI94: 0 | BJ94: 0 | BK94: 100 | BL94: 0 | BM94: 0 | BN94: 100 | BO94: 0 | BP94: =LOOKUP(F94,'Gas and Other'!B:B,'Gas and Other'!J:J) -> 3.620371406 | BQ94: 7.347312477 | BR94: 1 | BS94: Jul 2019 | BT94: FALSE | BU94: 89 | BW94: =IF(BT94,INDEX(AH94:BQ94,$BW$4),NA()) ->  | BX94: =IF(BT94,INDEX(AH94:BQ94,$BX$4),NA()) ->  | BY94: FALSE | CA94: =IF(BY94,INDEX(AH94:BQ94,$BW$4),NA()) ->  | CB94: =IF(BY94,INDEX(AH94:BQ94,$BX$4),NA()) ->  | CC94: 0 | CD94: 0
D95: 4505 | E95: 2019-07-07T15:59:59.992 | F95: 2019-07-31 | G95: Jul 2019 | H95: 2019 | I95: 17 - 18 | J95: 16 | K95: 28.12 | L95: 28.17 | M95: 28.17 | N95: 28.17 | O95: 28.17 | P95: 28.17 | Q95: 28.17 | R95: 28.17 | S95: 28.17 | T95: 28.17 | U95: 28.17 | V95: 28.17 | W95: 28.17 | X95: 25.62 | Y95: 28.17 | Z95: 28.17 | AA95: 28.17 | AB95: 25.77 | AC95: 26.02 | AD95: 25.62 | AE95: 25.62 | AF95: 29.1 | AH95: =INDEX(X95:AF95,$AH$2) -> 29.1 | AI95: FALSE | AJ95: FALSE | AK95: 0 | AL95: FALSE | AM95: 2019 | AN95: 38.66343153 | AO95: 24.735 | AP95: 38.56343153 | AQ95: 38.56343153 | AR95: =LOOKUP(E95,'Hourly Data Facility'!A:A,'Hourly Data Facility'!F:F) ->  | AS95: =LOOKUP(E95,'Hourly Data PVGIS'!B:B,'Hourly Data PVGIS'!G:G) -> 5.66 | AT95: 164.706 | AU95: =LOOKUP(E95,'Hourly Data PVGIS'!B:B,'Hourly Data PVGIS'!D:D) -> 596.81 | AV95: 17367.171 | AW95: 23015.04157 | AX95: 17 | AY95: 5 | AZ95: 27.16 | BA95: =IF(AX95=1,_xlfn.XLOOKUP(AZ95,AH71:AH94,AX71:AX94,0,0),BA94) -> 15 | BB95: 49.51 | BC95: 22 | BD95: 27.7 | BE95: 14 | BF95: 47.34 | BG95: 24 | BH95: 100 | BI95: 0 | BJ95: 0 | BK95: 100 | BL95: 0 | BM95: 0 | BN95: 100 | BO95: 0 | BP95: =LOOKUP(F95,'Gas and Other'!B:B,'Gas and Other'!J:J) -> 3.620371406 | BQ95: 8.037849364 | BR95: 1 | BS95: Jul 2019 | BT95: FALSE | BU95: 90 | BW95: =IF(BT95,INDEX(AH95:BQ95,$BW$4),NA()) ->  | BX95: =IF(BT95,INDEX(AH95:BQ95,$BX$4),NA()) ->  | BY95: FALSE | CA95: =IF(BY95,INDEX(AH95:BQ95,$BW$4),NA()) ->  | CB95: =IF(BY95,INDEX(AH95:BQ95,$BX$4),NA()) ->  | CC95: 0 | CD95: 0
D96: 4506 | E96: 2019-07-07T16:59:59.992 | F96: 2019-07-31 | G96: Jul 2019 | H96: 2019 | I96: 18 - 19 | J96: 17 | K96: 29.2 | L96: 29.2 | M96: 29.2 | N96: 29.2 | O96: 29.2 | P96: 29.2 | Q96: 29.2 | R96: 29.2 | S96: 29.2 | T96: 29.2 | U96: 29.2 | V96: 29.2 | W96: 29.36 | X96: 29.2 | Y96: 29.2 | Z96: 29.36 | AA96: 29.36 | AB96: 29.2 | AC96: 29.2 | AD96: 29.2 | AE96: 29.2 | AF96: 29.2 | AH96: =INDEX(X96:AF96,$AH$2) -> 29.2 | AI96: FALSE | AJ96: FALSE | AK96: 0 | AL96: FALSE | AM96: 2019 | AN96: 38.66343153 | AO96: 24.82 | AP96: 38.56343153 | AQ96: 38.56343153 | AR96: =LOOKUP(E96,'Hourly Data Facility'!A:A,'Hourly Data Facility'!F:F) ->  | AS96: =LOOKUP(E96,'Hourly Data PVGIS'!B:B,'Hourly Data PVGIS'!G:G) -> 5.86 | AT96: 171.112 | AU96: =LOOKUP(E96,'Hourly Data PVGIS'!B:B,'Hourly Data PVGIS'!D:D) -> 479.09 | AV96: 13989.428 | AW96: 18475.35441 | AX96: 18 | AY96: 5 | AZ96: =IF(AX96=1,SMALL(AH72:AH95,1),AZ95) -> 27.16 | BA96: 15 | BB96: =IF(AX96=1,LARGE(AH72:AH95,1),BB95) -> 49.51 | BC96: =IF(AX96=1,_xlfn.XLOOKUP(BB96,AH72:AH95,AX72:AX95),BC95) -> 22 | BD96: =IF(AX96=1,SMALL(AH72:AH95,2),BD95) -> 27.7 | BE96: =IF(AX96=1,_xlfn.XLOOKUP(BD96,AH72:AH95,AX72:AX95,0,0),BE95) -> 14 | BF96: =IF(AX96=1,LARGE(AH72:AH95,2),BF95) -> 47.34 | BG96: =IF(AX96=1,_xlfn.XLOOKUP(BF96,AH72:AH95,AX72:AX95,0,0),BG95) -> 24 | BH96: 100 | BI96: 0 | BJ96: 0 | BK96: 100 | BL96: 0 | BM96: 0 | BN96: 100 | BO96: 0 | BP96: =LOOKUP(F96,'Gas and Other'!B:B,'Gas and Other'!J:J) -> 3.620371406 | BQ96: 8.065470839 | BR96: 1 | BS96: Jul 2019 | BT96: FALSE | BU96: 91 | BW96: =IF(BT96,INDEX(AH96:BQ96,$BW$4),NA()) ->  | BX96: =IF(BT96,INDEX(AH96:BQ96,$BX$4),NA()) ->  | BY96: FALSE | CA96: =IF(BY96,INDEX(AH96:BQ96,$BW$4),NA()) ->  | CB96: =IF(BY96,INDEX(AH96:BQ96,$BX$4),NA()) ->  | CC96: 0 | CD96: 0
D97: 4507 | E97: 2019-07-07T17:59:59.992 | F97: 2019-07-31 | G97: Jul 2019 | H97: 2019 | I97: 19 - 20 | J97: 18 | K97: 30.98 | L97: 30.98 | M97: 30.98 | N97: 30.98 | O97: 30.98 | P97: 30.98 | Q97: 30.98 | R97: 30.98 | S97: 30.98 | T97: 30.98 | U97: 30.98 | V97: 30.98 | W97: 31.17 | X97: 31.47 | Y97: 31.47 | Z97: 31.17 | AA97: 31.17 | AB97: 31.47 | AC97: 31.47 | AD97: 31.47 | AE97: 31.47 | AF97: 31.47 | AH97: =INDEX(X97:AF97,$AH$2) -> 31.47 | AI97: FALSE | AJ97: FALSE | AK97: 0 | AL97: FALSE | AM97: 2019 | AN97: 38.66343153 | AO97: 26.7495 | AP97: 38.56343153 | AQ97: 38.56343153 | AR97: =LOOKUP(E97,'Hourly Data Facility'!A:A,'Hourly Data Facility'!F:F) ->  | AS97: =LOOKUP(E97,'Hourly Data PVGIS'!B:B,'Hourly Data PVGIS'!G:G) -> 6 | AT97: 188.82 | AU97: =LOOKUP(E97,'Hourly Data PVGIS'!B:B,'Hourly Data PVGIS'!D:D) -> 367.49 | AV97: 11564.9103 | AW97: 14171.67545 | AX97: 19 | AY97: 5 | AZ97: 27.16 | BA97: 15 | BB97: 49.51 | BC97: 22 | BD97: 27.7 | BE97: 14 | BF97: 47.34 | BG97: 24 | BH97: 100 | BI97: 0 | BJ97: 0 | BK97: 100 | BL97: 0 | BM97: 0 | BN97: 100 | BO97: 0 | BP97: =LOOKUP(F97,'Gas and Other'!B:B,'Gas and Other'!J:J) -> 3.620371406 | BQ97: 8.692478333 | BR97: 1 | BS97: Jul 2019 | BT97: FALSE | BU97: 92 | BW97: =IF(BT97,INDEX(AH97:BQ97,$BW$4),NA()) ->  | BX97: =IF(BT97,INDEX(AH97:BQ97,$BX$4),NA()) ->  | BY97: FALSE | CA97: =IF(BY97,INDEX(AH97:BQ97,$BW$4),NA()) ->  | CB97: =IF(BY97,INDEX(AH97:BQ97,$BX$4),NA()) ->  | CC97: 0 | CD97: 0
D98: 4508 | E98: 2019-07-07T18:59:59.992 | F98: 2019-07-31 | G98: Jul 2019 | H98: 2019 | I98: 20 - 21 | J98: 19 | K98: 31.21 | L98: 31.21 | M98: 31.21 | N98: 31.21 | O98: 31.21 | P98: 31.21 | Q98: 31.21 | R98: 31.21 | S98: 31.21 | T98: 31.21 | U98: 31.21 | V98: 31.21 | W98: 31.86 | X98: 31.98 | Y98: 31.98 | Z98: 31.86 | AA98: 31.86 | AB98: 31.99 | AC98: 32.05 | AD98: 31.98 | AE98: 32.02 | AF98: 32.25 | AH98: =INDEX(X98:AF98,$AH$2) -> 32.25 | AI98: FALSE | AJ98: FALSE | AK98: 0 | AL98: FALSE | AM98: 2019 | AN98: 38.66343153 | AO98: 27.4125 | AP98: 38.56343153 | AQ98: 38.56343153 | AR98: =LOOKUP(E98,'Hourly Data Facility'!A:A,'Hourly Data Facility'!F:F) ->  | AS98: =LOOKUP(E98,'Hourly Data PVGIS'!B:B,'Hourly Data PVGIS'!G:G) -> 5.72 | AT98: 184.47 | AU98: =LOOKUP(E98,'Hourly Data PVGIS'!B:B,'Hourly Data PVGIS'!D:D) -> 207.95 | AV98: 6706.3875 | AW98: 8019.265587 | AX98: 20 | AY98: 5 | AZ98: 27.16 | BA98: 15 | BB98: 49.51 | BC98: 22 | BD98: 27.7 | BE98: 14 | BF98: 47.34 | BG98: 24 | BH98: 100 | BI98: 0 | BJ98: 0 | BK98: 100 | BL98: 0 | BM98: 0 | BN98: 100 | BO98: 0 | BP98: =LOOKUP(F98,'Gas and Other'!B:B,'Gas and Other'!J:J) -> 3.620371406 | BQ98: 8.907925842 | BR98: 1 | BS98: Jul 2019 | BT98: FALSE | BU98: 93 | BW98: =IF(BT98,INDEX(AH98:BQ98,$BW$4),NA()) ->  | BX98: =IF(BT98,INDEX(AH98:BQ98,$BX$4),NA()) ->  | BY98: FALSE | CA98: =IF(BY98,INDEX(AH98:BQ98,$BW$4),NA()) ->  | CB98: =IF(BY98,INDEX(AH98:BQ98,$BX$4),NA()) ->  | CC98: 0 | CD98: 0
D99: 4509 | E99: 2019-07-07T19:59:59.992 | F99: 2019-07-31 | G99: Jul 2019 | H99: 2019 | I99: 21 - 22 | J99: 20 | K99: 31.72 | L99: 31.72 | M99: 31.72 | N99: 31.72 | O99: 31.72 | P99: 31.72 | Q99: 31.72 | R99: 31.72 | S99: 31.72 | T99: 31.72 | U99: 31.72 | V99: 31.72 | W99: 35.01 | X99: 33.01 | Y99: 33.01 | Z99: 35.01 | AA99: 35.01 | AB99: 33.06 | AC99: 33.06 | AD99: 33.06 | AE99: 33.06 | AF99: 33.06 | AH99: =INDEX(X99:AF99,$AH$2) -> 33.06 | AI99: FALSE | AJ99: FALSE | AK99: 0 | AL99: FALSE | AM99: 2019 | AN99: 38.66343153 | AO99: 28.101 | AP99: 38.56343153 | AQ99: 38.56343153 | AR99: =LOOKUP(E99,'Hourly Data Facility'!A:A,'Hourly Data Facility'!F:F) ->  | AS99: =LOOKUP(E99,'Hourly Data PVGIS'!B:B,'Hourly Data PVGIS'!G:G) -> 5.17 | AT99: 170.9202 | AU99: =LOOKUP(E99,'Hourly Data PVGIS'!B:B,'Hourly Data PVGIS'!D:D) -> 80.51 | AV99: 2661.6606 | AW99: 3104.741873 | AX99: 21 | AY99: 5 | AZ99: 27.16 | BA99: 15 | BB99: 49.51 | BC99: 22 | BD99: 27.7 | BE99: 14 | BF99: 47.34 | BG99: 24 | BH99: 100 | BI99: 0 | BJ99: 0 | BK99: 100 | BL99: 0 | BM99: 0 | BN99: 100 | BO99: 0 | BP99: =LOOKUP(F99,'Gas and Other'!B:B,'Gas and Other'!J:J) -> 3.620371406 | BQ99: 9.131659793 | BR99: 1 | BS99: Jul 2019 | BT99: FALSE | BU99: 94 | BW99: =IF(BT99,INDEX(AH99:BQ99,$BW$4),NA()) ->  | BX99: =IF(BT99,INDEX(AH99:BQ99,$BX$4),NA()) ->  | BY99: FALSE | CA99: =IF(BY99,INDEX(AH99:BQ99,$BW$4),NA()) ->  | CB99: =IF(BY99,INDEX(AH99:BQ99,$BX$4),NA()) ->  | CC99: 0 | CD99: 0
D100: 4510 | E100: 2019-07-07T20:59:59.992 | F100: 2019-07-31 | G100: Jul 2019 | H100: 2019 | I100: 22 - 23 | J100: 21 | K100: 31.25 | L100: 31.25 | M100: 31.25 | N100: 31.25 | O100: 31.25 | P100: 31.25 | Q100: 31.25 | R100: 31.25 | S100: 31.25 | T100: 31.25 | U100: 31.25 | V100: 31.25 | W100: 31.25 | X100: 31.25 | Y100: 31.25 | Z100: 31.25 | AA100: 31.25 | AB100: 37.02 | AC100: 37.02 | AD100: 37.02 | AE100: 37.02 | AF100: 37.02 | AH100: =INDEX(X100:AF100,$AH$2) -> 37.02 | AI100: FALSE | AJ100: FALSE | AK100: 0 | AL100: FALSE | AM100: 2019 | AN100: 38.66343153 | AO100: 31.467 | AP100: 38.56343153 | AQ100: 38.56343153 | AR100: =LOOKUP(E100,'Hourly Data Facility'!A:A,'Hourly Data Facility'!F:F) ->  | AS100: =LOOKUP(E100,'Hourly Data PVGIS'!B:B,'Hourly Data PVGIS'!G:G) -> 3.72 | AT100: 137.7144 | AU100: =LOOKUP(E100,'Hourly Data PVGIS'!B:B,'Hourly Data PVGIS'!D:D) -> 28.18 | AV100: 1043.2236 | AW100: 1086.717501 | AX100: 22 | AY100: 5 | AZ100: 27.16 | BA100: 15 | BB100: 49.51 | BC100: 22 | BD100: 27.7 | BE100: 14 | BF100: 47.34 | BG100: 24 | BH100: 100 | BI100: 0 | BJ100: 37.02 | BK100: 100 | BL100: 0 | BM100: 100 | BN100: 0 | BO100: 3702 | BP100: =LOOKUP(F100,'Gas and Other'!B:B,'Gas and Other'!J:J) -> 3.620371406 | BQ100: 10.22547022 | BR100: 1 | BS100: Jul 2019 | BT100: FALSE | BU100: 95 | BW100: =IF(BT100,INDEX(AH100:BQ100,$BW$4),NA()) ->  | BX100: =IF(BT100,INDEX(AH100:BQ100,$BX$4),NA()) ->  | BY100: FALSE | CA100: =IF(BY100,INDEX(AH100:BQ100,$BW$4),NA()) ->  | CB100: =IF(BY100,INDEX(AH100:BQ100,$BX$4),NA()) ->  | CC100: 0 | CD100: 0
D101: 4511 | E101: 2019-07-07T21:59:59.992 | F101: 2019-07-31 | G101: Jul 2019 | H101: 2019 | I101: 23 - 00 | J101: 22 | K101: 30.01 | L101: 29.81 | M101: 29.81 | N101: 29.81 | O101: 29.81 | P101: 29.81 | Q101: 30.27 | R101: 31.01 | S101: 30.27 | T101: 29.81 | U101: 29.81 | V101: 29.81 | W101: 29.81 | X101: 31.01 | Y101: 31.01 | Z101: 29.81 | AA101: 29.81 | AB101: 33.02 | AC101: 33.02 | AD101: 33.02 | AE101: 33.02 | AF101: 33.02 | AH101: =INDEX(X101:AF101,$AH$2) -> 33.02 | AI101: FALSE | AJ101: FALSE | AK101: 0 | AL101: FALSE | AM101: 2019 | AN101: 38.66343153 | AO101: 28.067 | AP101: 38.56343153 | AQ101: 38.56343153 | AR101: =LOOKUP(E101,'Hourly Data Facility'!A:A,'Hourly Data Facility'!F:F) ->  | AS101: =LOOKUP(E101,'Hourly Data PVGIS'!B:B,'Hourly Data PVGIS'!G:G) -> 3.03 | AT101: 100.0506 | AU101: =LOOKUP(E101,'Hourly Data PVGIS'!B:B,'Hourly Data PVGIS'!D:D) -> 0 | AV101: 0 | AW101: 0 | AX101: 23 | AY101: 5 | AZ101: 27.16 | BA101: 15 | BB101: 49.51 | BC101: 22 | BD101: 27.7 | BE101: 14 | BF101: 47.34 | BG101: 24 | BH101: 100 | BI101: 0 | BJ101: 0 | BK101: 0 | BL101: 0 | BM101: 0 | BN101: 0 | BO101: 0 | BP101: =LOOKUP(F101,'Gas and Other'!B:B,'Gas and Other'!J:J) -> 3.620371406 | BQ101: 9.120611203 | BR101: 1 | BS101: Jul 2019 | BT101: FALSE | BU101: 96 | BW101: =IF(BT101,INDEX(AH101:BQ101,$BW$4),NA()) ->  | BX101: =IF(BT101,INDEX(AH101:BQ101,$BX$4),NA()) ->  | BY101: FALSE | CA101: =IF(BY101,INDEX(AH101:BQ101,$BW$4),NA()) ->  | CB101: =IF(BY101,INDEX(AH101:BQ101,$BX$4),NA()) ->  | CC101: 0 | CD101: 0
D102: 4512 | E102: 2019-07-07T22:59:59.992 | F102: 2019-07-31 | G102: Jul 2019 | H102: 2019 | I102: 00 - 01 | J102: 23 | K102: 29.62 | L102: 28.93 | M102: 28.93 | N102: 28.93 | O102: 28.93 | P102: 28.93 | Q102: 30.21 | R102: 30.21 | S102: 30.21 | T102: 28.93 | U102: 28.93 | V102: 28.93 | W102: 28.93 | X102: 30.21 | Y102: 30.21 | Z102: 28.93 | AA102: 28.93 | AB102: 34.93 | AC102: 34.93 | AD102: 34.93 | AE102: 34.93 | AF102: 34.93 | AH102: =INDEX(X102:AF102,$AH$2) -> 34.93 | AI102: FALSE | AJ102: FALSE | AK102: 0 | AL102: FALSE | AM102: 2019 | AN102: 38.66343153 | AO102: 29.6905 | AP102: 38.56343153 | AQ102: 38.56343153 | AR102: =LOOKUP(E102,'Hourly Data Facility'!A:A,'Hourly Data Facility'!F:F) ->  | AS102: =LOOKUP(E102,'Hourly Data PVGIS'!B:B,'Hourly Data PVGIS'!G:G) -> 2.69 | AT102: 93.9617 | AU102: =LOOKUP(E102,'Hourly Data PVGIS'!B:B,'Hourly Data PVGIS'!D:D) -> 0 | AV102: 0 | AW102: 0 | AX102: 24 | AY102: 5 | AZ102: 27.16 | BA102: 15 | BB102: 49.51 | BC102: 22 | BD102: 27.7 | BE102: 14 | BF102: 47.34 | BG102: 24 | BH102: 100 | BI102: 0 | BJ102: 0 | BK102: 0 | BL102: 0 | BM102: 0 | BN102: 0 | BO102: 0 | BP102: =LOOKUP(F102,'Gas and Other'!B:B,'Gas and Other'!J:J) -> 3.620371406 | BQ102: 9.648181384 | BR102: 1 | BS102: Jul 2019 | BT102: FALSE | BU102: 97 | BW102: =IF(BT102,INDEX(AH102:BQ102,$BW$4),NA()) ->  | BX102: =IF(BT102,INDEX(AH102:BQ102,$BX$4),NA()) ->  | BY102: FALSE | CA102: =IF(BY102,INDEX(AH102:BQ102,$BW$4),NA()) ->  | CB102: =IF(BY102,INDEX(AH102:BQ102,$BX$4),NA()) ->  | CC102: 0 | CD102: 0
D103: 4513 | E103: 2019-07-07T23:59:59.992 | F103: 2019-07-31 | G103: Jul 2019 | H103: 2019 | I103: 01 - 02 | J103: 0 | K103: 29.03 | L103: 28.52 | M103: 28.52 | N103: 28.52 | O103: 28.52 | P103: 28.52 | Q103: 29.44 | R103: 29.44 | S103: 29.44 | T103: 28.52 | U103: 28.52 | V103: 28.52 | W103: 28.52 | X103: 29.44 | Y103: 29.44 | Z103: 28.52 | AA103: 28.52 | AB103: 30.11 | AC103: 30.11 | AD103: 30.11 | AE103: 30.11 | AF103: 30.11 | AH103: =INDEX(X103:AF103,$AH$2) -> 30.11 | AI103: FALSE | AJ103: FALSE | AK103: 0 | AL103: FALSE | AM103: 2019 | AN103: 38.66343153 | AO103: 25.5935 | AP103: 38.56343153 | AQ103: 38.56343153 | AR103: =LOOKUP(E103,'Hourly Data Facility'!A:A,'Hourly Data Facility'!F:F) ->  | AS103: =LOOKUP(E103,'Hourly Data PVGIS'!B:B,'Hourly Data PVGIS'!G:G) -> 2.41 | AT103: 72.5651 | AU103: =LOOKUP(E103,'Hourly Data PVGIS'!B:B,'Hourly Data PVGIS'!D:D) -> 0 | AV103: 0 | AW103: 0 | AX103: 1 | AY103: 6 | AZ103: 24.1 | BA103: 4 | BB103: 37.42 | BC103: 1 | BD103: 24.27 | BE103: 3 | BF103: 37.02 | BG103: 22 | BH103: 100 | BI103: 0 | BJ103: 30.11 | BK103: 0 | BL103: 0 | BM103: 0 | BN103: 0 | BO103: 0 | BP103: =LOOKUP(F103,'Gas and Other'!B:B,'Gas and Other'!J:J) -> 3.620371406 | BQ103: 8.316826266 | BR103: 1 | BS103: Jul 2019 | BT103: FALSE | BU103: 98 | BW103: =IF(BT103,INDEX(AH103:BQ103,$BW$4),NA()) ->  | BX103: =IF(BT103,INDEX(AH103:BQ103,$BX$4),NA()) ->  | BY103: FALSE | CA103: =IF(BY103,INDEX(AH103:BQ103,$BW$4),NA()) ->  | CB103: =IF(BY103,INDEX(AH103:BQ103,$BX$4),NA()) ->  | CC103: 0 | CD103: 0
D104: 4514 | E104: 2019-07-08T00:59:59.992 | F104: 2019-07-31 | G104: Jul 2019 | H104: 2019 | I104: 02 - 03 | J104: 1 | K104: 28.56 | L104: 28.18 | M104: 28.18 | N104: 28.18 | O104: 28.18 | P104: 28.18 | Q104: 29.16 | R104: 29.16 | S104: 29.16 | T104: 28.18 | U104: 28.18 | V104: 28.18 | W104: 28.18 | X104: 29.16 | Y104: 29.16 | Z104: 28.18 | AA104: 28.18 | AB104: 29.55 | AC104: 28.86 | AD104: 29.55 | AE104: 28.39 | AF104: 29.55 | AH104: =INDEX(X104:AF104,$AH$2) -> 29.55 | AI104: FALSE | AJ104: FALSE | AK104: 0 | AL104: FALSE | AM104: 2019 | AN104: 38.66343153 | AO104: 25.1175 | AP104: 38.56343153 | AQ104: 38.56343153 | AR104: =LOOKUP(E104,'Hourly Data Facility'!A:A,'Hourly Data Facility'!F:F) ->  | AS104: =LOOKUP(E104,'Hourly Data PVGIS'!B:B,'Hourly Data PVGIS'!G:G) -> 2.34 | AT104: 69.147 | AU104: =LOOKUP(E104,'Hourly Data PVGIS'!B:B,'Hourly Data PVGIS'!D:D) -> 0 | AV104: 0 | AW104: 0 | AX104: 2 | AY104: 6 | AZ104: 24.1 | BA104: 4 | BB104: 37.42 | BC104: 1 | BD104: 24.27 | BE104: 3 | BF104: 37.02 | BG104: 22 | BH104: 100 | BI104: 0 | BJ104: 0 | BK104: 0 | BL104: 0 | BM104: 0 | BN104: 0 | BO104: 0 | BP104: =LOOKUP(F104,'Gas and Other'!B:B,'Gas and Other'!J:J) -> 3.620371406 | BQ104: 8.162146004 | BR104: 1 | BS104: Jul 2019 | BT104: FALSE | BU104: 99 | BW104: =IF(BT104,INDEX(AH104:BQ104,$BW$4),NA()) ->  | BX104: =IF(BT104,INDEX(AH104:BQ104,$BX$4),NA()) ->  | BY104: FALSE | CA104: =IF(BY104,INDEX(AH104:BQ104,$BW$4),NA()) ->  | CB104: =IF(BY104,INDEX(AH104:BQ104,$BX$4),NA()) ->  | CC104: 0 | CD104: 0
D105: 4515 | E105: 2019-07-08T01:59:59.992 | F105: 2019-07-31 | G105: Jul 2019 | H105: 2019 | I105: 03 - 04 | J105: 2 | K105: 28.49 | L105: 27.95 | M105: 27.95 | N105: 27.95 | O105: 27.95 | P105: 27.95 | Q105: 29.31 | R105: 29.31 | S105: 29.31 | T105: 27.95 | U105: 27.95 | V105: 27.95 | W105: 27.95 | X105: 29.31 | Y105: 29.31 | Z105: 27.95 | AA105: 27.95 | AB105: 30.47 | AC105: 26.33 | AD105: 30.47 | AE105: 23.57 | AF105: 30.28 | AH105: =INDEX(X105:AF105,$AH$2) -> 30.28 | AI105: FALSE | AJ105: FALSE | AK105: 0 | AL105: FALSE | AM105: 2019 | AN105: 38.66343153 | AO105: 25.738 | AP105: 38.56343153 | AQ105: 38.56343153 | AR105: =LOOKUP(E105,'Hourly Data Facility'!A:A,'Hourly Data Facility'!F:F) ->  | AS105: =LOOKUP(E105,'Hourly Data PVGIS'!B:B,'Hourly Data PVGIS'!G:G) -> 2.76 | AT105: 83.5728 | AU105: =LOOKUP(E105,'Hourly Data PVGIS'!B:B,'Hourly Data PVGIS'!D:D) -> 0 | AV105: 0 | AW105: 0 | AX105: 3 | AY105: 6 | AZ105: 24.1 | BA105: 4 | BB105: 37.42 | BC105: 1 | BD105: 24.27 | BE105: 3 | BF105: 37.02 | BG105: 22 | BH105: 100 | BI105: 0 | BJ105: 0 | BK105: 0 | BL105: 0 | BM105: 0 | BN105: 0 | BO105: 0 | BP105: =LOOKUP(F105,'Gas and Other'!B:B,'Gas and Other'!J:J) -> 3.620371406 | BQ105: 8.363782775 | BR105: 1 | BS105: Jul 2019 | BT105: FALSE | BU105: 100 | BW105: =IF(BT105,INDEX(AH105:BQ105,$BW$4),NA()) ->  | BX105: =IF(BT105,INDEX(AH105:BQ105,$BX$4),NA()) ->  | BY105: FALSE | CA105: =IF(BY105,INDEX(AH105:BQ105,$BW$4),NA()) ->  | CB105: =IF(BY105,INDEX(AH105:BQ105,$BX$4),NA()) ->  | CC105: 0 | CD105: 0
D106: 4516 | E106: 2019-07-08T02:59:59.992 | F106: 2019-07-31 | G106: Jul 2019 | H106: 2019 | I106: 04 - 05 | J106: 3 | K106: 28.53 | L106: 28.26 | M106: 28.26 | N106: 28.26 | O106: 28.26 | P106: 28.26 | Q106: 29.08 | R106: 29.08 | S106: 29.08 | T106: 28.26 | U106: 28.26 | V106: 28.26 | W106: 28.26 | X106: 29.08 | Y106: 29.08 | Z106: 28.26 | AA106: 28.26 | AB106: 30.04 | AC106: 24.94 | AD106: 30.04 | AE106: 21.38 | AF106: 30.04 | AH106: =INDEX(X106:AF106,$AH$2) -> 30.04 | AI106: FALSE | AJ106: FALSE | AK106: 0 | AL106: FALSE | AM106: 2019 | AN106: 38.66343153 | AO106: 25.534 | AP106: 38.56343153 | AQ106: 38.56343153 | AR106: =LOOKUP(E106,'Hourly Data Facility'!A:A,'Hourly Data Facility'!F:F) ->  | AS106: =LOOKUP(E106,'Hourly Data PVGIS'!B:B,'Hourly Data PVGIS'!G:G) -> 3.17 | AT106: 95.2268 | AU106: =LOOKUP(E106,'Hourly Data PVGIS'!B:B,'Hourly Data PVGIS'!D:D) -> 0 | AV106: 0 | AW106: 0 | AX106: 4 | AY106: 6 | AZ106: 24.1 | BA106: 4 | BB106: 37.42 | BC106: 1 | BD106: 24.27 | BE106: 3 | BF106: 37.02 | BG106: 22 | BH106: 100 | BI106: 24.1 | BJ106: 0 | BK106: 0 | BL106: 100 | BM106: 0 | BN106: 100 | BO106: -2410 | BP106: =LOOKUP(F106,'Gas and Other'!B:B,'Gas and Other'!J:J) -> 3.620371406 | BQ106: 8.297491233 | BR106: 1 | BS106: Jul 2019 | BT106: FALSE | BU106: 101 | BW106: =IF(BT106,INDEX(AH106:BQ106,$BW$4),NA()) ->  | BX106: =IF(BT106,INDEX(AH106:BQ106,$BX$4),NA()) ->  | BY106: FALSE | CA106: =IF(BY106,INDEX(AH106:BQ106,$BW$4),NA()) ->  | CB106: =IF(BY106,INDEX(AH106:BQ106,$BX$4),NA()) ->  | CC106: 0 | CD106: 0
D107: 4517 | E107: 2019-07-08T03:59:59.992 | F107: 2019-07-31 | G107: Jul 2019 | H107: 2019 | I107: 05 - 06 | J107: 4 | K107: 29.11 | L107: 29.16 | M107: 29.16 | N107: 29.16 | O107: 29.16 | P107: 29.16 | Q107: 29.16 | R107: 29.16 | S107: 29.16 | T107: 29.16 | U107: 29.16 | V107: 29.16 | W107: 29.16 | X107: 29.16 | Y107: 29.16 | Z107: 29.16 | AA107: 29.16 | AB107: 30.1 | AC107: 28.64 | AD107: 30.1 | AE107: 27.69 | AF107: 30.02 | AH107: =INDEX(X107:AF107,$AH$2) -> 30.02 | AI107: FALSE | AJ107: FALSE | AK107: 0 | AL107: FALSE | AM107: 2019 | AN107: 38.66343153 | AO107: 25.517 | AP107: 38.56343153 | AQ107: 38.56343153 | AR107: =LOOKUP(E107,'Hourly Data Facility'!A:A,'Hourly Data Facility'!F:F) ->  | AS107: =LOOKUP(E107,'Hourly Data PVGIS'!B:B,'Hourly Data PVGIS'!G:G) -> 3.66 | AT107: 109.8732 | AU107: =LOOKUP(E107,'Hourly Data PVGIS'!B:B,'Hourly Data PVGIS'!D:D) -> 0 | AV107: 0 | AW107: 0 | AX107: 5 | AY107: 6 | AZ107: 24.1 | BA107: 4 | BB107: 37.42 | BC107: 1 | BD107: 24.27 | BE107: 3 | BF107: 37.02 | BG107: 22 | BH107: 100 | BI107: 0 | BJ107: 0 | BK107: 100 | BL107: 0 | BM107: 0 | BN107: 100 | BO107: 0 | BP107: =LOOKUP(F107,'Gas and Other'!B:B,'Gas and Other'!J:J) -> 3.620371406 | BQ107: 8.291966938 | BR107: 1 | BS107: Jul 2019 | BT107: FALSE | BU107: 102 | BW107: =IF(BT107,INDEX(AH107:BQ107,$BW$4),NA()) ->  | BX107: =IF(BT107,INDEX(AH107:BQ107,$BX$4),NA()) ->  | BY107: FALSE | CA107: =IF(BY107,INDEX(AH107:BQ107,$BW$4),NA()) ->  | CB107: =IF(BY107,INDEX(AH107:BQ107,$BX$4),NA()) ->  | CC107: 0 | CD107: 0
D108: 4518 | E108: 2019-07-08T04:59:59.992 | F108: 2019-07-31 | G108: Jul 2019 | H108: 2019 | I108: 06 - 07 | J108: 5 | K108: 31.18 | L108: 30.86 | M108: 30.86 | N108: 31.4 | O108: 31.4 | P108: 33.78 | Q108: 31.4 | R108: 31.4 | S108: 31.4 | T108: 30.86 | U108: 30.86 | V108: 30.86 | W108: 33.78 | X108: 31.4 | Y108: 31.4 | Z108: 33.78 | AA108: 33.78 | AB108: 34.9 | AC108: 32.73 | AD108: 34.9 | AE108: 31.3 | AF108: 34.76 | AH108: =INDEX(X108:AF108,$AH$2) -> 34.76 | AI108: FALSE | AJ108: FALSE | AK108: 0 | AL108: FALSE | AM108: 2019 | AN108: 38.66343153 | AO108: 29.546 | AP108: 38.56343153 | AQ108: 38.56343153 | AR108: =LOOKUP(E108,'Hourly Data Facility'!A:A,'Hourly Data Facility'!F:F) ->  | AS108: =LOOKUP(E108,'Hourly Data PVGIS'!B:B,'Hourly Data PVGIS'!G:G) -> 4.21 | AT108: 146.3396 | AU108: =LOOKUP(E108,'Hourly Data PVGIS'!B:B,'Hourly Data PVGIS'!D:D) -> 0 | AV108: 0 | AW108: 0 | AX108: 6 | AY108: 6 | AZ108: 24.1 | BA108: 4 | BB108: 37.42 | BC108: 1 | BD108: 24.27 | BE108: 3 | BF108: 37.02 | BG108: 22 | BH108: 100 | BI108: 0 | BJ108: 0 | BK108: 100 | BL108: 0 | BM108: 0 | BN108: 100 | BO108: 0 | BP108: =LOOKUP(F108,'Gas and Other'!B:B,'Gas and Other'!J:J) -> 3.620371406 | BQ108: 9.601224876 | BR108: 1 | BS108: Jul 2019 | BT108: FALSE | BU108: 103 | BW108: =IF(BT108,INDEX(AH108:BQ108,$BW$4),NA()) ->  | BX108: =IF(BT108,INDEX(AH108:BQ108,$BX$4),NA()) ->  | BY108: FALSE | CA108: =IF(BY108,INDEX(AH108:BQ108,$BW$4),NA()) ->  | CB108: =IF(BY108,INDEX(AH108:BQ108,$BX$4),NA()) ->  | CC108: 0 | CD108: 0
D109: 4519 | E109: 2019-07-08T05:59:59.992 | F109: 2019-07-31 | G109: Jul 2019 | H109: 2019 | I109: 07 - 08 | J109: 6 | K109: 31.4 | L109: 29.67 | M109: 29.67 | N109: 31.84 | O109: 38.12 | P109: 36.68 | Q109: 31.84 | R109: 31.84 | S109: 31.84 | T109: 29.67 | U109: 29.67 | V109: 29.67 | W109: 50.62 | X109: 39.06 | Y109: 39.06 | Z109: 50.62 | AA109: 50.62 | AB109: 39.06 | AC109: 39.06 | AD109: 39.06 | AE109: 39.06 | AF109: 39.06 | AH109: =INDEX(X109:AF109,$AH$2) -> 39.06 | AI109: FALSE | AJ109: FALSE | AK109: 0 | AL109: FALSE | AM109: 2019 | AN109: 38.66343153 | AO109: 33.201 | AP109: 38.56343153 | AQ109: 38.56343153 | AR109: =LOOKUP(E109,'Hourly Data Facility'!A:A,'Hourly Data Facility'!F:F) ->  | AS109: =LOOKUP(E109,'Hourly Data PVGIS'!B:B,'Hourly Data PVGIS'!G:G) -> 4.62 | AT109: 180.4572 | AU109: =LOOKUP(E109,'Hourly Data PVGIS'!B:B,'Hourly Data PVGIS'!D:D) -> 2.42 | AV109: 94.5252 | AW109: 93.3235043 | AX109: 7 | AY109: 6 | AZ109: 24.1 | BA109: 4 | BB109: 37.42 | BC109: 1 | BD109: 24.27 | BE109: 3 | BF109: 37.02 | BG109: 22 | BH109: 100 | BI109: 0 | BJ109: 0 | BK109: 100 | BL109: 0 | BM109: 0 | BN109: 100 | BO109: 0 | BP109: =LOOKUP(F109,'Gas and Other'!B:B,'Gas and Other'!J:J) -> 3.620371406 | BQ109: 10.78894832 | BR109: 1 | BS109: Jul 2019 | BT109: FALSE | BU109: 104 | BW109: =IF(BT109,INDEX(AH109:BQ109,$BW$4),NA()) ->  | BX109: =IF(BT109,INDEX(AH109:BQ109,$BX$4),NA()) ->  | BY109: FALSE | CA109: =IF(BY109,INDEX(AH109:BQ109,$BW$4),NA()) ->  | CB109: =IF(BY109,INDEX(AH109:BQ109,$BX$4),NA()) ->  | CC109: 0 | CD109: 0
D110: 4520 | E110: 2019-07-08T06:59:59.992 | F110: 2019-07-31 | G110: Jul 2019 | H110: 2019 | I110: 08 - 09 | J110: 7 | K110: 31.66 | L110: 29.15 | M110: 29.15 | N110: 33.91 | O110: 39.03 | P110: 36.72 | Q110: 33.91 | R110: 33.91 | S110: 33.91 | T110: 29.15 | U110: 29.15 | V110: 29.15 | W110: 54 | X110: 39.99 | Y110: 39.99 | Z110: 54 | AA110: 54 | AB110: 39.99 | AC110: 39.99 | AD110: 39.99 | AE110: 39.99 | AF110: 39.99 | AH110: =INDEX(X110:AF110,$AH$2) -> 39.99 | AI110: FALSE | AJ110: FALSE | AK110: 0 | AL110: FALSE | AM110: 2019 | AN110: 38.66343153 | AO110: 33.9915 | AP110: 38.56343153 | AQ110: 38.56343153 | AR110: =LOOKUP(E110,'Hourly Data Facility'!A:A,'Hourly Data Facility'!F:F) ->  | AS110: =LOOKUP(E110,'Hourly Data PVGIS'!B:B,'Hourly Data PVGIS'!G:G) -> 5.1 | AT110: 203.949 | AU110: =LOOKUP(E110,'Hourly Data PVGIS'!B:B,'Hourly Data PVGIS'!D:D) -> 68.43 | AV110: 2736.5157 | AW110: 2638.89562 | AX110: 8 | AY110: 6 | AZ110: 24.1 | BA110: 4 | BB110: 37.42 | BC110: 1 | BD110: 24.27 | BE110: 3 | BF110: 37.02 | BG110: 22 | BH110: 100 | BI110: 0 | BJ110: 0 | BK110: 100 | BL110: 0 | BM110: 0 | BN110: 100 | BO110: 0 | BP110: =LOOKUP(F110,'Gas and Other'!B:B,'Gas and Other'!J:J) -> 3.620371406 | BQ110: 11.04582804 | BR110: 1 | BS110: Jul 2019 | BT110: FALSE | BU110: 105 | BW110: =IF(BT110,INDEX(AH110:BQ110,$BW$4),NA()) ->  | BX110: =IF(BT110,INDEX(AH110:BQ110,$BX$4),NA()) ->  | BY110: FALSE | CA110: =IF(BY110,INDEX(AH110:BQ110,$BW$4),NA()) ->  | CB110: =IF(BY110,INDEX(AH110:BQ110,$BX$4),NA()) ->  | CC110: 0 | CD110: 0
D111: 4521 | E111: 2019-07-08T07:59:59.992 | F111: 2019-07-31 | G111: Jul 2019 | H111: 2019 | I111: 09 - 10 | J111: 8 | K111: 31.5 | L111: 28.36 | M111: 28.36 | N111: 33.99 | O111: 37.66 | P111: 37.75 | Q111: 33.99 | R111: 33.99 | S111: 33.99 | T111: 28.36 | U111: 28.36 | V111: 28.36 | W111: 54.13 | X111: 38.59 | Y111: 38.59 | Z111: 54.13 | AA111: 54.13 | AB111: 38.59 | AC111: 38.59 | AD111: 38.59 | AE111: 38.59 | AF111: 38.59 | AH111: =INDEX(X111:AF111,$AH$2) -> 38.59 | AI111: FALSE | AJ111: FALSE | AK111: 0 | AL111: FALSE | AM111: 2019 | AN111: 38.66343153 | AO111: 32.8015 | AP111: 38.56343153 | AQ111: 38.56343153 | AR111: =LOOKUP(E111,'Hourly Data Facility'!A:A,'Hourly Data Facility'!F:F) ->  | AS111: =LOOKUP(E111,'Hourly Data PVGIS'!B:B,'Hourly Data PVGIS'!G:G) -> 5.86 | AT111: 226.1374 | AU111: =LOOKUP(E111,'Hourly Data PVGIS'!B:B,'Hourly Data PVGIS'!D:D) -> 102.16 | AV111: 3942.3544 | AW111: 3939.640165 | AX111: 9 | AY111: 6 | AZ111: 24.1 | BA111: 4 | BB111: 37.42 | BC111: 1 | BD111: 24.27 | BE111: 3 | BF111: 37.02 | BG111: 22 | BH111: 100 | BI111: 0 | BJ111: 0 | BK111: 100 | BL111: 0 | BM111: 0 | BN111: 100 | BO111: 0 | BP111: =LOOKUP(F111,'Gas and Other'!B:B,'Gas and Other'!J:J) -> 3.620371406 | BQ111: 10.65912739 | BR111: 1 | BS111: Jul 2019 | BT111: FALSE | BU111: 106 | BW111: =IF(BT111,INDEX(AH111:BQ111,$BW$4),NA()) ->  | BX111: =IF(BT111,INDEX(AH111:BQ111,$BX$4),NA()) ->  | BY111: FALSE | CA111: =IF(BY111,INDEX(AH111:BQ111,$BW$4),NA()) ->  | CB111: =IF(BY111,INDEX(AH111:BQ111,$BX$4),NA()) ->  | CC111: 0 | CD111: 0
D112: 4522 | E112: 2019-07-08T08:59:59.992 | F112: 2019-07-31 | G112: Jul 2019 | H112: 2019 | I112: 10 - 11 | J112: 9 | K112: 31.52 | L112: 28.49 | M112: 28.49 | N112: 33.97 | O112: 36.39 | P112: 36.7 | Q112: 33.97 | R112: 33.97 | S112: 33.97 | T112: 28.49 | U112: 28.49 | V112: 28.49 | W112: 54.11 | X112: 37.29 | Y112: 37.29 | Z112: 54.11 | AA112: 54.11 | AB112: 37.29 | AC112: 37.29 | AD112: 37.29 | AE112: 37.29 | AF112: 37.29 | AH112: =INDEX(X112:AF112,$AH$2) -> 37.29 | AI112: FALSE | AJ112: FALSE | AK112: 0 | AL112: FALSE | AM112: 2019 | AN112: 38.66343153 | AO112: 31.6965 | AP112: 38.56343153 | AQ112: 38.56343153 | AR112: =LOOKUP(E112,'Hourly Data Facility'!A:A,'Hourly Data Facility'!F:F) ->  | AS112: =LOOKUP(E112,'Hourly Data PVGIS'!B:B,'Hourly Data PVGIS'!G:G) -> 6.07 | AT112: 226.3503 | AU112: =LOOKUP(E112,'Hourly Data PVGIS'!B:B,'Hourly Data PVGIS'!D:D) -> 293 | AV112: 10925.97 | AW112: 11299.08544 | AX112: 10 | AY112: 6 | AZ112: 24.1 | BA112: 4 | BB112: 37.42 | BC112: 1 | BD112: 24.27 | BE112: 3 | BF112: 37.02 | BG112: 22 | BH112: 100 | BI112: 0 | BJ112: 0 | BK112: 100 | BL112: 0 | BM112: 0 | BN112: 100 | BO112: 0 | BP112: =LOOKUP(F112,'Gas and Other'!B:B,'Gas and Other'!J:J) -> 3.620371406 | BQ112: 10.30004821 | BR112: 1 | BS112: Jul 2019 | BT112: FALSE | BU112: 107 | BW112: =IF(BT112,INDEX(AH112:BQ112,$BW$4),NA()) ->  | BX112: =IF(BT112,INDEX(AH112:BQ112,$BX$4),NA()) ->  | BY112: FALSE | CA112: =IF(BY112,INDEX(AH112:BQ112,$BW$4),NA()) ->  | CB112: =IF(BY112,INDEX(AH112:BQ112,$BX$4),NA()) ->  | CC112: 0 | CD112: 0
D113: 4523 | E113: 2019-07-08T09:59:59.992 | F113: 2019-07-31 | G113: Jul 2019 | H113: 2019 | I113: 11 - 12 | J113: 10 | K113: 31.28 | L113: 28.58 | M113: 28.58 | N113: 32.13 | O113: 38.98 | P113: 37.58 | Q113: 32.13 | R113: 32.13 | S113: 32.13 | T113: 28.58 | U113: 28.58 | V113: 28.58 | W113: 54.7 | X113: 39.94 | Y113: 39.94 | Z113: 54.7 | AA113: 54.7 | AB113: 39.94 | AC113: 39.94 | AD113: 39.94 | AE113: 39.94 | AF113: 39.94 | AH113: =INDEX(X113:AF113,$AH$2) -> 39.94 | AI113: FALSE | AJ113: FALSE | AK113: 0 | AL113: FALSE | AM113: 2019 | AN113: 38.66343153 | AO113: 33.949 | AP113: 38.56343153 | AQ113: 38.56343153 | AR113: =LOOKUP(E113,'Hourly Data Facility'!A:A,'Hourly Data Facility'!F:F) ->  | AS113: =LOOKUP(E113,'Hourly Data PVGIS'!B:B,'Hourly Data PVGIS'!G:G) -> 6.14 | AT113: 245.2316 | AU113: =LOOKUP(E113,'Hourly Data PVGIS'!B:B,'Hourly Data PVGIS'!D:D) -> 202.42 | AV113: 8084.6548 | AW113: 7806.00981 | AX113: 11 | AY113: 6 | AZ113: 24.1 | BA113: 4 | BB113: 37.42 | BC113: 1 | BD113: 24.27 | BE113: 3 | BF113: 37.02 | BG113: 22 | BH113: 100 | BI113: 0 | BJ113: 0 | BK113: 100 | BL113: 0 | BM113: 0 | BN113: 100 | BO113: 0 | BP113: =LOOKUP(F113,'Gas and Other'!B:B,'Gas and Other'!J:J) -> 3.620371406 | BQ113: 11.03201731 | BR113: 1 | BS113: Jul 2019 | BT113: FALSE | BU113: 108 | BW113: =IF(BT113,INDEX(AH113:BQ113,$BW$4),NA()) ->  | BX113: =IF(BT113,INDEX(AH113:BQ113,$BX$4),NA()) ->  | BY113: FALSE | CA113: =IF(BY113,INDEX(AH113:BQ113,$BW$4),NA()) ->  | CB113: =IF(BY113,INDEX(AH113:BQ113,$BX$4),NA()) ->  | CC113: 0 | CD113: 0
D114: 4524 | E114: 2019-07-08T10:59:59.992 | F114: 2019-07-31 | G114: Jul 2019 | H114: 2019 | I114: 12 - 13 | J114: 11 | K114: 31.3 | L114: 28.74 | M114: 28.74 | N114: 31.9 | O114: 37.75 | P114: 39.31 | Q114: 31.9 | R114: 31.9 | S114: 31.9 | T114: 28.74 | U114: 28.74 | V114: 28.74 | W114: 53.37 | X114: 38.68 | Y114: 38.68 | Z114: 53.37 | AA114: 53.37 | AB114: 38.68 | AC114: 38.68 | AD114: 38.68 | AE114: 38.68 | AF114: 38.68 | AH114: =INDEX(X114:AF114,$AH$2) -> 38.68 | AI114: FALSE | AJ114: FALSE | AK114: 0 | AL114: FALSE | AM114: 2019 | AN114: 38.66343153 | AO114: 32.878 | AP114: 38.56343153 | AQ114: 38.56343153 | AR114: =LOOKUP(E114,'Hourly Data Facility'!A:A,'Hourly Data Facility'!F:F) ->  | AS114: =LOOKUP(E114,'Hourly Data PVGIS'!B:B,'Hourly Data PVGIS'!G:G) -> 6.28 | AT114: 242.9104 | AU114: =LOOKUP(E114,'Hourly Data PVGIS'!B:B,'Hourly Data PVGIS'!D:D) -> 418.59 | AV114: 16191.0612 | AW114: 16142.2668 | AX114: 12 | AY114: 6 | AZ114: 24.1 | BA114: 4 | BB114: 37.42 | BC114: 1 | BD114: 24.27 | BE114: 3 | BF114: 37.02 | BG114: 22 | BH114: 100 | BI114: 0 | BJ114: 0 | BK114: 100 | BL114: 0 | BM114: 0 | BN114: 100 | BO114: 0 | BP114: =LOOKUP(F114,'Gas and Other'!B:B,'Gas and Other'!J:J) -> 3.620371406 | BQ114: 10.68398671 | BR114: 1 | BS114: Jul 2019 | BT114: FALSE | BU114: 109 | BW114: =IF(BT114,INDEX(AH114:BQ114,$BW$4),NA()) ->  | BX114: =IF(BT114,INDEX(AH114:BQ114,$BX$4),NA()) ->  | BY114: FALSE | CA114: =IF(BY114,INDEX(AH114:BQ114,$BW$4),NA()) ->  | CB114: =IF(BY114,INDEX(AH114:BQ114,$BX$4),NA()) ->  | CC114: 0 | CD114: 0
D115: 4525 | E115: 2019-07-08T11:59:59.992 | F115: 2019-07-31 | G115: Jul 2019 | H115: 2019 | I115: 13 - 14 | J115: 12 | K115: 31.14 | L115: 28.58 | M115: 28.58 | N115: 31.75 | O115: 34.25 | P115: 37.93 | Q115: 31.75 | R115: 31.75 | S115: 31.75 | T115: 28.58 | U115: 28.58 | V115: 28.58 | W115: 52.54 | X115: 35.09 | Y115: 35.09 | Z115: 52.54 | AA115: 52.54 | AB115: 35.09 | AC115: 35.09 | AD115: 35.09 | AE115: 35.09 | AF115: 35.09 | AH115: =INDEX(X115:AF115,$AH$2) -> 35.09 | AI115: FALSE | AJ115: FALSE | AK115: 0 | AL115: FALSE | AM115: 2019 | AN115: 38.66343153 | AO115: 29.8265 | AP115: 38.56343153 | AQ115: 38.56343153 | AR115: =LOOKUP(E115,'Hourly Data Facility'!A:A,'Hourly Data Facility'!F:F) ->  | AS115: =LOOKUP(E115,'Hourly Data PVGIS'!B:B,'Hourly Data PVGIS'!G:G) -> 6.34 | AT115: 222.4706 | AU115: =LOOKUP(E115,'Hourly Data PVGIS'!B:B,'Hourly Data PVGIS'!D:D) -> 468.25 | AV115: 16430.8925 | AW115: 18057.32681 | AX115: 13 | AY115: 6 | AZ115: 24.1 | BA115: 4 | BB115: 37.42 | BC115: 1 | BD115: 24.27 | BE115: 3 | BF115: 37.02 | BG115: 22 | BH115: 100 | BI115: 0 | BJ115: 0 | BK115: 100 | BL115: 0 | BM115: 0 | BN115: 100 | BO115: 0 | BP115: =LOOKUP(F115,'Gas and Other'!B:B,'Gas and Other'!J:J) -> 3.620371406 | BQ115: 9.692375745 | BR115: 1 | BS115: Jul 2019 | BT115: FALSE | BU115: 110 | BW115: =IF(BT115,INDEX(AH115:BQ115,$BW$4),NA()) ->  | BX115: =IF(BT115,INDEX(AH115:BQ115,$BX$4),NA()) ->  | BY115: FALSE | CA115: =IF(BY115,INDEX(AH115:BQ115,$BW$4),NA()) ->  | CB115: =IF(BY115,INDEX(AH115:BQ115,$BX$4),NA()) ->  | CC115: 0 | CD115: 0
D116: 4526 | E116: 2019-07-08T12:59:59.992 | F116: 2019-07-31 | G116: Jul 2019 | H116: 2019 | I116: 14 - 15 | J116: 13 | K116: 31.03 | L116: 28.74 | M116: 28.74 | N116: 31.65 | O116: 32.67 | P116: 34.98 | Q116: 31.65 | R116: 31.65 | S116: 31.65 | T116: 28.74 | U116: 28.74 | V116: 28.74 | W116: 51.1 | X116: 33.48 | Y116: 33.48 | Z116: 51.1 | AA116: 51.1 | AB116: 33.48 | AC116: 33.48 | AD116: 33.48 | AE116: 33.48 | AF116: 33.48 | AH116: =INDEX(X116:AF116,$AH$2) -> 33.48 | AI116: FALSE | AJ116: FALSE | AK116: 0 | AL116: FALSE | AM116: 2019 | AN116: 38.66343153 | AO116: 28.458 | AP116: 38.56343153 | AQ116: 38.56343153 | AR116: =LOOKUP(E116,'Hourly Data Facility'!A:A,'Hourly Data Facility'!F:F) ->  | AS116: =LOOKUP(E116,'Hourly Data PVGIS'!B:B,'Hourly Data PVGIS'!G:G) -> 6.41 | AT116: 214.6068 | AU116: =LOOKUP(E116,'Hourly Data PVGIS'!B:B,'Hourly Data PVGIS'!D:D) -> 413.53 | AV116: 13844.9844 | AW116: 15947.13584 | AX116: 14 | AY116: 6 | AZ116: 24.1 | BA116: 4 | BB116: 37.42 | BC116: 1 | BD116: 24.27 | BE116: 3 | BF116: 37.02 | BG116: 22 | BH116: 100 | BI116: 0 | BJ116: 0 | BK116: 100 | BL116: 0 | BM116: 0 | BN116: 100 | BO116: 0 | BP116: =LOOKUP(F116,'Gas and Other'!B:B,'Gas and Other'!J:J) -> 3.620371406 | BQ116: 9.24766999 | BR116: 1 | BS116: Jul 2019 | BT116: FALSE | BU116: 111 | BW116: =IF(BT116,INDEX(AH116:BQ116,$BW$4),NA()) ->  | BX116: =IF(BT116,INDEX(AH116:BQ116,$BX$4),NA()) ->  | BY116: FALSE | CA116: =IF(BY116,INDEX(AH116:BQ116,$BW$4),NA()) ->  | CB116: =IF(BY116,INDEX(AH116:BQ116,$BX$4),NA()) ->  | CC116: 0 | CD116: 0
D117: 4527 | E117: 2019-07-08T13:59:59.992 | F117: 2019-07-31 | G117: Jul 2019 | H117: 2019 | I117: 15 - 16 | J117: 14 | K117: 31.27 | L117: 29.43 | M117: 29.43 | N117: 31.69 | O117: 32.95 | P117: 36.4 | Q117: 31.69 | R117: 31.69 | S117: 31.69 | T117: 29.43 | U117: 29.43 | V117: 29.43 | W117: 51.73 | X117: 33.76 | Y117: 33.76 | Z117: 51.73 | AA117: 51.73 | AB117: 33.76 | AC117: 33.76 | AD117: 33.76 | AE117: 33.76 | AF117: 33.76 | AH117: =INDEX(X117:AF117,$AH$2) -> 33.76 | AI117: FALSE | AJ117: FALSE | AK117: 0 | AL117: FALSE | AM117: 2019 | AN117: 38.66343153 | AO117: 28.696 | AP117: 38.56343153 | AQ117: 38.56343153 | AR117: =LOOKUP(E117,'Hourly Data Facility'!A:A,'Hourly Data Facility'!F:F) ->  | AS117: =LOOKUP(E117,'Hourly Data PVGIS'!B:B,'Hourly Data PVGIS'!G:G) -> 6.41 | AT117: 216.4016 | AU117: =LOOKUP(E117,'Hourly Data PVGIS'!B:B,'Hourly Data PVGIS'!D:D) -> 497.81 | AV117: 16806.0656 | AW117: 19197.26185 | AX117: 15 | AY117: 6 | AZ117: 24.1 | BA117: 4 | BB117: 37.42 | BC117: 1 | BD117: 24.27 | BE117: 3 | BF117: 37.02 | BG117: 22 | BH117: 100 | BI117: 0 | BJ117: 0 | BK117: 100 | BL117: 0 | BM117: 0 | BN117: 100 | BO117: 0 | BP117: =LOOKUP(F117,'Gas and Other'!B:B,'Gas and Other'!J:J) -> 3.620371406 | BQ117: 9.325010121 | BR117: 1 | BS117: Jul 2019 | BT117: FALSE | BU117: 112 | BW117: =IF(BT117,INDEX(AH117:BQ117,$BW$4),NA()) ->  | BX117: =IF(BT117,INDEX(AH117:BQ117,$BX$4),NA()) ->  | BY117: FALSE | CA117: =IF(BY117,INDEX(AH117:BQ117,$BW$4),NA()) ->  | CB117: =IF(BY117,INDEX(AH117:BQ117,$BX$4),NA()) ->  | CC117: 0 | CD117: 0
D118: 4528 | E118: 2019-07-08T14:59:59.992 | F118: 2019-07-31 | G118: Jul 2019 | H118: 2019 | I118: 16 - 17 | J118: 15 | K118: 31.16 | L118: 29.49 | M118: 29.49 | N118: 31.6 | O118: 33.64 | P118: 33.23 | Q118: 31.6 | R118: 31.6 | S118: 31.6 | T118: 29.49 | U118: 29.49 | V118: 29.49 | W118: 49.22 | X118: 34.47 | Y118: 34.47 | Z118: 49.22 | AA118: 49.22 | AB118: 34.47 | AC118: 34.47 | AD118: 34.47 | AE118: 34.47 | AF118: 34.47 | AH118: =INDEX(X118:AF118,$AH$2) -> 34.47 | AI118: FALSE | AJ118: FALSE | AK118: 0 | AL118: FALSE | AM118: 2019 | AN118: 38.66343153 | AO118: 29.2995 | AP118: 38.56343153 | AQ118: 38.56343153 | AR118: =LOOKUP(E118,'Hourly Data Facility'!A:A,'Hourly Data Facility'!F:F) ->  | AS118: =LOOKUP(E118,'Hourly Data PVGIS'!B:B,'Hourly Data PVGIS'!G:G) -> 6.48 | AT118: 223.3656 | AU118: =LOOKUP(E118,'Hourly Data PVGIS'!B:B,'Hourly Data PVGIS'!D:D) -> 538.78 | AV118: 18571.7466 | AW118: 20777.20564 | AX118: 16 | AY118: 6 | AZ118: 24.1 | BA118: 4 | BB118: 37.42 | BC118: 1 | BD118: 24.27 | BE118: 3 | BF118: 37.02 | BG118: 22 | BH118: 100 | BI118: 0 | BJ118: 0 | BK118: 100 | BL118: 0 | BM118: 0 | BN118: 100 | BO118: 0 | BP118: =LOOKUP(F118,'Gas and Other'!B:B,'Gas and Other'!J:J) -> 3.620371406 | BQ118: 9.521122597 | BR118: 1 | BS118: Jul 2019 | BT118: FALSE | BU118: 113 | BW118: =IF(BT118,INDEX(AH118:BQ118,$BW$4),NA()) ->  | BX118: =IF(BT118,INDEX(AH118:BQ118,$BX$4),NA()) ->  | BY118: FALSE | CA118: =IF(BY118,INDEX(AH118:BQ118,$BW$4),NA()) ->  | CB118: =IF(BY118,INDEX(AH118:BQ118,$BX$4),NA()) ->  | CC118: 0 | CD118: 0
D119: 4529 | E119: 2019-07-08T15:59:59.992 | F119: 2019-07-31 | G119: Jul 2019 | H119: 2019 | I119: 17 - 18 | J119: 16 | K119: 31.21 | L119: 29.48 | M119: 29.48 | N119: 31.57 | O119: 34.08 | P119: 36.6 | Q119: 31.57 | R119: 31.57 | S119: 31.57 | T119: 29.48 | U119: 29.48 | V119: 29.48 | W119: 44.75 | X119: 34.92 | Y119: 34.92 | Z119: 44.75 | AA119: 44.75 | AB119: 34.92 | AC119: 34.92 | AD119: 34.92 | AE119: 34.92 | AF119: 34.92 | AH119: =INDEX(X119:AF119,$AH$2) -> 34.92 | AI119: FALSE | AJ119: FALSE | AK119: 0 | AL119: FALSE | AM119: 2019 | AN119: 38.66343153 | AO119: 29.682 | AP119: 38.56343153 | AQ119: 38.56343153 | AR119: =LOOKUP(E119,'Hourly Data Facility'!A:A,'Hourly Data Facility'!F:F) ->  | AS119: =LOOKUP(E119,'Hourly Data PVGIS'!B:B,'Hourly Data PVGIS'!G:G) -> 6.55 | AT119: 228.726 | AU119: =LOOKUP(E119,'Hourly Data PVGIS'!B:B,'Hourly Data PVGIS'!D:D) -> 516.64 | AV119: 18041.0688 | AW119: 19923.41127 | AX119: 17 | AY119: 6 | AZ119: 24.1 | BA119: 4 | BB119: 37.42 | BC119: 1 | BD119: 24.27 | BE119: 3 | BF119: 37.02 | BG119: 22 | BH119: 100 | BI119: 0 | BJ119: 0 | BK119: 100 | BL119: 0 | BM119: 0 | BN119: 100 | BO119: 0 | BP119: =LOOKUP(F119,'Gas and Other'!B:B,'Gas and Other'!J:J) -> 3.620371406 | BQ119: 9.645419237 | BR119: 1 | BS119: Jul 2019 | BT119: FALSE | BU119: 114 | BW119: =IF(BT119,INDEX(AH119:BQ119,$BW$4),NA()) ->  | BX119: =IF(BT119,INDEX(AH119:BQ119,$BX$4),NA()) ->  | BY119: FALSE | CA119: =IF(BY119,INDEX(AH119:BQ119,$BW$4),NA()) ->  | CB119: =IF(BY119,INDEX(AH119:BQ119,$BX$4),NA()) ->  | CC119: 0 | CD119: 0
D120: 4530 | E120: 2019-07-08T16:59:59.992 | F120: 2019-07-31 | G120: Jul 2019 | H120: 2019 | I120: 18 - 19 | J120: 17 | K120: 31.49 | L120: 30.07 | M120: 30.07 | N120: 31.87 | O120: 37.08 | P120: 34.85 | Q120: 31.87 | R120: 31.87 | S120: 31.87 | T120: 30.07 | U120: 30.07 | V120: 30.07 | W120: 47.06 | X120: 37.08 | Y120: 37.08 | Z120: 47.06 | AA120: 47.06 | AB120: 38 | AC120: 38 | AD120: 38 | AE120: 38 | AF120: 38 | AH120: =INDEX(X120:AF120,$AH$2) -> 38 | AI120: FALSE | AJ120: FALSE | AK120: 0 | AL120: FALSE | AM120: 2019 | AN120: 38.66343153 | AO120: 32.3 | AP120: 38.56343153 | AQ120: 38.56343153 | AR120: =LOOKUP(E120,'Hourly Data Facility'!A:A,'Hourly Data Facility'!F:F) ->  | AS120: =LOOKUP(E120,'Hourly Data PVGIS'!B:B,'Hourly Data PVGIS'!G:G) -> 6.41 | AT120: 243.58 | AU120: =LOOKUP(E120,'Hourly Data PVGIS'!B:B,'Hourly Data PVGIS'!D:D) -> 346.52 | AV120: 13167.76 | AW120: 13363.00029 | AX120: 18 | AY120: 6 | AZ120: 24.1 | BA120: 4 | BB120: 37.42 | BC120: 1 | BD120: 24.27 | BE120: 3 | BF120: 37.02 | BG120: 22 | BH120: 100 | BI120: 0 | BJ120: 0 | BK120: 100 | BL120: 0 | BM120: 0 | BN120: 100 | BO120: 0 | BP120: =LOOKUP(F120,'Gas and Other'!B:B,'Gas and Other'!J:J) -> 3.620371406 | BQ120: 10.49616068 | BR120: 1 | BS120: Jul 2019 | BT120: FALSE | BU120: 115 | BW120: =IF(BT120,INDEX(AH120:BQ120,$BW$4),NA()) ->  | BX120: =IF(BT120,INDEX(AH120:BQ120,$BX$4),NA()) ->  | BY120: FALSE | CA120: =IF(BY120,INDEX(AH120:BQ120,$BW$4),NA()) ->  | CB120: =IF(BY120,INDEX(AH120:BQ120,$BX$4),NA()) ->  | CC120: 0 | CD120: 0
D121: 4531 | E121: 2019-07-08T17:59:59.992 | F121: 2019-07-31 | G121: Jul 2019 | H121: 2019 | I121: 19 - 20 | J121: 18 | K121: 31.47 | L121: 30.23 | M121: 30.23 | N121: 31.74 | O121: 41.87 | P121: 35.15 | Q121: 31.74 | R121: 31.74 | S121: 31.74 | T121: 30.23 | U121: 30.23 | V121: 30.23 | W121: 47.02 | X121: 39.93 | Y121: 41.87 | Z121: 47.02 | AA121: 47.02 | AB121: 42.9 | AC121: 42.9 | AD121: 42.9 | AE121: 42.9 | AF121: 42.9 | AH121: =INDEX(X121:AF121,$AH$2) -> 42.9 | AI121: FALSE | AJ121: FALSE | AK121: 0 | AL121: FALSE | AM121: 2019 | AN121: 38.66343153 | AO121: 36.465 | AP121: 38.56343153 | AQ121: 38.56343153 | AR121: =LOOKUP(E121,'Hourly Data Facility'!A:A,'Hourly Data Facility'!F:F) ->  | AS121: =LOOKUP(E121,'Hourly Data PVGIS'!B:B,'Hourly Data PVGIS'!G:G) -> 6.28 | AT121: 269.412 | AU121: =LOOKUP(E121,'Hourly Data PVGIS'!B:B,'Hourly Data PVGIS'!D:D) -> 272.99 | AV121: 11711.271 | AW121: 10527.43117 | AX121: 19 | AY121: 6 | AZ121: 24.1 | BA121: 4 | BB121: 37.42 | BC121: 1 | BD121: 24.27 | BE121: 3 | BF121: 37.02 | BG121: 22 | BH121: 100 | BI121: 0 | BJ121: 0 | BK121: 100 | BL121: 0 | BM121: 0 | BN121: 100 | BO121: 0 | BP121: =LOOKUP(F121,'Gas and Other'!B:B,'Gas and Other'!J:J) -> 3.620371406 | BQ121: 11.84961298 | BR121: 1 | BS121: Jul 2019 | BT121: FALSE | BU121: 116 | BW121: =IF(BT121,INDEX(AH121:BQ121,$BW$4),NA()) ->  | BX121: =IF(BT121,INDEX(AH121:BQ121,$BX$4),NA()) ->  | BY121: FALSE | CA121: =IF(BY121,INDEX(AH121:BQ121,$BW$4),NA()) ->  | CB121: =IF(BY121,INDEX(AH121:BQ121,$BX$4),NA()) ->  | CC121: 0 | CD121: 0
D122: 4532 | E122: 2019-07-08T18:59:59.992 | F122: 2019-07-31 | G122: Jul 2019 | H122: 2019 | I122: 20 - 21 | J122: 19 | K122: 31.43 | L122: 31.13 | M122: 31.13 | N122: 31.56 | O122: 31.56 | P122: 31.56 | Q122: 31.56 | R122: 31.56 | S122: 31.56 | T122: 31.13 | U122: 31.13 | V122: 31.13 | W122: 51.66 | X122: 31.56 | Y122: 31.56 | Z122: 51.66 | AA122: 51.66 | AB122: 38.35 | AC122: 38.35 | AD122: 38.35 | AE122: 38.35 | AF122: 38.35 | AH122: =INDEX(X122:AF122,$AH$2) -> 38.35 | AI122: FALSE | AJ122: FALSE | AK122: 0 | AL122: FALSE | AM122: 2019 | AN122: 38.66343153 | AO122: 32.5975 | AP122: 38.56343153 | AQ122: 38.56343153 | AR122: =LOOKUP(E122,'Hourly Data Facility'!A:A,'Hourly Data Facility'!F:F) ->  | AS122: =LOOKUP(E122,'Hourly Data PVGIS'!B:B,'Hourly Data PVGIS'!G:G) -> 6 | AT122: 230.1 | AU122: =LOOKUP(E122,'Hourly Data PVGIS'!B:B,'Hourly Data PVGIS'!D:D) -> 198.3 | AV122: 7604.805 | AW122: 7647.128472 | AX122: 20 | AY122: 6 | AZ122: 24.1 | BA122: 4 | BB122: 37.42 | BC122: 1 | BD122: 24.27 | BE122: 3 | BF122: 37.02 | BG122: 22 | BH122: 100 | BI122: 0 | BJ122: 0 | BK122: 100 | BL122: 0 | BM122: 0 | BN122: 100 | BO122: 0 | BP122: =LOOKUP(F122,'Gas and Other'!B:B,'Gas and Other'!J:J) -> 3.620371406 | BQ122: 10.59283585 | BR122: 1 | BS122: Jul 2019 | BT122: FALSE | BU122: 117 | BW122: =IF(BT122,INDEX(AH122:BQ122,$BW$4),NA()) ->  | BX122: =IF(BT122,INDEX(AH122:BQ122,$BX$4),NA()) ->  | BY122: FALSE | CA122: =IF(BY122,INDEX(AH122:BQ122,$BW$4),NA()) ->  | CB122: =IF(BY122,INDEX(AH122:BQ122,$BX$4),NA()) ->  | CC122: 0 | CD122: 0
D123: 4533 | E123: 2019-07-08T19:59:59.992 | F123: 2019-07-31 | G123: Jul 2019 | H123: 2019 | I123: 21 - 22 | J123: 20 | K123: 31.17 | L123: 31.07 | M123: 31.07 | N123: 31.15 | O123: 31.15 | P123: 31.15 | Q123: 31.15 | R123: 31.15 | S123: 31.15 | T123: 31.07 | U123: 31.07 | V123: 31.07 | W123: 44.76 | X123: 31.15 | Y123: 31.15 | Z123: 44.76 | AA123: 44.76 | AB123: 37.93 | AC123: 37.93 | AD123: 37.93 | AE123: 37.93 | AF123: 37.93 | AH123: =INDEX(X123:AF123,$AH$2) -> 37.93 | AI123: FALSE | AJ123: FALSE | AK123: 0 | AL123: FALSE | AM123: 2019 | AN123: 38.66343153 | AO123: 32.2405 | AP123: 38.56343153 | AQ123: 38.56343153 | AR123: =LOOKUP(E123,'Hourly Data Facility'!A:A,'Hourly Data Facility'!F:F) ->  | AS123: =LOOKUP(E123,'Hourly Data PVGIS'!B:B,'Hourly Data PVGIS'!G:G) -> 5.79 | AT123: 219.6147 | AU123: =LOOKUP(E123,'Hourly Data PVGIS'!B:B,'Hourly Data PVGIS'!D:D) -> 77.29 | AV123: 2931.6097 | AW123: 2980.567623 | AX123: 21 | AY123: 6 | AZ123: 24.1 | BA123: 4 | BB123: 37.42 | BC123: 1 | BD123: 24.27 | BE123: 3 | BF123: 37.02 | BG123: 22 | BH123: 100 | BI123: 0 | BJ123: 0 | BK123: 100 | BL123: 0 | BM123: 0 | BN123: 100 | BO123: 0 | BP123: =LOOKUP(F123,'Gas and Other'!B:B,'Gas and Other'!J:J) -> 3.620371406 | BQ123: 10.47682565 | BR123: 1 | BS123: Jul 2019 | BT123: FALSE | BU123: 118 | BW123: =IF(BT123,INDEX(AH123:BQ123,$BW$4),NA()) ->  | BX123: =IF(BT123,INDEX(AH123:BQ123,$BX$4),NA()) ->  | BY123: FALSE | CA123: =IF(BY123,INDEX(AH123:BQ123,$BW$4),NA()) ->  | CB123: =IF(BY123,INDEX(AH123:BQ123,$BX$4),NA()) ->  | CC123: 0 | CD123: 0
D124: 4534 | E124: 2019-07-08T20:59:59.992 | F124: 2019-07-31 | G124: Jul 2019 | H124: 2019 | I124: 22 - 23 | J124: 21 | K124: 30.78 | L124: 30.75 | M124: 30.75 | N124: 30.75 | O124: 30.75 | P124: 30.75 | Q124: 30.75 | R124: 30.75 | S124: 30.75 | T124: 30.75 | U124: 30.75 | V124: 30.75 | W124: 30.75 | X124: 30.75 | Y124: 30.75 | Z124: 30.75 | AA124: 30.75 | AB124: 39.43 | AC124: 39.43 | AD124: 39.43 | AE124: 39.43 | AF124: 39.43 | AH124: =INDEX(X124:AF124,$AH$2) -> 39.43 | AI124: FALSE | AJ124: FALSE | AK124: 0 | AL124: FALSE | AM124: 2019 | AN124: 38.66343153 | AO124: 33.5155 | AP124: 38.56343153 | AQ124: 38.56343153 | AR124: =LOOKUP(E124,'Hourly Data Facility'!A:A,'Hourly Data Facility'!F:F) ->  | AS124: =LOOKUP(E124,'Hourly Data PVGIS'!B:B,'Hourly Data PVGIS'!G:G) -> 4.97 | AT124: 195.9671 | AU124: =LOOKUP(E124,'Hourly Data PVGIS'!B:B,'Hourly Data PVGIS'!D:D) -> 28.18 | AV124: 1111.1374 | AW124: 1086.717501 | AX124: 22 | AY124: 6 | AZ124: 24.1 | BA124: 4 | BB124: 37.42 | BC124: 1 | BD124: 24.27 | BE124: 3 | BF124: 37.02 | BG124: 22 | BH124: 100 | BI124: 0 | BJ124: 0 | BK124: 100 | BL124: 0 | BM124: 0 | BN124: 100 | BO124: 0 | BP124: =LOOKUP(F124,'Gas and Other'!B:B,'Gas and Other'!J:J) -> 3.620371406 | BQ124: 10.89114778 | BR124: 1 | BS124: Jul 2019 | BT124: FALSE | BU124: 119 | BW124: =IF(BT124,INDEX(AH124:BQ124,$BW$4),NA()) ->  | BX124: =IF(BT124,INDEX(AH124:BQ124,$BX$4),NA()) ->  | BY124: FALSE | CA124: =IF(BY124,INDEX(AH124:BQ124,$BW$4),NA()) ->  | CB124: =IF(BY124,INDEX(AH124:BQ124,$BX$4),NA()) ->  | CC124: 0 | CD124: 0
D125: 4535 | E125: 2019-07-08T21:59:59.992 | F125: 2019-07-31 | G125: Jul 2019 | H125: 2019 | I125: 23 - 00 | J125: 22 | K125: 29.75 | L125: 29.72 | M125: 29.72 | N125: 29.72 | O125: 29.72 | P125: 29.72 | Q125: 29.72 | R125: 29.72 | S125: 29.72 | T125: 29.72 | U125: 29.72 | V125: 29.72 | W125: 29.72 | X125: 29.72 | Y125: 29.72 | Z125: 29.72 | AA125: 29.72 | AB125: 34.63 | AC125: 34.63 | AD125: 34.63 | AE125: 34.63 | AF125: 34.63 | AH125: =INDEX(X125:AF125,$AH$2) -> 34.63 | AI125: FALSE | AJ125: FALSE | AK125: 0 | AL125: FALSE | AM125: 2019 | AN125: 38.66343153 | AO125: 29.4355 | AP125: 38.56343153 | AQ125: 38.56343153 | AR125: =LOOKUP(E125,'Hourly Data Facility'!A:A,'Hourly Data Facility'!F:F) ->  | AS125: =LOOKUP(E125,'Hourly Data PVGIS'!B:B,'Hourly Data PVGIS'!G:G) -> 4.28 | AT125: 148.2164 | AU125: =LOOKUP(E125,'Hourly Data PVGIS'!B:B,'Hourly Data PVGIS'!D:D) -> 0 | AV125: 0 | AW125: 0 | AX125: 23 | AY125: 6 | AZ125: 24.1 | BA125: 4 | BB125: 37.42 | BC125: 1 | BD125: 24.27 | BE125: 3 | BF125: 37.02 | BG125: 22 | BH125: 100 | BI125: 0 | BJ125: 0 | BK125: 100 | BL125: 0 | BM125: 0 | BN125: 100 | BO125: 0 | BP125: =LOOKUP(F125,'Gas and Other'!B:B,'Gas and Other'!J:J) -> 3.620371406 | BQ125: 9.565316958 | BR125: 1 | BS125: Jul 2019 | BT125: FALSE | BU125: 120 | BW125: =IF(BT125,INDEX(AH125:BQ125,$BW$4),NA()) ->  | BX125: =IF(BT125,INDEX(AH125:BQ125,$BX$4),NA()) ->  | BY125: FALSE | CA125: =IF(BY125,INDEX(AH125:BQ125,$BW$4),NA()) ->  | CB125: =IF(BY125,INDEX(AH125:BQ125,$BX$4),NA()) ->  | CC125: 0 | CD125: 0
D126: 4536 | E126: 2019-07-08T22:59:59.992 | F126: 2019-07-31 | G126: Jul 2019 | H126: 2019 | I126: 00 - 01 | J126: 23 | K126: 30.52 | L126: 30.55 | M126: 30.55 | N126: 30.55 | O126: 30.55 | P126: 30.55 | Q126: 30.55 | R126: 30.55 | S126: 30.55 | T126: 30.55 | U126: 30.55 | V126: 30.55 | W126: 30.55 | X126: 30.55 | Y126: 30.55 | Z126: 30.55 | AA126: 30.55 | AB126: 31.56 | AC126: 31.56 | AD126: 31.56 | AE126: 31.56 | AF126: 31.56 | AH126: =INDEX(X126:AF126,$AH$2) -> 31.56 | AI126: FALSE | AJ126: FALSE | AK126: 0 | AL126: FALSE | AM126: 2019 | AN126: 38.66343153 | AO126: 26.826 | AP126: 38.56343153 | AQ126: 38.56343153 | AR126: =LOOKUP(E126,'Hourly Data Facility'!A:A,'Hourly Data Facility'!F:F) ->  | AS126: =LOOKUP(E126,'Hourly Data PVGIS'!B:B,'Hourly Data PVGIS'!G:G) -> 3.59 | AT126: 113.3004 | AU126: =LOOKUP(E126,'Hourly Data PVGIS'!B:B,'Hourly Data PVGIS'!D:D) -> 0 | AV126: 0 | AW126: 0 | AX126: 24 | AY126: 6 | AZ126: 24.1 | BA126: 4 | BB126: 37.42 | BC126: 1 | BD126: 24.27 | BE126: 3 | BF126: 37.02 | BG126: 22 | BH126: 100 | BI126: 0 | BJ126: 0 | BK126: 100 | BL126: 0 | BM126: 0 | BN126: 100 | BO126: 0 | BP126: =LOOKUP(F126,'Gas and Other'!B:B,'Gas and Other'!J:J) -> 3.620371406 | BQ126: 8.717337661 | BR126: 1 | BS126: Jul 2019 | BT126: FALSE | BU126: 121 | BW126: =IF(BT126,INDEX(AH126:BQ126,$BW$4),NA()) ->  | BX126: =IF(BT126,INDEX(AH126:BQ126,$BX$4),NA()) ->  | BY126: FALSE | CA126: =IF(BY126,INDEX(AH126:BQ126,$BW$4),NA()) ->  | CB126: =IF(BY126,INDEX(AH126:BQ126,$BX$4),NA()) ->  | CC126: 0 | CD126: 0
D127: 4537 | E127: 2019-07-08T23:59:59.992 | F127: 2019-07-31 | G127: Jul 2019 | H127: 2019 | I127: 01 - 02 | J127: 0 | K127: 29.48 | L127: 29.51 | M127: 29.51 | N127: 29.51 | O127: 29.51 | P127: 29.51 | Q127: 29.51 | R127: 29.51 | S127: 29.51 | T127: 29.51 | U127: 29.51 | V127: 29.51 | W127: 29.51 | X127: 29.51 | Y127: 29.51 | Z127: 29.51 | AA127: 29.51 | AB127: 30.19 | AC127: 30.19 | AD127: 30.19 | AE127: 30.19 | AF127: 30.19 | AH127: =INDEX(X127:AF127,$AH$2) -> 30.19 | AI127: FALSE | AJ127: FALSE | AK127: 0 | AL127: FALSE | AM127: 2019 | AN127: 38.66343153 | AO127: 25.6615 | AP127: 38.56343153 | AQ127: 38.56343153 | AR127: =LOOKUP(E127,'Hourly Data Facility'!A:A,'Hourly Data Facility'!F:F) ->  | AS127: =LOOKUP(E127,'Hourly Data PVGIS'!B:B,'Hourly Data PVGIS'!G:G) -> 2.97 | AT127: 89.6643 | AU127: =LOOKUP(E127,'Hourly Data PVGIS'!B:B,'Hourly Data PVGIS'!D:D) -> 0 | AV127: 0 | AW127: 0 | AX127: 1 | AY127: 7 | AZ127: 29.55 | BA127: 2 | BB127: 42.9 | BC127: 19 | BD127: 30.02 | BE127: 5 | BF127: 39.99 | BG127: 8 | BH127: 100 | BI127: 0 | BJ127: 0 | BK127: 100 | BL127: 0 | BM127: 0 | BN127: 100 | BO127: 0 | BP127: =LOOKUP(F127,'Gas and Other'!B:B,'Gas and Other'!J:J) -> 3.620371406 | BQ127: 8.338923447 | BR127: 1 | BS127: Jul 2019 | BT127: FALSE | BU127: 122 | BW127: =IF(BT127,INDEX(AH127:BQ127,$BW$4),NA()) ->  | BX127: =IF(BT127,INDEX(AH127:BQ127,$BX$4),NA()) ->  | BY127: FALSE | CA127: =IF(BY127,INDEX(AH127:BQ127,$BW$4),NA()) ->  | CB127: =IF(BY127,INDEX(AH127:BQ127,$BX$4),NA()) ->  | CC127: 0 | CD127: 0
D128: 4538 | E128: 2019-07-09T00:59:59.992 | F128: 2019-07-31 | G128: Jul 2019 | H128: 2019 | I128: 02 - 03 | J128: 1 | K128: 29.19 | L128: 29.17 | M128: 29.17 | N128: 29.17 | O128: 29.17 | P128: 29.17 | Q128: 29.25 | R128: 29.25 | S128: 29.25 | T128: 29.17 | U128: 29.17 | V128: 29.17 | W128: 29.17 | X128: 29.25 | Y128: 29.25 | Z128: 29.17 | AA128: 29.17 | AB128: 29.81 | AC128: 29.81 | AD128: 29.81 | AE128: 29.81 | AF128: 29.81 | AH128: =INDEX(X128:AF128,$AH$2) -> 29.81 | AI128: FALSE | AJ128: FALSE | AK128: 0 | AL128: FALSE | AM128: 2019 | AN128: 38.66343153 | AO128: 25.3385 | AP128: 38.56343153 | AQ128: 38.56343153 | AR128: =LOOKUP(E128,'Hourly Data Facility'!A:A,'Hourly Data Facility'!F:F) ->  | AS128: =LOOKUP(E128,'Hourly Data PVGIS'!B:B,'Hourly Data PVGIS'!G:G) -> 2.34 | AT128: 69.7554 | AU128: =LOOKUP(E128,'Hourly Data PVGIS'!B:B,'Hourly Data PVGIS'!D:D) -> 0 | AV128: 0 | AW128: 0 | AX128: 2 | AY128: 7 | AZ128: 29.55 | BA128: 2 | BB128: 42.9 | BC128: 19 | BD128: 30.02 | BE128: 5 | BF128: 39.99 | BG128: 8 | BH128: 100 | BI128: 29.55 | BJ128: 0 | BK128: 100 | BL128: 0 | BM128: 0 | BN128: 100 | BO128: 0 | BP128: =LOOKUP(F128,'Gas and Other'!B:B,'Gas and Other'!J:J) -> 3.620371406 | BQ128: 8.23396184 | BR128: 1 | BS128: Jul 2019 | BT128: FALSE | BU128: 123 | BW128: =IF(BT128,INDEX(AH128:BQ128,$BW$4),NA()) ->  | BX128: =IF(BT128,INDEX(AH128:BQ128,$BX$4),NA()) ->  | BY128: FALSE | CA128: =IF(BY128,INDEX(AH128:BQ128,$BW$4),NA()) ->  | CB128: =IF(BY128,INDEX(AH128:BQ128,$BX$4),NA()) ->  | CC128: 0 | CD128: 0
D129: 4539 | E129: 2019-07-09T01:59:59.992 | F129: 2019-07-31 | G129: Jul 2019 | H129: 2019 | I129: 03 - 04 | J129: 2 | K129: 29.08 | L129: 28.98 | M129: 28.98 | N129: 28.98 | O129: 28.98 | P129: 28.98 | Q129: 29.22 | R129: 29.22 | S129: 29.22 | T129: 28.98 | U129: 28.98 | V129: 28.98 | W129: 28.98 | X129: 29.22 | Y129: 29.22 | Z129: 28.98 | AA129: 28.98 | AB129: 29.43 | AC129: 27.78 | AD129: 29.43 | AE129: 26.39 | AF129: 29.48 | AH129: =INDEX(X129:AF129,$AH$2) -> 29.48 | AI129: FALSE | AJ129: FALSE | AK129: 0 | AL129: FALSE | AM129: 2019 | AN129: 38.66343153 | AO129: 25.058 | AP129: 38.56343153 | AQ129: 38.56343153 | AR129: =LOOKUP(E129,'Hourly Data Facility'!A:A,'Hourly Data Facility'!F:F) ->  | AS129: =LOOKUP(E129,'Hourly Data PVGIS'!B:B,'Hourly Data PVGIS'!G:G) -> 2.21 | AT129: 65.1508 | AU129: =LOOKUP(E129,'Hourly Data PVGIS'!B:B,'Hourly Data PVGIS'!D:D) -> 0 | AV129: 0 | AW129: 0 | AX129: 3 | AY129: 7 | AZ129: 29.55 | BA129: 2 | BB129: 42.9 | BC129: 19 | BD129: 30.02 | BE129: 5 | BF129: 39.99 | BG129: 8 | BH129: 100 | BI129: 0 | BJ129: 0 | BK129: 100 | BL129: 0 | BM129: 0 | BN129: 100 | BO129: 0 | BP129: =LOOKUP(F129,'Gas and Other'!B:B,'Gas and Other'!J:J) -> 3.620371406 | BQ129: 8.142810971 | BR129: 1 | BS129: Jul 2019 | BT129: FALSE | BU129: 124 | BW129: =IF(BT129,INDEX(AH129:BQ129,$BW$4),NA()) ->  | BX129: =IF(BT129,INDEX(AH129:BQ129,$BX$4),NA()) ->  | BY129: FALSE | CA129: =IF(BY129,INDEX(AH129:BQ129,$BW$4),NA()) ->  | CB129: =IF(BY129,INDEX(AH129:BQ129,$BX$4),NA()) ->  | CC129: 0 | CD129: 0
D130: 4540 | E130: 2019-07-09T02:59:59.992 | F130: 2019-07-31 | G130: Jul 2019 | H130: 2019 | I130: 04 - 05 | J130: 3 | K130: 29.21 | L130: 29.23 | M130: 29.23 | N130: 29.23 | O130: 29.23 | P130: 29.23 | Q130: 29.23 | R130: 29.23 | S130: 29.23 | T130: 29.23 | U130: 29.23 | V130: 29.23 | W130: 29.23 | X130: 29.23 | Y130: 29.23 | Z130: 29.23 | AA130: 29.23 | AB130: 29.95 | AC130: 25.07 | AD130: 29.95 | AE130: 20.95 | AF130: 30.19 | AH130: =INDEX(X130:AF130,$AH$2) -> 30.19 | AI130: FALSE | AJ130: FALSE | AK130: 0 | AL130: FALSE | AM130: 2019 | AN130: 38.66343153 | AO130: 25.6615 | AP130: 38.56343153 | AQ130: 38.56343153 | AR130: =LOOKUP(E130,'Hourly Data Facility'!A:A,'Hourly Data Facility'!F:F) ->  | AS130: =LOOKUP(E130,'Hourly Data PVGIS'!B:B,'Hourly Data PVGIS'!G:G) -> 2.21 | AT130: 66.7199 | AU130: =LOOKUP(E130,'Hourly Data PVGIS'!B:B,'Hourly Data PVGIS'!D:D) -> 0 | AV130: 0 | AW130: 0 | AX130: 4 | AY130: 7 | AZ130: 29.55 | BA130: 2 | BB130: 42.9 | BC130: 19 | BD130: 30.02 | BE130: 5 | BF130: 39.99 | BG130: 8 | BH130: 100 | BI130: 0 | BJ130: 0 | BK130: 100 | BL130: 0 | BM130: 0 | BN130: 100 | BO130: 0 | BP130: =LOOKUP(F130,'Gas and Other'!B:B,'Gas and Other'!J:J) -> 3.620371406 | BQ130: 8.338923447 | BR130: 1 | BS130: Jul 2019 | BT130: FALSE | BU130: 125 | BW130: =IF(BT130,INDEX(AH130:BQ130,$BW$4),NA()) ->  | BX130: =IF(BT130,INDEX(AH130:BQ130,$BX$4),NA()) ->  | BY130: FALSE | CA130: =IF(BY130,INDEX(AH130:BQ130,$BW$4),NA()) ->  | CB130: =IF(BY130,INDEX(AH130:BQ130,$BX$4),NA()) ->  | CC130: 0 | CD130: 0
D131: 4541 | E131: 2019-07-09T03:59:59.992 | F131: 2019-07-31 | G131: Jul 2019 | H131: 2019 | I131: 05 - 06 | J131: 4 | K131: 30.06 | L131: 30.07 | M131: 30.07 | N131: 30.07 | O131: 30.07 | P131: 30.07 | Q131: 30.07 | R131: 30.07 | S131: 30.07 | T131: 30.07 | U131: 30.07 | V131: 30.07 | W131: 30.07 | X131: 30.07 | Y131: 30.07 | Z131: 30.07 | AA131: 30.07 | AB131: 30.47 | AC131: 28.6 | AD131: 30.47 | AE131: 27.02 | AF131: 30.55 | AH131: =INDEX(X131:AF131,$AH$2) -> 30.55 | AI131: FALSE | AJ131: FALSE | AK131: 0 | AL131: FALSE | AM131: 2019 | AN131: 38.66343153 | AO131: 25.9675 | AP131: 38.56343153 | AQ131: 38.56343153 | AR131: =LOOKUP(E131,'Hourly Data Facility'!A:A,'Hourly Data Facility'!F:F) ->  | AS131: =LOOKUP(E131,'Hourly Data PVGIS'!B:B,'Hourly Data PVGIS'!G:G) -> 2.48 | AT131: 75.764 | AU131: =LOOKUP(E131,'Hourly Data PVGIS'!B:B,'Hourly Data PVGIS'!D:D) -> 0 | AV131: 0 | AW131: 0 | AX131: 5 | AY131: 7 | AZ131: 29.55 | BA131: 2 | BB131: 42.9 | BC131: 19 | BD131: 30.02 | BE131: 5 | BF131: 39.99 | BG131: 8 | BH131: 100 | BI131: 0 | BJ131: 0 | BK131: 100 | BL131: 0 | BM131: 0 | BN131: 100 | BO131: 0 | BP131: =LOOKUP(F131,'Gas and Other'!B:B,'Gas and Other'!J:J) -> 3.620371406 | BQ131: 8.438360758 | BR131: 1 | BS131: Jul 2019 | BT131: FALSE | BU131: 126 | BW131: =IF(BT131,INDEX(AH131:BQ131,$BW$4),NA()) ->  | BX131: =IF(BT131,INDEX(AH131:BQ131,$BX$4),NA()) ->  | BY131: FALSE | CA131: =IF(BY131,INDEX(AH131:BQ131,$BW$4),NA()) ->  | CB131: =IF(BY131,INDEX(AH131:BQ131,$BX$4),NA()) ->  | CC131: 0 | CD131: 0
D132: 4542 | E132: 2019-07-09T04:59:59.992 | F132: 2019-07-31 | G132: Jul 2019 | H132: 2019 | I132: 06 - 07 | J132: 5 | K132: 32.19 | L132: 31.04 | M132: 31.04 | N132: 33.21 | O132: 33.21 | P132: 45.66 | Q132: 33.21 | R132: 33.21 | S132: 33.21 | T132: 31.04 | U132: 31.04 | V132: 31.04 | W132: 45.66 | X132: 36.16 | Y132: 36.16 | Z132: 45.66 | AA132: 45.66 | AB132: 36.16 | AC132: 33.81 | AD132: 36.16 | AE132: 31.84 | AF132: 36.16 | AH132: =INDEX(X132:AF132,$AH$2) -> 36.16 | AI132: FALSE | AJ132: FALSE | AK132: 0 | AL132: FALSE | AM132: 2019 | AN132: 38.66343153 | AO132: 30.736 | AP132: 38.56343153 | AQ132: 38.56343153 | AR132: =LOOKUP(E132,'Hourly Data Facility'!A:A,'Hourly Data Facility'!F:F) ->  | AS132: =LOOKUP(E132,'Hourly Data PVGIS'!B:B,'Hourly Data PVGIS'!G:G) -> 2.69 | AT132: 97.2704 | AU132: =LOOKUP(E132,'Hourly Data PVGIS'!B:B,'Hourly Data PVGIS'!D:D) -> 0 | AV132: 0 | AW132: 0 | AX132: 6 | AY132: 7 | AZ132: 29.55 | BA132: 2 | BB132: 42.9 | BC132: 19 | BD132: 30.02 | BE132: 5 | BF132: 39.99 | BG132: 8 | BH132: 100 | BI132: 0 | BJ132: 0 | BK132: 100 | BL132: 0 | BM132: 0 | BN132: 100 | BO132: 0 | BP132: =LOOKUP(F132,'Gas and Other'!B:B,'Gas and Other'!J:J) -> 3.620371406 | BQ132: 9.987925533 | BR132: 1 | BS132: Jul 2019 | BT132: FALSE | BU132: 127 | BW132: =IF(BT132,INDEX(AH132:BQ132,$BW$4),NA()) ->  | BX132: =IF(BT132,INDEX(AH132:BQ132,$BX$4),NA()) ->  | BY132: FALSE | CA132: =IF(BY132,INDEX(AH132:BQ132,$BW$4),NA()) ->  | CB132: =IF(BY132,INDEX(AH132:BQ132,$BX$4),NA()) ->  | CC132: 0 | CD132: 0
D133: 4543 | E133: 2019-07-09T05:59:59.992 | F133: 2019-07-31 | G133: Jul 2019 | H133: 2019 | I133: 07 - 08 | J133: 6 | K133: 33.27 | L133: 30.93 | M133: 30.93 | N133: 34.09 | O133: 42.9 | P133: 55.22 | Q133: 34.09 | R133: 34.09 | S133: 34.09 | T133: 30.93 | U133: 30.93 | V133: 30.79 | W133: 55.22 | X133: 43.95 | Y133: 43.95 | Z133: 55.22 | AA133: 55.22 | AB133: 43.95 | AC133: 41.39 | AD133: 43.95 | AE133: 38.97 | AF133: 43.95 | AH133: =INDEX(X133:AF133,$AH$2) -> 43.95 | AI133: FALSE | AJ133: FALSE | AK133: 0 | AL133: FALSE | AM133: 2019 | AN133: 38.66343153 | AO133: 37.3575 | AP133: 38.56343153 | AQ133: 38.56343153 | AR133: =LOOKUP(E133,'Hourly Data Facility'!A:A,'Hourly Data Facility'!F:F) ->  | AS133: =LOOKUP(E133,'Hourly Data PVGIS'!B:B,'Hourly Data PVGIS'!G:G) -> 2.69 | AT133: 118.2255 | AU133: =LOOKUP(E133,'Hourly Data PVGIS'!B:B,'Hourly Data PVGIS'!D:D) -> 4.03 | AV133: 177.1185 | AW133: 155.4106291 | AX133: 7 | AY133: 7 | AZ133: 29.55 | BA133: 2 | BB133: 42.9 | BC133: 19 | BD133: 30.02 | BE133: 5 | BF133: 39.99 | BG133: 8 | BH133: 100 | BI133: 0 | BJ133: 0 | BK133: 100 | BL133: 0 | BM133: 0 | BN133: 100 | BO133: 0 | BP133: =LOOKUP(F133,'Gas and Other'!B:B,'Gas and Other'!J:J) -> 3.620371406 | BQ133: 12.13963847 | BR133: 1 | BS133: Jul 2019 | BT133: FALSE | BU133: 128 | BW133: =IF(BT133,INDEX(AH133:BQ133,$BW$4),NA()) ->  | BX133: =IF(BT133,INDEX(AH133:BQ133,$BX$4),NA()) ->  | BY133: FALSE | CA133: =IF(BY133,INDEX(AH133:BQ133,$BW$4),NA()) ->  | CB133: =IF(BY133,INDEX(AH133:BQ133,$BX$4),NA()) ->  | CC133: 0 | CD133: 0
D134: 4544 | E134: 2019-07-09T06:59:59.992 | F134: 2019-07-31 | G134: Jul 2019 | H134: 2019 | I134: 08 - 09 | J134: 7 | K134: 33.62 | L134: 30.94 | M134: 30.94 | N134: 34.73 | O134: 43 | P134: 57.54 | Q134: 34.73 | R134: 34.73 | S134: 34.73 | T134: 30.94 | U134: 30.94 | V134: 30.94 | W134: 57.54 | X134: 44.06 | Y134: 44.06 | Z134: 57.54 | AA134: 57.54 | AB134: 44.06 | AC134: 44.06 | AD134: 44.06 | AE134: 44.06 | AF134: 44.06 | AH134: =INDEX(X134:AF134,$AH$2) -> 44.06 | AI134: FALSE | AJ134: FALSE | AK134: 0 | AL134: FALSE | AM134: 2019 | AN134: 38.66343153 | AO134: 37.451 | AP134: 38.56343153 | AQ134: 38.56343153 | AR134: =LOOKUP(E134,'Hourly Data Facility'!A:A,'Hourly Data Facility'!F:F) ->  | AS134: =LOOKUP(E134,'Hourly Data PVGIS'!B:B,'Hourly Data PVGIS'!G:G) -> 2.34 | AT134: 103.1004 | AU134: =LOOKUP(E134,'Hourly Data PVGIS'!B:B,'Hourly Data PVGIS'!D:D) -> 67.63 | AV134: 2979.7778 | AW134: 2608.044874 | AX134: 8 | AY134: 7 | AZ134: 29.55 | BA134: 2 | BB134: 42.9 | BC134: 19 | BD134: 30.02 | BE134: 5 | BF134: 39.99 | BG134: 8 | BH134: 100 | BI134: 0 | BJ134: 0 | BK134: 100 | BL134: 0 | BM134: 0 | BN134: 100 | BO134: 0 | BP134: =LOOKUP(F134,'Gas and Other'!B:B,'Gas and Other'!J:J) -> 3.620371406 | BQ134: =AH134/BP134 -> 12.1700221 | BR134: 1 | BS134: =G134 -> Jul 2019 | BT134: =AND(E134>=$BT$1,E134<=$BT$2) -> FALSE | BU134: 129 | BV134: =IF(BT134,BU134,NA()) ->  | BW134: =IF(BT134,INDEX(AH134:BQ134,$BW$4),NA()) ->  | BX134: =IF(BT134,INDEX(AH134:BQ134,$BX$4),NA()) ->  | BY134: FALSE | CA134: =IF(BY134,INDEX(AH134:BQ134,$BW$4),NA()) ->  | CB134: =IF(BY134,INDEX(AH134:BQ134,$BX$4),NA()) ->  | CC134: =(AH134<0)*1 -> 0 | CD134: =(AH134<=0)*1 -> 0
D135: 4545 | E135: =E134+1/24 -> 2019-07-09T07:59:59.992 | F135: =EOMONTH(E135,0) -> 2019-07-31 | G135: =TEXT(E135,"mmm")&" "&YEAR(E135) -> Jul 2019 | H135: =YEAR(E135) -> 2019 | I135: 09 - 10 | J135: =HOUR(E135) -> 8 | K135: 33.86 | L135: 30.96 | M135: 30.96 | N135: 35.34 | O135: 40.11 | P135: 58.64 | Q135: 35.34 | R135: 35.34 | S135: 35.34 | T135: 30.96 | U135: 30.96 | V135: 30.96 | W135: 58.64 | X135: 41.09 | Y135: 41.09 | Z135: 58.64 | AA135: 58.64 | AB135: 41.09 | AC135: 41.09 | AD135: 41.09 | AE135: 41.09 | AF135: 41.09 | AH135: =INDEX(X135:AF135,$AH$2) -> 41.09 | AI135: =AH135<0 -> FALSE | AJ135: FALSE | AK135: 0 | AL135: FALSE | AM135: 2019 | AN135: =AVERAGEIF(H:H,AM135,AH:AH) -> 38.66343153 | AO135: 34.9265 | AP135: 38.56343153 | AQ135: 38.56343153 | AR135: =LOOKUP(E135,'Hourly Data Facility'!A:A,'Hourly Data Facility'!F:F) ->  | AS135: =LOOKUP(E135,'Hourly Data PVGIS'!B:B,'Hourly Data PVGIS'!G:G) -> 2.21 | AT135: =AS135*AH135 -> 90.8089 | AU135: =LOOKUP(E135,'Hourly Data PVGIS'!B:B,'Hourly Data PVGIS'!D:D) -> 162.36 | AV135: =AU135*AH135 -> 6671.3724 | AW135: =AQ135*AU135 -> 6261.158743 | AX135: =IF(J135,AX134+1,1) -> 9 | AY135: 7 | AZ135: 29.55 | BA135: 2 | BB135: 42.9 | BC135: 19 | BD135: 30.02 | BE135: 5 | BF135: 39.99 | BG135: 8 | BH135: =$BH$2 -> 100 | BI135: =(BA135=AX135)*AZ135 -> 0 | BJ135: =(AX135=BC135)*AH135 -> 0 | BK135: 100 | BL135: =MIN(BH135*(BI135<>0),BH135-BK135) -> 0 | BM135: 0 | BN135: 100 | BO135: =BM135*BJ135-BL135*BI135 -> 0 | BP135: =LOOKUP(F135,'Gas and Other'!B:B,'Gas and Other'!J:J) -> 3.620371406 | BQ135: 11.34966427 | BR135: 1 | BS135: Jul 2019 | BT135: FALSE | BU135: 130 | BW135: =IF(BT135,INDEX(AH135:BQ135,$BW$4),NA()) ->  | BX135: =IF(BT135,INDEX(AH135:BQ135,$BX$4),NA()) ->  | BY135: =AND(E135>=$BY$1,E135<=$BY$2) -> FALSE | BZ135: =IF(BY135,BU135,NA()) ->  | CA135: =IF(BY135,INDEX(AH135:BQ135,$BW$4),NA()) ->  | CB135: =IF(BY135,INDEX(AH135:BQ135,$BX$4),NA()) ->  | CC135: 0 | CD135: 0
D136: 4546 | E136: 2019-07-09T08:59:59.992 | F136: 2019-07-31 | G136: Jul 2019 | H136: 2019 | I136: 10 - 11 | J136: 9 | K136: 33.86 | L136: 30.74 | M136: 30.74 | N136: 36.02 | O136: 37.25 | P136: 57.78 | Q136: 36.02 | R136: 36.02 | S136: 36.02 | T136: 30.74 | U136: 30.74 | V136: 30.74 | W136: 57.78 | X136: 38.17 | Y136: 38.17 | Z136: 57.78 | AA136: 57.78 | AB136: 38.17 | AC136: 38.17 | AD136: 38.17 | AE136: 38.17 | AF136: 38.17 | AH136: =INDEX(X136:AF136,$AH$2) -> 38.17 | AI136: FALSE | AJ136: =AND(AI136,AI135) -> FALSE | AK136: =IF(AI136,AI136*1+AK135,0) -> 0 | AL136: =AK136>=6 -> FALSE | AM136: =H136 -> 2019 | AN136: 38.66343153 | AO136: =AH136*$AO$2 -> 32.4445 | AP136: =IF(AN136>$AP$1,AN136*$AP$2,AN136<=$AP$1*$AP$3)*AN136-$AP$4 -> 38.56343153 | AQ136: =AP136 -> 38.56343153 | AR136: =LOOKUP(E136,'Hourly Data Facility'!A:A,'Hourly Data Facility'!F:F) ->  | AS136: =LOOKUP(E136,'Hourly Data PVGIS'!B:B,'Hourly Data PVGIS'!G:G) -> 2.83 | AT136: 108.0211 | AU136: =LOOKUP(E136,'Hourly Data PVGIS'!B:B,'Hourly Data PVGIS'!D:D) -> 286.7 | AV136: 10943.339 | AW136: 11056.13582 | AX136: 10 | AY136: =IF(AX136=1,AY135+1,AY135) -> 7 | AZ136: 29.55 | BA136: 2 | BB136: 42.9 | BC136: 19 | BD136: 30.02 | BE136: 5 | BF136: 39.99 | BG136: 8 | BH136: 100 | BI136: 0 | BJ136: 0 | BK136: =BN135 -> 100 | BL136: 0 | BM136: =MIN((BJ136<>0)*BH136,BK136) -> 0 | BN136: =BK136+BL136-BM136 -> 100 | BO136: 0 | BP136: =LOOKUP(F136,'Gas and Other'!B:B,'Gas and Other'!J:J) -> 3.620371406 | BQ136: 10.54311719 | BR136: 1 | BS136: Jul 2019 | BT136: FALSE | BU136: 131 | BW136: =IF(BT136,INDEX(AH136:BQ136,$BW$4),NA()) ->  | BX136: =IF(BT136,INDEX(AH136:BQ136,$BX$4),NA()) ->  | BY136: FALSE | CA136: =IF(BY136,INDEX(AH136:BQ136,$BW$4),NA()) ->  | CB136: =IF(BY136,INDEX(AH136:BQ136,$BX$4),NA()) ->  | CC136: 0 | CD136: 0
D137: 4547 | E137: 2019-07-09T09:59:59.992 | F137: 2019-07-31 | G137: Jul 2019 | H137: 2019 | I137: 11 - 12 | J137: 10 | K137: 33.79 | L137: 31.16 | M137: 31.16 | N137: 36.06 | O137: 37.13 | P137: 58.27 | Q137: 36.06 | R137: 36.06 | S137: 36.06 | T137: 31.16 | U137: 31.16 | V137: 31.16 | W137: 58.27 | X137: 38.04 | Y137: 38.04 | Z137: 58.27 | AA137: 58.27 | AB137: 38.04 | AC137: 38.04 | AD137: 38.04 | AE137: 38.04 | AF137: 38.04 | AH137: =INDEX(X137:AF137,$AH$2) -> 38.04 | AI137: FALSE | AJ137: FALSE | AK137: 0 | AL137: FALSE | AM137: 2019 | AN137: 38.66343153 | AO137: 32.334 | AP137: 38.56343153 | AQ137: 38.56343153 | AR137: =LOOKUP(E137,'Hourly Data Facility'!A:A,'Hourly Data Facility'!F:F) ->  | AS137: =LOOKUP(E137,'Hourly Data PVGIS'!B:B,'Hourly Data PVGIS'!G:G) -> 2.83 | AT137: 107.6532 | AU137: =LOOKUP(E137,'Hourly Data PVGIS'!B:B,'Hourly Data PVGIS'!D:D) -> 342.34 | AV137: 13022.6136 | AW137: 13201.80515 | AX137: 11 | AY137: 7 | AZ137: 29.55 | BA137: 2 | BB137: 42.9 | BC137: 19 | BD137: 30.02 | BE137: 5 | BF137: 39.99 | BG137: 8 | BH137: 100 | BI137: 0 | BJ137: 0 | BK137: 100 | BL137: 0 | BM137: 0 | BN137: 100 | BO137: 0 | BP137: =LOOKUP(F137,'Gas and Other'!B:B,'Gas and Other'!J:J) -> 3.620371406 | BQ137: 10.50720927 | BR137: 1 | BS137: Jul 2019 | BT137: FALSE | BU137: 132 | BW137: =IF(BT137,INDEX(AH137:BQ137,$BW$4),NA()) ->  | BX137: =IF(BT137,INDEX(AH137:BQ137,$BX$4),NA()) ->  | BY137: FALSE | CA137: =IF(BY137,INDEX(AH137:BQ137,$BW$4),NA()) ->  | CB137: =IF(BY137,INDEX(AH137:BQ137,$BX$4),NA()) ->  | CC137: 0 | CD137: 0
D138: 4548 | E138: 2019-07-09T10:59:59.992 | F138: 2019-07-31 | G138: Jul 2019 | H138: 2019 | I138: 12 - 13 | J138: 11 | K138: 33.64 | L138: 31.16 | M138: 31.16 | N138: 35.88 | O138: 36.17 | P138: 58.09 | Q138: 35.88 | R138: 35.88 | S138: 35.88 | T138: 31.16 | U138: 31.16 | V138: 31.08 | W138: 58.09 | X138: 37.06 | Y138: 37.06 | Z138: 58.09 | AA138: 58.09 | AB138: 37.06 | AC138: 37.06 | AD138: 37.06 | AE138: 37.06 | AF138: 37.06 | AH138: =INDEX(X138:AF138,$AH$2) -> 37.06 | AI138: FALSE | AJ138: FALSE | AK138: 0 | AL138: FALSE | AM138: 2019 | AN138: 38.66343153 | AO138: 31.501 | AP138: 38.56343153 | AQ138: 38.56343153 | AR138: =LOOKUP(E138,'Hourly Data Facility'!A:A,'Hourly Data Facility'!F:F) ->  | AS138: =LOOKUP(E138,'Hourly Data PVGIS'!B:B,'Hourly Data PVGIS'!G:G) -> 2.9 | AT138: 107.474 | AU138: =LOOKUP(E138,'Hourly Data PVGIS'!B:B,'Hourly Data PVGIS'!D:D) -> 727.07 | AV138: 26945.2142 | AW138: 28038.31416 | AX138: 12 | AY138: 7 | AZ138: 29.55 | BA138: 2 | BB138: 42.9 | BC138: 19 | BD138: 30.02 | BE138: 5 | BF138: 39.99 | BG138: 8 | BH138: 100 | BI138: 0 | BJ138: 0 | BK138: 100 | BL138: 0 | BM138: 0 | BN138: 100 | BO138: 0 | BP138: =LOOKUP(F138,'Gas and Other'!B:B,'Gas and Other'!J:J) -> 3.620371406 | BQ138: 10.23651881 | BR138: 1 | BS138: Jul 2019 | BT138: FALSE | BU138: 133 | BW138: =IF(BT138,INDEX(AH138:BQ138,$BW$4),NA()) ->  | BX138: =IF(BT138,INDEX(AH138:BQ138,$BX$4),NA()) ->  | BY138: FALSE | CA138: =IF(BY138,INDEX(AH138:BQ138,$BW$4),NA()) ->  | CB138: =IF(BY138,INDEX(AH138:BQ138,$BX$4),NA()) ->  | CC138: 0 | CD138: 0
D139: 4549 | E139: 2019-07-09T11:59:59.992 | F139: 2019-07-31 | G139: Jul 2019 | H139: 2019 | I139: 13 - 14 | J139: 12 | K139: 33.03 | L139: 31.22 | M139: 31.22 | N139: 34.03 | O139: 34.31 | P139: 56.19 | Q139: 34.03 | R139: 34.03 | S139: 34.03 | T139: 31.22 | U139: 31.22 | V139: 31.07 | W139: 56.19 | X139: 35.15 | Y139: 35.15 | Z139: 56.19 | AA139: 56.19 | AB139: 35.15 | AC139: 35.15 | AD139: 35.15 | AE139: 35.15 | AF139: 35.15 | AH139: =INDEX(X139:AF139,$AH$2) -> 35.15 | AI139: FALSE | AJ139: FALSE | AK139: 0 | AL139: FALSE | AM139: 2019 | AN139: 38.66343153 | AO139: 29.8775 | AP139: 38.56343153 | AQ139: 38.56343153 | AR139: =LOOKUP(E139,'Hourly Data Facility'!A:A,'Hourly Data Facility'!F:F) ->  | AS139: =LOOKUP(E139,'Hourly Data PVGIS'!B:B,'Hourly Data PVGIS'!G:G) -> 3.03 | AT139: 106.5045 | AU139: =LOOKUP(E139,'Hourly Data PVGIS'!B:B,'Hourly Data PVGIS'!D:D) -> 652.94 | AV139: 22950.841 | AW139: 25179.60698 | AX139: 13 | AY139: 7 | AZ139: 29.55 | BA139: 2 | BB139: 42.9 | BC139: 19 | BD139: 30.02 | BE139: 5 | BF139: 39.99 | BG139: 8 | BH139: 100 | BI139: 0 | BJ139: 0 | BK139: 100 | BL139: 0 | BM139: 0 | BN139: 100 | BO139: 0 | BP139: =LOOKUP(F139,'Gas and Other'!B:B,'Gas and Other'!J:J) -> 3.620371406 | BQ139: 9.70894863 | BR139: 1 | BS139: Jul 2019 | BT139: FALSE | BU139: 134 | BW139: =IF(BT139,INDEX(AH139:BQ139,$BW$4),NA()) ->  | BX139: =IF(BT139,INDEX(AH139:BQ139,$BX$4),NA()) ->  | BY139: FALSE | CA139: =IF(BY139,INDEX(AH139:BQ139,$BW$4),NA()) ->  | CB139: =IF(BY139,INDEX(AH139:BQ139,$BX$4),NA()) ->  | CC139: 0 | CD139: 0
D140: 4550 | E140: 2019-07-09T12:59:59.992 | F140: 2019-07-31 | G140: Jul 2019 | H140: 2019 | I140: 14 - 15 | J140: 13 | K140: 32.78 | L140: 31.22 | M140: 31.22 | N140: 33.92 | O140: 33.92 | P140: 49.36 | Q140: 33.92 | R140: 33.92 | S140: 33.92 | T140: 31.22 | U140: 31.22 | V140: 31.08 | W140: 53.86 | X140: 34.75 | Y140: 34.75 | Z140: 53.86 | AA140: 53.86 | AB140: 34.75 | AC140: 34.75 | AD140: 34.75 | AE140: 34.75 | AF140: 34.75 | AH140: =INDEX(X140:AF140,$AH$2) -> 34.75 | AI140: FALSE | AJ140: FALSE | AK140: 0 | AL140: FALSE | AM140: 2019 | AN140: 38.66343153 | AO140: 29.5375 | AP140: 38.56343153 | AQ140: 38.56343153 | AR140: =LOOKUP(E140,'Hourly Data Facility'!A:A,'Hourly Data Facility'!F:F) ->  | AS140: =LOOKUP(E140,'Hourly Data PVGIS'!B:B,'Hourly Data PVGIS'!G:G) -> 2.97 | AT140: 103.2075 | AU140: =LOOKUP(E140,'Hourly Data PVGIS'!B:B,'Hourly Data PVGIS'!D:D) -> 458.95 | AV140: 15948.5125 | AW140: 17698.6869 | AX140: 14 | AY140: 7 | AZ140: 29.55 | BA140: 2 | BB140: 42.9 | BC140: 19 | BD140: 30.02 | BE140: 5 | BF140: 39.99 | BG140: 8 | BH140: 100 | BI140: 0 | BJ140: 0 | BK140: 100 | BL140: 0 | BM140: 0 | BN140: 100 | BO140: 0 | BP140: =LOOKUP(F140,'Gas and Other'!B:B,'Gas and Other'!J:J) -> 3.620371406 | BQ140: 9.598462728 | BR140: 1 | BS140: Jul 2019 | BT140: FALSE | BU140: 135 | BW140: =IF(BT140,INDEX(AH140:BQ140,$BW$4),NA()) ->  | BX140: =IF(BT140,INDEX(AH140:BQ140,$BX$4),NA()) ->  | BY140: FALSE | CA140: =IF(BY140,INDEX(AH140:BQ140,$BW$4),NA()) ->  | CB140: =IF(BY140,INDEX(AH140:BQ140,$BX$4),NA()) ->  | CC140: 0 | CD140: 0
D141: 4551 | E141: 2019-07-09T13:59:59.992 | F141: 2019-07-31 | G141: Jul 2019 | H141: 2019 | I141: 15 - 16 | J141: 14 | K141: 32.46 | L141: 31.14 | M141: 31.14 | N141: 33.42 | O141: 33.42 | P141: 44.34 | Q141: 33.42 | R141: 33.42 | S141: 33.42 | T141: 31.14 | U141: 31.14 | V141: 31.09 | W141: 53.72 | X141: 34.24 | Y141: 34.24 | Z141: 53.72 | AA141: 53.72 | AB141: 34.24 | AC141: 34.24 | AD141: 34.24 | AE141: 34.24 | AF141: 34.24 | AH141: =INDEX(X141:AF141,$AH$2) -> 34.24 | AI141: FALSE | AJ141: FALSE | AK141: 0 | AL141: FALSE | AM141: 2019 | AN141: 38.66343153 | AO141: 29.104 | AP141: 38.56343153 | AQ141: 38.56343153 | AR141: =LOOKUP(E141,'Hourly Data Facility'!A:A,'Hourly Data Facility'!F:F) ->  | AS141: =LOOKUP(E141,'Hourly Data PVGIS'!B:B,'Hourly Data PVGIS'!G:G) -> 2.97 | AT141: 101.6928 | AU141: =LOOKUP(E141,'Hourly Data PVGIS'!B:B,'Hourly Data PVGIS'!D:D) -> 709.3 | AV141: 24286.432 | AW141: 27353.04198 | AX141: 15 | AY141: 7 | AZ141: 29.55 | BA141: 2 | BB141: 42.9 | BC141: 19 | BD141: 30.02 | BE141: 5 | BF141: 39.99 | BG141: 8 | BH141: 100 | BI141: 0 | BJ141: 0 | BK141: 100 | BL141: 0 | BM141: 0 | BN141: 100 | BO141: 0 | BP141: =LOOKUP(F141,'Gas and Other'!B:B,'Gas and Other'!J:J) -> 3.620371406 | BQ141: 9.457593204 | BR141: 1 | BS141: Jul 2019 | BT141: FALSE | BU141: 136 | BW141: =IF(BT141,INDEX(AH141:BQ141,$BW$4),NA()) ->  | BX141: =IF(BT141,INDEX(AH141:BQ141,$BX$4),NA()) ->  | BY141: FALSE | CA141: =IF(BY141,INDEX(AH141:BQ141,$BW$4),NA()) ->  | CB141: =IF(BY141,INDEX(AH141:BQ141,$BX$4),NA()) ->  | CC141: 0 | CD141: 0
D142: 4552 | E142: 2019-07-09T14:59:59.992 | F142: 2019-07-31 | G142: Jul 2019 | H142: 2019 | I142: 16 - 17 | J142: 15 | K142: 32.66 | L142: 31.21 | M142: 31.21 | N142: 33.9 | O142: 33.9 | P142: 50.88 | Q142: 33.9 | R142: 33.9 | S142: 33.9 | T142: 31.21 | U142: 31.21 | V142: 30.89 | W142: 50.88 | X142: 34.74 | Y142: 34.74 | Z142: 50.88 | AA142: 50.88 | AB142: 34.74 | AC142: 34.74 | AD142: 34.74 | AE142: 34.74 | AF142: 34.74 | AH142: =INDEX(X142:AF142,$AH$2) -> 34.74 | AI142: FALSE | AJ142: FALSE | AK142: 0 | AL142: FALSE | AM142: 2019 | AN142: 38.66343153 | AO142: 29.529 | AP142: 38.56343153 | AQ142: 38.56343153 | AR142: =LOOKUP(E142,'Hourly Data Facility'!A:A,'Hourly Data Facility'!F:F) ->  | AS142: =LOOKUP(E142,'Hourly Data PVGIS'!B:B,'Hourly Data PVGIS'!G:G) -> 3.17 | AT142: 110.1258 | AU142: =LOOKUP(E142,'Hourly Data PVGIS'!B:B,'Hourly Data PVGIS'!D:D) -> 475.14 | AV142: 16506.3636 | AW142: 18323.02886 | AX142: 16 | AY142: 7 | AZ142: 29.55 | BA142: 2 | BB142: 42.9 | BC142: 19 | BD142: 30.02 | BE142: 5 | BF142: 39.99 | BG142: 8 | BH142: 100 | BI142: 0 | BJ142: 0 | BK142: 100 | BL142: 0 | BM142: 0 | BN142: 100 | BO142: 0 | BP142: =LOOKUP(F142,'Gas and Other'!B:B,'Gas and Other'!J:J) -> 3.620371406 | BQ142: 9.595700581 | BR142: 1 | BS142: Jul 2019 | BT142: FALSE | BU142: 137 | BW142: =IF(BT142,INDEX(AH142:BQ142,$BW$4),NA()) ->  | BX142: =IF(BT142,INDEX(AH142:BQ142,$BX$4),NA()) ->  | BY142: FALSE | CA142: =IF(BY142,INDEX(AH142:BQ142,$BW$4),NA()) ->  | CB142: =IF(BY142,INDEX(AH142:BQ142,$BX$4),NA()) ->  | CC142: 0 | CD142: 0
D143: 4553 | E143: 2019-07-09T15:59:59.992 | F143: 2019-07-31 | G143: Jul 2019 | H143: 2019 | I143: 17 - 18 | J143: 16 | K143: 32.99 | L143: 30.68 | M143: 30.68 | N143: 34.62 | O143: 35.83 | P143: 44.77 | Q143: 34.62 | R143: 34.62 | S143: 34.62 | T143: 30.68 | U143: 30.68 | V143: 30.65 | W143: 44.77 | X143: 36.71 | Y143: 36.71 | Z143: 44.77 | AA143: 44.77 | AB143: 36.71 | AC143: 36.71 | AD143: 36.71 | AE143: 36.71 | AF143: 36.71 | AH143: =INDEX(X143:AF143,$AH$2) -> 36.71 | AI143: FALSE | AJ143: FALSE | AK143: 0 | AL143: FALSE | AM143: 2019 | AN143: 38.66343153 | AO143: 31.2035 | AP143: 38.56343153 | AQ143: 38.56343153 | AR143: =LOOKUP(E143,'Hourly Data Facility'!A:A,'Hourly Data Facility'!F:F) ->  | AS143: =LOOKUP(E143,'Hourly Data PVGIS'!B:B,'Hourly Data PVGIS'!G:G) -> 3.24 | AT143: 118.9404 | AU143: =LOOKUP(E143,'Hourly Data PVGIS'!B:B,'Hourly Data PVGIS'!D:D) -> 348.34 | AV143: 12787.5614 | AW143: 13433.18574 | AX143: 17 | AY143: 7 | AZ143: 29.55 | BA143: 2 | BB143: 42.9 | BC143: 19 | BD143: 30.02 | BE143: 5 | BF143: 39.99 | BG143: 8 | BH143: 100 | BI143: 0 | BJ143: 0 | BK143: 100 | BL143: 0 | BM143: 0 | BN143: 100 | BO143: 0 | BP143: =LOOKUP(F143,'Gas and Other'!B:B,'Gas and Other'!J:J) -> 3.620371406 | BQ143: 10.13984365 | BR143: 1 | BS143: Jul 2019 | BT143: FALSE | BU143: 138 | BW143: =IF(BT143,INDEX(AH143:BQ143,$BW$4),NA()) ->  | BX143: =IF(BT143,INDEX(AH143:BQ143,$BX$4),NA()) ->  | BY143: FALSE | CA143: =IF(BY143,INDEX(AH143:BQ143,$BW$4),NA()) ->  | CB143: =IF(BY143,INDEX(AH143:BQ143,$BX$4),NA()) ->  | CC143: 0 | CD143: 0
D144: 4554 | E144: 2019-07-09T16:59:59.992 | F144: 2019-07-31 | G144: Jul 2019 | H144: 2019 | I144: 18 - 19 | J144: 17 | K144: 33.92 | L144: 31.53 | M144: 31.53 | N144: 34.35 | O144: 39.37 | P144: 51.83 | Q144: 34.35 | R144: 34.35 | S144: 34.35 | T144: 31.53 | U144: 31.53 | V144: 31.53 | W144: 51.83 | X144: 40.34 | Y144: 40.34 | Z144: 51.83 | AA144: 51.83 | AB144: 40.34 | AC144: 40.34 | AD144: 40.34 | AE144: 40.34 | AF144: 40.34 | AH144: =INDEX(X144:AF144,$AH$2) -> 40.34 | AI144: FALSE | AJ144: FALSE | AK144: 0 | AL144: FALSE | AM144: 2019 | AN144: 38.66343153 | AO144: 34.289 | AP144: 38.56343153 | AQ144: 38.56343153 | AR144: =LOOKUP(E144,'Hourly Data Facility'!A:A,'Hourly Data Facility'!F:F) ->  | AS144: =LOOKUP(E144,'Hourly Data PVGIS'!B:B,'Hourly Data PVGIS'!G:G) -> 3.38 | AT144: 136.3492 | AU144: =LOOKUP(E144,'Hourly Data PVGIS'!B:B,'Hourly Data PVGIS'!D:D) -> 337.65 | AV144: 13620.801 | AW144: 13020.94266 | AX144: 18 | AY144: 7 | AZ144: 29.55 | BA144: 2 | BB144: 42.9 | BC144: 19 | BD144: 30.02 | BE144: 5 | BF144: 39.99 | BG144: 8 | BH144: 100 | BI144: 0 | BJ144: 0 | BK144: 100 | BL144: 0 | BM144: 0 | BN144: 100 | BO144: 0 | BP144: =LOOKUP(F144,'Gas and Other'!B:B,'Gas and Other'!J:J) -> 3.620371406 | BQ144: 11.14250321 | BR144: 1 | BS144: Jul 2019 | BT144: FALSE | BU144: 139 | BW144: =IF(BT144,INDEX(AH144:BQ144,$BW$4),NA()) ->  | BX144: =IF(BT144,INDEX(AH144:BQ144,$BX$4),NA()) ->  | BY144: FALSE | CA144: =IF(BY144,INDEX(AH144:BQ144,$BW$4),NA()) ->  | CB144: =IF(BY144,INDEX(AH144:BQ144,$BX$4),NA()) ->  | CC144: 0 | CD144: 0
D145: 4555 | E145: 2019-07-09T17:59:59.992 | F145: 2019-07-31 | G145: Jul 2019 | H145: 2019 | I145: 19 - 20 | J145: 18 | K145: 33.97 | L145: 33.28 | M145: 33.28 | N145: 33.28 | O145: 45.87 | P145: 52.9 | Q145: 33.28 | R145: 33.28 | S145: 33.28 | T145: 32.77 | U145: 32.77 | V145: 32.77 | W145: 52.9 | X145: 47 | Y145: 47 | Z145: 52.9 | AA145: 52.9 | AB145: 47 | AC145: 47 | AD145: 47 | AE145: 47 | AF145: 47 | AH145: =INDEX(X145:AF145,$AH$2) -> 47 | AI145: FALSE | AJ145: FALSE | AK145: 0 | AL145: FALSE | AM145: 2019 | AN145: 38.66343153 | AO145: 39.95 | AP145: 38.56343153 | AQ145: 38.56343153 | AR145: =LOOKUP(E145,'Hourly Data Facility'!A:A,'Hourly Data Facility'!F:F) ->  | AS145: =LOOKUP(E145,'Hourly Data PVGIS'!B:B,'Hourly Data PVGIS'!G:G) -> 3.72 | AT145: 174.84 | AU145: =LOOKUP(E145,'Hourly Data PVGIS'!B:B,'Hourly Data PVGIS'!D:D) -> 340.6 | AV145: 16008.2 | AW145: 13134.70478 | AX145: 19 | AY145: 7 | AZ145: 29.55 | BA145: 2 | BB145: 42.9 | BC145: 19 | BD145: 30.02 | BE145: 5 | BF145: 39.99 | BG145: 8 | BH145: 100 | BI145: 0 | BJ145: 47 | BK145: 100 | BL145: 0 | BM145: 100 | BN145: 0 | BO145: 4700 | BP145: =LOOKUP(F145,'Gas and Other'!B:B,'Gas and Other'!J:J) -> 3.620371406 | BQ145: 12.98209347 | BR145: 1 | BS145: Jul 2019 | BT145: FALSE | BU145: 140 | BW145: =IF(BT145,INDEX(AH145:BQ145,$BW$4),NA()) ->  | BX145: =IF(BT145,INDEX(AH145:BQ145,$BX$4),NA()) ->  | BY145: FALSE | CA145: =IF(BY145,INDEX(AH145:BQ145,$BW$4),NA()) ->  | CB145: =IF(BY145,INDEX(AH145:BQ145,$BX$4),NA()) ->  | CC145: 0 | CD145: 0
D146: 4556 | E146: 2019-07-09T18:59:59.992 | F146: 2019-07-31 | G146: Jul 2019 | H146: 2019 | I146: 20 - 21 | J146: 19 | K146: 33.86 | L146: 32.97 | M146: 32.97 | N146: 32.97 | O146: 46.75 | P146: 47.66 | Q146: 32.97 | R146: 32.97 | S146: 32.97 | T146: 32.56 | U146: 32.56 | V146: 32.56 | W146: 47.66 | X146: 47.9 | Y146: 47.9 | Z146: 47.66 | AA146: 47.66 | AB146: 46.75 | AC146: 43.35 | AD146: 47.9 | AE146: 40.19 | AF146: 47.9 | AH146: =INDEX(X146:AF146,$AH$2) -> 47.9 | AI146: FALSE | AJ146: FALSE | AK146: 0 | AL146: FALSE | AM146: 2019 | AN146: 38.66343153 | AO146: 40.715 | AP146: 38.56343153 | AQ146: 38.56343153 | AR146: =LOOKUP(E146,'Hourly Data Facility'!A:A,'Hourly Data Facility'!F:F) ->  | AS146: =LOOKUP(E146,'Hourly Data PVGIS'!B:B,'Hourly Data PVGIS'!G:G) -> 3.79 | AT146: 181.541 | AU146: =LOOKUP(E146,'Hourly Data PVGIS'!B:B,'Hourly Data PVGIS'!D:D) -> 158.31 | AV146: 7583.049 | AW146: 6104.976846 | AX146: 20 | AY146: 7 | AZ146: 29.55 | BA146: 2 | BB146: 42.9 | BC146: 19 | BD146: 30.02 | BE146: 5 | BF146: 39.99 | BG146: 8 | BH146: 100 | BI146: 0 | BJ146: 0 | BK146: 0 | BL146: 0 | BM146: 0 | BN146: 0 | BO146: 0 | BP146: =LOOKUP(F146,'Gas and Other'!B:B,'Gas and Other'!J:J) -> 3.620371406 | BQ146: 13.23068675 | BR146: 1 | BS146: Jul 2019 | BT146: FALSE | BU146: 141 | BW146: =IF(BT146,INDEX(AH146:BQ146,$BW$4),NA()) ->  | BX146: =IF(BT146,INDEX(AH146:BQ146,$BX$4),NA()) ->  | BY146: FALSE | CA146: =IF(BY146,INDEX(AH146:BQ146,$BW$4),NA()) ->  | CB146: =IF(BY146,INDEX(AH146:BQ146,$BX$4),NA()) ->  | CC146: 0 | CD146: 0
D147: 4557 | E147: 2019-07-09T19:59:59.992 | F147: 2019-07-31 | G147: Jul 2019 | H147: 2019 | I147: 21 - 22 | J147: 20 | K147: 33.22 | L147: 32.61 | M147: 32.61 | N147: 32.61 | O147: 44.79 | P147: 44.79 | Q147: 32.61 | R147: 32.61 | S147: 32.61 | T147: 32.47 | U147: 32.47 | V147: 32.47 | W147: 44.79 | X147: 45.99 | Y147: 45.99 | Z147: 44.79 | AA147: 44.79 | AB147: 44.49 | AC147: 40.34 | AD147: 45.99 | AE147: 36.41 | AF147: 45.99 | AH147: =INDEX(X147:AF147,$AH$2) -> 45.99 | AI147: FALSE | AJ147: FALSE | AK147: 0 | AL147: FALSE | AM147: 2019 | AN147: 38.66343153 | AO147: 39.0915 | AP147: 38.56343153 | AQ147: 38.56343153 | AR147: =LOOKUP(E147,'Hourly Data Facility'!A:A,'Hourly Data Facility'!F:F) ->  | AS147: =LOOKUP(E147,'Hourly Data PVGIS'!B:B,'Hourly Data PVGIS'!G:G) -> 3.52 | AT147: 161.8848 | AU147: =LOOKUP(E147,'Hourly Data PVGIS'!B:B,'Hourly Data PVGIS'!D:D) -> 65.21 | AV147: 2999.0079 | AW147: 2514.72137 | AX147: 21 | AY147: 7 | AZ147: 29.55 | BA147: 2 | BB147: 42.9 | BC147: 19 | BD147: 30.02 | BE147: 5 | BF147: 39.99 | BG147: 8 | BH147: 100 | BI147: 0 | BJ147: 0 | BK147: 0 | BL147: 0 | BM147: 0 | BN147: 0 | BO147: 0 | BP147: =LOOKUP(F147,'Gas and Other'!B:B,'Gas and Other'!J:J) -> 3.620371406 | BQ147: 12.70311657 | BR147: 1 | BS147: Jul 2019 | BT147: FALSE | BU147: 142 | BW147: =IF(BT147,INDEX(AH147:BQ147,$BW$4),NA()) ->  | BX147: =IF(BT147,INDEX(AH147:BQ147,$BX$4),NA()) ->  | BY147: FALSE | CA147: =IF(BY147,INDEX(AH147:BQ147,$BW$4),NA()) ->  | CB147: =IF(BY147,INDEX(AH147:BQ147,$BX$4),NA()) ->  | CC147: 0 | CD147: 0
D148: 4558 | E148: 2019-07-09T20:59:59.992 | F148: 2019-07-31 | G148: Jul 2019 | H148: 2019 | I148: 22 - 23 | J148: 21 | K148: 32.52 | L148: 32.33 | M148: 32.33 | N148: 32.33 | O148: 32.95 | P148: 32.95 | Q148: 32.33 | R148: 32.33 | S148: 32.33 | T148: 32.12 | U148: 32.12 | V148: 32.12 | W148: 32.95 | X148: 43.88 | Y148: 43.88 | Z148: 32.95 | AA148: 32.95 | AB148: 43.88 | AC148: 43.88 | AD148: 43.88 | AE148: 43.88 | AF148: 43.88 | AH148: =INDEX(X148:AF148,$AH$2) -> 43.88 | AI148: FALSE | AJ148: FALSE | AK148: 0 | AL148: FALSE | AM148: 2019 | AN148: 38.66343153 | AO148: 37.298 | AP148: 38.56343153 | AQ148: 38.56343153 | AR148: =LOOKUP(E148,'Hourly Data Facility'!A:A,'Hourly Data Facility'!F:F) ->  | AS148: =LOOKUP(E148,'Hourly Data PVGIS'!B:B,'Hourly Data PVGIS'!G:G) -> 2.55 | AT148: 111.894 | AU148: =LOOKUP(E148,'Hourly Data PVGIS'!B:B,'Hourly Data PVGIS'!D:D) -> 25.76 | AV148: 1130.3488 | AW148: 993.3939962 | AX148: 22 | AY148: 7 | AZ148: 29.55 | BA148: 2 | BB148: 42.9 | BC148: 19 | BD148: 30.02 | BE148: 5 | BF148: 39.99 | BG148: 8 | BH148: 100 | BI148: 0 | BJ148: 0 | BK148: 0 | BL148: 0 | BM148: 0 | BN148: 0 | BO148: 0 | BP148: =LOOKUP(F148,'Gas and Other'!B:B,'Gas and Other'!J:J) -> 3.620371406 | BQ148: 12.12030344 | BR148: 1 | BS148: Jul 2019 | BT148: FALSE | BU148: 143 | BW148: =IF(BT148,INDEX(AH148:BQ148,$BW$4),NA()) ->  | BX148: =IF(BT148,INDEX(AH148:BQ148,$BX$4),NA()) ->  | BY148: FALSE | CA148: =IF(BY148,INDEX(AH148:BQ148,$BW$4),NA()) ->  | CB148: =IF(BY148,INDEX(AH148:BQ148,$BX$4),NA()) ->  | CC148: 0 | CD148: 0
D149: 4559 | E149: 2019-07-09T21:59:59.992 | F149: 2019-07-31 | G149: Jul 2019 | H149: 2019 | I149: 23 - 00 | J149: 22 | K149: 31.48 | L149: 31.47 | M149: 31.47 | N149: 31.47 | O149: 31.47 | P149: 31.47 | Q149: 31.47 | R149: 31.47 | S149: 31.47 | T149: 31.47 | U149: 31.47 | V149: 31.47 | W149: 31.47 | X149: 36.66 | Y149: 36.66 | Z149: 31.47 | AA149: 31.47 | AB149: 36.66 | AC149: 36.66 | AD149: 36.66 | AE149: 36.66 | AF149: 36.66 | AH149: =INDEX(X149:AF149,$AH$2) -> 36.66 | AI149: FALSE | AJ149: FALSE | AK149: 0 | AL149: FALSE | AM149: 2019 | AN149: 38.66343153 | AO149: 31.161 | AP149: 38.56343153 | AQ149: 38.56343153 | AR149: =LOOKUP(E149,'Hourly Data Facility'!A:A,'Hourly Data Facility'!F:F) ->  | AS149: =LOOKUP(E149,'Hourly Data PVGIS'!B:B,'Hourly Data PVGIS'!G:G) -> 2.34 | AT149: 85.7844 | AU149: =LOOKUP(E149,'Hourly Data PVGIS'!B:B,'Hourly Data PVGIS'!D:D) -> 0 | AV149: 0 | AW149: 0 | AX149: 23 | AY149: 7 | AZ149: 29.55 | BA149: 2 | BB149: 42.9 | BC149: 19 | BD149: 30.02 | BE149: 5 | BF149: 39.99 | BG149: 8 | BH149: 100 | BI149: 0 | BJ149: 0 | BK149: 0 | BL149: 0 | BM149: 0 | BN149: 0 | BO149: 0 | BP149: =LOOKUP(F149,'Gas and Other'!B:B,'Gas and Other'!J:J) -> 3.620371406 | BQ149: 10.12603291 | BR149: 1 | BS149: Jul 2019 | BT149: FALSE | BU149: 144 | BW149: =IF(BT149,INDEX(AH149:BQ149,$BW$4),NA()) ->  | BX149: =IF(BT149,INDEX(AH149:BQ149,$BX$4),NA()) ->  | BY149: FALSE | CA149: =IF(BY149,INDEX(AH149:BQ149,$BW$4),NA()) ->  | CB149: =IF(BY149,INDEX(AH149:BQ149,$BX$4),NA()) ->  | CC149: 0 | CD149: 0
D150: 4560 | E150: 2019-07-09T22:59:59.992 | F150: 2019-07-31 | G150: Jul 2019 | H150: 2019 | I150: 00 - 01 | J150: 23 | K150: 32.88 | L150: 32.88 | M150: 32.88 | N150: 32.88 | O150: 32.88 | P150: 32.88 | Q150: 32.88 | R150: 32.88 | S150: 32.88 | T150: 32.88 | U150: 32.88 | V150: 32.88 | W150: 32.88 | X150: 32.88 | Y150: 32.88 | Z150: 32.88 | AA150: 32.88 | AB150: 35.91 | AC150: 35.91 | AD150: 35.91 | AE150: 35.91 | AF150: 35.91 | AH150: =INDEX(X150:AF150,$AH$2) -> 35.91 | AI150: FALSE | AJ150: FALSE | AK150: 0 | AL150: FALSE | AM150: 2019 | AN150: 38.66343153 | AO150: 30.5235 | AP150: 38.56343153 | AQ150: 38.56343153 | AR150: =LOOKUP(E150,'Hourly Data Facility'!A:A,'Hourly Data Facility'!F:F) ->  | AS150: =LOOKUP(E150,'Hourly Data PVGIS'!B:B,'Hourly Data PVGIS'!G:G) -> 2.34 | AT150: 84.0294 | AU150: =LOOKUP(E150,'Hourly Data PVGIS'!B:B,'Hourly Data PVGIS'!D:D) -> 0 | AV150: 0 | AW150: 0 | AX150: 24 | AY150: 7 | AZ150: 29.55 | BA150: 2 | BB150: 42.9 | BC150: 19 | BD150: 30.02 | BE150: 5 | BF150: 39.99 | BG150: 8 | BH150: 100 | BI150: 0 | BJ150: 0 | BK150: 0 | BL150: 0 | BM150: 0 | BN150: 0 | BO150: 0 | BP150: =LOOKUP(F150,'Gas and Other'!B:B,'Gas and Other'!J:J) -> 3.620371406 | BQ150: 9.918871844 | BR150: 1 | BS150: Jul 2019 | BT150: FALSE | BU150: 145 | BW150: =IF(BT150,INDEX(AH150:BQ150,$BW$4),NA()) ->  | BX150: =IF(BT150,INDEX(AH150:BQ150,$BX$4),NA()) ->  | BY150: FALSE | CA150: =IF(BY150,INDEX(AH150:BQ150,$BW$4),NA()) ->  | CB150: =IF(BY150,INDEX(AH150:BQ150,$BX$4),NA()) ->  | CC150: 0 | CD150: 0
D151: 4561 | E151: 2019-07-09T23:59:59.992 | F151: 2019-07-31 | G151: Jul 2019 | H151: 2019 | I151: 01 - 02 | J151: 0 | K151: 32.31 | L151: 32.06 | M151: 32.06 | N151: 32.06 | O151: 32.06 | P151: 32.06 | Q151: 32.46 | R151: 32.46 | S151: 32.46 | T151: 32.06 | U151: 32.06 | V151: 32.06 | W151: 32.06 | X151: 32.46 | Y151: 32.46 | Z151: 32.06 | AA151: 32.06 | AB151: 33.54 | AC151: 33.54 | AD151: 33.54 | AE151: 33.54 | AF151: 33.54 | AH151: =INDEX(X151:AF151,$AH$2) -> 33.54 | AI151: FALSE | AJ151: FALSE | AK151: 0 | AL151: FALSE | AM151: 2019 | AN151: 38.66343153 | AO151: 28.509 | AP151: 38.56343153 | AQ151: 38.56343153 | AR151: =LOOKUP(E151,'Hourly Data Facility'!A:A,'Hourly Data Facility'!F:F) ->  | AS151: =LOOKUP(E151,'Hourly Data PVGIS'!B:B,'Hourly Data PVGIS'!G:G) -> 2.21 | AT151: 74.1234 | AU151: =LOOKUP(E151,'Hourly Data PVGIS'!B:B,'Hourly Data PVGIS'!D:D) -> 0 | AV151: 0 | AW151: 0 | AX151: 1 | AY151: 8 | AZ151: 29.48 | BA151: 3 | BB151: 47.9 | BC151: 20 | BD151: 29.81 | BE151: 2 | BF151: 47 | BG151: 19 | BH151: 100 | BI151: 0 | BJ151: 0 | BK151: 0 | BL151: 0 | BM151: 0 | BN151: 0 | BO151: 0 | BP151: =LOOKUP(F151,'Gas and Other'!B:B,'Gas and Other'!J:J) -> 3.620371406 | BQ151: 9.264242875 | BR151: 1 | BS151: Jul 2019 | BT151: FALSE | BU151: 146 | BW151: =IF(BT151,INDEX(AH151:BQ151,$BW$4),NA()) ->  | BX151: =IF(BT151,INDEX(AH151:BQ151,$BX$4),NA()) ->  | BY151: FALSE | CA151: =IF(BY151,INDEX(AH151:BQ151,$BW$4),NA()) ->  | CB151: =IF(BY151,INDEX(AH151:BQ151,$BX$4),NA()) ->  | CC151: 0 | CD151: 0
D152: 4562 | E152: 2019-07-10T00:59:59.992 | F152: 2019-07-31 | G152: Jul 2019 | H152: 2019 | I152: 02 - 03 | J152: 1 | K152: 31.69 | L152: 31.44 | M152: 31.44 | N152: 31.44 | O152: 31.44 | P152: 31.44 | Q152: 32.07 | R152: 32.07 | S152: 32.07 | T152: 31.44 | U152: 31.44 | V152: 31.44 | W152: 31.44 | X152: 32.07 | Y152: 32.07 | Z152: 31.44 | AA152: 31.44 | AB152: 32.98 | AC152: 32.98 | AD152: 32.98 | AE152: 32.98 | AF152: 32.98 | AH152: =INDEX(X152:AF152,$AH$2) -> 32.98 | AI152: FALSE | AJ152: FALSE | AK152: 0 | AL152: FALSE | AM152: 2019 | AN152: 38.66343153 | AO152: 28.033 | AP152: 38.56343153 | AQ152: 38.56343153 | AR152: =LOOKUP(E152,'Hourly Data Facility'!A:A,'Hourly Data Facility'!F:F) ->  | AS152: =LOOKUP(E152,'Hourly Data PVGIS'!B:B,'Hourly Data PVGIS'!G:G) -> 2.14 | AT152: 70.5772 | AU152: =LOOKUP(E152,'Hourly Data PVGIS'!B:B,'Hourly Data PVGIS'!D:D) -> 0 | AV152: 0 | AW152: 0 | AX152: 2 | AY152: 8 | AZ152: 29.48 | BA152: 3 | BB152: 47.9 | BC152: 20 | BD152: 29.81 | BE152: 2 | BF152: 47 | BG152: 19 | BH152: 100 | BI152: 0 | BJ152: 0 | BK152: 0 | BL152: 0 | BM152: 0 | BN152: 0 | BO152: 0 | BP152: =LOOKUP(F152,'Gas and Other'!B:B,'Gas and Other'!J:J) -> 3.620371406 | BQ152: 9.109562613 | BR152: 1 | BS152: Jul 2019 | BT152: FALSE | BU152: 147 | BW152: =IF(BT152,INDEX(AH152:BQ152,$BW$4),NA()) ->  | BX152: =IF(BT152,INDEX(AH152:BQ152,$BX$4),NA()) ->  | BY152: FALSE | CA152: =IF(BY152,INDEX(AH152:BQ152,$BW$4),NA()) ->  | CB152: =IF(BY152,INDEX(AH152:BQ152,$BX$4),NA()) ->  | CC152: 0 | CD152: 0
D153: 4563 | E153: 2019-07-10T01:59:59.992 | F153: 2019-07-31 | G153: Jul 2019 | H153: 2019 | I153: 03 - 04 | J153: 2 | K153: 31.55 | L153: 31.15 | M153: 31.15 | N153: 31.15 | O153: 31.15 | P153: 31.15 | Q153: 32.16 | R153: 32.16 | S153: 32.16 | T153: 31.15 | U153: 31.15 | V153: 31.15 | W153: 31.15 | X153: 32.16 | Y153: 32.16 | Z153: 31.15 | AA153: 31.15 | AB153: 32.92 | AC153: 31.48 | AD153: 32.92 | AE153: 30.5 | AF153: 32.92 | AH153: =INDEX(X153:AF153,$AH$2) -> 32.92 | AI153: FALSE | AJ153: FALSE | AK153: 0 | AL153: FALSE | AM153: 2019 | AN153: 38.66343153 | AO153: 27.982 | AP153: 38.56343153 | AQ153: 38.56343153 | AR153: =LOOKUP(E153,'Hourly Data Facility'!A:A,'Hourly Data Facility'!F:F) ->  | AS153: =LOOKUP(E153,'Hourly Data PVGIS'!B:B,'Hourly Data PVGIS'!G:G) -> 2.21 | AT153: 72.7532 | AU153: =LOOKUP(E153,'Hourly Data PVGIS'!B:B,'Hourly Data PVGIS'!D:D) -> 0 | AV153: 0 | AW153: 0 | AX153: 3 | AY153: 8 | AZ153: 29.48 | BA153: 3 | BB153: 47.9 | BC153: 20 | BD153: 29.81 | BE153: 2 | BF153: 47 | BG153: 19 | BH153: 100 | BI153: 29.48 | BJ153: 0 | BK153: 0 | BL153: 100 | BM153: 0 | BN153: 100 | BO153: -2948 | BP153: =LOOKUP(F153,'Gas and Other'!B:B,'Gas and Other'!J:J) -> 3.620371406 | BQ153: 9.092989727 | BR153: 1 | BS153: Jul 2019 | BT153: FALSE | BU153: 148 | BW153: =IF(BT153,INDEX(AH153:BQ153,$BW$4),NA()) ->  | BX153: =IF(BT153,INDEX(AH153:BQ153,$BX$4),NA()) ->  | BY153: FALSE | CA153: =IF(BY153,INDEX(AH153:BQ153,$BW$4),NA()) ->  | CB153: =IF(BY153,INDEX(AH153:BQ153,$BX$4),NA()) ->  | CC153: 0 | CD153: 0
D154: 4564 | E154: 2019-07-10T02:59:59.992 | F154: 2019-07-31 | G154: Jul 2019 | H154: 2019 | I154: 04 - 05 | J154: 3 | K154: 31.63 | L154: 31.12 | M154: 31.12 | N154: 31.12 | O154: 31.12 | P154: 31.12 | Q154: 32.23 | R154: 32.23 | S154: 32.23 | T154: 31.12 | U154: 31.12 | V154: 31.12 | W154: 31.12 | X154: 32.23 | Y154: 32.23 | Z154: 31.12 | AA154: 31.12 | AB154: 33.3 | AC154: 29.24 | AD154: 33.3 | AE154: 26.49 | AF154: 33.3 | AH154: =INDEX(X154:AF154,$AH$2) -> 33.3 | AI154: FALSE | AJ154: FALSE | AK154: 0 | AL154: FALSE | AM154: 2019 | AN154: 38.66343153 | AO154: 28.305 | AP154: 38.56343153 | AQ154: 38.56343153 | AR154: =LOOKUP(E154,'Hourly Data Facility'!A:A,'Hourly Data Facility'!F:F) ->  | AS154: =LOOKUP(E154,'Hourly Data PVGIS'!B:B,'Hourly Data PVGIS'!G:G) -> 2.41 | AT154: 80.253 | AU154: =LOOKUP(E154,'Hourly Data PVGIS'!B:B,'Hourly Data PVGIS'!D:D) -> 0 | AV154: 0 | AW154: 0 | AX154: 4 | AY154: 8 | AZ154: 29.48 | BA154: 3 | BB154: 47.9 | BC154: 20 | BD154: 29.81 | BE154: 2 | BF154: 47 | BG154: 19 | BH154: 100 | BI154: 0 | BJ154: 0 | BK154: 100 | BL154: 0 | BM154: 0 | BN154: 100 | BO154: 0 | BP154: =LOOKUP(F154,'Gas and Other'!B:B,'Gas and Other'!J:J) -> 3.620371406 | BQ154: 9.197951334 | BR154: 1 | BS154: Jul 2019 | BT154: FALSE | BU154: 149 | BW154: =IF(BT154,INDEX(AH154:BQ154,$BW$4),NA()) ->  | BX154: =IF(BT154,INDEX(AH154:BQ154,$BX$4),NA()) ->  | BY154: FALSE | CA154: =IF(BY154,INDEX(AH154:BQ154,$BW$4),NA()) ->  | CB154: =IF(BY154,INDEX(AH154:BQ154,$BX$4),NA()) ->  | CC154: 0 | CD154: 0
D155: 4565 | E155: 2019-07-10T03:59:59.992 | F155: 2019-07-31 | G155: Jul 2019 | H155: 2019 | I155: 05 - 06 | J155: 4 | K155: 32.31 | L155: 32.31 | M155: 32.31 | N155: 32.31 | O155: 32.31 | P155: 32.31 | Q155: 32.31 | R155: 32.31 | S155: 32.31 | T155: 32.31 | U155: 32.31 | V155: 32.31 | W155: 32.31 | X155: 33.5 | Y155: 33.5 | Z155: 32.31 | AA155: 32.31 | AB155: 33.5 | AC155: 30.16 | AD155: 33.5 | AE155: 27.98 | AF155: 33.38 | AH155: =INDEX(X155:AF155,$AH$2) -> 33.38 | AI155: FALSE | AJ155: FALSE | AK155: 0 | AL155: FALSE | AM155: 2019 | AN155: 38.66343153 | AO155: 28.373 | AP155: 38.56343153 | AQ155: 38.56343153 | AR155: =LOOKUP(E155,'Hourly Data Facility'!A:A,'Hourly Data Facility'!F:F) ->  | AS155: =LOOKUP(E155,'Hourly Data PVGIS'!B:B,'Hourly Data PVGIS'!G:G) -> 2.55 | AT155: 85.119 | AU155: =LOOKUP(E155,'Hourly Data PVGIS'!B:B,'Hourly Data PVGIS'!D:D) -> 0 | AV155: 0 | AW155: 0 | AX155: 5 | AY155: 8 | AZ155: 29.48 | BA155: 3 | BB155: 47.9 | BC155: 20 | BD155: 29.81 | BE155: 2 | BF155: 47 | BG155: 19 | BH155: 100 | BI155: 0 | BJ155: 0 | BK155: 100 | BL155: 0 | BM155: 0 | BN155: 100 | BO155: 0 | BP155: =LOOKUP(F155,'Gas and Other'!B:B,'Gas and Other'!J:J) -> 3.620371406 | BQ155: 9.220048514 | BR155: 1 | BS155: Jul 2019 | BT155: FALSE | BU155: 150 | BW155: =IF(BT155,INDEX(AH155:BQ155,$BW$4),NA()) ->  | BX155: =IF(BT155,INDEX(AH155:BQ155,$BX$4),NA()) ->  | BY155: FALSE | CA155: =IF(BY155,INDEX(AH155:BQ155,$BW$4),NA()) ->  | CB155: =IF(BY155,INDEX(AH155:BQ155,$BX$4),NA()) ->  | CC155: 0 | CD155: 0
D156: 4566 | E156: 2019-07-10T04:59:59.992 | F156: 2019-07-31 | G156: Jul 2019 | H156: 2019 | I156: 06 - 07 | J156: 5 | K156: 33.23 | L156: 33.07 | M156: 33.07 | N156: 33.07 | O156: 40.92 | P156: 36.89 | Q156: 33.07 | R156: 33.07 | S156: 33.07 | T156: 33.07 | U156: 33.07 | V156: 33.07 | W156: 45.77 | X156: 41.92 | Y156: 41.92 | Z156: 45.77 | AA156: 45.77 | AB156: 41.92 | AC156: 39.01 | AD156: 41.92 | AE156: 37.04 | AF156: 41.8 | AH156: =INDEX(X156:AF156,$AH$2) -> 41.8 | AI156: FALSE | AJ156: FALSE | AK156: 0 | AL156: FALSE | AM156: 2019 | AN156: 38.66343153 | AO156: 35.53 | AP156: 38.56343153 | AQ156: 38.56343153 | AR156: =LOOKUP(E156,'Hourly Data Facility'!A:A,'Hourly Data Facility'!F:F) ->  | AS156: =LOOKUP(E156,'Hourly Data PVGIS'!B:B,'Hourly Data PVGIS'!G:G) -> 2.55 | AT156: 106.59 | AU156: =LOOKUP(E156,'Hourly Data PVGIS'!B:B,'Hourly Data PVGIS'!D:D) -> 0 | AV156: 0 | AW156: 0 | AX156: 6 | AY156: 8 | AZ156: 29.48 | BA156: 3 | BB156: 47.9 | BC156: 20 | BD156: 29.81 | BE156: 2 | BF156: 47 | BG156: 19 | BH156: 100 | BI156: 0 | BJ156: 0 | BK156: 100 | BL156: 0 | BM156: 0 | BN156: 100 | BO156: 0 | BP156: =LOOKUP(F156,'Gas and Other'!B:B,'Gas and Other'!J:J) -> 3.620371406 | BQ156: 11.54577675 | BR156: 1 | BS156: Jul 2019 | BT156: FALSE | BU156: 151 | BW156: =IF(BT156,INDEX(AH156:BQ156,$BW$4),NA()) ->  | BX156: =IF(BT156,INDEX(AH156:BQ156,$BX$4),NA()) ->  | BY156: FALSE | CA156: =IF(BY156,INDEX(AH156:BQ156,$BW$4),NA()) ->  | CB156: =IF(BY156,INDEX(AH156:BQ156,$BX$4),NA()) ->  | CC156: 0 | CD156: 0
D157: 4567 | E157: 2019-07-10T05:59:59.992 | F157: 2019-07-31 | G157: Jul 2019 | H157: 2019 | I157: 07 - 08 | J157: 6 | K157: 33.79 | L157: 33.38 | M157: 33.38 | N157: 33.38 | O157: 33.38 | P157: 42.62 | Q157: 33.38 | R157: 33.38 | S157: 33.38 | T157: 33.38 | U157: 33.38 | V157: 33.38 | W157: 60.36 | X157: 49.45 | Y157: 49.45 | Z157: 60.36 | AA157: 60.36 | AB157: 48.99 | AC157: 46.72 | AD157: 49.45 | AE157: 45.74 | AF157: 49.45 | AH157: =INDEX(X157:AF157,$AH$2) -> 49.45 | AI157: FALSE | AJ157: FALSE | AK157: 0 | AL157: FALSE | AM157: 2019 | AN157: 38.66343153 | AO157: 42.0325 | AP157: 38.56343153 | AQ157: 38.56343153 | AR157: =LOOKUP(E157,'Hourly Data Facility'!A:A,'Hourly Data Facility'!F:F) ->  | AS157: =LOOKUP(E157,'Hourly Data PVGIS'!B:B,'Hourly Data PVGIS'!G:G) -> 2.48 | AT157: 122.636 | AU157: =LOOKUP(E157,'Hourly Data PVGIS'!B:B,'Hourly Data PVGIS'!D:D) -> 15.3 | AV157: 756.585 | AW157: 590.0205024 | AX157: 7 | AY157: 8 | AZ157: 29.48 | BA157: 3 | BB157: 47.9 | BC157: 20 | BD157: 29.81 | BE157: 2 | BF157: 47 | BG157: 19 | BH157: 100 | BI157: 0 | BJ157: 0 | BK157: 100 | BL157: 0 | BM157: 0 | BN157: 100 | BO157: 0 | BP157: =LOOKUP(F157,'Gas and Other'!B:B,'Gas and Other'!J:J) -> 3.620371406 | BQ157: 13.65881962 | BR157: 1 | BS157: Jul 2019 | BT157: FALSE | BU157: 152 | BW157: =IF(BT157,INDEX(AH157:BQ157,$BW$4),NA()) ->  | BX157: =IF(BT157,INDEX(AH157:BQ157,$BX$4),NA()) ->  | BY157: FALSE | CA157: =IF(BY157,INDEX(AH157:BQ157,$BW$4),NA()) ->  | CB157: =IF(BY157,INDEX(AH157:BQ157,$BX$4),NA()) ->  | CC157: 0 | CD157: 0
D158: 4568 | E158: 2019-07-10T06:59:59.992 | F158: 2019-07-31 | G158: Jul 2019 | H158: 2019 | I158: 08 - 09 | J158: 7 | K158: 34.11 | L158: 33.82 | M158: 33.82 | N158: 33.82 | O158: 33.82 | P158: 42.31 | Q158: 33.82 | R158: 33.82 | S158: 33.82 | T158: 33.82 | U158: 33.82 | V158: 33.82 | W158: 62.94 | X158: 48.8 | Y158: 48.8 | Z158: 62.94 | AA158: 62.94 | AB158: 48.8 | AC158: 48.8 | AD158: 48.8 | AE158: 48.8 | AF158: 48.8 | AH158: =INDEX(X158:AF158,$AH$2) -> 48.8 | AI158: FALSE | AJ158: FALSE | AK158: 0 | AL158: FALSE | AM158: 2019 | AN158: 38.66343153 | AO158: 41.48 | AP158: 38.56343153 | AQ158: 38.56343153 | AR158: =LOOKUP(E158,'Hourly Data Facility'!A:A,'Hourly Data Facility'!F:F) ->  | AS158: =LOOKUP(E158,'Hourly Data PVGIS'!B:B,'Hourly Data PVGIS'!G:G) -> 2.34 | AT158: 114.192 | AU158: =LOOKUP(E158,'Hourly Data PVGIS'!B:B,'Hourly Data PVGIS'!D:D) -> 13.69 | AV158: 668.072 | AW158: 527.9333777 | AX158: 8 | AY158: 8 | AZ158: 29.48 | BA158: 3 | BB158: 47.9 | BC158: 20 | BD158: 29.81 | BE158: 2 | BF158: 47 | BG158: 19 | BH158: 100 | BI158: 0 | BJ158: 0 | BK158: 100 | BL158: 0 | BM158: 0 | BN158: 100 | BO158: 0 | BP158: =LOOKUP(F158,'Gas and Other'!B:B,'Gas and Other'!J:J) -> 3.620371406 | BQ158: 13.47928003 | BR158: 1 | BS158: Jul 2019 | BT158: FALSE | BU158: 153 | BW158: =IF(BT158,INDEX(AH158:BQ158,$BW$4),NA()) ->  | BX158: =IF(BT158,INDEX(AH158:BQ158,$BX$4),NA()) ->  | BY158: FALSE | CA158: =IF(BY158,INDEX(AH158:BQ158,$BW$4),NA()) ->  | CB158: =IF(BY158,INDEX(AH158:BQ158,$BX$4),NA()) ->  | CC158: 0 | CD158: 0
D159: 4569 | E159: 2019-07-10T07:59:59.992 | F159: 2019-07-31 | G159: Jul 2019 | H159: 2019 | I159: 09 - 10 | J159: 8 | K159: 34.25 | L159: 33.98 | M159: 33.98 | N159: 33.98 | O159: 33.98 | P159: 42 | Q159: 33.98 | R159: 33.98 | S159: 33.98 | T159: 33.98 | U159: 33.98 | V159: 32.48 | W159: 65.66 | X159: 43.99 | Y159: 43.99 | Z159: 65.66 | AA159: 65.66 | AB159: 43.99 | AC159: 43.99 | AD159: 43.99 | AE159: 43.99 | AF159: 43.99 | AH159: =INDEX(X159:AF159,$AH$2) -> 43.99 | AI159: FALSE | AJ159: FALSE | AK159: 0 | AL159: FALSE | AM159: 2019 | AN159: 38.66343153 | AO159: 37.3915 | AP159: 38.56343153 | AQ159: 38.56343153 | AR159: =LOOKUP(E159,'Hourly Data Facility'!A:A,'Hourly Data Facility'!F:F) ->  | AS159: =LOOKUP(E159,'Hourly Data PVGIS'!B:B,'Hourly Data PVGIS'!G:G) -> 2.69 | AT159: 118.3331 | AU159: =LOOKUP(E159,'Hourly Data PVGIS'!B:B,'Hourly Data PVGIS'!D:D) -> 34.4 | AV159: 1513.256 | AW159: 1326.582045 | AX159: 9 | AY159: 8 | AZ159: 29.48 | BA159: =IF(AX159=1,_xlfn.XLOOKUP(AZ159,AH135:AH158,AX135:AX158,0,0),BA158) -> 3 | BB159: 47.9 | BC159: 20 | BD159: 29.81 | BE159: 2 | BF159: 47 | BG159: 19 | BH159: 100 | BI159: 0 | BJ159: 0 | BK159: 100 | BL159: 0 | BM159: 0 | BN159: 100 | BO159: 0 | BP159: =LOOKUP(F159,'Gas and Other'!B:B,'Gas and Other'!J:J) -> 3.620371406 | BQ159: 12.15068706 | BR159: 1 | BS159: Jul 2019 | BT159: FALSE | BU159: 154 | BW159: =IF(BT159,INDEX(AH159:BQ159,$BW$4),NA()) ->  | BX159: =IF(BT159,INDEX(AH159:BQ159,$BX$4),NA()) ->  | BY159: FALSE | CA159: =IF(BY159,INDEX(AH159:BQ159,$BW$4),NA()) ->  | CB159: =IF(BY159,INDEX(AH159:BQ159,$BX$4),NA()) ->  | CC159: 0 | CD159: 0
D160: 4570 | E160: 2019-07-10T08:59:59.992 | F160: 2019-07-31 | G160: Jul 2019 | H160: 2019 | I160: 10 - 11 | J160: 9 | K160: 34.33 | L160: 34.09 | M160: 34.09 | N160: 34.09 | O160: 34.09 | P160: 38.87 | Q160: 34.09 | R160: 34.09 | S160: 34.09 | T160: 34.09 | U160: 34.09 | V160: 32.82 | W160: 65.66 | X160: 41.34 | Y160: 41.34 | Z160: 65.66 | AA160: 65.66 | AB160: 41.34 | AC160: 41.34 | AD160: 41.34 | AE160: 41.34 | AF160: 41.34 | AH160: =INDEX(X160:AF160,$AH$2) -> 41.34 | AI160: FALSE | AJ160: FALSE | AK160: 0 | AL160: FALSE | AM160: 2019 | AN160: 38.66343153 | AO160: 35.139 | AP160: 38.56343153 | AQ160: 38.56343153 | AR160: =LOOKUP(E160,'Hourly Data Facility'!A:A,'Hourly Data Facility'!F:F) ->  | AS160: =LOOKUP(E160,'Hourly Data PVGIS'!B:B,'Hourly Data PVGIS'!G:G) -> 3.24 | AT160: 133.9416 | AU160: =LOOKUP(E160,'Hourly Data PVGIS'!B:B,'Hourly Data PVGIS'!D:D) -> 141.84 | AV160: 5863.6656 | AW160: 5469.837128 | AX160: 10 | AY160: 8 | AZ160: =IF(AX160=1,SMALL(AH136:AH159,1),AZ159) -> 29.48 | BA160: 3 | BB160: =IF(AX160=1,LARGE(AH136:AH159,1),BB159) -> 47.9 | BC160: =IF(AX160=1,_xlfn.XLOOKUP(BB160,AH136:AH159,AX136:AX159),BC159) -> 20 | BD160: =IF(AX160=1,SMALL(AH136:AH159,2),BD159) -> 29.81 | BE160: =IF(AX160=1,_xlfn.XLOOKUP(BD160,AH136:AH159,AX136:AX159,0,0),BE159) -> 2 | BF160: =IF(AX160=1,LARGE(AH136:AH159,2),BF159) -> 47 | BG160: =IF(AX160=1,_xlfn.XLOOKUP(BF160,AH136:AH159,AX136:AX159,0,0),BG159) -> 19 | BH160: 100 | BI160: 0 | BJ160: 0 | BK160: 100 | BL160: 0 | BM160: 0 | BN160: 100 | BO160: 0 | BP160: =LOOKUP(F160,'Gas and Other'!B:B,'Gas and Other'!J:J) -> 3.620371406 | BQ160: 11.41871796 | BR160: 1 | BS160: Jul 2019 | BT160: FALSE | BU160: 155 | BW160: =IF(BT160,INDEX(AH160:BQ160,$BW$4),NA()) ->  | BX160: =IF(BT160,INDEX(AH160:BQ160,$BX$4),NA()) ->  | BY160: FALSE | CA160: =IF(BY160,INDEX(AH160:BQ160,$BW$4),NA()) ->  | CB160: =IF(BY160,INDEX(AH160:BQ160,$BX$4),NA()) ->  | CC160: 0 | CD160: 0
D161: 4571 | E161: 2019-07-10T09:59:59.992 | F161: 2019-07-31 | G161: Jul 2019 | H161: 2019 | I161: 11 - 12 | J161: 10 | K161: 34.12 | L161: 33.98 | M161: 33.98 | N161: 33.98 | O161: 33.98 | P161: 37.8 | Q161: 33.98 | R161: 33.98 | S161: 33.98 | T161: 33.98 | U161: 33.98 | V161: 32.75 | W161: 64.06 | X161: 42.13 | Y161: 42.13 | Z161: 64.06 | AA161: 64.06 | AB161: 42.13 | AC161: 42.13 | AD161: 42.13 | AE161: 42.13 | AF161: 42.13 | AH161: =INDEX(X161:AF161,$AH$2) -> 42.13 | AI161: FALSE | AJ161: FALSE | AK161: 0 | AL161: FALSE | AM161: 2019 | AN161: 38.66343153 | AO161: 35.8105 | AP161: 38.56343153 | AQ161: 38.56343153 | AR161: =LOOKUP(E161,'Hourly Data Facility'!A:A,'Hourly Data Facility'!F:F) ->  | AS161: =LOOKUP(E161,'Hourly Data PVGIS'!B:B,'Hourly Data PVGIS'!G:G) -> 3.24 | AT161: 136.5012 | AU161: =LOOKUP(E161,'Hourly Data PVGIS'!B:B,'Hourly Data PVGIS'!D:D) -> 199.93 | AV161: 8423.0509 | AW161: 7709.986866 | AX161: 11 | AY161: 8 | AZ161: 29.48 | BA161: 3 | BB161: 47.9 | BC161: 20 | BD161: 29.81 | BE161: 2 | BF161: 47 | BG161: 19 | BH161: 100 | BI161: 0 | BJ161: 0 | BK161: 100 | BL161: 0 | BM161: 0 | BN161: 100 | BO161: 0 | BP161: =LOOKUP(F161,'Gas and Other'!B:B,'Gas and Other'!J:J) -> 3.620371406 | BQ161: 11.63692762 | BR161: 1 | BS161: Jul 2019 | BT161: FALSE | BU161: 156 | BW161: =IF(BT161,INDEX(AH161:BQ161,$BW$4),NA()) ->  | BX161: =IF(BT161,INDEX(AH161:BQ161,$BX$4),NA()) ->  | BY161: FALSE | CA161: =IF(BY161,INDEX(AH161:BQ161,$BW$4),NA()) ->  | CB161: =IF(BY161,INDEX(AH161:BQ161,$BX$4),NA()) ->  | CC161: 0 | CD161: 0
D162: 4572 | E162: 2019-07-10T10:59:59.992 | F162: 2019-07-31 | G162: Jul 2019 | H162: 2019 | I162: 12 - 13 | J162: 11 | K162: 33.95 | L162: 33.87 | M162: 33.87 | N162: 33.87 | O162: 33.87 | P162: 38.14 | Q162: 33.87 | R162: 33.87 | S162: 33.87 | T162: 33.87 | U162: 33.87 | V162: 32.71 | W162: 65.66 | X162: 39.16 | Y162: 39.16 | Z162: 65.66 | AA162: 65.66 | AB162: 39.16 | AC162: 39.16 | AD162: 39.16 | AE162: 39.16 | AF162: 39.16 | AH162: =INDEX(X162:AF162,$AH$2) -> 39.16 | AI162: FALSE | AJ162: FALSE | AK162: 0 | AL162: FALSE | AM162: 2019 | AN162: 38.66343153 | AO162: 33.286 | AP162: 38.56343153 | AQ162: 38.56343153 | AR162: =LOOKUP(E162,'Hourly Data Facility'!A:A,'Hourly Data Facility'!F:F) ->  | AS162: =LOOKUP(E162,'Hourly Data PVGIS'!B:B,'Hourly Data PVGIS'!G:G) -> 3.31 | AT162: 129.6196 | AU162: =LOOKUP(E162,'Hourly Data PVGIS'!B:B,'Hourly Data PVGIS'!D:D) -> 150.83 | AV162: 5906.5028 | AW162: 5816.522378 | AX162: 12 | AY162: 8 | AZ162: 29.48 | BA162: 3 | BB162: 47.9 | BC162: 20 | BD162: 29.81 | BE162: 2 | BF162: 47 | BG162: 19 | BH162: 100 | BI162: 0 | BJ162: 0 | BK162: 100 | BL162: 0 | BM162: 0 | BN162: 100 | BO162: 0 | BP162: =LOOKUP(F162,'Gas and Other'!B:B,'Gas and Other'!J:J) -> 3.620371406 | BQ162: 10.8165698 | BR162: 1 | BS162: Jul 2019 | BT162: FALSE | BU162: 157 | BW162: =IF(BT162,INDEX(AH162:BQ162,$BW$4),NA()) ->  | BX162: =IF(BT162,INDEX(AH162:BQ162,$BX$4),NA()) ->  | BY162: FALSE | CA162: =IF(BY162,INDEX(AH162:BQ162,$BW$4),NA()) ->  | CB162: =IF(BY162,INDEX(AH162:BQ162,$BX$4),NA()) ->  | CC162: 0 | CD162: 0
D163: 4573 | E163: 2019-07-10T11:59:59.992 | F163: 2019-07-31 | G163: Jul 2019 | H163: 2019 | I163: 13 - 14 | J163: 12 | K163: 33.78 | L163: 33.73 | M163: 33.73 | N163: 33.73 | O163: 33.73 | P163: 36.85 | Q163: 33.73 | R163: 33.73 | S163: 33.73 | T163: 33.73 | U163: 33.73 | V163: 32.68 | W163: 65.65 | X163: 37.32 | Y163: 37.32 | Z163: 65.65 | AA163: 65.65 | AB163: 37.32 | AC163: 37.32 | AD163: 37.32 | AE163: 37.32 | AF163: 37.32 | AH163: =INDEX(X163:AF163,$AH$2) -> 37.32 | AI163: FALSE | AJ163: FALSE | AK163: 0 | AL163: FALSE | AM163: 2019 | AN163: 38.66343153 | AO163: 31.722 | AP163: 38.56343153 | AQ163: 38.56343153 | AR163: =LOOKUP(E163,'Hourly Data Facility'!A:A,'Hourly Data Facility'!F:F) ->  | AS163: =LOOKUP(E163,'Hourly Data PVGIS'!B:B,'Hourly Data PVGIS'!G:G) -> 3.45 | AT163: 128.754 | AU163: =LOOKUP(E163,'Hourly Data PVGIS'!B:B,'Hourly Data PVGIS'!D:D) -> 188.75 | AV163: 7044.15 | AW163: 7278.847701 | AX163: 13 | AY163: 8 | AZ163: 29.48 | BA163: 3 | BB163: 47.9 | BC163: 20 | BD163: 29.81 | BE163: 2 | BF163: 47 | BG163: 19 | BH163: 100 | BI163: 0 | BJ163: 0 | BK163: 100 | BL163: 0 | BM163: 0 | BN163: 100 | BO163: 0 | BP163: =LOOKUP(F163,'Gas and Other'!B:B,'Gas and Other'!J:J) -> 3.620371406 | BQ163: 10.30833465 | BR163: 1 | BS163: Jul 2019 | BT163: FALSE | BU163: 158 | BW163: =IF(BT163,INDEX(AH163:BQ163,$BW$4),NA()) ->  | BX163: =IF(BT163,INDEX(AH163:BQ163,$BX$4),NA()) ->  | BY163: FALSE | CA163: =IF(BY163,INDEX(AH163:BQ163,$BW$4),NA()) ->  | CB163: =IF(BY163,INDEX(AH163:BQ163,$BX$4),NA()) ->  | CC163: 0 | CD163: 0
D164: 4574 | E164: 2019-07-10T12:59:59.992 | F164: 2019-07-31 | G164: Jul 2019 | H164: 2019 | I164: 14 - 15 | J164: 13 | K164: 33.73 | L164: 33.69 | M164: 33.69 | N164: 33.69 | O164: 33.69 | P164: 36.9 | Q164: 33.69 | R164: 33.69 | S164: 33.69 | T164: 33.69 | U164: 33.69 | V164: 32.65 | W164: 61.22 | X164: 36.99 | Y164: 36.99 | Z164: 61.22 | AA164: 61.22 | AB164: 36.99 | AC164: 36.99 | AD164: 36.99 | AE164: 36.99 | AF164: 36.99 | AH164: =INDEX(X164:AF164,$AH$2) -> 36.99 | AI164: FALSE | AJ164: FALSE | AK164: 0 | AL164: FALSE | AM164: 2019 | AN164: 38.66343153 | AO164: 31.4415 | AP164: 38.56343153 | AQ164: 38.56343153 | AR164: =LOOKUP(E164,'Hourly Data Facility'!A:A,'Hourly Data Facility'!F:F) ->  | AS164: =LOOKUP(E164,'Hourly Data PVGIS'!B:B,'Hourly Data PVGIS'!G:G) -> 3.59 | AT164: 132.7941 | AU164: =LOOKUP(E164,'Hourly Data PVGIS'!B:B,'Hourly Data PVGIS'!D:D) -> 150.83 | AV164: 5579.2017 | AW164: 5816.522378 | AX164: 14 | AY164: 8 | AZ164: 29.48 | BA164: 3 | BB164: 47.9 | BC164: 20 | BD164: 29.81 | BE164: 2 | BF164: 47 | BG164: 19 | BH164: 100 | BI164: 0 | BJ164: 0 | BK164: 100 | BL164: 0 | BM164: 0 | BN164: 100 | BO164: 0 | BP164: =LOOKUP(F164,'Gas and Other'!B:B,'Gas and Other'!J:J) -> 3.620371406 | BQ164: 10.21718378 | BR164: 1 | BS164: Jul 2019 | BT164: FALSE | BU164: 159 | BW164: =IF(BT164,INDEX(AH164:BQ164,$BW$4),NA()) ->  | BX164: =IF(BT164,INDEX(AH164:BQ164,$BX$4),NA()) ->  | BY164: FALSE | CA164: =IF(BY164,INDEX(AH164:BQ164,$BW$4),NA()) ->  | CB164: =IF(BY164,INDEX(AH164:BQ164,$BX$4),NA()) ->  | CC164: 0 | CD164: 0
D165: 4575 | E165: 2019-07-10T13:59:59.992 | F165: 2019-07-31 | G165: Jul 2019 | H165: 2019 | I165: 15 - 16 | J165: 14 | K165: 33.66 | L165: 33.55 | M165: 33.55 | N165: 33.55 | O165: 33.55 | P165: 36.43 | Q165: 33.55 | R165: 33.55 | S165: 33.55 | T165: 33.55 | U165: 33.55 | V165: 33.55 | W165: 60.4 | X165: 37.05 | Y165: 37.05 | Z165: 60.4 | AA165: 60.4 | AB165: 37.05 | AC165: 37.05 | AD165: 37.05 | AE165: 37.05 | AF165: 37.05 | AH165: =INDEX(X165:AF165,$AH$2) -> 37.05 | AI165: FALSE | AJ165: FALSE | AK165: 0 | AL165: FALSE | AM165: 2019 | AN165: 38.66343153 | AO165: 31.4925 | AP165: 38.56343153 | AQ165: 38.56343153 | AR165: =LOOKUP(E165,'Hourly Data Facility'!A:A,'Hourly Data Facility'!F:F) ->  | AS165: =LOOKUP(E165,'Hourly Data PVGIS'!B:B,'Hourly Data PVGIS'!G:G) -> 3.72 | AT165: 137.826 | AU165: =LOOKUP(E165,'Hourly Data PVGIS'!B:B,'Hourly Data PVGIS'!D:D) -> 181.7 | AV165: 6731.985 | AW165: 7006.975509 | AX165: 15 | AY165: 8 | AZ165: 29.48 | BA165: 3 | BB165: 47.9 | BC165: 20 | BD165: 29.81 | BE165: 2 | BF165: 47 | BG165: 19 | BH165: 100 | BI165: 0 | BJ165: 0 | BK165: 100 | BL165: 0 | BM165: 0 | BN165: 100 | BO165: 0 | BP165: =LOOKUP(F165,'Gas and Other'!B:B,'Gas and Other'!J:J) -> 3.620371406 | BQ165: 10.23375666 | BR165: 1 | BS165: Jul 2019 | BT165: FALSE | BU165: 160 | BW165: =IF(BT165,INDEX(AH165:BQ165,$BW$4),NA()) ->  | BX165: =IF(BT165,INDEX(AH165:BQ165,$BX$4),NA()) ->  | BY165: FALSE | CA165: =IF(BY165,INDEX(AH165:BQ165,$BW$4),NA()) ->  | CB165: =IF(BY165,INDEX(AH165:BQ165,$BX$4),NA()) ->  | CC165: 0 | CD165: 0
D166: 4576 | E166: 2019-07-10T14:59:59.992 | F166: 2019-07-31 | G166: Jul 2019 | H166: 2019 | I166: 16 - 17 | J166: 15 | K166: 33.51 | L166: 33.34 | M166: 33.34 | N166: 33.34 | O166: 33.34 | P166: 37.87 | Q166: 33.34 | R166: 33.34 | S166: 33.34 | T166: 33.34 | U166: 33.34 | V166: 33.34 | W166: 55.13 | X166: 38.84 | Y166: 38.84 | Z166: 55.13 | AA166: 55.13 | AB166: 38.84 | AC166: 38.84 | AD166: 38.84 | AE166: 38.84 | AF166: 38.84 | AH166: =INDEX(X166:AF166,$AH$2) -> 38.84 | AI166: FALSE | AJ166: FALSE | AK166: 0 | AL166: FALSE | AM166: 2019 | AN166: 38.66343153 | AO166: 33.014 | AP166: 38.56343153 | AQ166: 38.56343153 | AR166: =LOOKUP(E166,'Hourly Data Facility'!A:A,'Hourly Data Facility'!F:F) ->  | AS166: =LOOKUP(E166,'Hourly Data PVGIS'!B:B,'Hourly Data PVGIS'!G:G) -> 3.72 | AT166: 144.4848 | AU166: =LOOKUP(E166,'Hourly Data PVGIS'!B:B,'Hourly Data PVGIS'!D:D) -> 100.55 | AV166: 3905.362 | AW166: 3877.55304 | AX166: 16 | AY166: 8 | AZ166: 29.48 | BA166: 3 | BB166: 47.9 | BC166: 20 | BD166: 29.81 | BE166: 2 | BF166: 47 | BG166: 19 | BH166: 100 | BI166: 0 | BJ166: 0 | BK166: 100 | BL166: 0 | BM166: 0 | BN166: 100 | BO166: 0 | BP166: =LOOKUP(F166,'Gas and Other'!B:B,'Gas and Other'!J:J) -> 3.620371406 | BQ166: 10.72818108 | BR166: 1 | BS166: Jul 2019 | BT166: FALSE | BU166: 161 | BW166: =IF(BT166,INDEX(AH166:BQ166,$BW$4),NA()) ->  | BX166: =IF(BT166,INDEX(AH166:BQ166,$BX$4),NA()) ->  | BY166: FALSE | CA166: =IF(BY166,INDEX(AH166:BQ166,$BW$4),NA()) ->  | CB166: =IF(BY166,INDEX(AH166:BQ166,$BX$4),NA()) ->  | CC166: 0 | CD166: 0
D167: 4577 | E167: 2019-07-10T15:59:59.992 | F167: 2019-07-31 | G167: Jul 2019 | H167: 2019 | I167: 17 - 18 | J167: 16 | K167: 33.58 | L167: 33.32 | M167: 33.32 | N167: 33.32 | O167: 33.32 | P167: 40.24 | Q167: 33.32 | R167: 33.32 | S167: 33.32 | T167: 33.32 | U167: 33.32 | V167: 33.32 | W167: 55.16 | X167: 44.08 | Y167: 44.08 | Z167: 55.16 | AA167: 55.16 | AB167: 44.08 | AC167: 44.08 | AD167: 44.08 | AE167: 44.08 | AF167: 44.08 | AH167: =INDEX(X167:AF167,$AH$2) -> 44.08 | AI167: FALSE | AJ167: FALSE | AK167: 0 | AL167: FALSE | AM167: 2019 | AN167: 38.66343153 | AO167: 37.468 | AP167: 38.56343153 | AQ167: 38.56343153 | AR167: =LOOKUP(E167,'Hourly Data Facility'!A:A,'Hourly Data Facility'!F:F) ->  | AS167: =LOOKUP(E167,'Hourly Data PVGIS'!B:B,'Hourly Data PVGIS'!G:G) -> 3.59 | AT167: 158.2472 | AU167: =LOOKUP(E167,'Hourly Data PVGIS'!B:B,'Hourly Data PVGIS'!D:D) -> 121.72 | AV167: 5365.4176 | AW167: 4693.940886 | AX167: 17 | AY167: 8 | AZ167: 29.48 | BA167: 3 | BB167: 47.9 | BC167: 20 | BD167: 29.81 | BE167: 2 | BF167: 47 | BG167: 19 | BH167: 100 | BI167: 0 | BJ167: 0 | BK167: 100 | BL167: 0 | BM167: 0 | BN167: 100 | BO167: 0 | BP167: =LOOKUP(F167,'Gas and Other'!B:B,'Gas and Other'!J:J) -> 3.620371406 | BQ167: 12.17554639 | BR167: 1 | BS167: Jul 2019 | BT167: FALSE | BU167: 162 | BW167: =IF(BT167,INDEX(AH167:BQ167,$BW$4),NA()) ->  | BX167: =IF(BT167,INDEX(AH167:BQ167,$BX$4),NA()) ->  | BY167: FALSE | CA167: =IF(BY167,INDEX(AH167:BQ167,$BW$4),NA()) ->  | CB167: =IF(BY167,INDEX(AH167:BQ167,$BX$4),NA()) ->  | CC167: 0 | CD167: 0
D168: 4578 | E168: 2019-07-10T16:59:59.992 | F168: 2019-07-31 | G168: Jul 2019 | H168: 2019 | I168: 18 - 19 | J168: 17 | K168: 33.61 | L168: 33.24 | M168: 33.24 | N168: 33.24 | O168: 33.24 | P168: 39.7 | Q168: 33.24 | R168: 33.24 | S168: 33.24 | T168: 33.24 | U168: 33.24 | V168: 33.24 | W168: 52.78 | X168: 48.95 | Y168: 48.95 | Z168: 52.78 | AA168: 52.78 | AB168: 48.95 | AC168: 48.95 | AD168: 48.95 | AE168: 48.95 | AF168: 48.95 | AH168: =INDEX(X168:AF168,$AH$2) -> 48.95 | AI168: FALSE | AJ168: FALSE | AK168: 0 | AL168: FALSE | AM168: 2019 | AN168: 38.66343153 | AO168: 41.6075 | AP168: 38.56343153 | AQ168: 38.56343153 | AR168: =LOOKUP(E168,'Hourly Data Facility'!A:A,'Hourly Data Facility'!F:F) ->  | AS168: =LOOKUP(E168,'Hourly Data PVGIS'!B:B,'Hourly Data PVGIS'!G:G) -> 3.45 | AT168: 168.8775 | AU168: =LOOKUP(E168,'Hourly Data PVGIS'!B:B,'Hourly Data PVGIS'!D:D) -> 125.25 | AV168: 6130.9875 | AW168: 4830.069799 | AX168: 18 | AY168: 8 | AZ168: 29.48 | BA168: 3 | BB168: 47.9 | BC168: 20 | BD168: 29.81 | BE168: 2 | BF168: 47 | BG168: 19 | BH168: 100 | BI168: 0 | BJ168: 0 | BK168: 100 | BL168: 0 | BM168: 0 | BN168: 100 | BO168: 0 | BP168: =LOOKUP(F168,'Gas and Other'!B:B,'Gas and Other'!J:J) -> 3.620371406 | BQ168: 13.52071225 | BR168: 1 | BS168: Jul 2019 | BT168: FALSE | BU168: 163 | BW168: =IF(BT168,INDEX(AH168:BQ168,$BW$4),NA()) ->  | BX168: =IF(BT168,INDEX(AH168:BQ168,$BX$4),NA()) ->  | BY168: FALSE | CA168: =IF(BY168,INDEX(AH168:BQ168,$BW$4),NA()) ->  | CB168: =IF(BY168,INDEX(AH168:BQ168,$BX$4),NA()) ->  | CC168: 0 | CD168: 0
D169: 4579 | E169: 2019-07-10T17:59:59.992 | F169: 2019-07-31 | G169: Jul 2019 | H169: 2019 | I169: 19 - 20 | J169: 18 | K169: 34.07 | L169: 33.71 | M169: 33.71 | N169: 33.71 | O169: 33.71 | P169: 44.65 | Q169: 33.71 | R169: 33.71 | S169: 33.71 | T169: 33.71 | U169: 33.71 | V169: 33.71 | W169: 60.4 | X169: 53.19 | Y169: 53.19 | Z169: 60.4 | AA169: 60.4 | AB169: 53.19 | AC169: 53.19 | AD169: 53.19 | AE169: 53.19 | AF169: 53.19 | AH169: =INDEX(X169:AF169,$AH$2) -> 53.19 | AI169: FALSE | AJ169: FALSE | AK169: 0 | AL169: FALSE | AM169: 2019 | AN169: 38.66343153 | AO169: 45.2115 | AP169: 38.56343153 | AQ169: 38.56343153 | AR169: =LOOKUP(E169,'Hourly Data Facility'!A:A,'Hourly Data Facility'!F:F) ->  | AS169: =LOOKUP(E169,'Hourly Data PVGIS'!B:B,'Hourly Data PVGIS'!G:G) -> 3.03 | AT169: 161.1657 | AU169: =LOOKUP(E169,'Hourly Data PVGIS'!B:B,'Hourly Data PVGIS'!D:D) -> 44.1 | AV169: 2345.679 | AW169: 1700.64733 | AX169: 19 | AY169: 8 | AZ169: 29.48 | BA169: 3 | BB169: 47.9 | BC169: 20 | BD169: 29.81 | BE169: 2 | BF169: 47 | BG169: 19 | BH169: 100 | BI169: 0 | BJ169: 0 | BK169: 100 | BL169: 0 | BM169: 0 | BN169: 100 | BO169: 0 | BP169: =LOOKUP(F169,'Gas and Other'!B:B,'Gas and Other'!J:J) -> 3.620371406 | BQ169: 14.69186281 | BR169: 1 | BS169: Jul 2019 | BT169: FALSE | BU169: 164 | BW169: =IF(BT169,INDEX(AH169:BQ169,$BW$4),NA()) ->  | BX169: =IF(BT169,INDEX(AH169:BQ169,$BX$4),NA()) ->  | BY169: FALSE | CA169: =IF(BY169,INDEX(AH169:BQ169,$BW$4),NA()) ->  | CB169: =IF(BY169,INDEX(AH169:BQ169,$BX$4),NA()) ->  | CC169: 0 | CD169: 0
D170: 4580 | E170: 2019-07-10T18:59:59.992 | F170: 2019-07-31 | G170: Jul 2019 | H170: 2019 | I170: 20 - 21 | J170: 19 | K170: 33.85 | L170: 33.59 | M170: 33.59 | N170: 33.59 | O170: 33.59 | P170: 37.28 | Q170: 33.59 | R170: 33.59 | S170: 33.59 | T170: 33.48 | U170: 33.48 | V170: 33.48 | W170: 60.77 | X170: 51.47 | Y170: 51.47 | Z170: 60.77 | AA170: 60.77 | AB170: 51.43 | AC170: 51.25 | AD170: 51.47 | AE170: 51.09 | AF170: 51.47 | AH170: =INDEX(X170:AF170,$AH$2) -> 51.47 | AI170: FALSE | AJ170: FALSE | AK170: 0 | AL170: FALSE | AM170: 2019 | AN170: 38.66343153 | AO170: 43.7495 | AP170: 38.56343153 | AQ170: 38.56343153 | AR170: =LOOKUP(E170,'Hourly Data Facility'!A:A,'Hourly Data Facility'!F:F) ->  | AS170: =LOOKUP(E170,'Hourly Data PVGIS'!B:B,'Hourly Data PVGIS'!G:G) -> 2.55 | AT170: 131.2485 | AU170: =LOOKUP(E170,'Hourly Data PVGIS'!B:B,'Hourly Data PVGIS'!D:D) -> 53.8 | AV170: 2769.086 | AW170: 2074.712616 | AX170: 20 | AY170: 8 | AZ170: 29.48 | BA170: 3 | BB170: 47.9 | BC170: 20 | BD170: 29.81 | BE170: 2 | BF170: 47 | BG170: 19 | BH170: 100 | BI170: 0 | BJ170: 51.47 | BK170: 100 | BL170: 0 | BM170: 100 | BN170: 0 | BO170: 5147 | BP170: =LOOKUP(F170,'Gas and Other'!B:B,'Gas and Other'!J:J) -> 3.620371406 | BQ170: 14.21677343 | BR170: 1 | BS170: Jul 2019 | BT170: FALSE | BU170: 165 | BW170: =IF(BT170,INDEX(AH170:BQ170,$BW$4),NA()) ->  | BX170: =IF(BT170,INDEX(AH170:BQ170,$BX$4),NA()) ->  | BY170: FALSE | CA170: =IF(BY170,INDEX(AH170:BQ170,$BW$4),NA()) ->  | CB170: =IF(BY170,INDEX(AH170:BQ170,$BX$4),NA()) ->  | CC170: 0 | CD170: 0
D171: 4581 | E171: 2019-07-10T19:59:59.992 | F171: 2019-07-31 | G171: Jul 2019 | H171: 2019 | I171: 21 - 22 | J171: 20 | K171: 33.95 | L171: 33.65 | M171: 33.65 | N171: 33.65 | O171: 46.35 | P171: 38.2 | Q171: 33.65 | R171: 33.65 | S171: 33.65 | T171: 33.65 | U171: 33.65 | V171: 33.65 | W171: 46.35 | X171: 48.06 | Y171: 48.06 | Z171: 46.35 | AA171: 46.35 | AB171: 48.02 | AC171: 47.84 | AD171: 48.06 | AE171: 47.68 | AF171: 48.06 | AH171: =INDEX(X171:AF171,$AH$2) -> 48.06 | AI171: FALSE | AJ171: FALSE | AK171: 0 | AL171: FALSE | AM171: 2019 | AN171: 38.66343153 | AO171: 40.851 | AP171: 38.56343153 | AQ171: 38.56343153 | AR171: =LOOKUP(E171,'Hourly Data Facility'!A:A,'Hourly Data Facility'!F:F) ->  | AS171: =LOOKUP(E171,'Hourly Data PVGIS'!B:B,'Hourly Data PVGIS'!G:G) -> 2.55 | AT171: 122.553 | AU171: =LOOKUP(E171,'Hourly Data PVGIS'!B:B,'Hourly Data PVGIS'!D:D) -> 26.57 | AV171: 1276.9542 | AW171: 1024.630376 | AX171: 21 | AY171: 8 | AZ171: 29.48 | BA171: 3 | BB171: 47.9 | BC171: 20 | BD171: 29.81 | BE171: 2 | BF171: 47 | BG171: 19 | BH171: 100 | BI171: 0 | BJ171: 0 | BK171: 0 | BL171: 0 | BM171: 0 | BN171: 0 | BO171: 0 | BP171: =LOOKUP(F171,'Gas and Other'!B:B,'Gas and Other'!J:J) -> 3.620371406 | BQ171: 13.27488111 | BR171: 1 | BS171: Jul 2019 | BT171: FALSE | BU171: 166 | BW171: =IF(BT171,INDEX(AH171:BQ171,$BW$4),NA()) ->  | BX171: =IF(BT171,INDEX(AH171:BQ171,$BX$4),NA()) ->  | BY171: FALSE | CA171: =IF(BY171,INDEX(AH171:BQ171,$BW$4),NA()) ->  | CB171: =IF(BY171,INDEX(AH171:BQ171,$BX$4),NA()) ->  | CC171: 0 | CD171: 0
D172: 4582 | E172: 2019-07-10T20:59:59.992 | F172: 2019-07-31 | G172: Jul 2019 | H172: 2019 | I172: 22 - 23 | J172: 21 | K172: 33.56 | L172: 33.45 | M172: 33.45 | N172: 33.45 | O172: 33.45 | P172: 33.45 | Q172: 33.45 | R172: 33.45 | S172: 33.45 | T172: 33.45 | U172: 33.45 | V172: 33.45 | W172: 33.45 | X172: 47.73 | Y172: 47.73 | Z172: 33.45 | AA172: 33.45 | AB172: 47.73 | AC172: 47.73 | AD172: 47.73 | AE172: 47.73 | AF172: 47.73 | AH172: =INDEX(X172:AF172,$AH$2) -> 47.73 | AI172: FALSE | AJ172: FALSE | AK172: 0 | AL172: FALSE | AM172: 2019 | AN172: 38.66343153 | AO172: 40.5705 | AP172: 38.56343153 | AQ172: 38.56343153 | AR172: =LOOKUP(E172,'Hourly Data Facility'!A:A,'Hourly Data Facility'!F:F) ->  | AS172: =LOOKUP(E172,'Hourly Data PVGIS'!B:B,'Hourly Data PVGIS'!G:G) -> 1.72 | AT172: 82.0956 | AU172: =LOOKUP(E172,'Hourly Data PVGIS'!B:B,'Hourly Data PVGIS'!D:D) -> 7.25 | AV172: 346.0425 | AW172: 279.5848786 | AX172: 22 | AY172: 8 | AZ172: 29.48 | BA172: 3 | BB172: 47.9 | BC172: 20 | BD172: 29.81 | BE172: 2 | BF172: 47 | BG172: 19 | BH172: 100 | BI172: 0 | BJ172: 0 | BK172: 0 | BL172: 0 | BM172: 0 | BN172: 0 | BO172: 0 | BP172: =LOOKUP(F172,'Gas and Other'!B:B,'Gas and Other'!J:J) -> 3.620371406 | BQ172: 13.18373025 | BR172: 1 | BS172: Jul 2019 | BT172: FALSE | BU172: 167 | BW172: =IF(BT172,INDEX(AH172:BQ172,$BW$4),NA()) ->  | BX172: =IF(BT172,INDEX(AH172:BQ172,$BX$4),NA()) ->  | BY172: FALSE | CA172: =IF(BY172,INDEX(AH172:BQ172,$BW$4),NA()) ->  | CB172: =IF(BY172,INDEX(AH172:BQ172,$BX$4),NA()) ->  | CC172: 0 | CD172: 0
D173: 4583 | E173: 2019-07-10T21:59:59.992 | F173: 2019-07-31 | G173: Jul 2019 | H173: 2019 | I173: 23 - 00 | J173: 22 | K173: 32.89 | L173: 32.89 | M173: 32.89 | N173: 32.89 | O173: 32.89 | P173: 32.89 | Q173: 32.89 | R173: 32.89 | S173: 32.89 | T173: 32.89 | U173: 32.89 | V173: 32.89 | W173: 32.89 | X173: 42.65 | Y173: 42.65 | Z173: 32.89 | AA173: 32.89 | AB173: 42.65 | AC173: 42.65 | AD173: 42.65 | AE173: 42.65 | AF173: 42.65 | AH173: =INDEX(X173:AF173,$AH$2) -> 42.65 | AI173: FALSE | AJ173: FALSE | AK173: 0 | AL173: FALSE | AM173: 2019 | AN173: 38.66343153 | AO173: 36.2525 | AP173: 38.56343153 | AQ173: 38.56343153 | AR173: =LOOKUP(E173,'Hourly Data Facility'!A:A,'Hourly Data Facility'!F:F) ->  | AS173: =LOOKUP(E173,'Hourly Data PVGIS'!B:B,'Hourly Data PVGIS'!G:G) -> 2.28 | AT173: 97.242 | AU173: =LOOKUP(E173,'Hourly Data PVGIS'!B:B,'Hourly Data PVGIS'!D:D) -> 0 | AV173: 0 | AW173: 0 | AX173: 23 | AY173: 8 | AZ173: 29.48 | BA173: 3 | BB173: 47.9 | BC173: 20 | BD173: 29.81 | BE173: 2 | BF173: 47 | BG173: 19 | BH173: 100 | BI173: 0 | BJ173: 0 | BK173: 0 | BL173: 0 | BM173: 0 | BN173: 0 | BO173: 0 | BP173: =LOOKUP(F173,'Gas and Other'!B:B,'Gas and Other'!J:J) -> 3.620371406 | BQ173: 11.78055929 | BR173: 1 | BS173: Jul 2019 | BT173: FALSE | BU173: 168 | BW173: =IF(BT173,INDEX(AH173:BQ173,$BW$4),NA()) ->  | BX173: =IF(BT173,INDEX(AH173:BQ173,$BX$4),NA()) ->  | BY173: FALSE | CA173: =IF(BY173,INDEX(AH173:BQ173,$BW$4),NA()) ->  | CB173: =IF(BY173,INDEX(AH173:BQ173,$BX$4),NA()) ->  | CC173: 0 | CD173: 0
D174: 4584 | E174: 2019-07-10T22:59:59.992 | F174: 2019-07-31 | G174: Jul 2019 | H174: 2019 | I174: 00 - 01 | J174: 23 | K174: 34.4 | L174: 34.4 | M174: 34.4 | N174: 34.4 | O174: 34.4 | P174: 34.4 | Q174: 34.4 | R174: 34.4 | S174: 34.4 | T174: 33.93 | U174: 33.93 | V174: 33.93 | W174: 34.4 | X174: 36.52 | Y174: 36.52 | Z174: 34.4 | AA174: 34.4 | AB174: 36.52 | AC174: 36.52 | AD174: 36.52 | AE174: 36.52 | AF174: 36.52 | AH174: =INDEX(X174:AF174,$AH$2) -> 36.52 | AI174: FALSE | AJ174: FALSE | AK174: 0 | AL174: FALSE | AM174: 2019 | AN174: 38.66343153 | AO174: 31.042 | AP174: 38.56343153 | AQ174: 38.56343153 | AR174: =LOOKUP(E174,'Hourly Data Facility'!A:A,'Hourly Data Facility'!F:F) ->  | AS174: =LOOKUP(E174,'Hourly Data PVGIS'!B:B,'Hourly Data PVGIS'!G:G) -> 2.55 | AT174: 93.126 | AU174: =LOOKUP(E174,'Hourly Data PVGIS'!B:B,'Hourly Data PVGIS'!D:D) -> 0 | AV174: 0 | AW174: 0 | AX174: 24 | AY174: 8 | AZ174: 29.48 | BA174: 3 | BB174: 47.9 | BC174: 20 | BD174: 29.81 | BE174: 2 | BF174: 47 | BG174: 19 | BH174: 100 | BI174: 0 | BJ174: 0 | BK174: 0 | BL174: 0 | BM174: 0 | BN174: 0 | BO174: 0 | BP174: =LOOKUP(F174,'Gas and Other'!B:B,'Gas and Other'!J:J) -> 3.620371406 | BQ174: 10.08736284 | BR174: 1 | BS174: Jul 2019 | BT174: FALSE | BU174: 169 | BW174: =IF(BT174,INDEX(AH174:BQ174,$BW$4),NA()) ->  | BX174: =IF(BT174,INDEX(AH174:BQ174,$BX$4),NA()) ->  | BY174: FALSE | CA174: =IF(BY174,INDEX(AH174:BQ174,$BW$4),NA()) ->  | CB174: =IF(BY174,INDEX(AH174:BQ174,$BX$4),NA()) ->  | CC174: 0 | CD174: 0
D175: 4585 | E175: 2019-07-10T23:59:59.992 | F175: 2019-07-31 | G175: Jul 2019 | H175: 2019 | I175: 01 - 02 | J175: 0 | K175: 34.19 | L175: 34.21 | M175: 34.21 | N175: 34.21 | O175: 34.21 | P175: 34.21 | Q175: 34.21 | R175: 34.21 | S175: 34.21 | T175: 33.81 | U175: 33.81 | V175: 33.81 | W175: 34.21 | X175: 35.99 | Y175: 35.99 | Z175: 34.21 | AA175: 34.21 | AB175: 35.99 | AC175: 35.99 | AD175: 35.99 | AE175: 35.99 | AF175: 35.99 | AH175: =INDEX(X175:AF175,$AH$2) -> 35.99 | AI175: FALSE | AJ175: FALSE | AK175: 0 | AL175: FALSE | AM175: 2019 | AN175: 38.66343153 | AO175: 30.5915 | AP175: 38.56343153 | AQ175: 38.56343153 | AR175: =LOOKUP(E175,'Hourly Data Facility'!A:A,'Hourly Data Facility'!F:F) ->  | AS175: =LOOKUP(E175,'Hourly Data PVGIS'!B:B,'Hourly Data PVGIS'!G:G) -> 2.62 | AT175: 94.2938 | AU175: =LOOKUP(E175,'Hourly Data PVGIS'!B:B,'Hourly Data PVGIS'!D:D) -> 0 | AV175: 0 | AW175: 0 | AX175: 1 | AY175: 9 | AZ175: 32.92 | BA175: 3 | BB175: 53.19 | BC175: 19 | BD175: 32.98 | BE175: 2 | BF175: 51.47 | BG175: 20 | BH175: 100 | BI175: 0 | BJ175: 0 | BK175: 0 | BL175: 0 | BM175: 0 | BN175: 0 | BO175: 0 | BP175: =LOOKUP(F175,'Gas and Other'!B:B,'Gas and Other'!J:J) -> 3.620371406 | BQ175: 9.940969024 | BR175: 1 | BS175: Jul 2019 | BT175: FALSE | BU175: 170 | BW175: =IF(BT175,INDEX(AH175:BQ175,$BW$4),NA()) ->  | BX175: =IF(BT175,INDEX(AH175:BQ175,$BX$4),NA()) ->  | BY175: FALSE | CA175: =IF(BY175,INDEX(AH175:BQ175,$BW$4),NA()) ->  | CB175: =IF(BY175,INDEX(AH175:BQ175,$BX$4),NA()) ->  | CC175: 0 | CD175: 0
D176: 4586 | E176: 2019-07-11T00:59:59.992 | F176: 2019-07-31 | G176: Jul 2019 | H176: 2019 | I176: 02 - 03 | J176: 1 | K176: 33.97 | L176: 33.99 | M176: 33.99 | N176: 33.99 | O176: 33.99 | P176: 33.99 | Q176: 33.99 | R176: 33.99 | S176: 33.99 | T176: 33.74 | U176: 33.74 | V176: 33.74 | W176: 33.99 | X176: 35.12 | Y176: 35.12 | Z176: 33.99 | AA176: 33.99 | AB176: 35.12 | AC176: 35.12 | AD176: 35.12 | AE176: 35.12 | AF176: 35.12 | AH176: =INDEX(X176:AF176,$AH$2) -> 35.12 | AI176: FALSE | AJ176: FALSE | AK176: 0 | AL176: FALSE | AM176: 2019 | AN176: 38.66343153 | AO176: 29.852 | AP176: 38.56343153 | AQ176: 38.56343153 | AR176: =LOOKUP(E176,'Hourly Data Facility'!A:A,'Hourly Data Facility'!F:F) ->  | AS176: =LOOKUP(E176,'Hourly Data PVGIS'!B:B,'Hourly Data PVGIS'!G:G) -> 2.76 | AT176: 96.9312 | AU176: =LOOKUP(E176,'Hourly Data PVGIS'!B:B,'Hourly Data PVGIS'!D:D) -> 0 | AV176: 0 | AW176: 0 | AX176: 2 | AY176: 9 | AZ176: 32.92 | BA176: 3 | BB176: 53.19 | BC176: 19 | BD176: 32.98 | BE176: 2 | BF176: 51.47 | BG176: 20 | BH176: 100 | BI176: 0 | BJ176: 0 | BK176: 0 | BL176: 0 | BM176: 0 | BN176: 0 | BO176: 0 | BP176: =LOOKUP(F176,'Gas and Other'!B:B,'Gas and Other'!J:J) -> 3.620371406 | BQ176: 9.700662188 | BR176: 1 | BS176: Jul 2019 | BT176: FALSE | BU176: 171 | BW176: =IF(BT176,INDEX(AH176:BQ176,$BW$4),NA()) ->  | BX176: =IF(BT176,INDEX(AH176:BQ176,$BX$4),NA()) ->  | BY176: FALSE | CA176: =IF(BY176,INDEX(AH176:BQ176,$BW$4),NA()) ->  | CB176: =IF(BY176,INDEX(AH176:BQ176,$BX$4),NA()) ->  | CC176: 0 | CD176: 0
D177: 4587 | E177: 2019-07-11T01:59:59.992 | F177: 2019-07-31 | G177: Jul 2019 | H177: 2019 | I177: 03 - 04 | J177: 2 | K177: 33.79 | L177: 33.77 | M177: 33.77 | N177: 33.77 | O177: 33.77 | P177: 33.77 | Q177: 33.77 | R177: 33.77 | S177: 33.77 | T177: 33.71 | U177: 33.71 | V177: 33.71 | W177: 33.77 | X177: 35 | Y177: 35 | Z177: 33.77 | AA177: 33.77 | AB177: 35 | AC177: 31.78 | AD177: 35 | AE177: 29.53 | AF177: 34.88 | AH177: =INDEX(X177:AF177,$AH$2) -> 34.88 | AI177: FALSE | AJ177: FALSE | AK177: 0 | AL177: FALSE | AM177: 2019 | AN177: 38.66343153 | AO177: 29.648 | AP177: 38.56343153 | AQ177: 38.56343153 | AR177: =LOOKUP(E177,'Hourly Data Facility'!A:A,'Hourly Data Facility'!F:F) ->  | AS177: =LOOKUP(E177,'Hourly Data PVGIS'!B:B,'Hourly Data PVGIS'!G:G) -> 2.83 | AT177: 98.7104 | AU177: =LOOKUP(E177,'Hourly Data PVGIS'!B:B,'Hourly Data PVGIS'!D:D) -> 0 | AV177: 0 | AW177: 0 | AX177: 3 | AY177: 9 | AZ177: 32.92 | BA177: 3 | BB177: 53.19 | BC177: 19 | BD177: 32.98 | BE177: 2 | BF177: 51.47 | BG177: 20 | BH177: 100 | BI177: 32.92 | BJ177: 0 | BK177: 0 | BL177: 100 | BM177: 0 | BN177: 100 | BO177: -3292 | BP177: =LOOKUP(F177,'Gas and Other'!B:B,'Gas and Other'!J:J) -> 3.620371406 | BQ177: 9.634370647 | BR177: 1 | BS177: Jul 2019 | BT177: FALSE | BU177: 172 | BW177: =IF(BT177,INDEX(AH177:BQ177,$BW$4),NA()) ->  | BX177: =IF(BT177,INDEX(AH177:BQ177,$BX$4),NA()) ->  | BY177: FALSE | CA177: =IF(BY177,INDEX(AH177:BQ177,$BW$4),NA()) ->  | CB177: =IF(BY177,INDEX(AH177:BQ177,$BX$4),NA()) ->  | CC177: 0 | CD177: 0
D178: 4588 | E178: 2019-07-11T02:59:59.992 | F178: 2019-07-31 | G178: Jul 2019 | H178: 2019 | I178: 04 - 05 | J178: 3 | K178: 33.59 | L178: 33.54 | M178: 33.54 | N178: 33.54 | O178: 33.54 | P178: 33.54 | Q178: 33.54 | R178: 33.65 | S178: 33.54 | T178: 33.54 | U178: 33.54 | V178: 33.54 | W178: 33.54 | X178: 35 | Y178: 35 | Z178: 33.54 | AA178: 33.54 | AB178: 35 | AC178: 30.79 | AD178: 35 | AE178: 27.86 | AF178: 34.86 | AH178: =INDEX(X178:AF178,$AH$2) -> 34.86 | AI178: FALSE | AJ178: FALSE | AK178: 0 | AL178: FALSE | AM178: 2019 | AN178: 38.66343153 | AO178: 29.631 | AP178: 38.56343153 | AQ178: 38.56343153 | AR178: =LOOKUP(E178,'Hourly Data Facility'!A:A,'Hourly Data Facility'!F:F) ->  | AS178: =LOOKUP(E178,'Hourly Data PVGIS'!B:B,'Hourly Data PVGIS'!G:G) -> 2.9 | AT178: 101.094 | AU178: =LOOKUP(E178,'Hourly Data PVGIS'!B:B,'Hourly Data PVGIS'!D:D) -> 0 | AV178: 0 | AW178: 0 | AX178: 4 | AY178: 9 | AZ178: 32.92 | BA178: 3 | BB178: 53.19 | BC178: 19 | BD178: 32.98 | BE178: 2 | BF178: 51.47 | BG178: 20 | BH178: 100 | BI178: 0 | BJ178: 0 | BK178: 100 | BL178: 0 | BM178: 0 | BN178: 100 | BO178: 0 | BP178: =LOOKUP(F178,'Gas and Other'!B:B,'Gas and Other'!J:J) -> 3.620371406 | BQ178: 9.628846352 | BR178: 1 | BS178: Jul 2019 | BT178: FALSE | BU178: 173 | BW178: =IF(BT178,INDEX(AH178:BQ178,$BW$4),NA()) ->  | BX178: =IF(BT178,INDEX(AH178:BQ178,$BX$4),NA()) ->  | BY178: FALSE | CA178: =IF(BY178,INDEX(AH178:BQ178,$BW$4),NA()) ->  | CB178: =IF(BY178,INDEX(AH178:BQ178,$BX$4),NA()) ->  | CC178: 0 | CD178: 0
D179: 4589 | E179: 2019-07-11T03:59:59.992 | F179: 2019-07-31 | G179: Jul 2019 | H179: 2019 | I179: 05 - 06 | J179: 4 | K179: 34.11 | L179: 34.15 | M179: 34.15 | N179: 34.15 | O179: 34.15 | P179: 34.15 | Q179: 34.15 | R179: 34.15 | S179: 34.15 | T179: 33.75 | U179: 33.75 | V179: 33.75 | W179: 34.15 | X179: 35.96 | Y179: 35.96 | Z179: 34.15 | AA179: 34.15 | AB179: 35.96 | AC179: 34.44 | AD179: 35.96 | AE179: 33.38 | AF179: 35.9 | AH179: =INDEX(X179:AF179,$AH$2) -> 35.9 | AI179: FALSE | AJ179: FALSE | AK179: 0 | AL179: FALSE | AM179: 2019 | AN179: 38.66343153 | AO179: 30.515 | AP179: 38.56343153 | AQ179: 38.56343153 | AR179: =LOOKUP(E179,'Hourly Data Facility'!A:A,'Hourly Data Facility'!F:F) ->  | AS179: =LOOKUP(E179,'Hourly Data PVGIS'!B:B,'Hourly Data PVGIS'!G:G) -> 2.9 | AT179: 104.11 | AU179: =LOOKUP(E179,'Hourly Data PVGIS'!B:B,'Hourly Data PVGIS'!D:D) -> 0 | AV179: 0 | AW179: 0 | AX179: 5 | AY179: 9 | AZ179: 32.92 | BA179: 3 | BB179: 53.19 | BC179: 19 | BD179: 32.98 | BE179: 2 | BF179: 51.47 | BG179: 20 | BH179: 100 | BI179: 0 | BJ179: 0 | BK179: 100 | BL179: 0 | BM179: 0 | BN179: 100 | BO179: 0 | BP179: =LOOKUP(F179,'Gas and Other'!B:B,'Gas and Other'!J:J) -> 3.620371406 | BQ179: 9.916109696 | BR179: 1 | BS179: Jul 2019 | BT179: FALSE | BU179: 174 | BW179: =IF(BT179,INDEX(AH179:BQ179,$BW$4),NA()) ->  | BX179: =IF(BT179,INDEX(AH179:BQ179,$BX$4),NA()) ->  | BY179: FALSE | CA179: =IF(BY179,INDEX(AH179:BQ179,$BW$4),NA()) ->  | CB179: =IF(BY179,INDEX(AH179:BQ179,$BX$4),NA()) ->  | CC179: 0 | CD179: 0
D180: 4590 | E180: 2019-07-11T04:59:59.992 | F180: 2019-07-31 | G180: Jul 2019 | H180: 2019 | I180: 06 - 07 | J180: 5 | K180: 34.82 | L180: 34.62 | M180: 34.62 | N180: 34.62 | O180: 41.39 | P180: 42.15 | Q180: 34.62 | R180: 34.62 | S180: 34.62 | T180: 33.93 | U180: 33.93 | V180: 33.93 | W180: 54.31 | X180: 42.41 | Y180: 42.41 | Z180: 54.31 | AA180: 54.31 | AB180: 42.41 | AC180: 40.99 | AD180: 42.41 | AE180: 39.97 | AF180: 42.34 | AH180: =INDEX(X180:AF180,$AH$2) -> 42.34 | AI180: FALSE | AJ180: FALSE | AK180: 0 | AL180: FALSE | AM180: 2019 | AN180: 38.66343153 | AO180: 35.989 | AP180: 38.56343153 | AQ180: 38.56343153 | AR180: =LOOKUP(E180,'Hourly Data Facility'!A:A,'Hourly Data Facility'!F:F) ->  | AS180: =LOOKUP(E180,'Hourly Data PVGIS'!B:B,'Hourly Data PVGIS'!G:G) -> 2.83 | AT180: 119.8222 | AU180: =LOOKUP(E180,'Hourly Data PVGIS'!B:B,'Hourly Data PVGIS'!D:D) -> 0 | AV180: 0 | AW180: 0 | AX180: 6 | AY180: 9 | AZ180: 32.92 | BA180: 3 | BB180: 53.19 | BC180: 19 | BD180: 32.98 | BE180: 2 | BF180: 51.47 | BG180: 20 | BH180: 100 | BI180: 0 | BJ180: 0 | BK180: 100 | BL180: 0 | BM180: 0 | BN180: 100 | BO180: 0 | BP180: =LOOKUP(F180,'Gas and Other'!B:B,'Gas and Other'!J:J) -> 3.620371406 | BQ180: 11.69493272 | BR180: 1 | BS180: Jul 2019 | BT180: FALSE | BU180: 175 | BW180: =IF(BT180,INDEX(AH180:BQ180,$BW$4),NA()) ->  | BX180: =IF(BT180,INDEX(AH180:BQ180,$BX$4),NA()) ->  | BY180: FALSE | CA180: =IF(BY180,INDEX(AH180:BQ180,$BW$4),NA()) ->  | CB180: =IF(BY180,INDEX(AH180:BQ180,$BX$4),NA()) ->  | CC180: 0 | CD180: 0
D181: 4591 | E181: 2019-07-11T05:59:59.992 | F181: 2019-07-31 | G181: Jul 2019 | H181: 2019 | I181: 07 - 08 | J181: 6 | K181: 35.67 | L181: 35.28 | M181: 35.28 | N181: 35.28 | O181: 35.28 | P181: 55.31 | Q181: 35.28 | R181: 35.28 | S181: 35.28 | T181: 34.46 | U181: 34.46 | V181: 34.46 | W181: 63.03 | X181: 50.92 | Y181: 50.92 | Z181: 63.03 | AA181: 63.03 | AB181: 50.92 | AC181: 49.62 | AD181: 50.92 | AE181: 48.85 | AF181: 50.77 | AH181: =INDEX(X181:AF181,$AH$2) -> 50.77 | AI181: FALSE | AJ181: FALSE | AK181: 0 | AL181: FALSE | AM181: 2019 | AN181: 38.66343153 | AO181: 43.1545 | AP181: 38.56343153 | AQ181: 38.56343153 | AR181: =LOOKUP(E181,'Hourly Data Facility'!A:A,'Hourly Data Facility'!F:F) ->  | AS181: =LOOKUP(E181,'Hourly Data PVGIS'!B:B,'Hourly Data PVGIS'!G:G) -> 2.55 | AT181: 129.4635 | AU181: =LOOKUP(E181,'Hourly Data PVGIS'!B:B,'Hourly Data PVGIS'!D:D) -> 4.03 | AV181: 204.6031 | AW181: 155.4106291 | AX181: 7 | AY181: 9 | AZ181: 32.92 | BA181: 3 | BB181: 53.19 | BC181: 19 | BD181: 32.98 | BE181: 2 | BF181: 51.47 | BG181: 20 | BH181: 100 | BI181: 0 | BJ181: 0 | BK181: 100 | BL181: 0 | BM181: 0 | BN181: 100 | BO181: 0 | BP181: =LOOKUP(F181,'Gas and Other'!B:B,'Gas and Other'!J:J) -> 3.620371406 | BQ181: 14.0234231 | BR181: 1 | BS181: Jul 2019 | BT181: FALSE | BU181: 176 | BW181: =IF(BT181,INDEX(AH181:BQ181,$BW$4),NA()) ->  | BX181: =IF(BT181,INDEX(AH181:BQ181,$BX$4),NA()) ->  | BY181: FALSE | CA181: =IF(BY181,INDEX(AH181:BQ181,$BW$4),NA()) ->  | CB181: =IF(BY181,INDEX(AH181:BQ181,$BX$4),NA()) ->  | CC181: 0 | CD181: 0
D182: 4592 | E182: 2019-07-11T06:59:59.992 | F182: 2019-07-31 | G182: Jul 2019 | H182: 2019 | I182: 08 - 09 | J182: 7 | K182: 36.08 | L182: 35.8 | M182: 35.8 | N182: 35.8 | O182: 35.8 | P182: 51.91 | Q182: 35.8 | R182: 35.8 | S182: 35.8 | T182: 35.8 | U182: 35.8 | V182: 32.99 | W182: 69.84 | X182: 51.94 | Y182: 51.94 | Z182: 69.84 | AA182: 69.84 | AB182: 51.94 | AC182: 50.12 | AD182: 51.94 | AE182: 49.02 | AF182: 51.73 | AH182: =INDEX(X182:AF182,$AH$2) -> 51.73 | AI182: FALSE | AJ182: FALSE | AK182: 0 | AL182: FALSE | AM182: 2019 | AN182: 38.66343153 | AO182: 43.9705 | AP182: 38.56343153 | AQ182: 38.56343153 | AR182: =LOOKUP(E182,'Hourly Data Facility'!A:A,'Hourly Data Facility'!F:F) ->  | AS182: =LOOKUP(E182,'Hourly Data PVGIS'!B:B,'Hourly Data PVGIS'!G:G) -> 2.28 | AT182: 117.9444 | AU182: =LOOKUP(E182,'Hourly Data PVGIS'!B:B,'Hourly Data PVGIS'!D:D) -> 30.59 | AV182: 1582.4207 | AW182: 1179.655371 | AX182: 8 | AY182: 9 | AZ182: 32.92 | BA182: 3 | BB182: 53.19 | BC182: 19 | BD182: 32.98 | BE182: 2 | BF182: 51.47 | BG182: 20 | BH182: 100 | BI182: 0 | BJ182: 0 | BK182: 100 | BL182: 0 | BM182: 0 | BN182: 100 | BO182: 0 | BP182: =LOOKUP(F182,'Gas and Other'!B:B,'Gas and Other'!J:J) -> 3.620371406 | BQ182: 14.28858926 | BR182: 1 | BS182: Jul 2019 | BT182: FALSE | BU182: 177 | BW182: =IF(BT182,INDEX(AH182:BQ182,$BW$4),NA()) ->  | BX182: =IF(BT182,INDEX(AH182:BQ182,$BX$4),NA()) ->  | BY182: FALSE | CA182: =IF(BY182,INDEX(AH182:BQ182,$BW$4),NA()) ->  | CB182: =IF(BY182,INDEX(AH182:BQ182,$BX$4),NA()) ->  | CC182: 0 | CD182: 0
D183: 4593 | E183: 2019-07-11T07:59:59.992 | F183: 2019-07-31 | G183: Jul 2019 | H183: 2019 | I183: 09 - 10 | J183: 8 | K183: 36.54 | L183: 36.11 | M183: 36.11 | N183: 36.11 | O183: 51.57 | P183: 55.28 | Q183: 36.11 | R183: 36.11 | S183: 36.11 | T183: 36.11 | U183: 36.11 | V183: 33.02 | W183: 71.15 | X183: 52.84 | Y183: 52.84 | Z183: 71.15 | AA183: 71.15 | AB183: 52.84 | AC183: 52.84 | AD183: 52.84 | AE183: 52.84 | AF183: 52.84 | AH183: =INDEX(X183:AF183,$AH$2) -> 52.84 | AI183: FALSE | AJ183: FALSE | AK183: 0 | AL183: FALSE | AM183: 2019 | AN183: 38.66343153 | AO183: 44.914 | AP183: 38.56343153 | AQ183: 38.56343153 | AR183: =LOOKUP(E183,'Hourly Data Facility'!A:A,'Hourly Data Facility'!F:F) ->  | AS183: =LOOKUP(E183,'Hourly Data PVGIS'!B:B,'Hourly Data PVGIS'!G:G) -> 2.28 | AT183: 120.4752 | AU183: =LOOKUP(E183,'Hourly Data PVGIS'!B:B,'Hourly Data PVGIS'!D:D) -> 119.23 | AV183: 6300.1132 | AW183: 4597.917941 | AX183: 9 | AY183: 9 | AZ183: 32.92 | BA183: 3 | BB183: 53.19 | BC183: 19 | BD183: 32.98 | BE183: 2 | BF183: 51.47 | BG183: 20 | BH183: 100 | BI183: 0 | BJ183: 0 | BK183: 100 | BL183: 0 | BM183: 0 | BN183: 100 | BO183: 0 | BP183: =LOOKUP(F183,'Gas and Other'!B:B,'Gas and Other'!J:J) -> 3.620371406 | BQ183: 14.59518764 | BR183: 1 | BS183: Jul 2019 | BT183: FALSE | BU183: 178 | BW183: =IF(BT183,INDEX(AH183:BQ183,$BW$4),NA()) ->  | BX183: =IF(BT183,INDEX(AH183:BQ183,$BX$4),NA()) ->  | BY183: FALSE | CA183: =IF(BY183,INDEX(AH183:BQ183,$BW$4),NA()) ->  | CB183: =IF(BY183,INDEX(AH183:BQ183,$BX$4),NA()) ->  | CC183: 0 | CD183: 0
D184: 4594 | E184: 2019-07-11T08:59:59.992 | F184: 2019-07-31 | G184: Jul 2019 | H184: 2019 | I184: 10 - 11 | J184: 9 | K184: 37.01 | L184: 36.71 | M184: 36.71 | N184: 36.71 | O184: 50.54 | P184: 52.7 | Q184: 36.71 | R184: 36.71 | S184: 36.71 | T184: 36.71 | U184: 36.71 | V184: 33.02 | W184: 70.32 | X184: 51.78 | Y184: 51.78 | Z184: 70.32 | AA184: 70.32 | AB184: 51.78 | AC184: 51.78 | AD184: 51.78 | AE184: 51.78 | AF184: 51.78 | AH184: =INDEX(X184:AF184,$AH$2) -> 51.78 | AI184: FALSE | AJ184: FALSE | AK184: 0 | AL184: FALSE | AM184: 2019 | AN184: 38.66343153 | AO184: 44.013 | AP184: 38.56343153 | AQ184: 38.56343153 | AR184: =LOOKUP(E184,'Hourly Data Facility'!A:A,'Hourly Data Facility'!F:F) ->  | AS184: =LOOKUP(E184,'Hourly Data PVGIS'!B:B,'Hourly Data PVGIS'!G:G) -> 2.9 | AT184: 150.162 | AU184: =LOOKUP(E184,'Hourly Data PVGIS'!B:B,'Hourly Data PVGIS'!D:D) -> 180.88 | AV184: 9365.9664 | AW184: 6975.353495 | AX184: 10 | AY184: 9 | AZ184: 32.92 | BA184: 3 | BB184: 53.19 | BC184: 19 | BD184: 32.98 | BE184: 2 | BF184: 51.47 | BG184: 20 | BH184: 100 | BI184: 0 | BJ184: 0 | BK184: 100 | BL184: 0 | BM184: 0 | BN184: 100 | BO184: 0 | BP184: =LOOKUP(F184,'Gas and Other'!B:B,'Gas and Other'!J:J) -> 3.620371406 | BQ184: 14.3024 | BR184: 1 | BS184: Jul 2019 | BT184: FALSE | BU184: 179 | BW184: =IF(BT184,INDEX(AH184:BQ184,$BW$4),NA()) ->  | BX184: =IF(BT184,INDEX(AH184:BQ184,$BX$4),NA()) ->  | BY184: FALSE | CA184: =IF(BY184,INDEX(AH184:BQ184,$BW$4),NA()) ->  | CB184: =IF(BY184,INDEX(AH184:BQ184,$BX$4),NA()) ->  | CC184: 0 | CD184: 0
D185: 4595 | E185: 2019-07-11T09:59:59.992 | F185: 2019-07-31 | G185: Jul 2019 | H185: 2019 | I185: 11 - 12 | J185: 10 | K185: 36.51 | L185: 36.27 | M185: 36.27 | N185: 36.27 | O185: 52.69 | P185: 58.13 | Q185: 36.27 | R185: 36.27 | S185: 36.27 | T185: 36.27 | U185: 36.27 | V185: 32.95 | W185: 70.3 | X185: 53.99 | Y185: 53.99 | Z185: 70.3 | AA185: 70.3 | AB185: 53.99 | AC185: 53.99 | AD185: 53.99 | AE185: 53.99 | AF185: 53.99 | AH185: =INDEX(X185:AF185,$AH$2) -> 53.99 | AI185: FALSE | AJ185: FALSE | AK185: 0 | AL185: FALSE | AM185: 2019 | AN185: 38.66343153 | AO185: 45.8915 | AP185: 38.56343153 | AQ185: 38.56343153 | AR185: =LOOKUP(E185,'Hourly Data Facility'!A:A,'Hourly Data Facility'!F:F) ->  | AS185: =LOOKUP(E185,'Hourly Data PVGIS'!B:B,'Hourly Data PVGIS'!G:G) -> 3.17 | AT185: 171.1483 | AU185: =LOOKUP(E185,'Hourly Data PVGIS'!B:B,'Hourly Data PVGIS'!D:D) -> 248.01 | AV185: 13390.0599 | AW185: 9564.116654 | AX185: 11 | AY185: 9 | AZ185: 32.92 | BA185: 3 | BB185: 53.19 | BC185: 19 | BD185: 32.98 | BE185: 2 | BF185: 51.47 | BG185: 20 | BH185: 100 | BI185: 0 | BJ185: 0 | BK185: 100 | BL185: 0 | BM185: 0 | BN185: 100 | BO185: 0 | BP185: =LOOKUP(F185,'Gas and Other'!B:B,'Gas and Other'!J:J) -> 3.620371406 | BQ185: 14.91283461 | BR185: 1 | BS185: Jul 2019 | BT185: FALSE | BU185: 180 | BW185: =IF(BT185,INDEX(AH185:BQ185,$BW$4),NA()) ->  | BX185: =IF(BT185,INDEX(AH185:BQ185,$BX$4),NA()) ->  | BY185: FALSE | CA185: =IF(BY185,INDEX(AH185:BQ185,$BW$4),NA()) ->  | CB185: =IF(BY185,INDEX(AH185:BQ185,$BX$4),NA()) ->  | CC185: 0 | CD185: 0
